Workbook

Sheet PNB BDD
C2: A sélectionner dans menu déroulant | V2: Légende
B3: Direction commerciale | V3: Réalisations > objectif proraté
B4: Secteur | V4: Réalisations < 50% de objectif proraté
B5: Agence | V5: Taux / durée lié a une convention
B7: =IF(C3="","CEGEE",IF(AND(C5="",C4=""),C3,IF(AND(C5="",C4<>""),C4,IF(C5="","""Sélectionneragence",C5)))) -> CEGEE | E7: PNB sur Activité Nouvelle 2019
B9: Données arrêtées au : | C9: ='Indicateurs Cumulés'!$E$4 -> 2019-05-31
B10: Taux de réalisation attendu : | C10: =MONTH(C9)/12 -> 42% | E10: Réalisations Mensuelles | J10: Réalisations Annuelles | P10: OBJECTIFS | V10: TAUX Réal. Objectif
E11: Volume | F11: Taux | G11: Durée | H11: PNB | J11: Volume | K11: Taux | L11: Durée | M11: PNB | N11: PNB / ETP perf. | P11: Volume | Q11: Taux | R11: Durée | S11: PNB | T11: PNB / ETP Cible | V11: Volume | W11: PNB annuel | X11: Ecart /obj. PNB/ETP
B12: Montants en k€
B14: COLLECTE (yc DAV) - Excédents | E14: =E15+E16+E17+E32 -> -23,176 | H14: =H15+H16+H32 -> 1,655 | J14: =J15+J16+J17+J32 -> 147,359 | M14: =M15+M16+M32 -> 9,535 | N14: =IF(ISERROR(M14/VLOOKUP($B$7,'Indicateurs Cumulés'!$D$3:$MX$391,223,FALSE)),"nc",M14/VLOOKUP($B$7,'Indicateurs Cumulés'!$D$3:$MX$391,223,FALSE)) -> 6.8 | P14: =P15+P16+P32 -> 180,000 | S14: =S15+S16+S32 -> 24,756 | T14: =IF(ISERROR(S14/VLOOKUP($B$7,objectifs!$D$4:$IA$373,232,FALSE)),"nc",S14/VLOOKUP($B$7,objectifs!$D$4:$IA$373,232,FALSE)) -> 16.3 | V14: =IF(ISERROR(J14/P14),0,J14/P14) -> 82% | W14: =IF(ISERROR(M14/S14),0,M14/S14) -> 39% | X14: =IF(ISERROR(N14-(T14/12*MONTH($C$9))),"nc",N14-(T14/12*MONTH($C$9))) -> 0.0
B15: DAV Créditeurs - Variation d'EMJ mensuel | E15: =VLOOKUP($B$7,'Indicateurs mensuels'!$D$3:$ZZ$391,211,FALSE)/12 -> 2,742 | F15: =VLOOKUP($B$7,'Indicateurs mensuels'!$D$3:$KI$391,178,FALSE) -> 1.00% | G15: =VLOOKUP($B$7,'Indicateurs mensuels'!$D$3:$KI$391,179,FALSE) -> 5.37 | H15: =E15*F15*G15 -> 147 | J15: =VLOOKUP($B$7,'Indicateurs Cumulés'!$D$3:$MX$391,220,FALSE) -> 3,475 | K15: =VLOOKUP($B$7,'Indicateurs Cumulés'!$D$3:$MX$391,186,FALSE) -> 1.00% | L15: =VLOOKUP($B$7,'Indicateurs Cumulés'!$D$3:$MX$391,187,FALSE) -> 5.37 | M15: =J15*K15*L15 -> 187 | N15: =IF(ISERROR(M15/VLOOKUP($B$7,'Indicateurs Cumulés'!$D$3:$MX$391,223,FALSE)),"nc",M15/VLOOKUP($B$7,'Indicateurs Cumulés'!$D$3:$MX$391,223,FALSE)) -> 0.1 | P15: =VLOOKUP($B$7,objectifs!$D$3:$ZZ$391,157,FALSE) -> 130,000 | Q15: =VLOOKUP($B$7,objectifs!$D$3:$ZZ$391,158,FALSE) -> 1.00% | R15: =VLOOKUP($B$7,objectifs!$D$3:$ZZ$391,159,FALSE) -> 5.37 | S15: =P15*Q15*R15 -> 6,981 | T15: =IF(ISERROR(S15/VLOOKUP($B$7,objectifs!$D$4:$IA$373,232,FALSE)),"nc",S15/VLOOKUP($B$7,objectifs!$D$4:$IA$373,232,FALSE)) -> 4.6 | V15: =IF(ISERROR(J15/P15),0,J15/P15) -> 3% | W15: =IF(ISERROR(M15/S15),0,M15/S15) -> 3% | X15: =IF(ISERROR(N15-(T15/12*MONTH($C$9))),"nc",N15-(T15/12*MONTH($C$9))) -> -1.8
B16: Epargne Bilan | E16: =VLOOKUP($B$7,'Indicateurs mensuels'!$D$3:$KI$391,173,FALSE) -> -43,817 | H16: =VLOOKUP($B$7,'Indicateurs mensuels'!$D$3:$KI$391,174,FALSE) -> -169 | J16: =VLOOKUP($B$7,'Indicateurs Cumulés'!$D$3:$MX$391,181,FALSE) -> 9,516 | M16: =VLOOKUP($B$7,'Indicateurs Cumulés'!$D$3:$MX$391,182,FALSE) -> 2,750 | N16: =IF(ISERROR(M16/VLOOKUP($B$7,'Indicateurs Cumulés'!$D$3:$MX$391,223,FALSE)),"nc",M16/VLOOKUP($B$7,'Indicateurs Cumulés'!$D$3:$MX$391,223,FALSE)) -> 2.0 | P16: =VLOOKUP($B$7,objectifs!$D$3:$ZZ$391,153,FALSE)+VLOOKUP($B$7,objectifs!$D$3:$ZZ$391,81,FALSE) -> -120,000 | S16: =VLOOKUP($B$7,objectifs!$D$3:$ZZ$391,154,FALSE)+S17 -> 2,792 | T16: =IF(ISERROR(S16/VLOOKUP($B$7,objectifs!$D$4:$IA$373,232,FALSE)),"nc",S16/VLOOKUP($B$7,objectifs!$D$4:$IA$373,232,FALSE)) -> 1.8 | V16: =IF(ISERROR(J16/P16),0,J16/P16) -> -8% | W16: =IF(ISERROR(M16/S16),0,M16/S16) -> 98% | X16: =IF(ISERROR(N16-(T16/12*MONTH($C$9))),"nc",N16-(T16/12*MONTH($C$9))) -> 1.2
B17: Livret A | E17: =VLOOKUP($B$7,'Indicateurs mensuels'!$D$3:$KI$391,101,FALSE) -> -3,734 | F17: =VLOOKUP($B$7,'Indicateurs mensuels'!$D$3:$KI$391,102,FALSE) -> 0.70% | G17: =VLOOKUP($B$7,'Indicateurs mensuels'!$D$3:$KI$391,103,FALSE) -> 5.33 | H17: =E17*F17*G17 -> -139 | J17: =VLOOKUP($B$7,'Indicateurs Cumulés'!$D$3:$MX$391,109,FALSE) -> 48,297 | K17: =VLOOKUP($B$7,'Indicateurs Cumulés'!$D$3:$MX$391,110,FALSE) -> 0.70% | L17: =VLOOKUP($B$7,'Indicateurs Cumulés'!$D$3:$MX$391,111,FALSE) -> 5.33 | M17: =J17*K17*L17 -> 1,802 | N17: =IF(ISERROR(M17/VLOOKUP($B$7,'Indicateurs Cumulés'!$D$3:$MX$391,223,FALSE)),"nc",M17/VLOOKUP($B$7,'Indicateurs Cumulés'!$D$3:$MX$391,223,FALSE)) -> 1.3 | P17: =VLOOKUP($B$7,objectifs!$D$3:$ZZ$391,81,FALSE) -> 30,000 | Q17: =VLOOKUP($B$7,objectifs!$D$3:$ZZ$391,82,FALSE) -> 0.70% | R17: =VLOOKUP($B$7,objectifs!$D$3:$ZZ$391,83,FALSE) -> 5.37 | S17: =P17*Q17*R17 -> 1,128 | T17: =IF(ISERROR(S17/VLOOKUP($B$7,objectifs!$D$4:$IA$373,232,FALSE)),"nc",S17/VLOOKUP($B$7,objectifs!$D$4:$IA$373,232,FALSE)) -> 0.7 | V17: =IF(ISERROR(J17/P17),0,J17/P17) -> 161% | W17: =IF(ISERROR(M17/S17),0,M17/S17) -> 160% | X17: 1.0
B18: LDDS | E18: =VLOOKUP($B$7,'Indicateurs mensuels'!$D$3:$KI$391,121,FALSE) -> 1,879 | F18: =VLOOKUP($B$7,'Indicateurs mensuels'!$D$3:$KI$391,122,FALSE) -> 0.20% | G18: =VLOOKUP($B$7,'Indicateurs mensuels'!$D$3:$KI$391,123,FALSE) -> 5.37 | H18: 20 | J18: =VLOOKUP($B$7,'Indicateurs Cumulés'!$D$3:$MX$391,129,FALSE) -> 13,499 | K18: =VLOOKUP($B$7,'Indicateurs Cumulés'!$D$3:$MX$391,130,FALSE) -> 0.20% | L18: =VLOOKUP($B$7,'Indicateurs Cumulés'!$D$3:$MX$391,131,FALSE) -> 5.37 | M18: =VLOOKUP($B$7,'Indicateurs Cumulés'!$D$3:$MX$391,132,FALSE) -> 145 | N18: =IF(ISERROR(M18/VLOOKUP($B$7,'Indicateurs Cumulés'!$D$3:$MX$391,223,FALSE)),"nc",M18/VLOOKUP($B$7,'Indicateurs Cumulés'!$D$3:$MX$391,223,FALSE)) -> 0.1 | P18: =VLOOKUP($B$7,objectifs!$D$3:$ZZ$391,101,FALSE) -> 10,000 | Q18: =VLOOKUP($B$7,objectifs!$D$3:$ZZ$391,102,FALSE) -> 0.20% | R18: =VLOOKUP($B$7,objectifs!$D$3:$ZZ$391,103,FALSE) -> 5.37 | S18: =P18*Q18*R18 -> 107 | T18: =IF(ISERROR(S18/VLOOKUP($B$7,objectifs!$D$4:$IA$373,232,FALSE)),"nc",S18/VLOOKUP($B$7,objectifs!$D$4:$IA$373,232,FALSE)) -> 0.1 | V18: =IF(ISERROR(J18/P18),0,J18/P18) -> 135% | W18: =IF(ISERROR(M18/S18),0,M18/S18) -> 135% | X18: 0.1
B19: LEP | E19: =VLOOKUP($B$7,'Indicateurs mensuels'!$D$3:$KI$391,117,FALSE) -> 343 | F19: =VLOOKUP($B$7,'Indicateurs mensuels'!$D$3:$KI$391,118,FALSE) -> 0.20% | G19: =VLOOKUP($B$7,'Indicateurs mensuels'!$D$3:$KI$391,119,FALSE) -> 5.37 | H19: 4 | J19: =VLOOKUP($B$7,'Indicateurs Cumulés'!$D$3:$MX$391,125,FALSE) -> -77,712 | K19: =VLOOKUP($B$7,'Indicateurs Cumulés'!$D$3:$MX$391,126,FALSE) -> 0.20% | L19: =VLOOKUP($B$7,'Indicateurs Cumulés'!$D$3:$MX$391,127,FALSE) -> 5.37 | M19: =VLOOKUP($B$7,'Indicateurs Cumulés'!$D$3:$MX$391,128,FALSE) -> -835 | N19: =IF(ISERROR(M19/VLOOKUP($B$7,'Indicateurs Cumulés'!$D$3:$MX$391,223,FALSE)),"nc",M19/VLOOKUP($B$7,'Indicateurs Cumulés'!$D$3:$MX$391,223,FALSE)) -> -0.6 | P19: =VLOOKUP($B$7,objectifs!$D$3:$ZZ$391,97,FALSE) -> -40,000 | Q19: =VLOOKUP($B$7,objectifs!$D$3:$ZZ$391,98,FALSE) -> 0.20% | R19: =VLOOKUP($B$7,objectifs!$D$3:$ZZ$391,99,FALSE) -> 5.37 | S19: -430 | T19: =IF(ISERROR(S19/VLOOKUP($B$7,objectifs!$D$4:$IA$373,232,FALSE)),"nc",S19/VLOOKUP($B$7,objectifs!$D$4:$IA$373,232,FALSE)) -> -0.3 | V19: 194% | W19: 194% | X19: -0.5
B20: Livret B | E20: =VLOOKUP($B$7,'Indicateurs mensuels'!$D$3:$KI$391,105,FALSE) -> 5,075 | F20: =VLOOKUP($B$7,'Indicateurs mensuels'!$D$3:$KI$391,106,FALSE) -> 0.81% | G20: =VLOOKUP($B$7,'Indicateurs mensuels'!$D$3:$KI$391,107,FALSE) -> 5.33 | H20: 218 | J20: =VLOOKUP($B$7,'Indicateurs Cumulés'!$D$3:$MX$391,113,FALSE) -> -4,570 | K20: =VLOOKUP($B$7,'Indicateurs Cumulés'!$D$3:$MX$391,114,FALSE) -> 0.81% | L20: =VLOOKUP($B$7,'Indicateurs Cumulés'!$D$3:$MX$391,115,FALSE) -> 5.33 | M20: =VLOOKUP($B$7,'Indicateurs Cumulés'!$D$3:$MX$391,116,FALSE) -> -197 | N20: =IF(ISERROR(M20/VLOOKUP($B$7,'Indicateurs Cumulés'!$D$3:$MX$391,223,FALSE)),"nc",M20/VLOOKUP($B$7,'Indicateurs Cumulés'!$D$3:$MX$391,223,FALSE)) -> -0.1 | P20: =VLOOKUP($B$7,objectifs!$D$3:$ZZ$391,85,FALSE) -> 40,000 | Q20: =VLOOKUP($B$7,objectifs!$D$3:$ZZ$391,86,FALSE) -> 0.70% | R20: =VLOOKUP($B$7,objectifs!$D$3:$ZZ$391,87,FALSE) -> 5.37 | S20: 1,504 | T20: =IF(ISERROR(S20/VLOOKUP($B$7,objectifs!$D$4:$IA$373,232,FALSE)),"nc",S20/VLOOKUP($B$7,objectifs!$D$4:$IA$373,232,FALSE)) -> 1.0 | V20: -11% | W20: -13% | X20: -0.6
B21: Livret Jeune / Livret 10-12 | E21: =VLOOKUP($B$7,'Indicateurs mensuels'!$D$3:$KI$391,125,FALSE) -> -195 | F21: =VLOOKUP($B$7,'Indicateurs mensuels'!$D$3:$KI$391,126,FALSE) -> 0.20% | G21: =VLOOKUP($B$7,'Indicateurs mensuels'!$D$3:$KI$391,127,FALSE) -> 5.37 | H21: -2 | J21: =VLOOKUP($B$7,'Indicateurs Cumulés'!$D$3:$MX$391,133,FALSE) -> -5,164 | K21: =VLOOKUP($B$7,'Indicateurs Cumulés'!$D$3:$MX$391,134,FALSE) -> 0.20% | L21: =VLOOKUP($B$7,'Indicateurs Cumulés'!$D$3:$MX$391,135,FALSE) -> 5.37 | M21: =VLOOKUP($B$7,'Indicateurs Cumulés'!$D$3:$MX$391,136,FALSE) -> -55 | N21: =IF(ISERROR(M21/VLOOKUP($B$7,'Indicateurs Cumulés'!$D$3:$MX$391,223,FALSE)),"nc",M21/VLOOKUP($B$7,'Indicateurs Cumulés'!$D$3:$MX$391,223,FALSE)) -> -0.0 | P21: =VLOOKUP($B$7,objectifs!$D$3:$ZZ$391,105,FALSE) -> 1,000 | Q21: =VLOOKUP($B$7,objectifs!$D$3:$ZZ$391,106,FALSE) -> 0.20% | R21: =VLOOKUP($B$7,objectifs!$D$3:$ZZ$391,107,FALSE) -> 5.37 | S21: 11 | T21: =IF(ISERROR(S21/VLOOKUP($B$7,objectifs!$D$4:$IA$373,232,FALSE)),"nc",S21/VLOOKUP($B$7,objectifs!$D$4:$IA$373,232,FALSE)) -> 0.0 | V21: -516% | W21: -516% | X21: -0.0
B22: Livret Grand prix | E22: =VLOOKUP($B$7,'Indicateurs mensuels'!$D$3:$KI$391,113,FALSE) -> -4,801 | F22: =VLOOKUP($B$7,'Indicateurs mensuels'!$D$3:$KI$391,114,FALSE) -> 0.40% | G22: =VLOOKUP($B$7,'Indicateurs mensuels'!$D$3:$KI$391,115,FALSE) -> 2.16 | H22: -41 | J22: =VLOOKUP($B$7,'Indicateurs Cumulés'!$D$3:$MX$391,121,FALSE) -> 123,786 | K22: =VLOOKUP($B$7,'Indicateurs Cumulés'!$D$3:$MX$391,122,FALSE) -> 0.40% | L22: =VLOOKUP($B$7,'Indicateurs Cumulés'!$D$3:$MX$391,123,FALSE) -> 2.16 | M22: =VLOOKUP($B$7,'Indicateurs Cumulés'!$D$3:$MX$391,124,FALSE) -> 1068 | N22: =IF(ISERROR(M22/VLOOKUP($B$7,'Indicateurs Cumulés'!$D$3:$MX$391,223,FALSE)),"nc",M22/VLOOKUP($B$7,'Indicateurs Cumulés'!$D$3:$MX$391,223,FALSE)) -> 0.8 | P22: =VLOOKUP($B$7,objectifs!$D$3:$ZZ$391,93,FALSE) -> 0 | Q22: =VLOOKUP($B$7,objectifs!$D$3:$ZZ$391,94,FALSE) -> 0.70% | R22: =VLOOKUP($B$7,objectifs!$D$3:$ZZ$391,95,FALSE) -> 5.37 | S22: 0 | T22: =IF(ISERROR(S22/VLOOKUP($B$7,objectifs!$D$4:$IA$373,232,FALSE)),"nc",S22/VLOOKUP($B$7,objectifs!$D$4:$IA$373,232,FALSE)) -> 0.0
B23: Livret Grand Format | E23: =VLOOKUP($B$7,'Indicateurs mensuels'!$D$3:$KI$391,109,FALSE) -> -1,184 | F23: =VLOOKUP($B$7,'Indicateurs mensuels'!$D$3:$KI$391,110,FALSE) -> 0.91% | G23: =VLOOKUP($B$7,'Indicateurs mensuels'!$D$3:$KI$391,111,FALSE) -> 5.33 | H23: -57 | J23: =VLOOKUP($B$7,'Indicateurs Cumulés'!$D$3:$MX$391,117,FALSE) -> -7,762 | K23: =VLOOKUP($B$7,'Indicateurs Cumulés'!$D$3:$MX$391,118,FALSE) -> 0.91% | L23: =VLOOKUP($B$7,'Indicateurs Cumulés'!$D$3:$MX$391,119,FALSE) -> 5.33 | M23: =VLOOKUP($B$7,'Indicateurs Cumulés'!$D$3:$MX$391,120,FALSE) -> -375 | N23: =IF(ISERROR(M23/VLOOKUP($B$7,'Indicateurs Cumulés'!$D$3:$MX$391,223,FALSE)),"nc",M23/VLOOKUP($B$7,'Indicateurs Cumulés'!$D$3:$MX$391,223,FALSE)) -> -0.3 | P23: 0 | Q23: 0.00% | R23: 0.00 | S23: 0 | T23: =IF(ISERROR(S23/VLOOKUP($B$7,objectifs!$D$4:$IA$373,232,FALSE)),"nc",S23/VLOOKUP($B$7,objectifs!$D$4:$IA$373,232,FALSE)) -> 0.0
B24: Compte Excédent Pro | E24: =VLOOKUP($B$7,'Indicateurs mensuels'!$D$3:$KI$391,222,FALSE) -> 2,748 | F24: =H24/E24/G24 -> 0.60% | G24: =VLOOKUP($B$7,'Indicateurs mensuels'!$D$3:$KI$391,111,FALSE) -> 5.33 | H24: =VLOOKUP($B$7,'Indicateurs mensuels'!$D$3:$KI$391,223,FALSE) -> 89 | J24: =VLOOKUP($B$7,'Indicateurs Cumulés'!$D$3:$MX$391,273,FALSE) -> 24,601 | K24: =M24/J24/L24 -> 0.60% | L24: ='Indicateurs Cumulés'!$JW$3 -> 5.37 | M24: =VLOOKUP($B$7,'Indicateurs Cumulés'!$D$3:$MX$391,280,FALSE) -> 793 | N24: =IF(ISERROR(M24/VLOOKUP($B$7,'Indicateurs Cumulés'!$D$3:$MX$391,223,FALSE)),"nc",M24/VLOOKUP($B$7,'Indicateurs Cumulés'!$D$3:$MX$391,223,FALSE)) -> 0.6 | P24: =VLOOKUP($B$7,objectifs!$D$3:$ZZ$391,89,FALSE) -> 19,000 | Q24: =VLOOKUP($B$7,objectifs!$D$3:$ZZ$391,90,FALSE) -> 0.60% | R24: =VLOOKUP($B$7,objectifs!$D$3:$ZZ$391,91,FALSE) -> 5.37 | S24: 612 | T24: =IF(ISERROR(S24/VLOOKUP($B$7,objectifs!$D$4:$IA$373,232,FALSE)),"nc",S24/VLOOKUP($B$7,objectifs!$D$4:$IA$373,232,FALSE)) -> 0.4 | V24: 129% | W24: 129% | X24: 0.4
B25: PEL | E25: =VLOOKUP($B$7,'Indicateurs mensuels'!$D$3:$KI$391,141,FALSE) -> -8,602 | F25: =VLOOKUP($B$7,'Indicateurs mensuels'!$D$3:$KI$391,142,FALSE) -> -0.70% | G25: =VLOOKUP($B$7,'Indicateurs mensuels'!$D$3:$KI$391,143,FALSE) -> 5.09 | H25: 307 | J25: =VLOOKUP($B$7,'Indicateurs Cumulés'!$D$3:$MX$391,149,FALSE) -> -14,059 | K25: =VLOOKUP($B$7,'Indicateurs Cumulés'!$D$3:$MX$391,150,FALSE) -> 0.00% | L25: =VLOOKUP($B$7,'Indicateurs Cumulés'!$D$3:$MX$391,151,FALSE) -> 8.44 | M25: =VLOOKUP($B$7,'Indicateurs Cumulés'!$D$3:$MX$391,152,FALSE) -> 0 | N25: =IF(ISERROR(M25/VLOOKUP($B$7,'Indicateurs Cumulés'!$D$3:$MX$391,223,FALSE)),"nc",M25/VLOOKUP($B$7,'Indicateurs Cumulés'!$D$3:$MX$391,223,FALSE)) -> 0.0 | P25: =VLOOKUP($B$7,objectifs!$D$3:$ZZ$391,121,FALSE) -> -20,000 | Q25: =VLOOKUP($B$7,objectifs!$D$3:$ZZ$391,122,FALSE) -> 0.00% | R25: =VLOOKUP($B$7,objectifs!$D$3:$ZZ$391,123,FALSE) -> 8.50 | S25: 0 | T25: =IF(ISERROR(S25/VLOOKUP($B$7,objectifs!$D$4:$IA$373,232,FALSE)),"nc",S25/VLOOKUP($B$7,objectifs!$D$4:$IA$373,232,FALSE)) -> 0.0 | V25: 70% | W25: 0% | X25: 0
B26: CEL | E26: =VLOOKUP($B$7,'Indicateurs mensuels'!$D$3:$KI$391,129,FALSE) -> 3 | F26: =VLOOKUP($B$7,'Indicateurs mensuels'!$D$3:$KI$391,130,FALSE) -> 0.45% | G26: =VLOOKUP($B$7,'Indicateurs mensuels'!$D$3:$KI$391,131,FALSE) -> 5.33 | H26: 0 | J26: =VLOOKUP($B$7,'Indicateurs Cumulés'!$D$3:$MX$391,137,FALSE) -> -2,086 | K26: =VLOOKUP($B$7,'Indicateurs Cumulés'!$D$3:$MX$391,138,FALSE) -> 0.45% | L26: =VLOOKUP($B$7,'Indicateurs Cumulés'!$D$3:$MX$391,139,FALSE) -> 5.33 | M26: =VLOOKUP($B$7,'Indicateurs Cumulés'!$D$3:$MX$391,140,FALSE) -> -50 | N26: =IF(ISERROR(M26/VLOOKUP($B$7,'Indicateurs Cumulés'!$D$3:$MX$391,223,FALSE)),"nc",M26/VLOOKUP($B$7,'Indicateurs Cumulés'!$D$3:$MX$391,223,FALSE)) -> -0.0 | P26: =VLOOKUP($B$7,objectifs!$D$3:$ZZ$391,109,FALSE) -> 0 | Q26: =VLOOKUP($B$7,objectifs!$D$3:$ZZ$391,110,FALSE) -> 0.30% | R26: =VLOOKUP($B$7,objectifs!$D$3:$ZZ$391,111,FALSE) -> 5.37 | S26: 0 | T26: =IF(ISERROR(S26/VLOOKUP($B$7,objectifs!$D$4:$IA$373,232,FALSE)),"nc",S26/VLOOKUP($B$7,objectifs!$D$4:$IA$373,232,FALSE)) -> 0.0
B27: PEP | E27: =VLOOKUP($B$7,'Indicateurs mensuels'!$D$3:$KI$391,145,FALSE) -> -81 | F27: =VLOOKUP($B$7,'Indicateurs mensuels'!$D$3:$KI$391,146,FALSE) -> -0.37% | G27: =VLOOKUP($B$7,'Indicateurs mensuels'!$D$3:$KI$391,147,FALSE) -> 0.08 | H27: 0 | J27: =VLOOKUP($B$7,'Indicateurs Cumulés'!$D$3:$MX$391,153,FALSE) -> -532 | K27: =VLOOKUP($B$7,'Indicateurs Cumulés'!$D$3:$MX$391,154,FALSE) -> -0.37% | L27: =VLOOKUP($B$7,'Indicateurs Cumulés'!$D$3:$MX$391,155,FALSE) -> 0.08 | M27: =VLOOKUP($B$7,'Indicateurs Cumulés'!$D$3:$MX$391,156,FALSE) -> 0 | N27: =IF(ISERROR(M27/VLOOKUP($B$7,'Indicateurs Cumulés'!$D$3:$MX$391,223,FALSE)),"nc",M27/VLOOKUP($B$7,'Indicateurs Cumulés'!$D$3:$MX$391,223,FALSE)) -> 0.0 | P27: 0 | Q27: 0.00% | R27: 0.00 | S27: 0 | T27: =IF(ISERROR(S27/VLOOKUP($B$7,objectifs!$D$4:$IA$373,232,FALSE)),"nc",S27/VLOOKUP($B$7,objectifs!$D$4:$IA$373,232,FALSE)) -> 0.0
B28: SLR | E28: =VLOOKUP($B$7,'Indicateurs mensuels'!$D$3:$KI$391,133,FALSE) -> -115 | F28: =VLOOKUP($B$7,'Indicateurs mensuels'!$D$3:$KI$391,134,FALSE) -> 0.10% | G28: =VLOOKUP($B$7,'Indicateurs mensuels'!$D$3:$KI$391,135,FALSE) -> 7.18 | H28: -1 | J28: =VLOOKUP($B$7,'Indicateurs Cumulés'!$D$3:$MX$391,141,FALSE) -> -1,670 | K28: =VLOOKUP($B$7,'Indicateurs Cumulés'!$D$3:$MX$391,142,FALSE) -> 0.10% | L28: =VLOOKUP($B$7,'Indicateurs Cumulés'!$D$3:$MX$391,143,FALSE) -> 7.21 | M28: =VLOOKUP($B$7,'Indicateurs Cumulés'!$D$3:$MX$391,144,FALSE) -> -12 | N28: =IF(ISERROR(M28/VLOOKUP($B$7,'Indicateurs Cumulés'!$D$3:$MX$391,223,FALSE)),"nc",M28/VLOOKUP($B$7,'Indicateurs Cumulés'!$D$3:$MX$391,223,FALSE)) -> -0.0 | P28: =VLOOKUP($B$7,objectifs!$D$3:$ZZ$391,117,FALSE) -> 0 | Q28: =VLOOKUP($B$7,objectifs!$D$3:$ZZ$391,118,FALSE) -> 0.10% | R28: =VLOOKUP($B$7,objectifs!$D$3:$ZZ$391,119,FALSE) -> 7.00 | S28: 0 | T28: =IF(ISERROR(S28/VLOOKUP($B$7,objectifs!$D$4:$IA$373,232,FALSE)),"nc",S28/VLOOKUP($B$7,objectifs!$D$4:$IA$373,232,FALSE)) -> 0.0
B29: DAT (Bons, CDN, CAT, TCN, …) | E29: =VLOOKUP($B$7,'Indicateurs mensuels'!$D$3:$KI$391,137,FALSE) -> -2,178 | F29: =VLOOKUP($B$7,'Indicateurs mensuels'!$D$3:$KI$391,138,FALSE) -> 0.20% | G29: =VLOOKUP($B$7,'Indicateurs mensuels'!$D$3:$KI$391,139,FALSE) -> 9.00 | H29: -39 | J29: =VLOOKUP($B$7,'Indicateurs Cumulés'!$D$3:$MX$391,145,FALSE) -> -13,464 | K29: =VLOOKUP($B$7,'Indicateurs Cumulés'!$D$3:$MX$391,146,FALSE) -> 0.20% | L29: =VLOOKUP($B$7,'Indicateurs Cumulés'!$D$3:$MX$391,147,FALSE) -> 9.00 | M29: =VLOOKUP($B$7,'Indicateurs Cumulés'!$D$3:$MX$391,148,FALSE) -> -242 | N29: =IF(ISERROR(M29/VLOOKUP($B$7,'Indicateurs Cumulés'!$D$3:$MX$391,223,FALSE)),"nc",M29/VLOOKUP($B$7,'Indicateurs Cumulés'!$D$3:$MX$391,223,FALSE)) -> -0.2 | P29: =VLOOKUP($B$7,objectifs!$D$3:$ZZ$391,113,FALSE) -> 20,000 | Q29: =VLOOKUP($B$7,objectifs!$D$3:$ZZ$391,114,FALSE) -> 0.20% | R29: =VLOOKUP($B$7,objectifs!$D$3:$ZZ$391,115,FALSE) -> 9.00 | S29: 360 | T29: =IF(ISERROR(S29/VLOOKUP($B$7,objectifs!$D$4:$IA$373,232,FALSE)),"nc",S29/VLOOKUP($B$7,objectifs!$D$4:$IA$373,232,FALSE)) -> 0.2 | V29: -67% | W29: -67% | X29: -0.3
B30: Emprunt CTO | E30: =VLOOKUP($B$7,'Indicateurs mensuels'!$D$3:$KI$391,165,FALSE) -> -33,017 | F30: =VLOOKUP($B$7,'Indicateurs mensuels'!$D$3:$KI$391,166,FALSE) -> 0.20% | G30: =VLOOKUP($B$7,'Indicateurs mensuels'!$D$3:$KI$391,167,FALSE) -> 8.00 | H30: -528 | J30: =VLOOKUP($B$7,'Indicateurs Cumulés'!$D$3:$MX$391,173,FALSE) -> -129,142 | K30: =VLOOKUP($B$7,'Indicateurs Cumulés'!$D$3:$MX$391,174,FALSE) -> 0.20% | L30: =VLOOKUP($B$7,'Indicateurs Cumulés'!$D$3:$MX$391,175,FALSE) -> 8.00 | M30: =VLOOKUP($B$7,'Indicateurs Cumulés'!$D$3:$MX$391,176,FALSE) -> -2066 | N30: =IF(ISERROR(M30/VLOOKUP($B$7,'Indicateurs Cumulés'!$D$3:$MX$391,223,FALSE)),"nc",M30/VLOOKUP($B$7,'Indicateurs Cumulés'!$D$3:$MX$391,223,FALSE)) -> -1.5 | P30: =VLOOKUP($B$7,objectifs!$D$3:$ZZ$391,145,FALSE) -> -250,000 | Q30: =VLOOKUP($B$7,objectifs!$D$3:$ZZ$391,146,FALSE) -> 0.20% | R30: =VLOOKUP($B$7,objectifs!$D$3:$ZZ$391,147,FALSE) -> 8.00 | S30: -4,000 | T30: =IF(ISERROR(S30/VLOOKUP($B$7,objectifs!$D$4:$IA$373,232,FALSE)),"nc",S30/VLOOKUP($B$7,objectifs!$D$4:$IA$373,232,FALSE)) -> -2.6 | V30: 52% | W30: 52% | X30: -0.4
B31: Parts sociales | E31: =VLOOKUP($B$7,'Indicateurs mensuels'!$D$3:$KI$391,169,FALSE) -> 42 | F31: =VLOOKUP($B$7,'Indicateurs mensuels'!$D$3:$KI$391,170,FALSE) -> 1.00% | G31: =VLOOKUP($B$7,'Indicateurs mensuels'!$D$3:$KI$391,171,FALSE) -> 5.00 | H31: 2 | J31: =VLOOKUP($B$7,'Indicateurs Cumulés'!$D$3:$MX$391,177,FALSE) -> 55,494 | K31: =VLOOKUP($B$7,'Indicateurs Cumulés'!$D$3:$MX$391,178,FALSE) -> 1.00% | L31: =VLOOKUP($B$7,'Indicateurs Cumulés'!$D$3:$MX$391,179,FALSE) -> 5.00 | M31: =VLOOKUP($B$7,'Indicateurs Cumulés'!$D$3:$MX$391,180,FALSE) -> 2775 | N31: =IF(ISERROR(M31/VLOOKUP($B$7,'Indicateurs Cumulés'!$D$3:$MX$391,223,FALSE)),"nc",M31/VLOOKUP($B$7,'Indicateurs Cumulés'!$D$3:$MX$391,223,FALSE)) -> 2.0 | P31: =VLOOKUP($B$7,objectifs!$D$3:$ZZ$391,149,FALSE) -> 70,000 | Q31: =VLOOKUP($B$7,objectifs!$D$3:$ZZ$391,150,FALSE) -> 1.00% | R31: =VLOOKUP($B$7,objectifs!$D$3:$ZZ$391,151,FALSE) -> 5.00 | S31: 3,500 | T31: =IF(ISERROR(S31/VLOOKUP($B$7,objectifs!$D$4:$IA$373,232,FALSE)),"nc",S31/VLOOKUP($B$7,objectifs!$D$4:$IA$373,232,FALSE)) -> 2.3 | V31: 79% | W31: 79% | X31: 1.0
B32: Epargne Financière (Ass. vie - OPCVM - Autres val. mob.) | E32: =VLOOKUP($B$7,'Indicateurs mensuels'!$D$3:$KI$391,175,FALSE) -> 21,633 | H32: =VLOOKUP($B$7,'Indicateurs mensuels'!$D$3:$KI$391,176,FALSE) -> 1,676 | J32: =VLOOKUP($B$7,'Indicateurs Cumulés'!$D$3:$MX$391,183,FALSE) -> 86,071 | M32: =VLOOKUP($B$7,'Indicateurs Cumulés'!$D$3:$MX$391,184,FALSE) -> 6,599 | N32: =IF(ISERROR(M32/VLOOKUP($B$7,'Indicateurs Cumulés'!$D$3:$MX$391,223,FALSE)),"nc",M32/VLOOKUP($B$7,'Indicateurs Cumulés'!$D$3:$MX$391,223,FALSE)) -> 4.7 | P32: =VLOOKUP($B$7,objectifs!$D$3:$ZZ$391,155,FALSE) -> 170,000 | S32: =VLOOKUP($B$7,objectifs!$D$3:$ZZ$391,156,FALSE) -> 14,983 | T32: =IF(ISERROR(S32/VLOOKUP($B$7,objectifs!$D$4:$IA$373,232,FALSE)),"nc",S32/VLOOKUP($B$7,objectifs!$D$4:$IA$373,232,FALSE)) -> 9.9 | V32: 51% | W32: 44% | X32: 0.6
B33: Ass. Vie sur flux (versements) | E33: =VLOOKUP($B$7,'Indicateurs mensuels'!$D$3:$KI$391,153,FALSE)+VLOOKUP($B$7,'Indicateurs mensuels'!$D$3:$ZZ$391,193,FALSE) -> 74,973 | F33: =H33/E33 -> 0.82% | G33: =VLOOKUP($B$7,'Indicateurs mensuels'!$D$3:$KI$391,155,FALSE) -> 1.00 | H33: =(VLOOKUP($B$7,'Indicateurs mensuels'!$D$3:$KI$391,156,FALSE)+VLOOKUP($B$7,'Indicateurs mensuels'!$D$3:$ZZ$391,196,FALSE)) -> 618 | J33: =VLOOKUP($B$7,'Indicateurs Cumulés'!$D$3:$MX$391,161,FALSE)+VLOOKUP($B$7,'Indicateurs Cumulés'!$D$3:$MX$391,201,FALSE) -> 389,992 | K33: =M33/J33 -> 0.41% | L33: =VLOOKUP($B$7,'Indicateurs Cumulés'!$D$3:$MX$391,163,FALSE) -> 1.00 | M33: =(VLOOKUP($B$7,'Indicateurs Cumulés'!$D$3:$MX$391,164,FALSE)+VLOOKUP($B$7,'Indicateurs Cumulés'!$D$3:$MX$391,204,FALSE)) -> 1,618 | N33: =IF(ISERROR(M33/VLOOKUP($B$7,'Indicateurs Cumulés'!$D$3:$MX$391,223,FALSE)),"nc",M33/VLOOKUP($B$7,'Indicateurs Cumulés'!$D$3:$MX$391,223,FALSE)) -> 1.2 | P33: =VLOOKUP($B$7,objectifs!$D$3:$ZZ$391,133,FALSE) -> 1,000,000 | Q33: =VLOOKUP($B$7,objectifs!$D$3:$ZZ$391,134,FALSE) -> 0.40% | R33: =VLOOKUP($B$7,objectifs!$D$3:$ZZ$391,135,FALSE) -> 1.00 | S33: =P33*Q33*R33 -> 4,000 | T33: =IF(ISERROR(S33/VLOOKUP($B$7,objectifs!$D$4:$IA$373,232,FALSE)),"nc",S33/VLOOKUP($B$7,objectifs!$D$4:$IA$373,232,FALSE)) -> 2.6 | V33: 39% | W33: 40% | X33: 0.1
B34: Ass. Vie sur encours (excédents) | E34: =VLOOKUP($B$7,'Indicateurs mensuels'!$D$3:$KI$391,149,FALSE)+VLOOKUP($B$7,'Indicateurs mensuels'!$D$3:$ZZ$391,189,FALSE) -> 19,070 | F34: =VLOOKUP($B$7,'Indicateurs mensuels'!$D$3:$KI$391,150,FALSE) -> 0.45% | G34: =VLOOKUP($B$7,'Indicateurs mensuels'!$D$3:$KI$391,151,FALSE) -> 8.00 | H34: =E34*F34*G34 -> 687 | J34: =VLOOKUP($B$7,'Indicateurs Cumulés'!$D$3:$MX$391,157,FALSE)+VLOOKUP($B$7,'Indicateurs Cumulés'!$D$3:$MX$391,197,FALSE) -> 100,805 | K34: =VLOOKUP($B$7,'Indicateurs Cumulés'!$D$3:$MX$391,158,FALSE) -> 0.45% | L34: =VLOOKUP($B$7,'Indicateurs Cumulés'!$D$3:$MX$391,159,FALSE) -> 8.00 | M34: =J34*K34*L34 -> 3,629 | N34: =IF(ISERROR(M34/VLOOKUP($B$7,'Indicateurs Cumulés'!$D$3:$MX$391,223,FALSE)),"nc",M34/VLOOKUP($B$7,'Indicateurs Cumulés'!$D$3:$MX$391,223,FALSE)) -> 2.6 | P34: =VLOOKUP($B$7,objectifs!$D$3:$ZZ$391,129,FALSE) -> 165,000 | Q34: =VLOOKUP($B$7,objectifs!$D$3:$ZZ$391,130,FALSE) -> 0.45% | R34: =VLOOKUP($B$7,objectifs!$D$3:$ZZ$391,131,FALSE) -> 8.00 | S34: =P34*Q34*R34 -> 5,940 | T34: =IF(ISERROR(S34/VLOOKUP($B$7,objectifs!$D$4:$IA$373,232,FALSE)),"nc",S34/VLOOKUP($B$7,objectifs!$D$4:$IA$373,232,FALSE)) -> 3.9 | V34: 61% | W34: 61% | X34: 1.0
B35: Arbitrage (fonds € vers UC) | E35: =VLOOKUP($B$7,'Indicateurs mensuels'!$D$3:$KI$391,64,FALSE) -> 3,083 | F35: =K35 -> 0.25% | G35: =L35 -> 8.00 | H35: =E35*F35*G35 -> 62 | J35: =VLOOKUP($B$7,'Indicateurs Cumulés'!$D$3:$MX$391,64,FALSE) -> 22,229 | K35: =VLOOKUP($B$7,objectifs!$D$3:$ZZ$391,126,FALSE) -> 0.25% | L35: =VLOOKUP($B$7,objectifs!$D$3:$ZZ$391,127,FALSE) -> 8.00 | M35: =J35*K35*L35 -> 445 | N35: =IF(ISERROR(M35/VLOOKUP($B$7,'Indicateurs Cumulés'!$D$3:$MX$391,223,FALSE)),"nc",M35/VLOOKUP($B$7,'Indicateurs Cumulés'!$D$3:$MX$391,223,FALSE)) -> 0.3 | P35: =VLOOKUP($B$7,objectifs!$D$3:$ZZ$391,125,FALSE) -> 135,000 | Q35: =VLOOKUP($B$7,objectifs!$D$3:$ZZ$391,126,FALSE) -> 0.25% | R35: =VLOOKUP($B$7,objectifs!$D$3:$ZZ$391,127,FALSE) -> 8.00 | S35: =P35*Q35*R35 -> 2,700 | T35: =IF(ISERROR(S35/VLOOKUP($B$7,objectifs!$D$4:$IA$373,232,FALSE)),"nc",S35/VLOOKUP($B$7,objectifs!$D$4:$IA$373,232,FALSE)) -> 1.8 | V35: 16% | W35: 16% | X35: -0.4
B36: OPCVM sur flux (versements) | E36: =VLOOKUP($B$7,'Indicateurs mensuels'!$D$3:$KI$391,161,FALSE)+VLOOKUP($B$7,'Indicateurs mensuels'!$D$3:$KI$391,201,FALSE) -> 1,740 | F36: =VLOOKUP($B$7,'Indicateurs mensuels'!$D$3:$KI$391,162,FALSE) -> 0.40% | G36: =VLOOKUP($B$7,'Indicateurs mensuels'!$D$3:$KI$391,163,FALSE) -> 1.00 | H36: =E36*F36*G36 -> 7 | J36: =VLOOKUP($B$7,'Indicateurs Cumulés'!$D$3:$MX$391,169,FALSE)+VLOOKUP($B$7,'Indicateurs Cumulés'!$D$3:$MX$391,209,FALSE) -> 7,074 | K36: =VLOOKUP($B$7,'Indicateurs Cumulés'!$D$3:$MX$391,170,FALSE) -> 0.40% | L36: =VLOOKUP($B$7,'Indicateurs Cumulés'!$D$3:$MX$391,171,FALSE) -> 1.00 | M36: =VLOOKUP($B$7,'Indicateurs Cumulés'!$D$3:$MX$391,172,FALSE)+VLOOKUP($B$7,'Indicateurs Cumulés'!$D$3:$MX$391,212,FALSE) -> 28 | N36: =IF(ISERROR(M36/VLOOKUP($B$7,'Indicateurs Cumulés'!$D$3:$MX$391,223,FALSE)),"nc",M36/VLOOKUP($B$7,'Indicateurs Cumulés'!$D$3:$MX$391,223,FALSE)) -> 0.0 | P36: =VLOOKUP($B$7,objectifs!$D$3:$ZZ$391,141,FALSE) -> 20,000 | Q36: =VLOOKUP($B$7,objectifs!$D$3:$ZZ$391,142,FALSE) -> 0.40% | R36: =VLOOKUP($B$7,objectifs!$D$3:$ZZ$391,143,FALSE) -> 1.00 | S36: =P36*Q36*R36 -> 80 | T36: =IF(ISERROR(S36/VLOOKUP($B$7,objectifs!$D$4:$IA$373,232,FALSE)),"nc",S36/VLOOKUP($B$7,objectifs!$D$4:$IA$373,232,FALSE)) -> 0.1 | V36: 35% | W36: 35% | X36: -0.0
B37: OPCVM sur encours (excédents) | E37: =VLOOKUP($B$7,'Indicateurs mensuels'!$D$3:$KI$391,157,FALSE)+VLOOKUP($B$7,'Indicateurs mensuels'!$D$3:$KI$391,197,FALSE) -> -6,466 | F37: =H37/E37/G37 -> 0.65% | G37: =VLOOKUP($B$7,'Indicateurs mensuels'!$D$3:$KI$391,159,FALSE) -> 5.00 | H37: =VLOOKUP($B$7,'Indicateurs mensuels'!$D$3:$KI$391,160,FALSE)+VLOOKUP($B$7,'Indicateurs mensuels'!$D$3:$KI$391,200,FALSE) -> -210 | J37: =VLOOKUP($B$7,'Indicateurs Cumulés'!$D$3:$MX$391,165,FALSE)+VLOOKUP($B$7,'Indicateurs Cumulés'!$D$3:$MX$391,205,FALSE) -> -22,409 | K37: =M37/J37/L37 -> 0.65% | L37: =VLOOKUP($B$7,'Indicateurs Cumulés'!$D$3:$MX$391,167,FALSE) -> 5.00 | M37: =VLOOKUP($B$7,'Indicateurs Cumulés'!$D$3:$MX$391,168,FALSE)+VLOOKUP($B$7,'Indicateurs Cumulés'!$D$3:$MX$391,208,FALSE) -> -728 | N37: =IF(ISERROR(M37/VLOOKUP($B$7,'Indicateurs Cumulés'!$D$3:$MX$391,223,FALSE)),"nc",M37/VLOOKUP($B$7,'Indicateurs Cumulés'!$D$3:$MX$391,223,FALSE)) -> -0.5 | P37: =VLOOKUP($B$7,objectifs!$D$3:$ZZ$391,137,FALSE) -> 5,000 | Q37: =VLOOKUP($B$7,objectifs!$D$3:$ZZ$391,138,FALSE) -> 0.65% | R37: =VLOOKUP($B$7,objectifs!$D$3:$ZZ$391,139,FALSE) -> 5.00 | S37: 163 | T37: =IF(ISERROR(S37/VLOOKUP($B$7,objectifs!$D$4:$IA$373,232,FALSE)),"nc",S37/VLOOKUP($B$7,objectifs!$D$4:$IA$373,232,FALSE)) -> 0.1 | V37: -448% | W37: -448% | X37: -0.6
B38: FCP structurés (versements) | E38: =VLOOKUP($B$7,'Indicateurs mensuels'!$D$3:$ZZ$391,66,FALSE) -> 2,220 | F38: =K38 -> 2.80% | G38: =L38 -> 1.00 | H38: =E38*F38*G38 -> 62 | J38: =VLOOKUP($B$7,'Indicateurs Cumulés'!$D$3:$MX$391,66,FALSE) -> 43,701 | K38: =VLOOKUP($B$7,objectifs!$D$3:$ZZ$391,68,FALSE) -> 2.80% | L38: =VLOOKUP($B$7,'Indicateurs Cumulés'!$D$3:$MX$391,163,FALSE) -> 1.00 | M38: =J38*K38*L38 -> 1,224 | N38: =IF(ISERROR(M38/VLOOKUP($B$7,'Indicateurs Cumulés'!$D$3:$MX$391,223,FALSE)),"nc",M38/VLOOKUP($B$7,'Indicateurs Cumulés'!$D$3:$MX$391,223,FALSE)) -> 0.9 | P38: =VLOOKUP($B$7,objectifs!$D$3:$ZZ$391,67,FALSE) -> 75,000 | Q38: =VLOOKUP($B$7,objectifs!$D$3:$ZZ$391,68,FALSE) -> 2.80% | R38: =VLOOKUP($B$7,objectifs!$D$3:$ZZ$391,69,FALSE) -> 1.00 | S38: =P38*Q38*R38 -> 2,100 | T38: =IF(ISERROR(S38/VLOOKUP($B$7,objectifs!$D$4:$IA$373,232,FALSE)),"nc",S38/VLOOKUP($B$7,objectifs!$D$4:$IA$373,232,FALSE)) -> 1.4 | V38: 58% | W38: 58% | X38: 0.3
B39: Autres Valeurs mobilières (excédents) | E39: =VLOOKUP($B$7,'Indicateurs mensuels'!$D$3:$ZZ$391,205,FALSE) -> 9,029 | F39: =VLOOKUP($B$7,'Indicateurs mensuels'!$D$3:$KI$391,206,FALSE) -> 1.00% | G39: =VLOOKUP($B$7,'Indicateurs mensuels'!$D$3:$KI$391,207,FALSE) -> 5.00 | H39: =E39*F39*G39 -> 451 | J39: =VLOOKUP($B$7,'Indicateurs Cumulés'!$D$3:$MX$391,213,FALSE) -> 7,675 | K39: =VLOOKUP($B$7,'Indicateurs Cumulés'!$D$3:$MX$391,214,FALSE) -> 1.00% | L39: =VLOOKUP($B$7,'Indicateurs Cumulés'!$D$3:$MX$391,215,FALSE) -> 5.00 | M39: =J39*K39*L39 -> 384 | N39: =IF(ISERROR(M39/VLOOKUP($B$7,'Indicateurs Cumulés'!$D$3:$MX$391,223,FALSE)),"nc",M39/VLOOKUP($B$7,'Indicateurs Cumulés'!$D$3:$MX$391,223,FALSE)) -> 0.3 | P39: =VLOOKUP($B$7,objectifs!$D$3:$ZZ$391,165,FALSE) -> 0 | Q39: =VLOOKUP($B$7,objectifs!$D$3:$ZZ$391,166,FALSE) -> 1.00% | R39: =VLOOKUP($B$7,objectifs!$D$3:$ZZ$391,167,FALSE) -> 5.00 | S39: =P39*Q39*R39 -> 0 | T39: =IF(ISERROR(S39/VLOOKUP($B$7,objectifs!$D$4:$IA$373,232,FALSE)),"nc",S39/VLOOKUP($B$7,objectifs!$D$4:$IA$373,232,FALSE)) -> 0.0
B41: CREDIT à la CONSOMMATION - Eng. Nets (yc accessoires) | E41: =E42+E43 -> 59,310 | F41: =IF(ISERROR(H41/(E41*G41)),0,H41/(E41*G41)) -> 4.22% | G41: =SUMPRODUCT(G42:G43,E42:E43)/(E42+E43) -> 2.35 | H41: =H42+H43+H44+H45 -> 5,900 | J41: =J42+J43 -> 286,596 | K41: =IF(ISERROR(M41/(J41*L41)),0,M41/(J41*L41)) -> 4.28% | L41: =SUMPRODUCT(L42:L43,J42:J43)/(J42+J43) -> 2.39 | M41: =M42+M43+M44+M45 -> 29,289 | N41: =IF(ISERROR(M41/VLOOKUP($B$7,'Indicateurs Cumulés'!$D$3:$MX$391,223,FALSE)),"nc",M41/VLOOKUP($B$7,'Indicateurs Cumulés'!$D$3:$MX$391,223,FALSE)) -> 20.9 | P41: =P42+P43 -> 710,000 | Q41: =IF(ISERROR(S41/(P41*R41)),0,S41/(P41*R41)) -> 4.32% | R41: =SUMPRODUCT(R42:R43,P42:P43)/(P42+P43) -> 2.42 | S41: =S42+S43+S44+S45 -> 74,348 | T41: =IF(ISERROR(S41/VLOOKUP($B$7,objectifs!$D$4:$IA$373,232,FALSE)),"nc",S41/VLOOKUP($B$7,objectifs!$D$4:$IA$373,232,FALSE)) -> 48.9 | V41: =IF(ISERROR(J41/P41),0,J41/P41) -> 40% | W41: =IF(ISERROR(M41/S41),0,M41/S41) -> 39% | X41: =IF(ISERROR(N41-(T41/12*MONTH($C$9))),"nc",N41-(T41/12*MONTH($C$9))) -> 0.5
B42: Crédit à la Consommation (marge hors accessoires) | E42: =VLOOKUP($B$7,'Indicateurs mensuels'!$D$3:$KI$391,7,FALSE) -> 54,582 | F42: =VLOOKUP($B$7,'Indicateurs mensuels'!$D$3:$KI$391,8,FALSE) -> 3.20% | G42: =VLOOKUP($B$7,'Indicateurs mensuels'!$D$3:$KI$391,9,FALSE) -> 2.42 | H42: =E42*F42*G42 -> 4,238 | J42: =VLOOKUP($B$7,'Indicateurs Cumulés'!$D$3:$MX$391,7,FALSE) -> 265,386 | K42: =VLOOKUP($B$7,'Indicateurs Cumulés'!$D$3:$MX$391,8,FALSE) -> 3.26% | L42: =VLOOKUP($B$7,'Indicateurs Cumulés'!$D$3:$MX$391,9,FALSE) -> 2.46 | M42: =J42*K42*L42 -> 21,243 | N42: =IF(ISERROR(M42/VLOOKUP($B$7,'Indicateurs Cumulés'!$D$3:$MX$391,223,FALSE)),"nc",M42/VLOOKUP($B$7,'Indicateurs Cumulés'!$D$3:$MX$391,223,FALSE)) -> 15.2 | P42: =VLOOKUP($B$7,objectifs!$D$3:$ZZ$391,7,FALSE) -> 650,000 | Q42: =VLOOKUP($B$7,objectifs!$D$3:$ZZ$391,8,FALSE) -> 3.05% | R42: =VLOOKUP($B$7,objectifs!$D$3:$ZZ$391,9,FALSE) -> 2.50 | S42: =P42*Q42*R42 -> 49,563 | T42: =IF(ISERROR(S42/VLOOKUP($B$7,objectifs!$D$4:$IA$373,232,FALSE)),"nc",S42/VLOOKUP($B$7,objectifs!$D$4:$IA$373,232,FALSE)) -> 32.6 | V42: 41% | W42: 43% | X42: 1.6
B43: Crédit Revolving | E43: =VLOOKUP($B$7,'Indicateurs mensuels'!$D$3:$KI$391,3,FALSE) -> 4,729 | F43: =VLOOKUP($B$7,'Indicateurs mensuels'!$D$3:$KI$391,4,FALSE) -> 4.32% | G43: =VLOOKUP($B$7,'Indicateurs mensuels'!$D$3:$KI$391,5,FALSE) -> 1.57 | H43: =E43*F43*G43 -> 321 | J43: =VLOOKUP($B$7,'Indicateurs Cumulés'!$D$3:$MX$391,3,FALSE) -> 21,210 | K43: =VLOOKUP($B$7,'Indicateurs Cumulés'!$D$3:$MX$391,4,FALSE) -> 4.32% | L43: =VLOOKUP($B$7,'Indicateurs Cumulés'!$D$3:$MX$391,5,FALSE) -> 1.57 | M43: =J43*K43*L43 -> 1,439 | N43: =IF(ISERROR(M43/VLOOKUP($B$7,'Indicateurs Cumulés'!$D$3:$MX$391,223,FALSE)),"nc",M43/VLOOKUP($B$7,'Indicateurs Cumulés'!$D$3:$MX$391,223,FALSE)) -> 1.0 | P43: =VLOOKUP($B$7,objectifs!$D$3:$ZZ$391,3,FALSE) -> 60,000 | Q43: =VLOOKUP($B$7,objectifs!$D$3:$ZZ$391,4,FALSE) -> 4.32% | R43: =VLOOKUP($B$7,objectifs!$D$3:$ZZ$391,5,FALSE) -> 1.60 | S43: =P43*Q43*R43 -> 4,147 | T43: =IF(ISERROR(S43/VLOOKUP($B$7,objectifs!$D$4:$IA$373,232,FALSE)),"nc",S43/VLOOKUP($B$7,objectifs!$D$4:$IA$373,232,FALSE)) -> 2.7 | V43: 35% | W43: 35% | X43: -0.1
B44: Frais de dossier | H44: =VLOOKUP($B$7,'Indicateurs mensuels'!$D$3:$KI$391,95,FALSE) -> 203 | M44: =VLOOKUP($B$7,'Indicateurs Cumulés'!$D$3:$MX$391,96,FALSE) -> 1,026 | N44: =IF(ISERROR(M44/VLOOKUP($B$7,'Indicateurs Cumulés'!$D$3:$MX$391,223,FALSE)),"nc",M44/VLOOKUP($B$7,'Indicateurs Cumulés'!$D$3:$MX$391,223,FALSE)) -> 0.7 | S44: =VLOOKUP($B$7,objectifs!$D$3:$ZZ$391,62,FALSE) -> 3,900 | T44: =IF(ISERROR(S44/VLOOKUP($B$7,objectifs!$D$4:$IA$373,232,FALSE)),"nc",S44/VLOOKUP($B$7,objectifs!$D$4:$IA$373,232,FALSE)) -> 2.6 | W44: 26% | X44: -0.3
B45: Commissions ADE | E45: =VLOOKUP($B$7,'Indicateurs mensuels'!$D$3:$KI$391,216,FALSE) -> 141.2% | F45: =VLOOKUP($B$7,'Indicateurs mensuels'!$D$3:$KI$391,215,FALSE) -> 93.0% | H45: =VLOOKUP($B$7,'Indicateurs mensuels'!$D$3:$ZZ$391,217,FALSE) -> 1,138 | J45: =VLOOKUP($B$7,'Indicateurs Cumulés'!$D$3:$MX$391,103,FALSE) -> 139.6% | K45: =VLOOKUP($B$7,'Indicateurs Cumulés'!$D$3:$MX$391,102,FALSE) -> 93.1% | M45: =VLOOKUP($B$7,'Indicateurs Cumulés'!$D$3:$MX$391,104,FALSE) -> 5,581 | N45: =IF(ISERROR(M45/VLOOKUP($B$7,'Indicateurs Cumulés'!$D$3:$MX$391,223,FALSE)),"nc",M45/VLOOKUP($B$7,'Indicateurs Cumulés'!$D$3:$MX$391,223,FALSE)) -> 4.0 | S45: =VLOOKUP($B$7,objectifs!$D$3:$ZZ$391,72,FALSE) -> 16,738 | T45: =IF(ISERROR(S45/VLOOKUP($B$7,objectifs!$D$4:$IA$373,232,FALSE)),"nc",S45/VLOOKUP($B$7,objectifs!$D$4:$IA$373,232,FALSE)) -> 11.0 | W45: 33% | X45: -0.6
B47: CREDIT IMMOBILIER - Eng. Nets (yc accessoires) | E47: =E48 -> 133,136 | F47: =IF(ISERROR(H47/(E47*G47)),0,H47/(E47*G47)) -> 0.44% | G47: =G48 -> 7.59 | H47: =SUM(H48:H53) -> 4,461 | J47: =J48 -> 606,897 | K47: =IF(ISERROR(M47/(J47*L47)),0,M47/(J47*L47)) -> 0.35% | L47: =L48 -> 7.45 | M47: =SUM(M48:M53) -> 15,716 | N47: =IF(ISERROR(M47/VLOOKUP($B$7,'Indicateurs Cumulés'!$D$3:$MX$391,223,FALSE)),"nc",M47/VLOOKUP($B$7,'Indicateurs Cumulés'!$D$3:$MX$391,223,FALSE)) -> 11.2 | P47: =P48 -> 1,664,000 | Q47: =IF(ISERROR(S47/(P47*R47)),0,S47/(P47*R47)) -> 0.49% | R47: =R48 -> 7.50 | S47: =SUM(S48:S53) -> 60,661 | T47: =IF(ISERROR(S47/VLOOKUP($B$7,objectifs!$D$4:$IA$373,232,FALSE)),"nc",S47/VLOOKUP($B$7,objectifs!$D$4:$IA$373,232,FALSE)) -> 39.9 | V47: =IF(ISERROR(J47/P47),0,J47/P47) -> 36% | W47: =IF(ISERROR(M47/S47),0,M47/S47) -> 26% | X47: =IF(ISERROR(N47-(T47/12*MONTH($C$9))),"nc",N47-(T47/12*MONTH($C$9))) -> -5.4
B48: Crédit Immobilier (marge hors accessoires) | E48: =VLOOKUP($B$7,'Indicateurs mensuels'!$D$3:$KI$391,11,FALSE) -> 133,136 | F48: =VLOOKUP($B$7,'Indicateurs mensuels'!$D$3:$KI$391,13,FALSE) -> 0.09% | G48: =VLOOKUP($B$7,'Indicateurs mensuels'!$D$3:$KI$391,14,FALSE) -> 7.59 | H48: =E48*F48*G48 -> 885 | J48: =VLOOKUP($B$7,'Indicateurs Cumulés'!$D$3:$MX$391,11,FALSE) -> 606,897 | K48: =VLOOKUP($B$7,'Indicateurs Cumulés'!$D$3:$MX$391,13,FALSE) -> -0.01% | L48: =VLOOKUP($B$7,'Indicateurs Cumulés'!$D$3:$MX$391,14,FALSE) -> 7.45 | M48: =J48*K48*L48 -> -463 | N48: =IF(ISERROR(M48/VLOOKUP($B$7,'Indicateurs Cumulés'!$D$3:$MX$391,223,FALSE)),"nc",M48/VLOOKUP($B$7,'Indicateurs Cumulés'!$D$3:$MX$391,223,FALSE)) -> -0.3 | P48: =VLOOKUP($B$7,objectifs!$D$3:$ZZ$391,10,FALSE) -> 1,664,000 | Q48: =VLOOKUP($B$7,objectifs!$D$3:$ZZ$391,12,FALSE) -> 0.20% | R48: =VLOOKUP($B$7,objectifs!$D$3:$ZZ$391,13,FALSE) -> 7.50 | S48: =P48*Q48*R48 -> 24,960 | T48: =IF(ISERROR(S48/VLOOKUP($B$7,objectifs!$D$4:$IA$373,232,FALSE)),"nc",S48/VLOOKUP($B$7,objectifs!$D$4:$IA$373,232,FALSE)) -> 16.4 | V48: 36% | W48: -2% | X48: -7.2
B49: Commissions ADE (coefficient multiplicateur de 1,3 X) | E49: =VLOOKUP($B$7,'Indicateurs mensuels'!$D$3:$KI$391,87,FALSE) -> 141.8% | F49: =VLOOKUP($B$7,'Indicateurs mensuels'!$D$3:$KI$391,86,FALSE) -> 66.2% | H49: =VLOOKUP($B$7,'Indicateurs mensuels'!$D$3:$KI$391,88,FALSE) -> 3,014 | J49: =VLOOKUP($B$7,'Indicateurs Cumulés'!$D$3:$MX$391,100,FALSE) -> 141.3% | K49: =VLOOKUP($B$7,'Indicateurs Cumulés'!$D$3:$MX$391,99,FALSE) -> 69.7% | M49: =VLOOKUP($B$7,'Indicateurs Cumulés'!$D$3:$MX$391,101,FALSE) -> 14,005 | N49: =IF(ISERROR(M49/VLOOKUP($B$7,'Indicateurs Cumulés'!$D$3:$MX$391,223,FALSE)),"nc",M49/VLOOKUP($B$7,'Indicateurs Cumulés'!$D$3:$MX$391,223,FALSE)) -> 10.0 | S49: =VLOOKUP($B$7,objectifs!$D$3:$ZZ$391,71,FALSE) -> 27,130 | T49: =IF(ISERROR(S49/VLOOKUP($B$7,objectifs!$D$4:$IA$373,232,FALSE)),"nc",S49/VLOOKUP($B$7,objectifs!$D$4:$IA$373,232,FALSE)) -> 17.9 | W49: 52% | X49: 2.6
B50: Frais de dossier | H50: =VLOOKUP($B$7,'Indicateurs mensuels'!$D$3:$KI$391,96,FALSE) -> 392 | M50: =VLOOKUP($B$7,'Indicateurs Cumulés'!$D$3:$MX$391,98,FALSE) -> 1,829 | N50: =IF(ISERROR(M50/VLOOKUP($B$7,'Indicateurs Cumulés'!$D$3:$MX$391,223,FALSE)),"nc",M50/VLOOKUP($B$7,'Indicateurs Cumulés'!$D$3:$MX$391,223,FALSE)) -> 1.3 | S50: =VLOOKUP($B$7,objectifs!$D$3:$ZZ$391,63,FALSE) -> 4,992 | T50: =IF(ISERROR(S50/VLOOKUP($B$7,objectifs!$D$4:$IA$373,232,FALSE)),"nc",S50/VLOOKUP($B$7,objectifs!$D$4:$IA$373,232,FALSE)) -> 3.3 | W50: 37% | X50: =IF(ISERROR(N50-(T50/12*MONTH($C$9))),"nc",N50-(T50/12*MONTH($C$9))) -> -0.1
B51: Commissions SACCEF | H51: =VLOOKUP($B$7,'Indicateurs mensuels'!$D$3:$KI$391,30,FALSE) -> 240 | M51: =VLOOKUP($B$7,'Indicateurs Cumulés'!$D$3:$MX$391,30,FALSE) -> 1,089 | N51: =IF(ISERROR(M51/VLOOKUP($B$7,'Indicateurs Cumulés'!$D$3:$MX$391,223,FALSE)),"nc",M51/VLOOKUP($B$7,'Indicateurs Cumulés'!$D$3:$MX$391,223,FALSE)) -> 0.8 | S51: =VLOOKUP($B$7,objectifs!$D$3:$ZZ$391,74,FALSE) -> 3,578
B52: Bonus clients devenus BPe / JBPe via le crédit immobilier | E52: =VLOOKUP($B$7,'Indicateurs Cumulés'!$D$3:$MX$391,84,FALSE)-VLOOKUP($B$7,'Indicateurs Cumulés M-1'!$D$3:$MX$390,84,FALSE) -> 300 | F52: =K52 -> 1,000 € | G52: =L52 -> 1.00 | H52: =E52*F52*G52/1000 -> 300 | J52: =VLOOKUP($B$7,'Indicateurs Cumulés'!$D$3:$MX$391,84,FALSE) -> 961 | K52: =IF(ISERROR(M52/(J52*L52)*1000),0,M52/(J52*L52)*1000) -> 1,000 € | L52: 1.00 | M52: =VLOOKUP($B$7,'Indicateurs Cumulés'!$D$3:$MX$391,85,FALSE) -> 961 | N52: =IF(ISERROR(M52/VLOOKUP($B$7,'Indicateurs Cumulés'!$D$3:$MX$391,223,FALSE)),"nc",M52/VLOOKUP($B$7,'Indicateurs Cumulés'!$D$3:$MX$391,223,FALSE)) -> 0.7
B53: Commissions apporteurs d'affaires | H53: =VLOOKUP($B$7,'Indicateurs mensuels'!$D$3:$KI$391,70,FALSE) -> -370 | M53: =VLOOKUP($B$7,'Indicateurs Cumulés'!$D$3:$MX$391,70,FALSE) -> -1,705 | N53: =IF(ISERROR(M53/VLOOKUP($B$7,'Indicateurs Cumulés'!$D$3:$MX$391,223,FALSE)),"nc",M53/VLOOKUP($B$7,'Indicateurs Cumulés'!$D$3:$MX$391,223,FALSE)) -> -1.2
B55: CREDIT MLT PRO - Eng. Nets (yc accessoires) | E55: =E56+E57 -> 25,158 | F55: =IF(ISERROR(H55/(E55*G55)),0,H55/(E55*G55)) -> 0.74% | G55: =SUMPRODUCT(G56:G57,E56:E57)/(E56+E57) -> 4.66 | H55: =H56+H57+H58+H59 -> 865 | J55: =J56+J57 -> 121,338 | K55: =IF(ISERROR(M55/(J55*L55)),0,M55/(J55*L55)) -> 0.62% | L55: =SUMPRODUCT(L56:L57,J56:J57)/(J56+J57) -> 4.46 | M55: =M56+M57+M58+M59 -> 3,355 | N55: =IF(ISERROR(M55/VLOOKUP($B$7,'Indicateurs Cumulés'!$D$3:$MX$391,223,FALSE)),"nc",M55/VLOOKUP($B$7,'Indicateurs Cumulés'!$D$3:$MX$391,223,FALSE)) -> 2.4 | P55: =P56+P57 -> 250,000 | Q55: =IF(ISERROR(S55/(P55*R55)),0,S55/(P55*R55)) -> 0.70% | R55: =SUMPRODUCT(R56:R57,P56:P57)/(P56+P57) -> 4.39 | S55: =S56+S57+S58+S59 -> 7,646 | T55: =IF(ISERROR(S55/VLOOKUP($B$7,objectifs!$D$4:$IA$373,232,FALSE)),"nc",S55/VLOOKUP($B$7,objectifs!$D$4:$IA$373,232,FALSE)) -> 5.0 | V55: =IF(ISERROR(J55/P55),0,J55/P55) -> 49% | W55: =IF(ISERROR(M55/S55),0,M55/S55) -> 44% | X55: =IF(ISERROR(N55-(T55/12*MONTH($C$9))),"nc",N55-(T55/12*MONTH($C$9))) -> 0.3
B56: Crédit MLT (marge hors accessoires) | E56: =VLOOKUP($B$7,'Indicateurs mensuels'!$D$3:$KI$391,22,FALSE) -> 23,817 | F56: =VLOOKUP($B$7,'Indicateurs mensuels'!$D$3:$KI$391,23,FALSE) -> 0.59% | G56: =VLOOKUP($B$7,'Indicateurs mensuels'!$D$3:$KI$391,24,FALSE) -> 4.82 | H56: =E56*F56*G56 -> 674 | J56: =VLOOKUP($B$7,'Indicateurs Cumulés'!$D$3:$MX$391,22,FALSE) -> 116,205 | K56: =VLOOKUP($B$7,'Indicateurs Cumulés'!$D$3:$MX$391,23,FALSE) -> 0.45% | L56: =VLOOKUP($B$7,'Indicateurs Cumulés'!$D$3:$MX$391,24,FALSE) -> 4.56 | M56: =J56*K56*L56 -> 2,405 | N56: =IF(ISERROR(M56/VLOOKUP($B$7,'Indicateurs Cumulés'!$D$3:$MX$391,223,FALSE)),"nc",M56/VLOOKUP($B$7,'Indicateurs Cumulés'!$D$3:$MX$391,223,FALSE)) -> 1.7 | P56: =VLOOKUP($B$7,objectifs!$D$3:$ZZ$391,20,FALSE) -> 238,000 | Q56: =VLOOKUP($B$7,objectifs!$D$3:$ZZ$391,21,FALSE) -> 0.40% | R56: =VLOOKUP($B$7,objectifs!$D$3:$ZZ$391,22,FALSE) -> 4.50 | S56: =P56*Q56*R56 -> 4,284 | T56: =IF(ISERROR(S56/VLOOKUP($B$7,objectifs!$D$4:$IA$373,232,FALSE)),"nc",S56/VLOOKUP($B$7,objectifs!$D$4:$IA$373,232,FALSE)) -> 2.8 | V56: 49% | W56: 56% | X56: 0.5
B57: Crédit Bail Mobilier | E57: =VLOOKUP($B$7,'Indicateurs mensuels'!$D$3:$GI$391,185,FALSE) -> 1,341 | F57: =VLOOKUP($B$7,'Indicateurs mensuels'!$D$3:$GI$391,186,FALSE) -> 0.96% | G57: =VLOOKUP($B$7,'Indicateurs mensuels'!$D$3:$GI$391,187,FALSE) -> 1.91 | H57: =E57*F57*G57 -> 25 | J57: =VLOOKUP($B$7,'Indicateurs Cumulés'!$D$3:$MX$391,193,FALSE) -> 5,133 | K57: =VLOOKUP($B$7,'Indicateurs Cumulés'!$D$3:$MX$391,194,FALSE) -> 0.92% | L57: =VLOOKUP($B$7,'Indicateurs Cumulés'!$D$3:$MX$391,195,FALSE) -> 2.21 | M57: =J57*K57*L57 -> 104 | N57: =IF(ISERROR(M57/VLOOKUP($B$7,'Indicateurs Cumulés'!$D$3:$MX$391,223,FALSE)),"nc",M57/VLOOKUP($B$7,'Indicateurs Cumulés'!$D$3:$MX$391,223,FALSE)) -> 0.1 | P57: =VLOOKUP($B$7,objectifs!$D$3:$ZZ$391,14,FALSE) -> 12,000 | Q57: =VLOOKUP($B$7,objectifs!$D$3:$ZZ$391,15,FALSE) -> 0.40% | R57: =VLOOKUP($B$7,objectifs!$D$3:$ZZ$391,16,FALSE) -> 2.30 | S57: =P57*Q57*R57 -> 110 | T57: =IF(ISERROR(S57/VLOOKUP($B$7,objectifs!$D$4:$IA$373,232,FALSE)),"nc",S57/VLOOKUP($B$7,objectifs!$D$4:$IA$373,232,FALSE)) -> 0.1 | V57: 43% | W57: 94% | X57: 0.0
B58: Frais de dossier (yc CBM) | H58: =VLOOKUP($B$7,'Indicateurs mensuels'!$D$3:$KI$391,92,FALSE)+VLOOKUP($B$7,'Indicateurs mensuels'!$D$3:$KI$391,97,FALSE) -> 67 | M58: =VLOOKUP($B$7,'Indicateurs Cumulés'!$D$3:$MX$391,92,FALSE)+VLOOKUP($B$7,'Indicateurs Cumulés'!$D$3:$MX$391,94,FALSE) -> 344 | N58: =IF(ISERROR(M58/VLOOKUP($B$7,'Indicateurs Cumulés'!$D$3:$MX$391,223,FALSE)),"nc",M58/VLOOKUP($B$7,'Indicateurs Cumulés'!$D$3:$MX$391,223,FALSE)) -> 0.2 | S58: =VLOOKUP($B$7,objectifs!$D$3:$ZZ$391,66,FALSE) -> 750 | T58: =IF(ISERROR(S58/VLOOKUP($B$7,objectifs!$D$4:$IA$373,232,FALSE)),"nc",S58/VLOOKUP($B$7,objectifs!$D$4:$IA$373,232,FALSE)) -> 0.5 | W58: 46% | X58: 0.0
B59: Commissions ADE | E59: =VLOOKUP($B$7,'Indicateurs mensuels'!$D$3:$KI$391,219,FALSE) -> 119.3% | F59: =VLOOKUP($B$7,'Indicateurs mensuels'!$D$3:$KI$391,218,FALSE) -> 62.5% | H59: =VLOOKUP($B$7,'Indicateurs mensuels'!$D$3:$ZZ$391,220,FALSE) -> 99 | J59: =VLOOKUP($B$7,'Indicateurs Cumulés'!$D$3:$MX$391,107,FALSE) -> 109.3% | K59: =VLOOKUP($B$7,'Indicateurs Cumulés'!$D$3:$MX$391,106,FALSE) -> 65.2% | M59: =VLOOKUP($B$7,'Indicateurs Cumulés'!$D$3:$MX$391,108,FALSE) -> 502 | N59: =IF(ISERROR(M59/VLOOKUP($B$7,'Indicateurs Cumulés'!$D$3:$MX$391,223,FALSE)),"nc",M59/VLOOKUP($B$7,'Indicateurs Cumulés'!$D$3:$MX$391,223,FALSE)) -> 0.4 | S59: =VLOOKUP($B$7,objectifs!$D$3:$ZZ$391,75,FALSE) -> 2,501 | T59: =IF(ISERROR(S59/VLOOKUP($B$7,objectifs!$D$4:$IA$373,232,FALSE)),"nc",S59/VLOOKUP($B$7,objectifs!$D$4:$IA$373,232,FALSE)) -> 1.6 | W59: 20% | X59: -0.3
B61: BANCA - Ventes nettes | H61: =H62+H68+H75+H76+H77+H78+H82 -> 3,774 | M61: =M62+M68+M75+M76+M77+M78+M82 -> 10,654 | N61: =IF(ISERROR(M61/VLOOKUP($B$7,'Indicateurs Cumulés'!$D$3:$MX$391,223,FALSE)),"nc",M61/VLOOKUP($B$7,'Indicateurs Cumulés'!$D$3:$MX$391,223,FALSE)) -> 7.6 | P61: =P62+P68+P78+P77 -> 59,265 | Q61: =IF(ISERROR(S61/(P61*R61)*1000),0,S61/(P61*R61)*1000) -> 114 € | R61: 5.00 | S61: =S62+S68+S78+S77 -> 33,763 | T61: =IF(ISERROR(S61/VLOOKUP($B$7,objectifs!$D$4:$IA$373,232,FALSE)),"nc",S61/VLOOKUP($B$7,objectifs!$D$4:$IA$373,232,FALSE)) -> 22.2 | V61: =IF(ISERROR(J61/P61),0,J61/P61) -> 0% | W61: =IF(ISERROR(M61/S61),0,M61/S61) -> 32% | X61: =IF(ISERROR(N61-(T61/12*MONTH($C$9))),"nc",N61-(T61/12*MONTH($C$9))) -> -1.7
B62: Forfaits - Tarification | E62: =SUM(E63:E67) -> 1,122 | H62: =SUM(H63:H67) -> 1,139 | J62: =SUM(J63:J67) -> 1,238 | M62: =SUM(M63:M67) -> 2,436 | N62: =IF(ISERROR(M62/VLOOKUP($B$7,'Indicateurs Cumulés'!$D$3:$MX$391,223,FALSE)),"nc",M62/VLOOKUP($B$7,'Indicateurs Cumulés'!$D$3:$MX$391,223,FALSE)) -> 1.7 | P62: =VLOOKUP($B$7,objectifs!$D$3:$ZZ$391,181,FALSE)*95% -> 21,280 | Q62: =objectifs!$GB$3 -> 137 € | R62: =objectifs!$GC$3 -> 5.00 | S62: =P62*Q62*R62/1000 -> 14,602 | T62: =IF(ISERROR(S62/VLOOKUP($B$7,objectifs!$D$4:$IA$373,232,FALSE)),"nc",S62/VLOOKUP($B$7,objectifs!$D$4:$IA$373,232,FALSE)) -> 9.6 | V62: 6% | W62: 17% | X62: -2.3
B63: Bouquet liberté HDG | E63: =J63-VLOOKUP($B$7,'Indicateurs Cumulés M-1'!$D$3:$MX$390,308,FALSE) -> 2,814 | F63: =K63 -> 140 € | G63: =L63 -> 5.00 | H63: =E63*F63*G63/1000 -> 1,963 | J63: =VLOOKUP($B$7,'Indicateurs Cumulés'!$D$3:$MX$391,308,FALSE) -> 9,939 | K63: ='Indicateurs Cumulés'!$KY$3 -> 140 € | L63: ='Indicateurs Cumulés'!$KZ$3 -> 5.00 | M63: =J63*K63*L63/1000 -> 6,932 | N63: =IF(ISERROR(M63/VLOOKUP($B$7,'Indicateurs Cumulés'!$D$3:$MX$391,223,FALSE)),"nc",M63/VLOOKUP($B$7,'Indicateurs Cumulés'!$D$3:$MX$391,223,FALSE)) -> 5.0
B64: Bouquet liberté Autres | E64: =J64-VLOOKUP($B$7,'Indicateurs Cumulés M-1'!$D$3:$MX$390,235,FALSE) -> -825 | F64: =K64 -> 87 € | G64: 5.00 | H64: =E64*F64*G64/1000 -> -359 | J64: =VLOOKUP($B$7,'Indicateurs Cumulés'!$D$3:$MX$391,235,FALSE) -> -4,256 | K64: ='Indicateurs Cumulés'!$ID$3 -> 87 € | L64: ='Indicateurs Cumulés'!$IT$3 -> 5.00 | M64: =J64*K64*L64/1000 -> -1,854 | N64: =IF(ISERROR(M64/VLOOKUP($B$7,'Indicateurs Cumulés'!$D$3:$MX$391,223,FALSE)),"nc",M64/VLOOKUP($B$7,'Indicateurs Cumulés'!$D$3:$MX$391,223,FALSE)) -> -1.3
B65: Futéo / SOL 16-17 | E65: =J65-VLOOKUP($B$7,'Indicateurs Cumulés M-1'!$D$3:$MX$390,236,FALSE) -> -215 | F65: 12 € | G65: 5.00 | H65: -13 | J65: =VLOOKUP($B$7,'Indicateurs Cumulés'!$D$3:$MX$391,236,FALSE) -> -629 | K65: ='Indicateurs Cumulés'!$IE$3 -> 12 € | L65: ='Indicateurs Cumulés'!$IU$3 -> 5.00 | M65: -38 | N65: =IF(ISERROR(M65/VLOOKUP($B$7,'Indicateurs Cumulés'!$D$3:$MX$391,223,FALSE)),"nc",M65/VLOOKUP($B$7,'Indicateurs Cumulés'!$D$3:$MX$391,223,FALSE)) -> -0.0
B66: Satellis Essentiel / Essentiel + | E66: =J66-VLOOKUP($B$7,'Indicateurs Cumulés M-1'!$D$3:$MX$390,237,FALSE) -> -547 | F66: 125 € | G66: 5.00 | H66: -341 | J66: =VLOOKUP($B$7,'Indicateurs Cumulés'!$D$3:$MX$391,237,FALSE) -> -3,291 | K66: ='Indicateurs Cumulés'!$IF$3 -> 125 € | L66: ='Indicateurs Cumulés'!$IV$3 -> 5.00 | M66: -2,054 | N66: =IF(ISERROR(M66/VLOOKUP($B$7,'Indicateurs Cumulés'!$D$3:$MX$391,223,FALSE)),"nc",M66/VLOOKUP($B$7,'Indicateurs Cumulés'!$D$3:$MX$391,223,FALSE)) -> -1.5
B67: Satellis Intégral | E67: =J67-VLOOKUP($B$7,'Indicateurs Cumulés M-1'!$D$3:$MX$390,238,FALSE) -> -105 | F67: 210 € | G67: 5.00 | H67: -110 | J67: =VLOOKUP($B$7,'Indicateurs Cumulés'!$D$3:$MX$391,238,FALSE) -> -525 | K67: ='Indicateurs Cumulés'!$IG$3 -> 210 € | L67: ='Indicateurs Cumulés'!$IW$3 -> 5.00 | M67: -551 | N67: =IF(ISERROR(M67/VLOOKUP($B$7,'Indicateurs Cumulés'!$D$3:$MX$391,223,FALSE)),"nc",M67/VLOOKUP($B$7,'Indicateurs Cumulés'!$D$3:$MX$391,223,FALSE)) -> -0.4
B68: Cartes - Tarification | E68: =SUM(E69:E74) -> 496 | H68: =SUM(H69:H74) -> 1,426 | J68: =SUM(J69:J74) -> -1,597 | M68: =SUM(M69:M74) -> 4,241 | N68: =IF(ISERROR(M68/VLOOKUP($B$7,'Indicateurs Cumulés'!$D$3:$MX$391,223,FALSE)),"nc",M68/VLOOKUP($B$7,'Indicateurs Cumulés'!$D$3:$MX$391,223,FALSE)) -> 3.0 | P68: =VLOOKUP($B$7,objectifs!$D$3:$ZZ$391,183,FALSE)*95% -> 11,400 | Q68: =objectifs!$GD$3 -> 289 € | R68: =objectifs!$GE$3 -> 5.00 | S68: =P68*Q68*R68/1000 -> 16,484 | T68: =IF(ISERROR(S68/VLOOKUP($B$7,objectifs!$D$4:$IA$373,232,FALSE)),"nc",S68/VLOOKUP($B$7,objectifs!$D$4:$IA$373,232,FALSE)) -> 10.9 | V68: -14% | W68: 26% | X68: =IF(ISERROR(N68-(T68/12*MONTH($C$9))),"nc",N68-(T68/12*MONTH($C$9))) -> -1.5
B69: Carte Infinite | E69: =J69-VLOOKUP($B$7,'Indicateurs Cumulés M-1'!$D$3:$MX$390,239,FALSE) -> 14 | F69: =K69 -> 315 € | G69: =L69 -> 5.00 | H69: =E69*F69*G69/1000 -> 22 | J69: =VLOOKUP($B$7,'Indicateurs Cumulés'!$D$3:$MX$391,239,FALSE) -> 61 | K69: ='Indicateurs Cumulés'!$IH$3 -> 315 € | L69: ='Indicateurs Cumulés'!$IX$3 -> 5.00 | M69: =J69*K69*L69/1000 -> 96 | N69: =IF(ISERROR(M69/VLOOKUP($B$7,'Indicateurs Cumulés'!$D$3:$MX$391,223,FALSE)),"nc",M69/VLOOKUP($B$7,'Indicateurs Cumulés'!$D$3:$MX$391,223,FALSE)) -> 0.1
B70: Carte Platinum (yc izicarte) | E70: =J70-VLOOKUP($B$7,'Indicateurs Cumulés M-1'!$D$3:$MX$390,240,FALSE) -> 187 | F70: =K70 -> 200 € | G70: 5.00 | H70: =E70*F70*G70/1000 -> 187 | J70: =VLOOKUP($B$7,'Indicateurs Cumulés'!$D$3:$MX$391,240,FALSE) -> 455 | K70: ='Indicateurs Cumulés'!$II$3 -> 200 € | L70: ='Indicateurs Cumulés'!$IY$3 -> 5.00 | M70: =J70*K70*L70/1000 -> 455 | N70: =IF(ISERROR(M70/VLOOKUP($B$7,'Indicateurs Cumulés'!$D$3:$MX$391,223,FALSE)),"nc",M70/VLOOKUP($B$7,'Indicateurs Cumulés'!$D$3:$MX$391,223,FALSE)) -> 0.3
B71: Carte visa premier (yc izicarte) | E71: =J71-VLOOKUP($B$7,'Indicateurs Cumulés M-1'!$D$3:$MX$390,241,FALSE) -> 2,613 | F71: 130 € | G71: 5.00 | H71: 1,698 | J71: =VLOOKUP($B$7,'Indicateurs Cumulés'!$D$3:$MX$391,241,FALSE) -> 9,423 | K71: ='Indicateurs Cumulés'!$IJ$3 -> 130 € | L71: ='Indicateurs Cumulés'!$IZ$3 -> 5.00 | M71: 6,125 | N71: =IF(ISERROR(M71/VLOOKUP($B$7,'Indicateurs Cumulés'!$D$3:$MX$391,223,FALSE)),"nc",M71/VLOOKUP($B$7,'Indicateurs Cumulés'!$D$3:$MX$391,223,FALSE)) -> 4.4
B72: Carte visa classique (yc izicarte) | E72: =J72-VLOOKUP($B$7,'Indicateurs Cumulés M-1'!$D$3:$MX$390,242,FALSE) -> -2,101 | F72: 43 € | G72: 5.00 | H72: -452 | J72: =VLOOKUP($B$7,'Indicateurs Cumulés'!$D$3:$MX$391,242,FALSE) -> -10,284 | K72: ='Indicateurs Cumulés'!$IK$3 -> 43 € | L72: ='Indicateurs Cumulés'!$JA$3 -> 5.00 | M72: -2,211 | N72: =IF(ISERROR(M72/VLOOKUP($B$7,'Indicateurs Cumulés'!$D$3:$MX$391,223,FALSE)),"nc",M72/VLOOKUP($B$7,'Indicateurs Cumulés'!$D$3:$MX$391,223,FALSE)) -> -1.6
B73: Carte Sensea | E73: =J73-VLOOKUP($B$7,'Indicateurs Cumulés M-1'!$D$3:$MX$390,82,FALSE) -> -110 | F73: 43 € | G73: 5.00 | H73: -23 | J73: =VLOOKUP($B$7,'Indicateurs Cumulés'!$D$3:$MX$391,82,FALSE) -> -975 | K73: ='Indicateurs Cumulés'!$CG$3 -> 43 € | L73: ='Indicateurs Cumulés'!$CH$3 -> 5.00 | M73: -207 | N73: =IF(ISERROR(M73/VLOOKUP($B$7,'Indicateurs Cumulés'!$D$3:$MX$391,223,FALSE)),"nc",M73/VLOOKUP($B$7,'Indicateurs Cumulés'!$D$3:$MX$391,223,FALSE)) -> -0.1
B74: Autres Cartes | E74: =J74-VLOOKUP($B$7,'Indicateurs Cumulés M-1'!$D$3:$MX$390,243,FALSE) -> -107 | F74: 12 € | G74: 5.00 | H74: -6 | J74: =VLOOKUP($B$7,'Indicateurs Cumulés'!$D$3:$MX$391,243,FALSE) -> -277 | K74: ='Indicateurs Cumulés'!$IL$3 -> 12 € | L74: ='Indicateurs Cumulés'!$JB$3 -> 5.00 | M74: -17 | N74: =IF(ISERROR(M74/VLOOKUP($B$7,'Indicateurs Cumulés'!$D$3:$MX$391,223,FALSE)),"nc",M74/VLOOKUP($B$7,'Indicateurs Cumulés'!$D$3:$MX$391,223,FALSE)) -> -0.0
B75: Booster Cartes débit différé | E75: =J75-VLOOKUP($B$7,'Indicateurs Cumulés M-1'!$D$3:$MX$390,305,FALSE) -> 1,472 | F75: =K75 -> 40 € | G75: 5.00 | H75: =E75*F75*G75/1000 -> 294 | J75: =VLOOKUP($B$7,'Indicateurs Cumulés'!$D$3:$MX$391,305,FALSE) -> 4,134 | K75: =IF(ISERROR(M75/(J75*L75)*1000),0,M75/(J75*L75)*1000) -> 40 € | L75: =objectifs!$GE$3 -> 5.00 | M75: =VLOOKUP($B$7,'Indicateurs Cumulés'!$D$3:$MX$391,306,FALSE) -> 827 | N75: =IF(ISERROR(M75/VLOOKUP($B$7,'Indicateurs Cumulés'!$D$3:$MX$391,223,FALSE)),"nc",M75/VLOOKUP($B$7,'Indicateurs Cumulés'!$D$3:$MX$391,223,FALSE)) -> 0.6
B76: Bonus Mobilité bancaire | E76: =VLOOKUP($B$7,'Indicateurs mensuels'!$D$3:$GI$391,68,FALSE) -> 531 | F76: =K76 -> 200 € | G76: =L76 -> 1.00 | H76: =E76*F76*G76/1000 -> 106 | J76: =(VLOOKUP($B$7,'Indicateurs Cumulés'!$D$3:$MX$391,80,FALSE)) -> 2,380 | K76: =IF(ISERROR(M76/(J76*L76)*1000),0,M76/(J76*L76)*1000) -> 200 € | L76: 1.00 | M76: =VLOOKUP($B$7,'Indicateurs Cumulés'!$D$3:$JB$391,81,FALSE) -> 476 | N76: =IF(ISERROR(M76/VLOOKUP($B$7,'Indicateurs Cumulés'!$D$3:$MX$391,223,FALSE)),"nc",M76/VLOOKUP($B$7,'Indicateurs Cumulés'!$D$3:$MX$391,223,FALSE)) -> 0.3
B77: Options complémentaires sur Bouquet Liberté | E77: =J77-VLOOKUP($B$7,'Indicateurs Cumulés M-1'!$D$3:$MX$390,190,FALSE) -> 29 | F77: =K77 -> 15 € | G77: =L77 -> 5.00 | H77: =E77*F77*G77/1000 -> 2 | J77: =VLOOKUP($B$7,'Indicateurs Cumulés'!$D$3:$MX$391,190,FALSE) -> 258 | K77: =IF(ISERROR(M77/(J77*L77)*1000),0,M77/(J77*L77)*1000) -> 15 € | L77: ='Indicateurs Cumulés'!$IT$3 -> 5.00 | M77: =VLOOKUP($B$7,'Indicateurs Cumulés'!$D$3:$MX$391,191,FALSE) -> 19 | N77: =IF(ISERROR(M77/VLOOKUP($B$7,'Indicateurs Cumulés'!$D$3:$MX$391,223,FALSE)),"nc",M77/VLOOKUP($B$7,'Indicateurs Cumulés'!$D$3:$MX$391,223,FALSE)) -> 0.0 | P77: =VLOOKUP($B$7,objectifs!$D$3:$ZZ$391,163,FALSE) -> 1,600 | Q77: =objectifs!$FJ$3 -> 15 € | R77: =objectifs!$FK$3 -> 5.00 | S77: =P77*Q77*R77/1000 -> 120 | T77: =IF(ISERROR(S77/VLOOKUP($B$7,objectifs!$D$4:$IA$373,232,FALSE)),"nc",S77/VLOOKUP($B$7,objectifs!$D$4:$IA$373,232,FALSE)) -> 0.1 | V77: =IF(ISERROR(J77/P77),0,J77/P77) -> 16% | W77: =IF(ISERROR(M77/S77),0,M77/S77) -> 16% | X77: -0.0
B78: IARD & Prévoyance - Commissions | E78: =J78-(VLOOKUP($B$7,'Indicateurs Cumulés M-1'!$D$3:$MX$390,228,FALSE) +VLOOKUP($B$7,'Indicateurs Cumulés M-1'!$D$3:$MX$390,229,FALSE) +VLOOKUP($B$7,'Indicateurs Cumulés M-1'!$D$3:$MX$390,230,FALSE) +VLOOKUP($B$7,'Indicateurs Cumulés M-1'!$D$3:$MX$390,231,FALSE) +VLOOKUP($B$7,'Indicateurs Cumulés M-1'!$D$3:$MX$390,232,FALSE) +VLOOKUP($B$7,'Indicateurs Cumulés M-1'!$D$3:$MX$390,233,FALSE) +VLOOKUP($B$7,'Indicateurs Cumulés M-1'!$D$3:$MX$390,234,FALSE) +VLOOKUP($B$7,'Indicateurs Cumulés M-1'!$D$3:$MX$390,266,FALSE) +VLOOKUP($B$7,'Indicateurs Cumulés M-1'!$D$3:$MX$390,310,FALSE)) -> 3,915 | F78: =IF(ISERROR(H78/(E78*G78)*1000),0,H78/(E78*G78)*1000) -> 23 € | G78: 5.00 | H78: =M78- (VLOOKUP($B$7,'Indicateurs Cumulés M-1'!$D$3:$JB$390,244,FALSE)+VLOOKUP($B$7,'Indicateurs Cumulés M-1'!$D$3:$JB$390,245,FALSE)+VLOOKUP($B$7,'Indicateurs Cumulés M-1'!$D$3:$JB$390,246,FALSE)+VLOOKUP($B$7,'Indicateurs Cumulés M-1'!$D$3:$JB$390,247,FALSE)+VLOOKUP($B$7,'Indicateurs Cumulés M-1'!$D$3:$JB$390,248,FALSE)+VLOOKUP($B$7,'Indicateurs Cumulés M-1'!$D$3:$JB$390,249,FALSE)+VLOOKUP($B$7,'Indicateurs Cumulés M-1'!$D$3:$JB$390,250,FALSE)+VLOOKUP($B$7,'Indicateurs Cumulés M-1'!$D$3:$MX$390,267,FALSE)+VLOOKUP($B$7,'Indicateurs Cumulés M-1'!$D$3:$MX$390,311,FALSE)) -> 454 | J78: =(VLOOKUP($B$7,'Indicateurs Cumulés'!$D$3:$MX$391,228,FALSE) +VLOOKUP($B$7,'Indicateurs Cumulés'!$D$3:$MX$391,229,FALSE) +VLOOKUP($B$7,'Indicateurs Cumulés'!$D$3:$MX$391,230,FALSE) +VLOOKUP($B$7,'Indicateurs Cumulés'!$D$3:$MX$391,231,FALSE) +VLOOKUP($B$7,'Indicateurs Cumulés'!$D$3:$MX$391,232,FALSE) +VLOOKUP($B$7,'Indicateurs Cumulés'!$D$3:$MX$391,233,FALSE) +VLOOKUP($B$7,'Indicateurs Cumulés'!$D$3:$MX$391,234,FALSE) +VLOOKUP($B$7,'Indicateurs Cumulés'!$D$3:$MX$391,266,FALSE) +VLOOKUP($B$7,'Indicateurs Cumulés'!$D$3:$MX$391,310,FALSE)) -> 14,410 | K78: 21 € | L78: =objectifs!$GG$3 -> 5.00 | M78: =(VLOOKUP($B$7,'Indicateurs Cumulés'!$D$3:$JB$391,244,FALSE)+VLOOKUP($B$7,'Indicateurs Cumulés'!$D$3:$JB$391,245,FALSE)+VLOOKUP($B$7,'Indicateurs Cumulés'!$D$3:$JB$391,246,FALSE)+VLOOKUP($B$7,'Indicateurs Cumulés'!$D$3:$JB$391,247,FALSE)+VLOOKUP($B$7,'Indicateurs Cumulés'!$D$3:$JB$391,248,FALSE)+VLOOKUP($B$7,'Indicateurs Cumulés'!$D$3:$JB$391,249,FALSE)+VLOOKUP($B$7,'Indicateurs Cumulés'!$D$3:$JB$391,250,FALSE)+VLOOKUP($B$7,'Indicateurs Cumulés'!$D$3:$MX$391,267,FALSE)+VLOOKUP($B$7,'Indicateurs Cumulés'!$D$3:$MX$391,311,FALSE)) -> 1,491 | N78: =IF(ISERROR(M78/VLOOKUP($B$7,'Indicateurs Cumulés'!$D$3:$MX$391,223,FALSE)),"nc",M78/VLOOKUP($B$7,'Indicateurs Cumulés'!$D$3:$MX$391,223,FALSE)) -> 1.1 | P78: =VLOOKUP($B$7,objectifs!$D$3:$ZZ$391,185,FALSE)*95% -> 24,985 | Q78: =objectifs!$GF$3 -> 20 € | R78: =objectifs!$GG$3 -> 5.00 | S78: =P78*Q78*R78/1000 -> 2,558 | T78: =IF(ISERROR(S78/VLOOKUP($B$7,objectifs!$D$4:$IA$373,232,FALSE)),"nc",S78/VLOOKUP($B$7,objectifs!$D$4:$IA$373,232,FALSE)) -> 1.7 | V78: 58% | W78: 58% | X78: 0.4
B79: dont AUTO | E79: =J79-VLOOKUP($B$7,'Indicateurs Cumulés M-1'!$D$3:$MX$390,228,FALSE) -> 1,004 | F79: =K79 -> 43 € | G79: 2.75 | H79: =E79*F79*G79/1000 -> 118 | J79: =VLOOKUP($B$7,'Indicateurs Cumulés'!$D$3:$MX$391,228,FALSE) -> 3,678 | K79: 43 € | L79: =objectifs!$HR$3 -> 2.75 | M79: =VLOOKUP($B$7,'Indicateurs Cumulés'!$D$3:$JB$391,244,FALSE) -> 433 | N79: =IF(ISERROR(M79/VLOOKUP($B$7,'Indicateurs Cumulés'!$D$3:$MX$391,223,FALSE)),"nc",M79/VLOOKUP($B$7,'Indicateurs Cumulés'!$D$3:$MX$391,223,FALSE)) -> 0.3 | P79: =VLOOKUP($B$7,objectifs!$D$3:$ZZ$391,222,FALSE) -> 6,400 | Q79: =objectifs!$HQ$3 -> 43 € | R79: =objectifs!$HR$3 -> 2.75 | S79: =P79*Q79*R79/1000 -> 754 | T79: =IF(ISERROR(S79/VLOOKUP($B$7,objectifs!$D$4:$IA$373,232,FALSE)),"nc",S79/VLOOKUP($B$7,objectifs!$D$4:$IA$373,232,FALSE)) -> 0.5 | V79: 57% | W79: 57% | X79: 0.1
B80: dont MRH | E80: =J80-VLOOKUP($B$7,'Indicateurs Cumulés M-1'!$D$3:$MX$390,229,FALSE) -> 760 | F80: 25 € | G80: 3.96 | H80: =E80*F80*G80/1000 -> 75 | J80: =VLOOKUP($B$7,'Indicateurs Cumulés'!$D$3:$MX$391,229,FALSE) -> 2,142 | K80: 25 € | L80: =objectifs!$HT$3 -> 3.96 | M80: =VLOOKUP($B$7,'Indicateurs Cumulés'!$D$3:$JB$391,245,FALSE) -> 213 | N80: =IF(ISERROR(M80/VLOOKUP($B$7,'Indicateurs Cumulés'!$D$3:$MX$391,223,FALSE)),"nc",M80/VLOOKUP($B$7,'Indicateurs Cumulés'!$D$3:$MX$391,223,FALSE)) -> 0.2 | P80: =VLOOKUP($B$7,objectifs!$D$3:$ZZ$391,224,FALSE) -> 4,600 | Q80: =objectifs!$HS$3 -> 25 € | R80: =objectifs!$HT$3 -> 3.96 | S80: =P80*Q80*R80/1000 -> 456 | T80: =IF(ISERROR(S80/VLOOKUP($B$7,objectifs!$D$4:$IA$373,232,FALSE)),"nc",S80/VLOOKUP($B$7,objectifs!$D$4:$IA$373,232,FALSE)) -> 0.3 | V80: 47% | W80: 47% | X80: 0.0
B81: dont Sécur Famille | E81: =J81-VLOOKUP($B$7,'Indicateurs Cumulés M-1'!$D$3:$MX$390,234,FALSE) -> 1,800 | F81: 19 € | G81: 6.00 | H81: =M81-VLOOKUP($B$7,'Indicateurs Cumulés M-1'!$D$3:$JB$390,250,FALSE) -> 207 | J81: =VLOOKUP($B$7,'Indicateurs Cumulés'!$D$3:$MX$391,234,FALSE) -> 5,208 | K81: =+objectifs!$IB$3 -> 19 € | L81: =+objectifs!$IC$3 -> 6.00 | M81: =VLOOKUP($B$7,'Indicateurs Cumulés'!$D$3:$JB$391,250,FALSE) -> 600 | N81: =IF(ISERROR(M81/VLOOKUP($B$7,'Indicateurs Cumulés'!$D$3:$MX$391,223,FALSE)),"nc",M81/VLOOKUP($B$7,'Indicateurs Cumulés'!$D$3:$MX$391,223,FALSE)) -> 0.4 | P81: =VLOOKUP($B$7,objectifs!$D$3:$ZZ$391,233,FALSE) -> 10,000 | Q81: =+objectifs!$IB$3 -> 19 € | R81: =+objectifs!$IC$3 -> 6.00 | S81: =P81*Q81*R81/1000 -> 1,152 | T81: =IF(ISERROR(S81/VLOOKUP($B$7,objectifs!$D$4:$IA$373,232,FALSE)),"nc",S81/VLOOKUP($B$7,objectifs!$D$4:$IA$373,232,FALSE)) -> 0.8 | V81: 52% | W81: 52% | X81: 0.1
B82: Booster AUTO & MRH | E82: =E79+E80 -> 1,764 | F82: =K82 -> 40 € | G82: 5.00 | H82: =E82*F82*G82/1000 -> 353 | J82: =J79+J80 -> 5,820 | K82: 40 € | L82: =objectifs!$GE$3 -> 5.00 | M82: =VLOOKUP($B$7,'Indicateurs Cumulés'!$D$3:$MX$391,68,FALSE)+VLOOKUP($B$7,'Indicateurs Cumulés'!$D$3:$MX$391,69,FALSE) -> 1,164 | N82: =IF(ISERROR(M82/VLOOKUP($B$7,'Indicateurs Cumulés'!$D$3:$MX$391,223,FALSE)),"nc",M82/VLOOKUP($B$7,'Indicateurs Cumulés'!$D$3:$MX$391,223,FALSE)) -> 0.8
B84: BANCA PRO - Ventes nettes | E84: =SUM(E85:E91) -> 395 | H84: =SUM(H85:H91) -> 249 | J84: =SUM(J85:J90) -> 1,694 | M84: =SUM(M85:M91) -> 1,860 | N84: =IF(ISERROR(M84/VLOOKUP($B$7,'Indicateurs Cumulés'!$D$3:$MX$391,223,FALSE)),"nc",M84/VLOOKUP($B$7,'Indicateurs Cumulés'!$D$3:$MX$391,223,FALSE)) -> 1.3 | P84: =SUM(P85:P91) -> 4,570 | S84: =SUM(S85:S91) -> 4,913 | T84: =IF(ISERROR(S84/VLOOKUP($B$7,objectifs!$D$4:$IA$373,232,FALSE)),"nc",S84/VLOOKUP($B$7,objectifs!$D$4:$IA$373,232,FALSE)) -> 3.2 | V84: =IF(ISERROR(J84/P84),0,J84/P84) -> 37% | W84: =IF(ISERROR(M84/S84),0,M84/S84) -> 38% | X84: =IF(ISERROR(N84-(T84/12*MONTH($C$9))),"nc",N84-(T84/12*MONTH($C$9))) -> -0.0
B85: Forfaits PRO - Tarification | E85: =J85-(VLOOKUP($B$7,'Indicateurs Cumulés M-1'!$D$3:$MX$390,284,FALSE)+VLOOKUP($B$7,'Indicateurs Cumulés M-1'!$D$3:$MX$390,286,FALSE)) -> 116 | F85: =K85 -> 259 € | G85: =L85 -> 5.00 | H85: =E85*F85*G85/1000 -> 150 | J85: =VLOOKUP($B$7,'Indicateurs Cumulés'!$D$3:$MX$391,284,FALSE)+VLOOKUP($B$7,'Indicateurs Cumulés'!$D$3:$MX$391,286,FALSE) -> 699 | K85: =IF(ISERROR(M85/(J85*L85)*1000),0,M85/(J85*L85)*1000) -> 259 € | L85: =objectifs!$HD$3 -> 5.00 | M85: =(VLOOKUP($B$7,'Indicateurs Cumulés'!$D$3:$MX$391,290,FALSE)+VLOOKUP($B$7,'Indicateurs Cumulés'!$D$3:$MX$391,292,FALSE)) -> 904 | N85: =IF(ISERROR(M85/VLOOKUP($B$7,'Indicateurs Cumulés'!$D$3:$MX$391,223,FALSE)),"nc",M85/VLOOKUP($B$7,'Indicateurs Cumulés'!$D$3:$MX$391,223,FALSE)) -> 0.6 | P85: =VLOOKUP($B$7,objectifs!$D$3:$ZZ$391,203,FALSE)+VLOOKUP($B$7,objectifs!$D$3:$ZZ$391,205,FALSE) -> 1,500 | Q85: =IF(ISERROR(S85/(P85*R85)*1000),0,S85/(P85*R85)*1000) -> 204 € | R85: =objectifs!$HD$3 -> 5.00 | S85: =VLOOKUP($B$7,objectifs!$D$3:$ZZ$391,209,FALSE)+VLOOKUP($B$7,objectifs!$D$3:$ZZ$391,211,FALSE) -> 1,529 | T85: =IF(ISERROR(S85/VLOOKUP($B$7,objectifs!$D$4:$IA$373,232,FALSE)),"nc",S85/VLOOKUP($B$7,objectifs!$D$4:$IA$373,232,FALSE)) -> 1.0 | V85: 47% | W85: 59% | X85: 0.2
B86: Cartes PRO - Tarification | E86: =J86-(VLOOKUP($B$7,'Indicateurs Cumulés M-1'!$D$3:$MX$390,287,FALSE)+VLOOKUP($B$7,'Indicateurs Cumulés M-1'!$D$3:$MX$390,288,FALSE)+VLOOKUP($B$7,'Indicateurs Cumulés M-1'!$D$3:$MX$390,285,FALSE)) -> 114 | F86: 96 € | G86: 5.00 | H86: =E86*F86*G86/1000 -> 55 | J86: =VLOOKUP($B$7,'Indicateurs Cumulés'!$D$3:$MX$391,287,FALSE)+VLOOKUP($B$7,'Indicateurs Cumulés'!$D$3:$MX$391,288,FALSE)+VLOOKUP($B$7,'Indicateurs Cumulés'!$D$3:$MX$391,285,FALSE) -> 519 | K86: =IF(ISERROR(M86/(J86*L86)*1000),0,M86/(J86*L86)*1000) -> 96 € | L86: =objectifs!$HE$3 -> 5.00 | M86: =(VLOOKUP($B$7,'Indicateurs Cumulés'!$D$3:$MX$391,293,FALSE)+VLOOKUP($B$7,'Indicateurs Cumulés'!$D$3:$MX$391,291,FALSE)+VLOOKUP($B$7,'Indicateurs Cumulés'!$D$3:$MX$391,294,FALSE)) -> 250 | N86: =IF(ISERROR(M86/VLOOKUP($B$7,'Indicateurs Cumulés'!$D$3:$MX$391,223,FALSE)),"nc",M86/VLOOKUP($B$7,'Indicateurs Cumulés'!$D$3:$MX$391,223,FALSE)) -> 0.2 | P86: =VLOOKUP($B$7,objectifs!$D$3:$ZZ$391,204,FALSE)+VLOOKUP($B$7,objectifs!$D$3:$ZZ$391,206,FALSE)+VLOOKUP($B$7,objectifs!$D$3:$ZZ$391,207,FALSE) -> 1,000 | Q86: =IF(ISERROR(S86/(P86*R86)*1000),0,S86/(P86*R86)*1000) -> 150 € | R86: =objectifs!$HE$3 -> 5.00 | S86: =VLOOKUP($B$7,objectifs!$D$3:$ZZ$391,210,FALSE)+VLOOKUP($B$7,objectifs!$D$3:$ZZ$391,212,FALSE)+VLOOKUP($B$7,objectifs!$D$3:$ZZ$391,213,FALSE) -> 748 | T86: =IF(ISERROR(S86/VLOOKUP($B$7,objectifs!$D$4:$IA$373,232,FALSE)),"nc",S86/VLOOKUP($B$7,objectifs!$D$4:$IA$373,232,FALSE)) -> 0.5 | V86: 52% | W86: 33% | X86: -0.0
B87: AUTO PRO (ventes brutes) - Commissions | E87: =J87-VLOOKUP($B$7,'Indicateurs Cumulés M-1'!$D$3:$MX$390,74,FALSE) -> 26 | F87: 100 € | G87: 2.75 | H87: =E87*F87*G87/1000 -> 7 | J87: =VLOOKUP($B$7,'Indicateurs Cumulés'!$D$3:$MX$391,74,FALSE) -> 80 | K87: =IF(ISERROR(M87/(J87*L87)*1000),0,M87/(J87*L87)*1000) -> 100 € | L87: =objectifs!$HX$3 -> 2.75 | M87: =VLOOKUP($B$7,'Indicateurs Cumulés'!$D$3:$MX$391,75,FALSE) -> 22 | N87: =IF(ISERROR(M87/VLOOKUP($B$7,'Indicateurs Cumulés'!$D$3:$MX$391,223,FALSE)),"nc",M87/VLOOKUP($B$7,'Indicateurs Cumulés'!$D$3:$MX$391,223,FALSE)) -> 0.0 | P87: =VLOOKUP($B$7,objectifs!$D$3:$ZZ$391,226,FALSE) -> 340 | Q87: =IF(ISERROR(S87/(P87*R87)*1000),0,S87/(P87*R87)*1000) -> 100 € | R87: =objectifs!$HX$3 -> 2.75 | S87: =VLOOKUP($B$7,objectifs!$D$3:$ZZ$391,229,FALSE) -> 94 | T87: =IF(ISERROR(S87/VLOOKUP($B$7,objectifs!$D$4:$IA$373,232,FALSE)),"nc",S87/VLOOKUP($B$7,objectifs!$D$4:$IA$373,232,FALSE)) -> 0.1 | V87: 24% | W87: 24% | X87: -0.0
B88: Multirisque PRO (ventes brutes) - Commissions | E88: =J88-VLOOKUP($B$7,'Indicateurs Cumulés M-1'!$D$3:$MX$390,76,FALSE) -> 15 | F88: 30 € | G88: 3.96 | H88: 2 | J88: =VLOOKUP($B$7,'Indicateurs Cumulés'!$D$3:$MX$391,76,FALSE) -> 73 | K88: 30 € | L88: =objectifs!$HY$3 -> 3.96 | M88: =VLOOKUP($B$7,'Indicateurs Cumulés'!$D$3:$MX$391,77,FALSE) -> 9 | N88: =IF(ISERROR(M88/VLOOKUP($B$7,'Indicateurs Cumulés'!$D$3:$MX$391,223,FALSE)),"nc",M88/VLOOKUP($B$7,'Indicateurs Cumulés'!$D$3:$MX$391,223,FALSE)) -> 0.0 | P88: =VLOOKUP($B$7,objectifs!$D$3:$ZZ$391,227,FALSE) -> 510 | Q88: 30 € | R88: =objectifs!$HY$3 -> 3.96 | S88: =VLOOKUP($B$7,objectifs!$D$3:$ZZ$391,230,FALSE) -> 61 | T88: =IF(ISERROR(S88/VLOOKUP($B$7,objectifs!$D$4:$IA$373,232,FALSE)),"nc",S88/VLOOKUP($B$7,objectifs!$D$4:$IA$373,232,FALSE)) -> 0.0 | V88: 14% | W88: 14% | X88: -0.0
B89: PAP - Commissions | E89: =J89-VLOOKUP($B$7,'Indicateurs Cumulés M-1'!$D$3:$MX$390,289,FALSE) -> 55 | F89: 18 € | G89: 5.00 | H89: 5 | J89: =VLOOKUP($B$7,'Indicateurs Cumulés'!$D$3:$MX$391,289,FALSE) -> 196 | K89: 18 € | L89: =objectifs!$HI$3 -> 5.00 | M89: =VLOOKUP($B$7,'Indicateurs Cumulés'!$D$3:$MX$391,295,FALSE) -> 17 | N89: =IF(ISERROR(M89/VLOOKUP($B$7,'Indicateurs Cumulés'!$D$3:$MX$391,223,FALSE)),"nc",M89/VLOOKUP($B$7,'Indicateurs Cumulés'!$D$3:$MX$391,223,FALSE)) -> 0.0 | P89: =VLOOKUP($B$7,objectifs!$D$3:$ZZ$391,208,FALSE) -> 480 | Q89: 18 € | R89: =objectifs!$HI$3 -> 5.00 | S89: =VLOOKUP($B$7,objectifs!$D$3:$ZZ$391,214,FALSE) -> 42 | T89: =IF(ISERROR(S89/VLOOKUP($B$7,objectifs!$D$4:$IA$373,232,FALSE)),"nc",S89/VLOOKUP($B$7,objectifs!$D$4:$IA$373,232,FALSE)) -> 0.0 | V89: 41% | W89: 41% | X89: 0.0
B90: Contrats monétiques actifs - Commissions | E90: =J90-VLOOKUP($B$7,'Indicateurs Cumulés M-1'!$D$3:$MX$390,78,FALSE) -> 69 | F90: 100 € | G90: 5.00 | H90: 35 | J90: =VLOOKUP($B$7,'Indicateurs Cumulés'!$D$3:$MX$391,78,FALSE) -> 127 | K90: =IF(ISERROR(M90/(J90*L90)*1000),0,M90/(J90*L90)*1000) -> 100 € | L90: =objectifs!$HZ$3 -> 5.00 | M90: =VLOOKUP($B$7,'Indicateurs Cumulés'!$D$3:$MX$391,79,FALSE) -> 64 | N90: =IF(ISERROR(M90/VLOOKUP($B$7,'Indicateurs Cumulés'!$D$3:$MX$391,223,FALSE)),"nc",M90/VLOOKUP($B$7,'Indicateurs Cumulés'!$D$3:$MX$391,223,FALSE)) -> 0.0 | P90: =VLOOKUP($B$7,objectifs!$D$3:$ZZ$391,228,FALSE) -> 740 | Q90: =IF(ISERROR(S90/(P90*R90)*1000),0,S90/(P90*R90)*1000) -> 100 € | R90: =objectifs!$HZ$3 -> 5.00 | S90: =VLOOKUP($B$7,objectifs!$D$3:$ZZ$391,231,FALSE) -> 370 | T90: =IF(ISERROR(S90/VLOOKUP($B$7,objectifs!$D$4:$IA$373,232,FALSE)),"nc",S90/VLOOKUP($B$7,objectifs!$D$4:$IA$373,232,FALSE)) -> 0.2 | V90: 17% | W90: 17% | X90: -0.1
B91: Commisions de mouvement | H91: =VLOOKUP($B$7,'Indicateurs Cumulés'!$D$3:$MX$391,297,FALSE)-VLOOKUP($B$7,'Indicateurs Cumulés M-1'!$D$3:$MX$391,297,FALSE) -> -4 | M91: =VLOOKUP($B$7,'Indicateurs Cumulés'!$D$3:$MX$391,297,FALSE) -> 594 | N91: =IF(ISERROR(M91/VLOOKUP($B$7,'Indicateurs Cumulés'!$D$3:$MX$391,223,FALSE)),"nc",M91/VLOOKUP($B$7,'Indicateurs Cumulés'!$D$3:$MX$391,223,FALSE)) -> 0.4 | S91: =VLOOKUP($B$7,objectifs!$D$3:$ZZ$391,216,FALSE) -> 2,069 | T91: =IF(ISERROR(S91/VLOOKUP($B$7,objectifs!$D$4:$IA$373,232,FALSE)),"nc",S91/VLOOKUP($B$7,objectifs!$D$4:$IA$373,232,FALSE)) -> 1.4 | V91: 0% | W91: 29% | X91: -0.1
B93: BANCA PRO Relation privée - Ventes nettes | E93: =SUM(E94:E96) -> 41 | H93: =SUM(H94:H96) -> -39 | J93: =SUM(J94:J96) -> 90 | M93: =SUM(M94:M96) -> -175 | N93: =IF(ISERROR(M93/VLOOKUP($B$7,'Indicateurs Cumulés'!$D$3:$MX$391,223,FALSE)),"nc",M93/VLOOKUP($B$7,'Indicateurs Cumulés'!$D$3:$MX$391,223,FALSE)) -> -0.1 | P93: =SUM(P94:P96) -> 3,035 | Q93: =IF(ISERROR(S93/(P93*R93)*1000),0,S93/(P93*R93)*1000) -> 117 € | R93: =IF(ISERROR(SUMPRODUCT(R94:R96,P94:P96)/SUMPRODUCT(P94:P96)),0,SUMPRODUCT(R94:R96,P94:P96)/SUMPRODUCT(P94:P96)) -> 5.00 | S93: =SUM(S94:S96) -> 1,771 | T93: =IF(ISERROR(S93/VLOOKUP($B$7,objectifs!$D$4:$IA$373,232,FALSE)),"nc",S93/VLOOKUP($B$7,objectifs!$D$4:$IA$373,232,FALSE)) -> 1.2 | V93: =IF(ISERROR(J93/P93),0,J93/P93) -> 3% | W93: =IF(ISERROR(M93/S93),0,M93/S93) -> -10% | X93: =IF(ISERROR(N93-(T93/12*MONTH($C$9))),"nc",N93-(T93/12*MONTH($C$9))) -> -0.6
B94: Forfaits - Tarification | E94: =J94-VLOOKUP($B$7,'Indicateurs Cumulés M-1'!$D$3:$MX$390,314,FALSE) -> 4 | F94: =K94 -> 137 € | G94: 5.00 | H94: =E94*F94*G94/1000 -> 3 | J94: =VLOOKUP($B$7,'Indicateurs Cumulés'!$D$3:$MX$391,314,FALSE) -> -18 | K94: =objectifs!$GB$3 -> 137 € | L94: =objectifs!$GC$3 -> 5.00 | M94: =VLOOKUP($B$7,'Indicateurs Cumulés'!$D$3:$MX$391,315,FALSE) -> -12 | N94: =IF(ISERROR(M94/VLOOKUP($B$7,'Indicateurs Cumulés'!$D$3:$MX$391,223,FALSE)),"nc",M94/VLOOKUP($B$7,'Indicateurs Cumulés'!$D$3:$MX$391,223,FALSE)) -> -0.0 | P94: =VLOOKUP($B$7,objectifs!$D$3:$ZZ$391,181,FALSE)*5% -> 1,120 | Q94: =objectifs!$GB$3 -> 137 € | R94: =objectifs!$GC$3 -> 5.00 | S94: =P94*Q94*R94/1000 -> 769 | T94: =IF(ISERROR(S94/VLOOKUP($B$7,objectifs!$D$4:$IA$373,232,FALSE)),"nc",S94/VLOOKUP($B$7,objectifs!$D$4:$IA$373,232,FALSE)) -> 0.5 | V94: -2% | W94: -2% | X94: -0.2
B95: Cartes - Tarification | E95: =J95-VLOOKUP($B$7,'Indicateurs Cumulés M-1'!$D$3:$MX$390,316,FALSE) -> -34 | F95: 289 € | G95: 5.00 | H95: =E95*F95*G95/1000 -> -49 | J95: =VLOOKUP($B$7,'Indicateurs Cumulés'!$D$3:$MX$391,316,FALSE) -> -129 | K95: =objectifs!$GD$3 -> 289 € | L95: =objectifs!$GE$3 -> 5.00 | M95: =VLOOKUP($B$7,'Indicateurs Cumulés'!$D$3:$MX$391,317,FALSE) -> -187 | N95: =IF(ISERROR(M95/VLOOKUP($B$7,'Indicateurs Cumulés'!$D$3:$MX$391,223,FALSE)),"nc",M95/VLOOKUP($B$7,'Indicateurs Cumulés'!$D$3:$MX$391,223,FALSE)) -> -0.1 | P95: =VLOOKUP($B$7,objectifs!$D$3:$ZZ$391,183,FALSE)*5% -> 600 | Q95: =objectifs!$GD$3 -> 289 € | R95: =objectifs!$GE$3 -> 5.00 | S95: =P95*Q95*R95/1000 -> 868 | T95: =IF(ISERROR(S95/VLOOKUP($B$7,objectifs!$D$4:$IA$373,232,FALSE)),"nc",S95/VLOOKUP($B$7,objectifs!$D$4:$IA$373,232,FALSE)) -> 0.6 | V95: -22% | W95: -22% | X95: -0.4
B96: IARD & Prévoyance - Commissions | E96: =J96-VLOOKUP($B$7,'Indicateurs Cumulés M-1'!$D$3:$MX$390,318,FALSE) -> 71 | F96: 20 € | G96: 5.00 | H96: 7 | J96: =VLOOKUP($B$7,'Indicateurs Cumulés'!$D$3:$MX$391,318,FALSE) -> 237 | K96: =objectifs!$GF$3 -> 20 € | L96: =objectifs!$GG$3 -> 5.00 | M96: =VLOOKUP($B$7,'Indicateurs Cumulés'!$D$3:$MX$391,319,FALSE) -> 24 | N96: =IF(ISERROR(M96/VLOOKUP($B$7,'Indicateurs Cumulés'!$D$3:$MX$391,223,FALSE)),"nc",M96/VLOOKUP($B$7,'Indicateurs Cumulés'!$D$3:$MX$391,223,FALSE)) -> 0.0 | P96: =VLOOKUP($B$7,objectifs!$D$3:$ZZ$391,185,FALSE)*5% -> 1,315 | Q96: =objectifs!$GF$3 -> 20 € | R96: =objectifs!$GG$3 -> 5.00 | S96: =P96*Q96*R96/1000 -> 135 | T96: =IF(ISERROR(S96/VLOOKUP($B$7,objectifs!$D$4:$IA$373,232,FALSE)),"nc",S96/VLOOKUP($B$7,objectifs!$D$4:$IA$373,232,FALSE)) -> 0.1 | V96: 18% | W96: 18% | X96: -0.0
B98: AUTRES | H98: =H99+H103 -> -366 | M98: =M99+M103 -> -2,217 | N98: =IF(ISERROR(M98/VLOOKUP($B$7,'Indicateurs Cumulés'!$D$3:$MX$391,223,FALSE)),"nc",M98/VLOOKUP($B$7,'Indicateurs Cumulés'!$D$3:$MX$391,223,FALSE)) -> -1.6 | S98: =S99+S103 -> -3,348 | T98: =IF(ISERROR(S98/VLOOKUP($B$7,objectifs!$D$4:$IA$373,232,FALSE)),"nc",S98/VLOOKUP($B$7,objectifs!$D$4:$IA$373,232,FALSE)) -> -2.2 | W98: =IF(ISERROR(M98/S98),0,M98/S98) -> 66% | X98: =IF(ISERROR(N98-(T98/12*MONTH($C$9))),"nc",N98-(T98/12*MONTH($C$9))) -> -0.7
B99: Remises commerciales | H99: =M99-VLOOKUP($B$7,'Indicateurs Cumulés M-1'!$D$3:$MX$390,217,FALSE) -> -443 | M99: =VLOOKUP($B$7,'Indicateurs Cumulés'!$D$3:$MX$391,217,FALSE) -> -2,659 | N99: =IF(ISERROR(M99/VLOOKUP($B$7,'Indicateurs Cumulés'!$D$3:$MX$391,223,FALSE)),"nc",M99/VLOOKUP($B$7,'Indicateurs Cumulés'!$D$3:$MX$391,223,FALSE)) -> -1.9 | S99: =VLOOKUP($B$7,objectifs!$D$3:$ZZ$391,172,FALSE) -> -5,200 | T99: =IF(ISERROR(S99/VLOOKUP($B$7,objectifs!$D$4:$IA$373,232,FALSE)),"nc",S99/VLOOKUP($B$7,objectifs!$D$4:$IA$373,232,FALSE)) -> -3.4 | W99: 51% | X99: -0.5
B100: dont hors MAD | N100: =IF(ISERROR(M100/VLOOKUP($B$7,'Indicateurs Cumulés'!$D$3:$MX$391,223,FALSE)),"nc",M100/VLOOKUP($B$7,'Indicateurs Cumulés'!$D$3:$MX$391,223,FALSE)) -> 0.0 | S100: -2,800 | T100: =IF(ISERROR(S100/VLOOKUP($B$7,objectifs!$D$4:$IA$373,232,FALSE)),"nc",S100/VLOOKUP($B$7,objectifs!$D$4:$IA$373,232,FALSE)) -> -1.8 | W100: 0% | X100: 0.8
B101: dont MAD | N101: =IF(ISERROR(M101/VLOOKUP($B$7,'Indicateurs Cumulés'!$D$3:$MX$391,223,FALSE)),"nc",M101/VLOOKUP($B$7,'Indicateurs Cumulés'!$D$3:$MX$391,223,FALSE)) -> 0.0 | S101: -1,700 | T101: =IF(ISERROR(S101/VLOOKUP($B$7,objectifs!$D$4:$IA$373,232,FALSE)),"nc",S101/VLOOKUP($B$7,objectifs!$D$4:$IA$373,232,FALSE)) -> -1.1 | W101: 0% | X101: 0.5
B102: dont PRO | H102: =M102 -> 0 | M102: =VLOOKUP($B$7,'Indicateurs Cumulés'!$D$3:$MX$391,73,FALSE) -> 0 | N102: =IF(ISERROR(M102/VLOOKUP($B$7,'Indicateurs Cumulés'!$D$3:$MX$391,223,FALSE)),"nc",M102/VLOOKUP($B$7,'Indicateurs Cumulés'!$D$3:$MX$391,223,FALSE)) -> 0.0 | S102: -700 | T102: =IF(ISERROR(S102/VLOOKUP($B$7,objectifs!$D$4:$IA$373,232,FALSE)),"nc",S102/VLOOKUP($B$7,objectifs!$D$4:$IA$373,232,FALSE)) -> -0.5 | W102: 0% | X102: 0.2
B103: Commissions immobilières | H103: =M103-(VLOOKUP($B$7,'Indicateurs Cumulés M-1'!$D$3:$MX$390,221,FALSE)*'Indicateurs Cumulés M-1'!$HP$3 +VLOOKUP($B$7,'Indicateurs Cumulés M-1'!$D$3:$MX$390,307,FALSE)*'Indicateurs Cumulés M-1'!$KX$3 +VLOOKUP($B$7,'Indicateurs Cumulés M-1'!$D$3:$MX$390,262,FALSE)*'Indicateurs Cumulés M-1'!$JE$3) -> 77 | M103: =VLOOKUP($B$7,'Indicateurs Cumulés'!$D$3:$MX$391,221,FALSE)*'Indicateurs Cumulés'!$HP$3 +VLOOKUP($B$7,'Indicateurs Cumulés'!$D$3:$MX$391,307,FALSE)*'Indicateurs Cumulés'!$KX$3 +VLOOKUP($B$7,'Indicateurs Cumulés'!$D$3:$MX$391,262,FALSE)*'Indicateurs Cumulés'!$JE$3 -> 442 | N103: =IF(ISERROR(M103/VLOOKUP($B$7,'Indicateurs Cumulés'!$D$3:$MX$391,223,FALSE)),"nc",M103/VLOOKUP($B$7,'Indicateurs Cumulés'!$D$3:$MX$391,223,FALSE)) -> 0.3 | S103: =VLOOKUP($B$7,objectifs!$D$3:$ZZ$391,176,FALSE) -> 1,852 | T103: =IF(ISERROR(S103/VLOOKUP($B$7,objectifs!$D$4:$IA$373,232,FALSE)),"nc",S103/VLOOKUP($B$7,objectifs!$D$4:$IA$373,232,FALSE)) -> 1.2 | W103: 24% | X103: -0.2
B105: PNB BDD sur Activité Nouvelle | H105: =H14+H41+H47+H61+H98+H55+H84+H93 -> 16,498 | M105: =M14+M41+M47+M61+M98+M55+M84+M93 -> 68,018 | N105: =IF(ISERROR(M105/VLOOKUP($B$7,'Indicateurs Cumulés'!$D$3:$MX$391,223,FALSE)),"nc",M105/VLOOKUP($B$7,'Indicateurs Cumulés'!$D$3:$MX$391,223,FALSE)) -> 48.6 | S105: =S14+S41+S47+S61+S98+S55+S84+S93 -> 204,509 | T105: =IF(ISERROR(S105/VLOOKUP($B$7,objectifs!$D$4:$IA$373,232,FALSE)),"nc",S105/VLOOKUP($B$7,objectifs!$D$4:$IA$373,232,FALSE)) -> 134.6 | W105: =IF(ISERROR(M105/S105),0,M105/S105) -> 33.3% | X105: =IF(ISERROR(N105-(T105/12*MONTH($C$9))),"nc",N105-(T105/12*MONTH($C$9))) -> -7.5
B107: BONUS DIGITAL | E107: Volume | F107: Montant | G107: Durée | H107: PNB | J107: Volume | K107: Montant | L107: Durée | M107: PNB | N107: PNB / ETP perf. | P107: Volume | Q107: Montant | R107: Durée | S107: PNB | T107: PNB / ETP Cible | V107: Volume | W107: PNB annuel | X107: Ecart /obj. PNB/ETP
B108: Evolution stock clients actifs BAD (1 connexion / mois sur 3 mois) | E108: =VLOOKUP($B$7,'Indicateurs mensuels'!$D$3:$KI$391,230,FALSE) -> 12,056 | F108: 15 € | G108: 5.00 | H108: =VLOOKUP($B$7,'Indicateurs mensuels'!$D$3:$KI$391,236,FALSE) -> 904 | J108: =VLOOKUP($B$7,'Indicateurs Cumulés'!$D$3:$MX$391,327,FALSE) -> 42,880 | K108: 15 € | L108: 5.00 | M108: =VLOOKUP($B$7,'Indicateurs Cumulés'!$D$3:$MX$391,333,FALSE) -> 3,216 | N108: =IF(ISERROR(M108/VLOOKUP($B$7,'Indicateurs Cumulés'!$D$3:$MX$391,223,FALSE)),"nc",M108/VLOOKUP($B$7,'Indicateurs Cumulés'!$D$3:$MX$391,223,FALSE)) -> 2.3
B109: Nombre de SED finalisées (en brut) | E109: =VLOOKUP($B$7,'Indicateurs mensuels'!$D$3:$KI$391,231,FALSE) -> 4,621 | F109: 10 € | G109: 1.00 | H109: =VLOOKUP($B$7,'Indicateurs mensuels'!$D$3:$KI$391,237,FALSE) -> 46 | J109: =VLOOKUP($B$7,'Indicateurs Cumulés'!$D$3:$MX$391,328,FALSE) -> 23,120 | K109: 10 € | L109: 1.00 | M109: =VLOOKUP($B$7,'Indicateurs Cumulés'!$D$3:$MX$391,334,FALSE) -> 231 | N109: =IF(ISERROR(M109/VLOOKUP($B$7,'Indicateurs Cumulés'!$D$3:$MX$391,223,FALSE)),"nc",M109/VLOOKUP($B$7,'Indicateurs Cumulés'!$D$3:$MX$391,223,FALSE)) -> 0.2
B110: Nombre de SAG finalisées (périmètre SAG hors OPC en brut) | E110: =VLOOKUP($B$7,'Indicateurs mensuels'!$D$3:$KI$391,232,FALSE) -> -9,643 | F110: 3 € | G110: 1.00 | H110: =VLOOKUP($B$7,'Indicateurs mensuels'!$D$3:$KI$391,238,FALSE) -> 0 | J110: =VLOOKUP($B$7,'Indicateurs Cumulés'!$D$3:$MX$391,329,FALSE) -> 138,052 | K110: 3 € | L110: 1.00 | M110: =VLOOKUP($B$7,'Indicateurs Cumulés'!$D$3:$MX$391,335,FALSE) -> 414 | N110: =IF(ISERROR(M110/VLOOKUP($B$7,'Indicateurs Cumulés'!$D$3:$MX$391,223,FALSE)),"nc",M110/VLOOKUP($B$7,'Indicateurs Cumulés'!$D$3:$MX$391,223,FALSE)) -> 0.3
B111: Evolution stock de clients équipés E-documents | E111: =VLOOKUP($B$7,'Indicateurs mensuels'!$D$3:$KI$391,233,FALSE) -> 17,165 | F111: 10 € | G111: 5.00 | H111: =VLOOKUP($B$7,'Indicateurs mensuels'!$D$3:$KI$391,239,FALSE) -> 858 | J111: =VLOOKUP($B$7,'Indicateurs Cumulés'!$D$3:$MX$391,330,FALSE) -> 19,190 | K111: 10 € | L111: 5.00 | M111: =VLOOKUP($B$7,'Indicateurs Cumulés'!$D$3:$MX$391,336,FALSE) -> 960 | N111: =IF(ISERROR(M111/VLOOKUP($B$7,'Indicateurs Cumulés'!$D$3:$MX$391,223,FALSE)),"nc",M111/VLOOKUP($B$7,'Indicateurs Cumulés'!$D$3:$MX$391,223,FALSE)) -> 0.7
B112: Evolution stock de clients avec Opt-in-mail et tél. | E112: =VLOOKUP($B$7,'Indicateurs mensuels'!$D$3:$KI$391,234,FALSE) -> 3,982 | F112: 5 € | G112: 3.00 | H112: =VLOOKUP($B$7,'Indicateurs mensuels'!$D$3:$KI$391,240,FALSE) -> 60 | J112: =VLOOKUP($B$7,'Indicateurs Cumulés'!$D$3:$MX$391,331,FALSE) -> 6,979 | K112: 5 € | L112: 3.00 | M112: =VLOOKUP($B$7,'Indicateurs Cumulés'!$D$3:$MX$391,337,FALSE) -> 105 | N112: =IF(ISERROR(M112/VLOOKUP($B$7,'Indicateurs Cumulés'!$D$3:$MX$391,223,FALSE)),"nc",M112/VLOOKUP($B$7,'Indicateurs Cumulés'!$D$3:$MX$391,223,FALSE)) -> 0.1
B113: Evolution stock de clients équipés Sécurpass | E113: =VLOOKUP($B$7,'Indicateurs mensuels'!$D$3:$KI$391,235,FALSE) -> 874 | F113: 1 € | G113: 5.00 | H113: =VLOOKUP($B$7,'Indicateurs mensuels'!$D$3:$KI$391,241,FALSE) -> 4 | J113: =VLOOKUP($B$7,'Indicateurs Cumulés'!$D$3:$MX$391,332,FALSE) -> 4,099 | K113: 1 € | L113: 5.00 | M113: =VLOOKUP($B$7,'Indicateurs Cumulés'!$D$3:$MX$391,338,FALSE) -> 20 | N113: =IF(ISERROR(M113/VLOOKUP($B$7,'Indicateurs Cumulés'!$D$3:$MX$391,223,FALSE)),"nc",M113/VLOOKUP($B$7,'Indicateurs Cumulés'!$D$3:$MX$391,223,FALSE)) -> 0.0
B115: PNB sur Bonus digital | H115: =SUM(H108:H114) -> 1,873 | M115: =SUM(M108:M114) -> 4,946 | N115: =IF(ISERROR(M115/VLOOKUP($B$7,'Indicateurs Cumulés'!$D$3:$MX$391,223,FALSE)),"nc",M115/VLOOKUP($B$7,'Indicateurs Cumulés'!$D$3:$MX$391,223,FALSE)) -> 3.5
B117: PNB Part variable | H117: =H115+H105 -> 18,370 | M117: =+M105+M115 -> 72,964 | N117: =IF(ISERROR(M117/VLOOKUP($B$7,'Indicateurs Cumulés'!$D$3:$MX$391,223,FALSE)),"nc",M117/VLOOKUP($B$7,'Indicateurs Cumulés'!$D$3:$MX$391,223,FALSE)) -> 52.1 | S117: =+S105+S115 -> 204,509 | T117: =IF(ISERROR(S117/VLOOKUP($B$7,objectifs!$D$4:$IA$373,232,FALSE)),"nc",S117/VLOOKUP($B$7,objectifs!$D$4:$IA$373,232,FALSE)) -> 134.6 | W117: =IF(ISERROR(M117/S117),0,M117/S117) -> 35.7% | X117: =IF(ISERROR(N117-(T117/12*MONTH($C$9))),"nc",N117-(T117/12*MONTH($C$9))) -> -4.0
B120: COLLECTE PRO (yc DAV) - Excédents | E120: =SUM(E121:E124) -> 7,339 | H120: =SUM(H121:H124) -> 270 | J120: =SUM(J121:J124) -> 34,161 | M120: =SUM(M121:M124) -> 1,246 | N120: =IF(ISERROR(M120/VLOOKUP($B$7,'Indicateurs Cumulés'!$D$3:$MX$391,223,FALSE)),"nc",M120/VLOOKUP($B$7,'Indicateurs Cumulés'!$D$3:$MX$391,223,FALSE)) -> 0.9 | P120: =SUM(P121:P124) -> 40,000 | S120: =SUM(S121:S124) -> 1,601 | T120: =IF(ISERROR(S120/VLOOKUP($B$7,objectifs!$D$4:$IA$373,232,FALSE)),"nc",S120/VLOOKUP($B$7,objectifs!$D$4:$IA$373,232,FALSE)) -> 1.1 | V120: =IF(ISERROR(J120/P120),0,J120/P120) -> 85% | W120: =IF(ISERROR(M120/S120),0,M120/S120) -> 78% | X120: =IF(ISERROR(N120-(T120/12*MONTH($C$9))),"nc",N120-(T120/12*MONTH($C$9))) -> 0.5
B121: DAV Créditeurs PRO - Variation d'EMJ mensuel | E121: =VLOOKUP($B$7,'Indicateurs mensuels'!$D$3:$KI$391,221,FALSE)/12 -> 229 | F121: =K121 -> 1.00% | G121: 5.37 | H121: =E121*F121*G121 -> 12 | J121: =VLOOKUP($B$7,'Indicateurs Cumulés'!$D$3:$MX$391,275,FALSE) -> 133 | K121: =VLOOKUP($B$7,'Indicateurs Cumulés'!$D$3:$MX$391,186,FALSE) -> 1.00% | L121: =VLOOKUP($B$7,'Indicateurs Cumulés'!$D$3:$MX$391,187,FALSE) -> 5.37 | M121: =J121*K121*L121 -> 7 | N121: =IF(ISERROR(M121/VLOOKUP($B$7,'Indicateurs Cumulés'!$D$3:$MX$391,223,FALSE)),"nc",M121/VLOOKUP($B$7,'Indicateurs Cumulés'!$D$3:$MX$391,223,FALSE)) -> 0.0 | P121: =VLOOKUP($B$7,objectifs!$D$3:$ZZ$391,194,FALSE) -> 15,000 | Q121: =VLOOKUP($B$7,objectifs!$D$3:$ZZ$391,158,FALSE) -> 1.00% | R121: =VLOOKUP($B$7,objectifs!$D$3:$ZZ$391,159,FALSE) -> 5.37 | S121: =P121*Q121*R121 -> 806 | T121: =IF(ISERROR(S121/VLOOKUP($B$7,objectifs!$D$4:$IA$373,232,FALSE)),"nc",S121/VLOOKUP($B$7,objectifs!$D$4:$IA$373,232,FALSE)) -> 0.5 | V121: 1% | W121: 1% | X121: -0.2
B122: Compte Excédent Pro | E122: =VLOOKUP($B$7,'Indicateurs mensuels'!$D$3:$KI$391,222,FALSE) -> 2,748 | F122: 0.60% | G122: 5.37 | H122: =E122*F122*G122 -> 89 | J122: =VLOOKUP($B$7,'Indicateurs Cumulés'!$D$3:$MX$391,273,FALSE) -> 24,601 | K122: ='Indicateurs Cumulés'!$JP$3 -> 0.60% | L122: ='Indicateurs Cumulés'!$JW$3 -> 5.37 | M122: =J122*K122*L122 -> 793 | N122: =IF(ISERROR(M122/VLOOKUP($B$7,'Indicateurs Cumulés'!$D$3:$MX$391,223,FALSE)),"nc",M122/VLOOKUP($B$7,'Indicateurs Cumulés'!$D$3:$MX$391,223,FALSE)) -> 0.6 | P122: =VLOOKUP($B$7,objectifs!$D$3:$ZZ$391,192,FALSE) -> 25,000 | Q122: =VLOOKUP($B$7,objectifs!$D$3:$ZZ$391,90,FALSE) -> 0.60% | R122: =VLOOKUP($B$7,objectifs!$D$3:$ZZ$391,91,FALSE) -> 5.37 | S122: =P122*Q122*R122 -> 806 | T122: =IF(ISERROR(S122/VLOOKUP($B$7,objectifs!$D$4:$IA$373,232,FALSE)),"nc",S122/VLOOKUP($B$7,objectifs!$D$4:$IA$373,232,FALSE)) -> 0.5 | V122: 98% | W122: 98% | X122: 0.3
B123: Assurance Vie | E123: =VLOOKUP($B$7,'Indicateurs mensuels'!$D$3:$KI$391,71,FALSE) -> 5,840 | F123: 0.45% | G123: 8.00 | H123: =E123*F123*G123 -> 210 | J123: =VLOOKUP($B$7,'Indicateurs Cumulés'!$D$3:$MX$391,272,FALSE) -> 7,436 | K123: ='Indicateurs Cumulés'!$JO$3 -> 0.45% | L123: ='Indicateurs Cumulés'!$JV$3 -> 8.00 | M123: =J123*K123*L123 -> 268 | N123: =IF(ISERROR(M123/VLOOKUP($B$7,'Indicateurs Cumulés'!$D$3:$MX$391,223,FALSE)),"nc",M123/VLOOKUP($B$7,'Indicateurs Cumulés'!$D$3:$MX$391,223,FALSE)) -> 0.2 | P123: =VLOOKUP($B$7,objectifs!$D$3:$ZZ$391,191,FALSE) -> 6,000 | Q123: =VLOOKUP($B$7,objectifs!$D$3:$ZZ$391,130,FALSE) -> 0.45% | R123: =VLOOKUP($B$7,objectifs!$D$3:$ZZ$391,131,FALSE) -> 8.00 | S123: =P123*Q123*R123 -> 216 | T123: =IF(ISERROR(S123/VLOOKUP($B$7,objectifs!$D$4:$IA$373,232,FALSE)),"nc",S123/VLOOKUP($B$7,objectifs!$D$4:$IA$373,232,FALSE)) -> 0.1 | V123: 124% | W123: 124% | X123: 0.1
B124: Autres | E124: =VLOOKUP($B$7,'Indicateurs mensuels'!$D$3:$HW$391,224,FALSE)+VLOOKUP($B$7,'Indicateurs mensuels'!$D$3:$HW$391,225,FALSE) +VLOOKUP($B$7,'Indicateurs mensuels'!$D$3:$HW$391,226,FALSE)+VLOOKUP($B$7,'Indicateurs mensuels'!$D$3:$HW$391,227,FALSE) -> -1,478 | F124: =H124/E124/G124 -> 0.31% | G124: =L124 -> 9.00 | H124: =VLOOKUP($B$7,'Indicateurs mensuels'!$D$3:$HW$391,228,FALSE) -> -41 | J124: =VLOOKUP($B$7,'Indicateurs Cumulés'!$D$3:$MX$391,268,FALSE)+VLOOKUP($B$7,'Indicateurs Cumulés'!$D$3:$MX$391,270,FALSE) +VLOOKUP($B$7,'Indicateurs Cumulés'!$D$3:$MX$391,274,FALSE)+VLOOKUP($B$7,'Indicateurs Cumulés'!$D$3:$MX$391,303,FALSE) -> 1,991 | K124: =M124/J124/L124 -> 1.00% | L124: ='Indicateurs Cumulés'!$JS$3 -> 9.00 | M124: =VLOOKUP($B$7,'Indicateurs Cumulés'!$D$3:$MX$391,276,FALSE)+VLOOKUP($B$7,'Indicateurs Cumulés'!$D$3:$MX$391,277,FALSE) +VLOOKUP($B$7,'Indicateurs Cumulés'!$D$3:$MX$391,281,FALSE)+VLOOKUP($B$7,'Indicateurs Cumulés'!$D$3:$MX$391,304,FALSE) -> 179 | N124: =IF(ISERROR(M124/VLOOKUP($B$7,'Indicateurs Cumulés'!$D$3:$MX$391,223,FALSE)),"nc",M124/VLOOKUP($B$7,'Indicateurs Cumulés'!$D$3:$MX$391,223,FALSE)) -> 0.1 | P124: =VLOOKUP($B$7,objectifs!$D$3:$ZZ$391,193,FALSE) -> -6,000 | Q124: =VLOOKUP($B$7,objectifs!$D$3:$ZZ$391,86,FALSE) -> 0.70% | R124: =VLOOKUP($B$7,objectifs!$D$3:$ZZ$391,87,FALSE) -> 5.37 | S124: =P124*Q124*R124 -> -226 | T124: =IF(ISERROR(S124/VLOOKUP($B$7,objectifs!$D$4:$IA$373,232,FALSE)),"nc",S124/VLOOKUP($B$7,objectifs!$D$4:$IA$373,232,FALSE)) -> -0.1 | V124: -33% | W124: -79% | X124: 0.2
B126: CREDIT à la CONSOMMATION PRO - Eng. Nets (yc accessoires) | E126: =E127 -> 2,803 | F126: =IF(ISERROR(H126/(E126*G126)),0,H126/(E126*G126)) -> 4.02% | G126: =G127 -> 2.29 | H126: =H127+H128+H129 -> 259 | J126: =J127 -> 16,195 | K126: =IF(ISERROR(M126/(J126*L126)),0,M126/(J126*L126)) -> 3.87% | L126: =L127 -> 2.60 | M126: =M127+M128+M129 -> 1,632 | N126: =IF(ISERROR(M126/VLOOKUP($B$7,'Indicateurs Cumulés'!$D$3:$MX$391,223,FALSE)),"nc",M126/VLOOKUP($B$7,'Indicateurs Cumulés'!$D$3:$MX$391,223,FALSE)) -> 1.2 | P126: =P127 -> 45,000 | Q126: =IF(ISERROR(S126/(P126*R126)),0,S126/(P126*R126)) -> 4.32% | R126: =R127 -> 2.50 | S126: =S127+S128+S129 -> 4,860 | T126: =IF(ISERROR(S126/VLOOKUP($B$7,objectifs!$D$4:$IA$373,232,FALSE)),"nc",S126/VLOOKUP($B$7,objectifs!$D$4:$IA$373,232,FALSE)) -> 3.2 | V126: =IF(ISERROR(J126/P126),0,J126/P126) -> 36% | W126: =IF(ISERROR(M126/S126),0,M126/S126) -> 34% | X126: =IF(ISERROR(N126-(T126/12*MONTH($C$9))),"nc",N126-(T126/12*MONTH($C$9))) -> -0.2
B127: Crédit à la Consommation (marge hors accessoires) | E127: =VLOOKUP($B$7,'Indicateurs mensuels'!$D$3:$KI$391,16,FALSE) -> 2,803 | F127: =VLOOKUP($B$7,'Indicateurs mensuels'!$D$3:$KI$391,17,FALSE) -> 3.01% | G127: =VLOOKUP($B$7,'Indicateurs mensuels'!$D$3:$KI$391,18,FALSE) -> 2.29 | H127: =E127*F127*G127 -> 194 | J127: =VLOOKUP($B$7,'Indicateurs Cumulés'!$D$3:$MX$391,16,FALSE) -> 16,195 | K127: =VLOOKUP($B$7,'Indicateurs Cumulés'!$D$3:$MX$391,17,FALSE) -> 2.89% | L127: =VLOOKUP($B$7,'Indicateurs Cumulés'!$D$3:$MX$391,18,FALSE) -> 2.60 | M127: =J127*K127*L127 -> 1,219 | N127: =IF(ISERROR(M127/VLOOKUP($B$7,'Indicateurs Cumulés'!$D$3:$MX$391,223,FALSE)),"nc",M127/VLOOKUP($B$7,'Indicateurs Cumulés'!$D$3:$MX$391,223,FALSE)) -> 0.9 | P127: =VLOOKUP($B$7,objectifs!$D$3:$ZZ$391,7,FALSE)*objectifs!$J$375/objectifs!$J$373 -> 45,000 | Q127: =VLOOKUP($B$7,objectifs!$D$3:$ZZ$391,8,FALSE) -> 3.05% | R127: =VLOOKUP($B$7,objectifs!$D$3:$ZZ$391,9,FALSE) -> 2.50 | S127: =P127*Q127*R127 -> 3,431 | T127: =IF(ISERROR(S127/VLOOKUP($B$7,objectifs!$D$4:$IA$373,232,FALSE)),"nc",S127/VLOOKUP($B$7,objectifs!$D$4:$IA$373,232,FALSE)) -> 2.3 | V127: 36% | W127: 36% | X127: -0.1
B128: Frais de dossier | H128: =VLOOKUP($B$7,'Indicateurs mensuels'!$D$3:$ZZ$391,94,FALSE) -> 11 | M128: =VLOOKUP($B$7,'Indicateurs Cumulés'!$D$3:$MX$391,95,FALSE) -> 57 | N128: =IF(ISERROR(M128/VLOOKUP($B$7,'Indicateurs Cumulés'!$D$3:$MX$391,223,FALSE)),"nc",M128/VLOOKUP($B$7,'Indicateurs Cumulés'!$D$3:$MX$391,223,FALSE)) -> 0.0 | S128: =VLOOKUP($B$7,objectifs!$D$3:$ZZ$391,62,FALSE)*objectifs!$J$375/objectifs!$J$373 -> 270 | T128: =IF(ISERROR(S128/VLOOKUP($B$7,objectifs!$D$4:$IA$373,232,FALSE)),"nc",S128/VLOOKUP($B$7,objectifs!$D$4:$IA$373,232,FALSE)) -> 0.2 | W128: 21% | X128: -0.0
B129: Commissions ADE | E129: =VLOOKUP($B$7,'Indicateurs mensuels'!$D$3:$KI$391,90,FALSE) -> 142.5% | F129: =VLOOKUP($B$7,'Indicateurs mensuels'!$D$3:$KI$391,89,FALSE) -> 92.9% | H129: =VLOOKUP($B$7,'Indicateurs mensuels'!$D$3:$ZZ$391,91,FALSE) -> 55 | J129: =VLOOKUP($B$7,'Indicateurs Cumulés'!$D$3:$MX$391,87,FALSE) -> 144.2% | K129: =VLOOKUP($B$7,'Indicateurs Cumulés'!$D$3:$MX$391,86,FALSE) -> 94.1% | M129: =+VLOOKUP($B$7,'Indicateurs Cumulés'!$D$3:$MX$391,88,FALSE) -> 356 | N129: =IF(ISERROR(M129/VLOOKUP($B$7,'Indicateurs Cumulés'!$D$3:$MX$391,223,FALSE)),"nc",M129/VLOOKUP($B$7,'Indicateurs Cumulés'!$D$3:$MX$391,223,FALSE)) -> 0.3 | S129: =VLOOKUP($B$7,objectifs!$D$3:$ZZ$391,72,FALSE)*objectifs!$J$375/objectifs!$J$373 -> 1,159 | T129: =IF(ISERROR(S129/VLOOKUP($B$7,objectifs!$D$4:$IA$373,232,FALSE)),"nc",S129/VLOOKUP($B$7,objectifs!$D$4:$IA$373,232,FALSE)) -> 0.8 | W129: 31% | X129: -0.1
B131: CREDIT IMMOBILIER PRO - Eng. Nets (yc accessoires) | E131: =E132 -> 8,511 | F131: =IF(ISERROR(H131/(E131*G131)),0,H131/(E131*G131)) -> 0.37% | G131: =G132 -> 7.05 | H131: =H132+H133+H134+H135 -> 224 | J131: =J132 -> 47,320 | K131: =IF(ISERROR(M131/(J131*L131)),0,M131/(J131*L131)) -> 0.26% | L131: =L132 -> 7.03 | M131: =M132+M133+M134+M135 -> 881 | N131: =IF(ISERROR(M131/VLOOKUP($B$7,'Indicateurs Cumulés'!$D$3:$MX$391,223,FALSE)),"nc",M131/VLOOKUP($B$7,'Indicateurs Cumulés'!$D$3:$MX$391,223,FALSE)) -> 0.6 | P131: =P132 -> 120,000 | Q131: =IF(ISERROR(S131/(P131*R131)),0,S131/(P131*R131)) -> 0.49% | R131: =R132 -> 7.50 | S131: =S132+S133+S134+S135 -> 4,375 | T131: =IF(ISERROR(S131/VLOOKUP($B$7,objectifs!$D$4:$IA$373,232,FALSE)),"nc",S131/VLOOKUP($B$7,objectifs!$D$4:$IA$373,232,FALSE)) -> 2.9 | V131: =IF(ISERROR(J131/P131),0,J131/P131) -> 39% | W131: =IF(ISERROR(M131/S131),0,M131/S131) -> 20% | X131: =IF(ISERROR(N131-(T131/12*MONTH($C$9))),"nc",N131-(T131/12*MONTH($C$9))) -> -0.6
B132: Crédit Immobilier (marge hors accessoires) | E132: =VLOOKUP($B$7,'Indicateurs mensuels'!$D$3:$KI$391,19,FALSE) -> 8,511 | F132: =VLOOKUP($B$7,'Indicateurs mensuels'!$D$3:$KI$391,20,FALSE) -> 0.02% | G132: =VLOOKUP($B$7,'Indicateurs mensuels'!$D$3:$KI$391,21,FALSE) -> 7.05 | H132: =E132*F132*G132 -> 12 | J132: =VLOOKUP($B$7,'Indicateurs Cumulés'!$D$3:$MX$391,19,FALSE) -> 47,320 | K132: =VLOOKUP($B$7,'Indicateurs Cumulés'!$D$3:$MX$391,20,FALSE) -> -0.07% | L132: =VLOOKUP($B$7,'Indicateurs Cumulés'!$D$3:$MX$391,21,FALSE) -> 7.03 | M132: =J132*K132*L132 -> -246 | N132: =IF(ISERROR(M132/VLOOKUP($B$7,'Indicateurs Cumulés'!$D$3:$MX$391,223,FALSE)),"nc",M132/VLOOKUP($B$7,'Indicateurs Cumulés'!$D$3:$MX$391,223,FALSE)) -> -0.2 | P132: =VLOOKUP($B$7,objectifs!$D$3:$ZZ$391,10,FALSE)*objectifs!$M$375/objectifs!$M$373 -> 120,000 | Q132: =VLOOKUP($B$7,objectifs!$D$3:$ZZ$391,12,FALSE) -> 0.20% | R132: =VLOOKUP($B$7,objectifs!$D$3:$ZZ$391,13,FALSE) -> 7.50 | S132: =P132*Q132*R132 -> 1,800 | T132: =IF(ISERROR(S132/VLOOKUP($B$7,objectifs!$D$4:$IA$373,232,FALSE)),"nc",S132/VLOOKUP($B$7,objectifs!$D$4:$IA$373,232,FALSE)) -> 1.2 | V132: 39% | W132: -14% | X132: -0.7
B133: Frais de dossier | H133: =VLOOKUP($B$7,'Indicateurs mensuels'!$D$3:$ZZ$391,93,FALSE) -> 22 | M133: =+VLOOKUP($B$7,'Indicateurs Cumulés'!$D$3:$MX$391,97,FALSE) -> 131 | N133: =IF(ISERROR(M133/VLOOKUP($B$7,'Indicateurs Cumulés'!$D$3:$MX$391,223,FALSE)),"nc",M133/VLOOKUP($B$7,'Indicateurs Cumulés'!$D$3:$MX$391,223,FALSE)) -> 0.1 | S133: =VLOOKUP($B$7,objectifs!$D$3:$ZZ$391,63,FALSE)*objectifs!$M$375/objectifs!$M$373 -> 360 | T133: =IF(ISERROR(S133/VLOOKUP($B$7,objectifs!$D$4:$IA$373,232,FALSE)),"nc",S133/VLOOKUP($B$7,objectifs!$D$4:$IA$373,232,FALSE)) -> 0.2 | W133: 36% | X133: -0.0
B134: Commissions ADE (coefficient multiplicateur de 1,3 X) | E134: =VLOOKUP($B$7,'Indicateurs mensuels'!$D$3:$KI$391,84,FALSE) -> 145.7% | F134: =VLOOKUP($B$7,'Indicateurs mensuels'!$D$3:$KI$391,83,FALSE) -> 62.7% | H134: =VLOOKUP($B$7,'Indicateurs mensuels'!$D$3:$ZZ$391,85,FALSE) -> 178 | J134: =VLOOKUP($B$7,'Indicateurs Cumulés'!$D$3:$MX$391,90,FALSE) -> 133.9% | K134: =VLOOKUP($B$7,'Indicateurs Cumulés'!$D$3:$MX$391,89,FALSE) -> 66.3% | M134: =+VLOOKUP($B$7,'Indicateurs Cumulés'!$D$3:$MX$391,91,FALSE) -> 930 | N134: =IF(ISERROR(M134/VLOOKUP($B$7,'Indicateurs Cumulés'!$D$3:$MX$391,223,FALSE)),"nc",M134/VLOOKUP($B$7,'Indicateurs Cumulés'!$D$3:$MX$391,223,FALSE)) -> 0.7 | S134: =VLOOKUP($B$7,objectifs!$D$3:$ZZ$391,71,FALSE)*objectifs!$M$375/objectifs!$M$373 -> 1,956 | T134: =IF(ISERROR(S134/VLOOKUP($B$7,objectifs!$D$4:$IA$373,232,FALSE)),"nc",S134/VLOOKUP($B$7,objectifs!$D$4:$IA$373,232,FALSE)) -> 1.3 | W134: 48% | X134: 0.1
B135: Commissions SACCEF | H135: =VLOOKUP($B$7,'Indicateurs mensuels'!$D$3:$ZZ$391,98,FALSE) -> 11 | M135: =+VLOOKUP($B$7,'Indicateurs Cumulés'!$D$3:$MX$391,93,FALSE) -> 65 | N135: =IF(ISERROR(M135/VLOOKUP($B$7,'Indicateurs Cumulés'!$D$3:$MX$391,223,FALSE)),"nc",M135/VLOOKUP($B$7,'Indicateurs Cumulés'!$D$3:$MX$391,223,FALSE)) -> 0.0 | S135: =VLOOKUP($B$7,objectifs!$D$3:$ZZ$391,74,FALSE)*objectifs!$M$375/objectifs!$M$373 -> 258 | T135: =IF(ISERROR(S135/VLOOKUP($B$7,objectifs!$D$4:$IA$373,232,FALSE)),"nc",S135/VLOOKUP($B$7,objectifs!$D$4:$IA$373,232,FALSE)) -> 0.2 | W135: 25% | X135: -0.0
B137: CREDIT MLT PRO - Eng. Nets (yc accessoires) | E137: =E138+E139 -> 25,158 | F137: =IF(ISERROR(H137/(E137*G137)),0,H137/(E137*G137)) -> 0.74% | G137: =SUMPRODUCT(G138:G139,E138:E139)/(E138+E139) -> 4.66 | H137: =H138+H139+H140+H141 -> 865 | J137: =J138+J139 -> 121,338 | K137: =IF(ISERROR(M137/(J137*L137)),0,M137/(J137*L137)) -> 0.62% | L137: =SUMPRODUCT(L138:L139,J138:J139)/(J138+J139) -> 4.46 | M137: =M138+M139+M140+M141 -> 3,355 | N137: =IF(ISERROR(M137/VLOOKUP($B$7,'Indicateurs Cumulés'!$D$3:$MX$391,223,FALSE)),"nc",M137/VLOOKUP($B$7,'Indicateurs Cumulés'!$D$3:$MX$391,223,FALSE)) -> 2.4 | P137: =P138+P139 -> 250,000 | Q137: =IF(ISERROR(S137/(P137*R137)),0,S137/(P137*R137)) -> 0.70% | R137: =SUMPRODUCT(R138:R139,P138:P139)/(P138+P139) -> 4.39 | S137: =S138+S139+S140+S141 -> 7,646 | T137: =IF(ISERROR(S137/VLOOKUP($B$7,objectifs!$D$4:$IA$373,232,FALSE)),"nc",S137/VLOOKUP($B$7,objectifs!$D$4:$IA$373,232,FALSE)) -> 5.0 | V137: =IF(ISERROR(J137/P137),0,J137/P137) -> 49% | W137: =IF(ISERROR(M137/S137),0,M137/S137) -> 44% | X137: =IF(ISERROR(N137-(T137/12*MONTH($C$9))),"nc",N137-(T137/12*MONTH($C$9))) -> 0.3
B138: Crédit MLT (marge hors accessoires) | E138: =VLOOKUP($B$7,'Indicateurs mensuels'!$D$3:$KI$391,22,FALSE) -> 23,817 | F138: =VLOOKUP($B$7,'Indicateurs mensuels'!$D$3:$KI$391,23,FALSE) -> 0.59% | G138: =VLOOKUP($B$7,'Indicateurs mensuels'!$D$3:$KI$391,24,FALSE) -> 4.82 | H138: =E138*F138*G138 -> 674 | J138: =VLOOKUP($B$7,'Indicateurs Cumulés'!$D$3:$MX$391,22,FALSE) -> 116,205 | K138: =VLOOKUP($B$7,'Indicateurs Cumulés'!$D$3:$MX$391,23,FALSE) -> 0.45% | L138: =VLOOKUP($B$7,'Indicateurs Cumulés'!$D$3:$MX$391,24,FALSE) -> 4.56 | M138: =J138*K138*L138 -> 2,405 | N138: =IF(ISERROR(M138/VLOOKUP($B$7,'Indicateurs Cumulés'!$D$3:$MX$391,223,FALSE)),"nc",M138/VLOOKUP($B$7,'Indicateurs Cumulés'!$D$3:$MX$391,223,FALSE)) -> 1.7 | P138: =VLOOKUP($B$7,objectifs!$D$3:$ZZ$391,20,FALSE) -> 238,000 | Q138: =VLOOKUP($B$7,objectifs!$D$3:$ZZ$391,21,FALSE) -> 0.40% | R138: =VLOOKUP($B$7,objectifs!$D$3:$ZZ$391,22,FALSE) -> 4.50 | S138: =P138*Q138*R138 -> 4,284 | T138: =IF(ISERROR(S138/VLOOKUP($B$7,objectifs!$D$4:$IA$373,232,FALSE)),"nc",S138/VLOOKUP($B$7,objectifs!$D$4:$IA$373,232,FALSE)) -> 2.8 | V138: 49% | W138: 56% | X138: 0.5
B139: Crédit Bail Mobilier | E139: =VLOOKUP($B$7,'Indicateurs mensuels'!$D$3:$GI$391,185,FALSE) -> 1,341 | F139: =VLOOKUP($B$7,'Indicateurs mensuels'!$D$3:$GI$391,186,FALSE) -> 0.96% | G139: =VLOOKUP($B$7,'Indicateurs mensuels'!$D$3:$GI$391,187,FALSE) -> 1.91 | H139: =E139*F139*G139 -> 25 | J139: =VLOOKUP($B$7,'Indicateurs Cumulés'!$D$3:$MX$391,193,FALSE) -> 5,133 | K139: =VLOOKUP($B$7,'Indicateurs Cumulés'!$D$3:$MX$391,194,FALSE) -> 0.92% | L139: =VLOOKUP($B$7,'Indicateurs Cumulés'!$D$3:$MX$391,195,FALSE) -> 2.21 | M139: =J139*K139*L139 -> 104 | N139: =IF(ISERROR(M139/VLOOKUP($B$7,'Indicateurs Cumulés'!$D$3:$MX$391,223,FALSE)),"nc",M139/VLOOKUP($B$7,'Indicateurs Cumulés'!$D$3:$MX$391,223,FALSE)) -> 0.1 | P139: =VLOOKUP($B$7,objectifs!$D$3:$ZZ$391,14,FALSE) -> 12,000 | Q139: =VLOOKUP($B$7,objectifs!$D$3:$ZZ$391,15,FALSE) -> 0.40% | R139: =VLOOKUP($B$7,objectifs!$D$3:$ZZ$391,16,FALSE) -> 2.30 | S139: =P139*Q139*R139 -> 110.40 | T139: =IF(ISERROR(S139/VLOOKUP($B$7,objectifs!$D$4:$IA$373,232,FALSE)),"nc",S139/VLOOKUP($B$7,objectifs!$D$4:$IA$373,232,FALSE)) -> 0.1 | V139: 43% | W139: 94% | X139: 0.0
B140: Frais de dossier (yc CBM) | H140: =VLOOKUP($B$7,'Indicateurs mensuels'!$D$3:$KI$391,92,FALSE)+VLOOKUP($B$7,'Indicateurs mensuels'!$D$3:$KI$391,97,FALSE) -> 67 | M140: =VLOOKUP($B$7,'Indicateurs Cumulés'!$D$3:$MX$391,92,FALSE)+VLOOKUP($B$7,'Indicateurs Cumulés'!$D$3:$MX$391,94,FALSE) -> 344 | N140: =IF(ISERROR(M140/VLOOKUP($B$7,'Indicateurs Cumulés'!$D$3:$MX$391,223,FALSE)),"nc",M140/VLOOKUP($B$7,'Indicateurs Cumulés'!$D$3:$MX$391,223,FALSE)) -> 0.2 | S140: =VLOOKUP($B$7,objectifs!$D$3:$ZZ$391,66,FALSE) -> 750 | T140: =IF(ISERROR(S140/VLOOKUP($B$7,objectifs!$D$4:$IA$373,232,FALSE)),"nc",S140/VLOOKUP($B$7,objectifs!$D$4:$IA$373,232,FALSE)) -> 0.5 | W140: 46% | X140: 0.0
B141: Commissions ADE | E141: =VLOOKUP($B$7,'Indicateurs mensuels'!$D$3:$KI$391,219,FALSE) -> 119.3% | F141: =VLOOKUP($B$7,'Indicateurs mensuels'!$D$3:$KI$391,218,FALSE) -> 62.5% | H141: =VLOOKUP($B$7,'Indicateurs mensuels'!$D$3:$ZZ$391,220,FALSE) -> 99 | J141: =VLOOKUP($B$7,'Indicateurs Cumulés'!$D$3:$MX$391,107,FALSE) -> 109.3% | K141: =VLOOKUP($B$7,'Indicateurs Cumulés'!$D$3:$MX$391,106,FALSE) -> 65.2% | M141: =VLOOKUP($B$7,'Indicateurs Cumulés'!$D$3:$MX$391,108,FALSE) -> 502 | N141: =IF(ISERROR(M141/VLOOKUP($B$7,'Indicateurs Cumulés'!$D$3:$MX$391,223,FALSE)),"nc",M141/VLOOKUP($B$7,'Indicateurs Cumulés'!$D$3:$MX$391,223,FALSE)) -> 0.4 | S141: =VLOOKUP($B$7,objectifs!$D$3:$ZZ$391,75,FALSE) -> 2,501 | T141: =IF(ISERROR(S141/VLOOKUP($B$7,objectifs!$D$4:$IA$373,232,FALSE)),"nc",S141/VLOOKUP($B$7,objectifs!$D$4:$IA$373,232,FALSE)) -> 1.6 | W141: 20% | X141: -0.3
B143: BANCA PRO - Ventes nettes | E143: =SUM(E144:E150) -> 395 | H143: =SUM(H144:H150) -> 249 | J143: =SUM(J144:J150) -> 1,694 | M143: =SUM(M144:M150) -> 1,860 | N143: =IF(ISERROR(M143/VLOOKUP($B$7,'Indicateurs Cumulés'!$D$3:$MX$391,223,FALSE)),"nc",M143/VLOOKUP($B$7,'Indicateurs Cumulés'!$D$3:$MX$391,223,FALSE)) -> 1.3 | P143: =SUM(P144:P150) -> 4,570 | S143: =SUM(S144:S150) -> 4,913 | T143: =IF(ISERROR(S143/VLOOKUP($B$7,objectifs!$D$4:$IA$373,232,FALSE)),"nc",S143/VLOOKUP($B$7,objectifs!$D$4:$IA$373,232,FALSE)) -> 3.2 | V143: =IF(ISERROR(J143/P143),0,J143/P143) -> 37% | W143: =IF(ISERROR(M143/S143),0,M143/S143) -> 38% | X143: =IF(ISERROR(N143-(T143/12*MONTH($C$9))),"nc",N143-(T143/12*MONTH($C$9))) -> -0.0
B144: Forfaits PRO - Tarification | E144: =J144-(VLOOKUP($B$7,'Indicateurs Cumulés M-1'!$D$3:$MX$390,284,FALSE)+VLOOKUP($B$7,'Indicateurs Cumulés M-1'!$D$3:$MX$390,286,FALSE)) -> 116 | F144: =K144 -> 259 € | G144: 5.00 | H144: =E144*F144*G144/1000 -> 150 | J144: =VLOOKUP($B$7,'Indicateurs Cumulés'!$D$3:$MX$391,284,FALSE)+VLOOKUP($B$7,'Indicateurs Cumulés'!$D$3:$MX$391,286,FALSE) -> 699 | K144: =IF(ISERROR(M144/(J144*L144)*1000),0,M144/(J144*L144)*1000) -> 259 € | L144: =objectifs!$HD$3 -> 5.00 | M144: =(VLOOKUP($B$7,'Indicateurs Cumulés'!$D$3:$MX$391,290,FALSE)+VLOOKUP($B$7,'Indicateurs Cumulés'!$D$3:$MX$391,292,FALSE)) -> 904 | N144: =IF(ISERROR(M144/VLOOKUP($B$7,'Indicateurs Cumulés'!$D$3:$MX$391,223,FALSE)),"nc",M144/VLOOKUP($B$7,'Indicateurs Cumulés'!$D$3:$MX$391,223,FALSE)) -> 0.6 | P144: =VLOOKUP($B$7,objectifs!$D$3:$ZZ$391,203,FALSE)+VLOOKUP($B$7,objectifs!$D$3:$ZZ$391,205,FALSE) -> 1,500 | Q144: =IF(ISERROR(S144/(P144*R144)*1000),0,S144/(P144*R144)*1000) -> 204 € | R144: =objectifs!$HD$3 -> 5.00 | S144: =VLOOKUP($B$7,objectifs!$D$3:$ZZ$391,209,FALSE)+VLOOKUP($B$7,objectifs!$D$3:$ZZ$391,211,FALSE) -> 1,529 | T144: =IF(ISERROR(S144/VLOOKUP($B$7,objectifs!$D$4:$IA$373,232,FALSE)),"nc",S144/VLOOKUP($B$7,objectifs!$D$4:$IA$373,232,FALSE)) -> 1.0 | V144: 47% | W144: 59% | X144: 0.2
B145: Cartes PRO - Tarification | E145: =J145-(VLOOKUP($B$7,'Indicateurs Cumulés M-1'!$D$3:$MX$390,287,FALSE)+VLOOKUP($B$7,'Indicateurs Cumulés M-1'!$D$3:$MX$390,288,FALSE)+VLOOKUP($B$7,'Indicateurs Cumulés M-1'!$D$3:$MX$390,285,FALSE)) -> 114 | F145: 96 € | G145: 5.00 | H145: =E145*F145*G145/1000 -> 55 | J145: =VLOOKUP($B$7,'Indicateurs Cumulés'!$D$3:$MX$391,287,FALSE)+VLOOKUP($B$7,'Indicateurs Cumulés'!$D$3:$MX$391,288,FALSE)+VLOOKUP($B$7,'Indicateurs Cumulés'!$D$3:$MX$391,285,FALSE) -> 519 | K145: =IF(ISERROR(M145/(J145*L145)*1000),0,M145/(J145*L145)*1000) -> 96 € | L145: =objectifs!$HE$3 -> 5.00 | M145: =(VLOOKUP($B$7,'Indicateurs Cumulés'!$D$3:$MX$391,293,FALSE)+VLOOKUP($B$7,'Indicateurs Cumulés'!$D$3:$MX$391,291,FALSE)+VLOOKUP($B$7,'Indicateurs Cumulés'!$D$3:$MX$391,294,FALSE)) -> 250 | N145: =IF(ISERROR(M145/VLOOKUP($B$7,'Indicateurs Cumulés'!$D$3:$MX$391,223,FALSE)),"nc",M145/VLOOKUP($B$7,'Indicateurs Cumulés'!$D$3:$MX$391,223,FALSE)) -> 0.2 | P145: =VLOOKUP($B$7,objectifs!$D$3:$ZZ$391,204,FALSE)+VLOOKUP($B$7,objectifs!$D$3:$ZZ$391,206,FALSE)+VLOOKUP($B$7,objectifs!$D$3:$ZZ$391,207,FALSE) -> 1,000 | Q145: =IF(ISERROR(S145/(P145*R145)*1000),0,S145/(P145*R145)*1000) -> 150 € | R145: =objectifs!$HE$3 -> 5.00 | S145: =VLOOKUP($B$7,objectifs!$D$3:$ZZ$391,210,FALSE)+VLOOKUP($B$7,objectifs!$D$3:$ZZ$391,212,FALSE)+VLOOKUP($B$7,objectifs!$D$3:$ZZ$391,213,FALSE) -> 748 | T145: =IF(ISERROR(S145/VLOOKUP($B$7,objectifs!$D$4:$IA$373,232,FALSE)),"nc",S145/VLOOKUP($B$7,objectifs!$D$4:$IA$373,232,FALSE)) -> 0.5 | V145: 52% | W145: 33% | X145: -0.0
B146: AUTO PRO (ventes brutes) - Commissions | E146: =J146-VLOOKUP($B$7,'Indicateurs Cumulés M-1'!$D$3:$MX$390,74,FALSE) -> 26 | F146: 100 € | G146: 2.75 | H146: 7 | J146: =VLOOKUP($B$7,'Indicateurs Cumulés'!$D$3:$MX$391,74,FALSE) -> 80 | K146: =IF(ISERROR(M146/(J146*L146)*1000),0,M146/(J146*L146)*1000) -> 100 € | L146: =objectifs!$HX$3 -> 2.75 | M146: =VLOOKUP($B$7,'Indicateurs Cumulés'!$D$3:$MX$391,75,FALSE) -> 22 | N146: =IF(ISERROR(M146/VLOOKUP($B$7,'Indicateurs Cumulés'!$D$3:$MX$391,223,FALSE)),"nc",M146/VLOOKUP($B$7,'Indicateurs Cumulés'!$D$3:$MX$391,223,FALSE)) -> 0.0 | P146: =VLOOKUP($B$7,objectifs!$D$3:$ZZ$391,226,FALSE) -> 340 | Q146: =IF(ISERROR(S146/(P146*R146)*1000),0,S146/(P146*R146)*1000) -> 100 € | R146: =objectifs!$HX$3 -> 2.75 | S146: =VLOOKUP($B$7,objectifs!$D$3:$ZZ$391,229,FALSE) -> 94 | T146: =IF(ISERROR(S146/VLOOKUP($B$7,objectifs!$D$4:$IA$373,232,FALSE)),"nc",S146/VLOOKUP($B$7,objectifs!$D$4:$IA$373,232,FALSE)) -> 0.1 | V146: 24% | W146: 24% | X146: -0.0
B147: Multirisque PRO (ventes brutes) - Commissions | E147: =J147-VLOOKUP($B$7,'Indicateurs Cumulés M-1'!$D$3:$MX$390,76,FALSE) -> 15 | F147: 30 € | G147: 3.96 | H147: 2 | J147: =VLOOKUP($B$7,'Indicateurs Cumulés'!$D$3:$MX$391,76,FALSE) -> 73 | K147: 30 € | L147: =objectifs!$HY$3 -> 3.96 | M147: =VLOOKUP($B$7,'Indicateurs Cumulés'!$D$3:$MX$391,77,FALSE) -> 9 | N147: =IF(ISERROR(M147/VLOOKUP($B$7,'Indicateurs Cumulés'!$D$3:$MX$391,223,FALSE)),"nc",M147/VLOOKUP($B$7,'Indicateurs Cumulés'!$D$3:$MX$391,223,FALSE)) -> 0.0 | P147: =VLOOKUP($B$7,objectifs!$D$3:$ZZ$391,227,FALSE) -> 510 | Q147: 30 € | R147: =objectifs!$HY$3 -> 3.96 | S147: =VLOOKUP($B$7,objectifs!$D$3:$ZZ$391,230,FALSE) -> 61 | T147: =IF(ISERROR(S147/VLOOKUP($B$7,objectifs!$D$4:$IA$373,232,FALSE)),"nc",S147/VLOOKUP($B$7,objectifs!$D$4:$IA$373,232,FALSE)) -> 0.0 | V147: 14% | W147: 14% | X147: -0.0
B148: PAP - Commissions | E148: =J148-VLOOKUP($B$7,'Indicateurs Cumulés M-1'!$D$3:$MX$390,289,FALSE) -> 55 | F148: 18 € | G148: 5.00 | H148: 5 | J148: =VLOOKUP($B$7,'Indicateurs Cumulés'!$D$3:$MX$391,289,FALSE) -> 196 | K148: 18 € | L148: =objectifs!$HI$3 -> 5.00 | M148: =VLOOKUP($B$7,'Indicateurs Cumulés'!$D$3:$MX$391,295,FALSE) -> 17 | N148: =IF(ISERROR(M148/VLOOKUP($B$7,'Indicateurs Cumulés'!$D$3:$MX$391,223,FALSE)),"nc",M148/VLOOKUP($B$7,'Indicateurs Cumulés'!$D$3:$MX$391,223,FALSE)) -> 0.0 | P148: =VLOOKUP($B$7,objectifs!$D$3:$ZZ$391,208,FALSE) -> 480 | Q148: 18 € | R148: =objectifs!$HI$3 -> 5.00 | S148: =VLOOKUP($B$7,objectifs!$D$3:$ZZ$391,214,FALSE) -> 42 | T148: =IF(ISERROR(S148/VLOOKUP($B$7,objectifs!$D$4:$IA$373,232,FALSE)),"nc",S148/VLOOKUP($B$7,objectifs!$D$4:$IA$373,232,FALSE)) -> 0.0 | V148: 41% | W148: 41% | X148: 0.0
B149: Contrats monétiques actifs - Commissions | E149: =J149-VLOOKUP($B$7,'Indicateurs Cumulés M-1'!$D$3:$MX$390,78,FALSE) -> 69 | F149: 100 € | G149: 5.00 | H149: 35 | J149: =VLOOKUP($B$7,'Indicateurs Cumulés'!$D$3:$MX$391,78,FALSE) -> 127 | K149: =IF(ISERROR(M149/(J149*L149)*1000),0,M149/(J149*L149)*1000) -> 100 € | L149: =objectifs!$HZ$3 -> 5.00 | M149: =VLOOKUP($B$7,'Indicateurs Cumulés'!$D$3:$MX$391,79,FALSE) -> 64 | N149: =IF(ISERROR(M149/VLOOKUP($B$7,'Indicateurs Cumulés'!$D$3:$MX$391,223,FALSE)),"nc",M149/VLOOKUP($B$7,'Indicateurs Cumulés'!$D$3:$MX$391,223,FALSE)) -> 0.0 | P149: =VLOOKUP($B$7,objectifs!$D$3:$ZZ$391,228,FALSE) -> 740 | Q149: =IF(ISERROR(S149/(P149*R149)*1000),0,S149/(P149*R149)*1000) -> 100 € | R149: =objectifs!$HZ$3 -> 5.00 | S149: =VLOOKUP($B$7,objectifs!$D$3:$ZZ$391,231,FALSE) -> 370 | T149: =IF(ISERROR(S149/VLOOKUP($B$7,objectifs!$D$4:$IA$373,232,FALSE)),"nc",S149/VLOOKUP($B$7,objectifs!$D$4:$IA$373,232,FALSE)) -> 0.2 | V149: 17% | W149: 17% | X149: -0.1
B150: Commisions de mouvement | H150: =VLOOKUP($B$7,'Indicateurs Cumulés'!$D$3:$MX$391,297,FALSE)-VLOOKUP($B$7,'Indicateurs Cumulés M-1'!$D$3:$MX$391,297,FALSE) -> -4 | M150: =VLOOKUP($B$7,'Indicateurs Cumulés'!$D$3:$MX$391,297,FALSE) -> 594 | N150: =IF(ISERROR(M150/VLOOKUP($B$7,'Indicateurs Cumulés'!$D$3:$MX$391,223,FALSE)),"nc",M150/VLOOKUP($B$7,'Indicateurs Cumulés'!$D$3:$MX$391,223,FALSE)) -> 0.4 | S150: =VLOOKUP($B$7,objectifs!$D$3:$ZZ$391,216,FALSE) -> 2,069 | T150: =IF(ISERROR(S150/VLOOKUP($B$7,objectifs!$D$4:$IA$373,232,FALSE)),"nc",S150/VLOOKUP($B$7,objectifs!$D$4:$IA$373,232,FALSE)) -> 1.4 | V150: 0% | W150: 29% | X150: -0.1
B152: BANCA PRO Relation privée - Ventes nettes | E152: =SUM(E153:E155) -> 41 | H152: =SUM(H153:H155) -> -39 | J152: =SUM(J153:J155) -> 90 | M152: =SUM(M153:M155) -> -175 | N152: =IF(ISERROR(M152/VLOOKUP($B$7,'Indicateurs Cumulés'!$D$3:$MX$391,223,FALSE)),"nc",M152/VLOOKUP($B$7,'Indicateurs Cumulés'!$D$3:$MX$391,223,FALSE)) -> -0.1 | P152: =SUM(P153:P155) -> 3,035 | Q152: =IF(ISERROR(S152/(P152*R152)*1000),0,S152/(P152*R152)*1000) -> 117 € | R152: =IF(ISERROR(SUMPRODUCT(R153:R155,P153:P155)/SUMPRODUCT(P153:P155)),0,SUMPRODUCT(R153:R155,P153:P155)/SUMPRODUCT(P153:P155)) -> 5.00 | S152: =SUM(S153:S155) -> 1,771 | T152: =IF(ISERROR(S152/VLOOKUP($B$7,objectifs!$D$4:$IA$373,232,FALSE)),"nc",S152/VLOOKUP($B$7,objectifs!$D$4:$IA$373,232,FALSE)) -> 1.2 | V152: =IF(ISERROR(J152/P152),0,J152/P152) -> 3% | W152: =IF(ISERROR(M152/S152),0,M152/S152) -> -10% | X152: =IF(ISERROR(N152-(T152/12*MONTH($C$9))),"nc",N152-(T152/12*MONTH($C$9))) -> -0.6
B153: Forfaits - Tarification | E153: =J153-VLOOKUP($B$7,'Indicateurs Cumulés M-1'!$D$3:$MX$390,314,FALSE) -> 4 | F153: =K153 -> 137 € | G153: 5.00 | H153: =E153*F153*G153/1000 -> 3 | J153: =VLOOKUP($B$7,'Indicateurs Cumulés'!$D$3:$MX$391,314,FALSE) -> -18 | K153: =IF(ISERROR(M153/(J153*L153)*1000),0,M153/(J153*L153)*1000) -> 137 € | L153: =objectifs!$GC$3 -> 5.00 | M153: =VLOOKUP($B$7,'Indicateurs Cumulés'!$D$3:$MX$391,315,FALSE) -> -12 | N153: =IF(ISERROR(M153/VLOOKUP($B$7,'Indicateurs Cumulés'!$D$3:$MX$391,223,FALSE)),"nc",M153/VLOOKUP($B$7,'Indicateurs Cumulés'!$D$3:$MX$391,223,FALSE)) -> -0.0 | P153: =VLOOKUP($B$7,objectifs!$D$3:$ZZ$391,181,FALSE)*5% -> 1,120 | Q153: =objectifs!$GB$3 -> 137 € | R153: =objectifs!$GC$3 -> 5.00 | S153: =P153*Q153*R153/1000 -> 769 | T153: =IF(ISERROR(S153/VLOOKUP($B$7,objectifs!$D$4:$IA$373,232,FALSE)),"nc",S153/VLOOKUP($B$7,objectifs!$D$4:$IA$373,232,FALSE)) -> 0.5 | V153: -2% | W153: -2% | X153: -0.2
B154: Cartes - Tarification | E154: =J154-VLOOKUP($B$7,'Indicateurs Cumulés M-1'!$D$3:$MX$390,316,FALSE) -> -34 | F154: 289 € | G154: 5.00 | H154: =E154*F154*G154/1000 -> -49 | J154: =VLOOKUP($B$7,'Indicateurs Cumulés'!$D$3:$MX$391,316,FALSE) -> -129 | K154: 289 € | L154: =objectifs!$GE$3 -> 5.00 | M154: =VLOOKUP($B$7,'Indicateurs Cumulés'!$D$3:$MX$391,317,FALSE) -> -187 | N154: =IF(ISERROR(M154/VLOOKUP($B$7,'Indicateurs Cumulés'!$D$3:$MX$391,223,FALSE)),"nc",M154/VLOOKUP($B$7,'Indicateurs Cumulés'!$D$3:$MX$391,223,FALSE)) -> -0.1 | P154: =VLOOKUP($B$7,objectifs!$D$3:$ZZ$391,183,FALSE)*5% -> 600 | Q154: =objectifs!$GD$3 -> 289 € | R154: =objectifs!$GE$3 -> 5.00 | S154: =P154*Q154*R154/1000 -> 868 | T154: =IF(ISERROR(S154/VLOOKUP($B$7,objectifs!$D$4:$IA$373,232,FALSE)),"nc",S154/VLOOKUP($B$7,objectifs!$D$4:$IA$373,232,FALSE)) -> 0.6 | V154: -22% | W154: -22% | X154: -0.4
B155: IARD & Prévoyance - Commissions | E155: =J155-VLOOKUP($B$7,'Indicateurs Cumulés M-1'!$D$3:$MX$390,318,FALSE) -> 71 | F155: 20 € | G155: 5.00 | H155: 7 | J155: =VLOOKUP($B$7,'Indicateurs Cumulés'!$D$3:$MX$391,318,FALSE) -> 237 | K155: 20 € | L155: =objectifs!$GG$3 -> 5.00 | M155: =VLOOKUP($B$7,'Indicateurs Cumulés'!$D$3:$MX$391,319,FALSE) -> 24 | N155: =IF(ISERROR(M155/VLOOKUP($B$7,'Indicateurs Cumulés'!$D$3:$MX$391,223,FALSE)),"nc",M155/VLOOKUP($B$7,'Indicateurs Cumulés'!$D$3:$MX$391,223,FALSE)) -> 0.0 | P155: =VLOOKUP($B$7,objectifs!$D$3:$ZZ$391,185,FALSE)*5% -> 1,315 | Q155: =objectifs!$GF$3 -> 20 € | R155: =objectifs!$GG$3 -> 5.00 | S155: =P155*Q155*R155/1000 -> 135 | T155: =IF(ISERROR(S155/VLOOKUP($B$7,objectifs!$D$4:$IA$373,232,FALSE)),"nc",S155/VLOOKUP($B$7,objectifs!$D$4:$IA$373,232,FALSE)) -> 0.1 | V155: 18% | W155: 18% | X155: -0.0
B157: AUTRES | H157: =M157 -> 0 | M157: =VLOOKUP($B$7,'Indicateurs Cumulés'!$D$3:$MX$391,73,FALSE) -> 0 | N157: =IF(ISERROR(M157/VLOOKUP($B$7,'Indicateurs Cumulés'!$D$3:$MX$391,223,FALSE)),"nc",M157/VLOOKUP($B$7,'Indicateurs Cumulés'!$D$3:$MX$391,223,FALSE)) -> 0.0 | S157: =VLOOKUP($B$7,objectifs!$D$3:$ZZ$391,172,FALSE)*objectifs!$FS$375/objectifs!$FS$373 -> -700 | T157: =IF(ISERROR(S157/VLOOKUP($B$7,objectifs!$D$4:$IA$373,232,FALSE)),"nc",S157/VLOOKUP($B$7,objectifs!$D$4:$IA$373,232,FALSE)) -> -0.5 | W157: =IF(ISERROR(M157/S157),0,M157/S157) -> 0% | X157: =IF(ISERROR(N157-(T157/12*MONTH($C$9))),"nc",N157-(T157/12*MONTH($C$9))) -> 0.2
B159: ZOOM PNB PRO* sur Activité Nouvelle | H159: =H152+H120+H126+H131+H137+H143+H157 -> 1,827 | M159: =M152+M120+M126+M131+M137+M143+M157 -> 8,799 | N159: =IF(ISERROR(M159/VLOOKUP($B$7,'Indicateurs Cumulés'!$D$3:$MX$391,223,FALSE)),"nc",M159/VLOOKUP($B$7,'Indicateurs Cumulés'!$D$3:$MX$391,223,FALSE)) -> 6.3 | S159: =S152+S120+S126+S131+S137+S143+S157 -> 24,465 | T159: =IF(ISERROR(S159/VLOOKUP($B$7,objectifs!$D$4:$IA$373,232,FALSE)),"nc",S159/VLOOKUP($B$7,objectifs!$D$4:$IA$373,232,FALSE)) -> 16.1 | W159: =IF(ISERROR(M159/S159),0,M159/S159) -> 36.0% | X159: =IF(ISERROR(N159-(T159/12*MONTH($C$9))),"nc",N159-(T159/12*MONTH($C$9))) -> -0.4
B160: * y compris relation privée du pro

Sheet Lexique
B4: INDICATEURS
A5: Structure
B6: •Mise en place d’une synthèse BDD et d’un zoom Pro (yc relation privée du pro)
B7: •Application des taux réels sur la majorité des lignes de produits Collecte | C7: Les marges de certains produits sont adaptées au niveau local (marges figées) pour être en phase avec la politique commerciale de la CEGEE.
B8: •Ajout de l’indicateur PNB/ETP sur chaque ligne
B9: •Intégration d’un suivi bancarisation « relation privée » du Pro dans la synthèse BDD
A11: ETP
B12: •Le PNB par ETP sur objectifs est déterminé à partir des ETP cible. | C12: Déterminé lors de la fixation des objectifs, il ne change pas
B13: •Le PNB par ETP sur réalisations est calculé à partir de la moyenne des ETP performance. | C13: Mis a jour mensuellement en moyennant les ETP depuis le début d'année
A15: Collecte
B16: •Taux de marge figé à 0,20% sur les produits LEP, LDD, LJ, DAT, Emprunt Ecureuil
B17: •Taux du LGP | C17: Les taux boostés bénéficient d'un mode de calcul adapté a la politique commerciale de la CEGEE
B18: •Ajout des versements FCP structurés (objectif : 75 M€ de versements et 2,1 M€ de PNB)
B19: •Mise en place d'un cap / floor a 150% de l'objectif sur les comptes créditeurs en cas de forte variation
A21: Crédits
B22: •Commissions ADE | C22: Ajout d'un coefficient multiplicateur de 1,3 X sur le montant généré
B23: •Ajout d’un bonus de 1000€ pour chaque client devenu Bpe / JBPe via un crédit immobilier
B24: •Intégration des commissions apporteurs d’affaires venant en déduction du PNB crédit
A26: Bancarisation
B27: •Ajout d’un Booster Cartes à débit différé (40€ par carte à débit différé sur 5 ans) | C27: Sur chaque vente nette de carte à débit différé yc cartes PRO
B28: •Ajout d’un Bonus Mobilité bancaire | C28: 200€ pour chaque client sur la base de la mobilité réglementaire brute
B29: •Ajout d’un Booster sur IARD Auto et MRH (40€ par vente sur 5 ans) | C29: Bonus s'appliquant sur chaque vente nette Auto ou MRH
B30: •Mise en place d’un suivi sur options sur Bouquet Liberté (comptabilisé a partir de la 3e option) | C30: 15€ supplémentaires comptabilisés à compter de la 3e option sur un BL. Pas de pénalité pour les BL ayant moins de 2 options
A32: Autres
B33: •Mise a jour du taux sur commissions immobilières à 4%
B34: •Mise a jour du taux sur remises commerciales à 4%
A36: Bonus digital
B37: •Mise en place d'un floor à 0 sur le PNB lorsque les réalisations sont négatives | C37: Floor mis en place sur les données agrégées pour les secteurs et Dirco

Sheet Liste agences mai 2019
A1: CEGEE | B1: AUBE_HAUTE_MARNE | C1: BAS_RHIN | D1: HAUT_RHIN | E1: MARNE_ARDENNES | F1: MEURTHE_ET_MOSELLE_MEUSE | G1: MOSELLE | H1: VOSGES | I1: AGENCE_PERSONNEL | J1: MESANGE | K1: MBL | L1: BANQUE_DIRIGEANT
A2: AUBE_HAUTE_MARNE | B2: Territoire_TROYES | C2: Territoire_CHAUMONT
A3: BAS_RHIN | B3: Territoire_STRASBOURG | C3: Territoire_HAGUENAU | D3: Territoire_SELESTAT
A4: HAUT_RHIN | B4: Territoire_COLMAR | C4: Territoire_MULHOUSE
A5: MARNE_ARDENNES | B5: Territoire_CHARLEVILLE_MEZIERES | C5: Territoire_CHALONS_EN_CHAMPAGNE | D5: Territoire_REIMS
A6: MEURTHE_ET_MOSELLE_MEUSE | B6: Territoire_PONT_A_MOUSSON | C6: Territoire_NANCY | D6: Territoire_VERDUN
A7: MOSELLE | B7: Territoire_MOSELLE_EST | C7: Territoire_METZ | D7: Territoire_MOSELLE_NORD
A8: VOSGES | B8: Territoire_EPINAL | C8: Territoire_SAINT_DIE
A9: Territoire_TROYES | B9: TROYES GAMBETTA | C9: TROYES 1ER MAI | D9: TROYES BROSSOLETTE | E9: TROYES ZOLA | F9: TROYES CHARTREUX | G9: SAINT ANDRE LES VERGERS | H9: SAINT JULIEN LES VILLAS | I9: SAINTE SAVINE | J9: NOGENT SUR SEINE | K9: ROMILLY SUR SEINE | L9: LA CHAPELLE ST LUC | M9: BRIENNE LE CHATEAU | N9: BAR SUR AUBE | O9: BAR SUR SEINE | P9: ARCIS SUR AUBE | Q9: AIX EN OTHE
A10: Territoire_CHAUMONT | B10: CHATEAUVILLAIN | C10: CHAUMONT HOTEL DE VILLE | D10: CHAUMONT REPUBLIQUE | E10: LANGRES | F10: JOINVILLE | G10: SAINT DIZIER CENTRE | H10: SAINT DIZIER EUROPE | I10: WASSY | J10: NOGENT EN BASSIGNY | K10: CHALINDREY | L10: BOURBONNE LES BAINS
A11: Territoire_STRASBOURG | B11: ECKBOLSHEIM | C11: OBERHAUSBERGEN | D11: STRASBOURG CRONENBOURG | E11: STRASBOURG KOENIGSHOFFEN | F11: STRASBOURG MONTAGNE VERTE | G11: BISCHHEIM | H11: SCHILTIGHEIM CENTRE | I11: SCHILTIGHEIM KLEBER | J11: STRASBOURG ROBERTSAU | K11: ESPACE MESANGE | L11: STRASBOURG ANVERS | M11: STRASBOURG FRANCS BOURGEOIS | N11: STRASBOURG GARE | O11: STRASBOURG HALLES (yc Mésange) | P11: STRASBOURG VOSGES | Q11: STRASBOURG AUSTERLITZ | R11: STRASBOURG DANUBE | S11: STRASBOURG ESPLANADE | T11: STRASBOURG MEINAU | U11: STRASBOURG NEUDORF | V11: STRASBOURG STOCKFELD | W11: LA WANTZENAU | X11: MUNDOLSHEIM | Y11: REICHSTETT | Z11: VENDENHEIM
A12: Territoire_HAGUENAU | B12: BISCHWILLER | C12: DRUSENHEIM | D12: HAGUENAU HOUBLON | E12: HAGUENAU MUSAU | F12: HERRLISHEIM | G12: SCHWEIGHOUSE SUR MODER | H12: SOUFFLENHEIM | I12: BOUXWILLER | J12: GUNDERSHOFFEN | K12: HOCHFELDEN | L12: INGWILLER | M12: NIEDERBRONN LES BAINS | N12: PFAFFENHOFFEN | O12: REICHSHOFFEN | P12: WINGEN SUR MODER | Q12: BRUMATH | R12: HOERDT | S12: WEITBRUCH | T12: WISSEMBOURG | U12: WOERTH | V12: SELTZ | W12: SOULTZ SOUS FORETS | X12: DIEMERINGEN | Y12: MARMOUTIER | Z12: SARRE UNION | AA12: SAVERNE | AB12: BETSCHDORF | AC12: LAUTERBOURG | AD12: TRUCHTERSHEIM
A13: Territoire_SELESTAT | B13: CHATENOIS | C13: MARCKOLSHEIM | D13: SELESTAT CENTRE | E13: SELESTAT OUEST | F13: VILLE | G13: BARR | H13: BENFELD | I13: ERSTEIN | J13: OBERNAI | K13: ROSHEIM | L13: MARLENHEIM | M13: MOLSHEIM | N13: MUTZIG | O13: SCHIRMECK | P13: WASSELONNE | Q13: FEGERSHEIM | R13: ILLKIRCH CENTRE | S13: ILLKIRCH NORD | T13: LINGOLSHEIM | U13: OSTWALD
A14: Territoire_COLMAR | B14: COLMAR MARAICHERS | C14: COLMAR REPUBLIQUE | D14: COLMAR VAUBAN | E14: HORBOURG WIHR | F14: MUNTZENHEIM | G14: NEUF BRISACH | H14: RIBEAUVILLE | I14: COLMAR SAINT JOSEPH | J14: COLMAR SAINTE MARIE | K14: INGERSHEIM | L14: KAYSERSBERG | M14: LAPOUTROIE | N14: LIEPVRE | O14: MUNSTER | P14: ORBEY | Q14: SAINTE MARIE AUX MINES | R14: WINTZENHEIM | S14: ENSISHEIM | T14: GUEBWILLER | U14: PULVERSHEIM | V14: ROUFFACH | W14: SOULTZ | X14: SOULTZMATT
A15: Territoire_MULHOUSE | B15: BRUNSTATT | C15: MULHOUSE DORNACH | D15: MULHOUSE REUNION | E15: MULHOUSE ROOSEVELT | F15: ALTKIRCH | G15: FERRETTE | H15: HUNINGUE | I15: SAINT LOUIS | J15: SIERENTZ | K15: ILLZACH | L15: PFASTATT | M15: RIEDISHEIM | N15: RIXHEIM | O15: WITTENHEIM | P15: CERNAY | Q15: DANNEMARIE | R15: MASEVAUX | S15: SAINT AMARIN | T15: SEPPOIS LE BAS | U15: THANN | V15: WITTELSHEIM
A16: Territoire_CHARLEVILLE_MEZIERES | B16: CHARLEVILLE MOHON | C16: CHARLEVILLE MEZIERES | D16: VILLERS SEMEUSE CORA | E16: CARIGNAN | F16: MOUZON | G16: SEDAN | H16: VRIGNE AUX BOIS | I16: VOUZIERS | J16: RETHEL | K16: GIVET | L16: ROCROI | M16: REVIN | N16: CHARLEVILLE JEAN JAURES | O16: CHARLEVILLE NEVERS
A17: Territoire_CHALONS_EN_CHAMPAGNE | B17: CHALONS VIVIERS | C17: FAGNIERES LECLERC | D17: CHALONS ROOSEVELT | E17: MOURMELON SUIPPES | F17: SARRY | G17: MONTMIRAIL | H17: VERTUS | I17: SEZANNE | J17: SAINTE MENEHOULD | K17: VITRY LE FRANCOIS
A18: Territoire_REIMS | B18: REIMS HOTEL DE VILLE | C18: REIMS SAINT MARCEAUX | D18: REIMS EUROPE | E18: REIMS JEAN JAURES | F18: REIMS SAINTE ANNE | G18: REIMS CHATILLONS | H18: REIMS SAINT REMI | I18: REIMS CENTRE VILLE | J18: REIMS HIPPODROME | K18: FISMES | L18: TINQUEUX | M18: REIMS SAINT THOMAS | N18: BETHENY | O18: VERZY | P18: PIERRY LECLERC | Q18: DORMANS | R18: AY CHAMPAGNE | S18: DAMERY | T18: EPERNAY
A19: Territoire_PONT_A_MOUSSON | B19: DIEULOUARD | C19: FROUARD | D19: PAGNY SUR MOSELLE | E19: POMPEY | F19: PONT A MOUSSON BREUIL | G19: PONT A MOUSSON CENTRALE | H19: LUDRES | I19: CHALIGNY NEUVES MAISONS | J19: TOUL REPUBLIQUE | K19: VEZELISE | L19: CHAMPIGNEULLES | M19: LAXOU LA SAPINIERE | N19: LAXOU ARISTIDE BRIAND | O19: NANCY PLATEAU DE HAYE | P19: NANCY TROIS MAISONS | Q19: VILLERS GENERAL LECLERC | R19: BRIEY | S19: JARNY | T19: JOEUF | U19: PIENNES
A20: Territoire_NANCY | B20: NANCY JEAN JAURES | C20: NANCY PLACE DOMBASLE | D20: NANCY POINT CENTRAL | E20: NANCY SAINT SEBASTIEN | F20: ESSEY LES NANCY | G20: SAINT MAX | H20: TOMBLAINE | I20: DOMBASLE SUR MEURTHE | J20: JARVILLE LA MALGRANGE | K20: NANCY ARTEM | L20: SAINT NICOLAS DE PORT | M20: VANDOEUVRE LES NANCY | N20: BACCARAT | O20: BAYON | P20: BLAINVILLE | Q20: BLAMONT | R20: LUNEVILLE CARNOT | S20: LUNEVILLE CHATEAU
A21: Territoire_VERDUN | B21: ETAIN | C21: VERDUN CENTRALE | D21: VERDUN MAZEL | E21: COMMERCY | F21: SAINT MIHIEL | G21: VAUCOULEURS | H21: BAR LE DUC | I21: LIGNY EN BARROIS | J21: REVIGNY SUR ORNAIN | K21: MONTMEDY | L21: STENAY | M21: LONGUYON | N21: LONGWY BAS | O21: LONGWY HAUT | P21: VILLERUPT
A22: Territoire_MOSELLE_EST | B22: BEHREN LES FORBACH | C22: FORBACH CENTRALE | D22: STIRING WENDEL | E22: BITCHE | F22: GROSBLIEDERSTROFF | G22: NEUNKIRCH | H22: SARREGUEMINES | I22: CHATEAU SALINS | J22: DIEUZE | K22: FAULQUEMONT | L22: MORHANGE | M22: CREUTZWALD | N22: MERLEBACH | O22: HOMBOURG HAUT | P22: PUTTELANGE AUX LACS | Q22: SAINT AVOLD | R22: VALMONT | S22: PHALSBOURG | T22: SARREBOURG
A23: Territoire_METZ | B23: BOULAY | C23: METZ SARRE | D23: SAINT JULIEN LES METZ | E23: METZ SAINT LOUIS | F23: METZ SAINT MAXIMIN | G23: REMILLY | H23: ARS SUR MOSELLE | I23: MARLY | J23: MONTIGNY LES METZ | K23: MOULINS LES METZ | L23: METZ CATHEDRALE | M23: METZ POMPIDOU | N23: METZ MOZART | O23: METZ PLAPPEVILLE | P23: METZ REPUBLIQUE | Q23: METZ SAINT LIVIER | R23: WOIPPY | S23: CLOUANGE | T23: MAIZIERES LES METZ | U23: MARANGE SILVANGE | V23: ROMBAS | W23: SAINTE MARIE AUX CHENES
A24: Territoire_MOSELLE_NORD | B24: BOUSSE | C24: BOUZONVILLE | D24: GUENANGE | E24: HAGONDANGE | F24: METZERVISSE | G24: CATTENOM | H24: HETTANGE GRANDE | I24: SIERCK LES BAINS | J24: YUTZ | K24: AUDUN LE TICHE | L24: FONTOY | M24: HAYANGE | N24: NILVANGE | O24: FAMECK | P24: FLORANGE | Q24: TERVILLE | R24: UCKANGE | S24: THIONVILLE CENTRALE | T24: THIONVILLE COTE DES ROSES | U24: THIONVILLE LA MILLIAIRE
A25: Territoire_EPINAL | B25: CHANTRAINE | C25: EPINAL ARISTIDE BRIAND | D25: EPINAL LEOPOLD BOURG | E25: EPINAL AVRINSART | F25: GOLBEY | G25: CHARMES | H25: MIRECOURT | I25: NOMEXY | J25: THAON LES VOSGES | K25: DOCELLES | L25: ELOYES | M25: LE VAL D AJOL | N25: REMIREMONT | O25: XERTIGNY | P25: CHATENOIS VOSGES | Q25: DARNEY | R25: NEUFCHATEAU | S25: VITTEL
A26: Territoire_SAINT_DIE | B26: FRAIZE | C26: SAINT DIE | D26: SAINT DIE CATHEDRALE | E26: MOYENMOUTIER | F26: RAMBERVILLERS | G26: RAON L ETAPE | H26: SENONES | I26: BRUYERES | J26: CORNIMONT LA BRESSE | K26: GERARDMER | L26: GRANGES AUMONTZEY | M26: LE THILLOT | N26: VAGNEY

Sheet Indicateurs Cumulés
C1: 1 | D1: 2 | E1: 3 | F1: 4 | G1: 5 | H1: 6 | I1: 7 | J1: 8 | K1: 9 | L1: 10 | M1: 11 | N1: 12 | O1: 13 | P1: 14 | Q1: 15 | R1: 16 | S1: 17 | T1: 18 | U1: 19 | V1: 20 | W1: 21 | X1: 22 | Y1: 23 | Z1: 24 | AA1: 25 | AB1: 26 | AC1: 27 | AD1: 28 | AE1: 29 | AF1: 30 | AG1: 31 | AH1: 32 | AI1: 33 | AJ1: 34 | AK1: 35 | AL1: 36 | AM1: 37 | AN1: 38 | AO1: 39 | AP1: 40 | AQ1: 41 | AR1: 42 | AS1: 43 | AT1: 44 | AU1: 45 | AV1: 46 | AW1: 47 | AX1: 48 | AY1: 49 | AZ1: 50 | BA1: 51 | BB1: 52 | BC1: 53 | BD1: 54 | BE1: 55 | BF1: 56 | BG1: 57 | BH1: 58 | BI1: 59 | BJ1: 60 | BK1: 61 | BL1: 62 | BM1: 63 | BN1: 64 | BO1: 65 | BP1: 66 | BQ1: 67 | BR1: 68 | BS1: 69 | BT1: 70 | BU1: 71 | BV1: 72 | BW1: 73 | BX1: 74 | BY1: 75 | BZ1: 76 | CA1: 77 | CB1: 78 | CC1: 79 | CD1: 80 | CE1: 81 | CF1: 82 | CG1: 83 | CH1: 84 | CI1: 85 | CJ1: 86 | CK1: 87 | CL1: 88 | CM1: 89 | CN1: 90 | CO1: 91 | CP1: 92 | CQ1: 93 | CR1: 94 | CS1: 95 | CT1: 96 | CU1: 97 | CV1: 98 | CW1: 99 | CX1: 100 | CY1: 101 | CZ1: 102 | DA1: 103 | DB1: 104 | DC1: 105 | DD1: 106 | DE1: 107 | DF1: 108 | DG1: 109 | DH1: 110 | DI1: 111 | DJ1: 112 | DK1: 113 | DL1: 114 | DM1: 115 | DN1: 116 | DO1: 117 | DP1: 118 | DQ1: 119 | DR1: 120 | DS1: 121 | DT1: 122 | DU1: 123 | DV1: 124 | DW1: 125 | DX1: 126 | DY1: 127 | DZ1: 128 | EA1: 129 | EB1: 130 | EC1: 131 | ED1: 132 | EE1: 133 | EF1: 134 | EG1: 135 | EH1: 136 | EI1: 137 | EJ1: 138 | EK1: 139 | EL1: 140 | EM1: 141 | EN1: 142 | EO1: 143 | EP1: 144 | EQ1: 145 | ER1: 146 | ES1: 147 | ET1: 148 | EU1: 149 | EV1: 150 | EW1: 151 | EX1: 152 | EY1: 153 | EZ1: 154 | FA1: 155 | FB1: 156 | FC1: 157 | FD1: 158 | FE1: 159 | FF1: 160 | FG1: 161 | FH1: 162 | FI1: 163 | FJ1: 164 | FK1: 165 | FL1: 166 | FM1: 167 | FN1: 168 | FO1: 169 | FP1: 170 | FQ1: 171 | FR1: 172 | FS1: 173 | FT1: 174 | FU1: 175 | FV1: 176 | FW1: 177 | FX1: 178 | FY1: 179 | FZ1: 180 | GA1: 181 | GB1: 182 | GC1: 183 | GD1: 184 | GE1: 185 | GF1: 186 | GG1: 187 | GH1: 188 | GI1: 189 | GJ1: 190 | GK1: 191 | GL1: 192 | GM1: 193 | GN1: 194 | GO1: 195 | GP1: 196 | GQ1: 197 | GR1: 198 | GS1: 199 | GT1: 200 | GU1: 201 | GV1: 202 | GW1: 203 | GX1: 204 | GY1: 205 | GZ1: 206 | HA1: 207 | HB1: 208 | HC1: 209 | HD1: 210 | HE1: 211 | HF1: 212 | HG1: 213 | HH1: 214 | HI1: 215 | HJ1: 216 | HK1: 217 | HL1: 218 | HM1: 219 | HN1: 220 | HO1: 221 | HP1: 222 | HQ1: 223 | HR1: 224 | HS1: 225 | HT1: 226 | HU1: 227 | HV1: 228 | HW1: 229 | HX1: 230 | HY1: 231 | HZ1: 232 | IA1: 233 | IB1: 234 | IC1: 235 | ID1: 236 | IE1: 237 | IF1: 238 | IG1: 239 | IH1: 240 | II1: 241 | IJ1: 242 | IK1: 243 | IL1: 244 | IM1: 245 | IN1: 246 | IO1: 247 | IP1: 248 | IQ1: 249 | IR1: 250 | IS1: 251 | IT1: 252 | IU1: 253 | IV1: 254 | IW1: 255 | IX1: 256 | IY1: 257 | IZ1: 258 | JA1: 259 | JB1: 260 | JC1: 261 | JD1: 262 | JE1: 263 | JF1: 264 | JG1: 265 | JH1: 266 | JI1: 267 | JJ1: 268 | JK1: 269 | JL1: 270 | JM1: 271 | JN1: 272 | JO1: 273 | JP1: 274 | JQ1: 275 | JR1: 276 | JS1: 277 | JT1: 278 | JU1: 279 | JV1: 280 | JW1: 281 | JX1: 282 | JY1: 283 | JZ1: 284 | KA1: 285 | KB1: 286 | KC1: 287 | KD1: 288 | KE1: 289 | KF1: 290 | KG1: 291 | KH1: 292 | KI1: 293 | KJ1: 294 | KK1: 295 | KL1: 296 | KM1: 297 | KN1: 298 | KO1: 299 | KP1: 300 | KQ1: 301 | KR1: 302 | KS1: 303 | KT1: 304 | KU1: 305 | KV1: 306 | KW1: 307 | KX1: 308 | KY1: 309 | KZ1: 310 | LA1: 311 | LB1: 312 | LC1: 313 | LD1: 314 | LE1: 315 | LF1: 316 | LG1: 317 | LH1: 318 | LI1: 319 | LJ1: 320 | LK1: 321 | LL1: 322 | LM1: 323 | LN1: 324 | LO1: 325 | LP1: 326 | LQ1: 327 | LR1: 328 | LS1: 329 | LT1: 330 | LU1: 331 | LV1: 332 | LW1: 333 | LX1: 334 | LY1: 335 | LZ1: 336 | MA1: 337 | MB1: 338 | MC1: 339
A2: Id_UC | B2: Id_groupe | C2: Id_Agence | D2: Lib_Agence | E2: DATE Financements Revolving | F2: Fin Revolving | G2: Tx marg Revolving | H2: DVMA Revolving | I2: DATE CRED | J2: volumes conso BDD | K2: Tx marg conso BDD | L2: DVMA Conso BDD | M2: DVMA IF Conso BDD | N2: volumes immo BDD | O2: Durée initiale Immo BDD | P2: Tx marg immo BDD | Q2: DVMA Immo BDD | R2: DVMA IF Immo BDD | S2: volumes conso PRO | T2: Tx marg conso PRO | U2: DVMA Conso PRO | V2: volumes immo PRO | W2: Tx marg immo PRO | X2: DVMA Immo PRO | Y2: volumes Equip | Z2: Tx marg Equip | AA2: DVMA EQUIP | AB2: FDD Immo BDD | AC2: FDD conso BDD | AD2: FDD Equip PRO | AE2: ADE Immo BDD | AF2: ADE Conso BDD | AG2: CAUTION Immo BDD | AH2: DATE ASSVIE | AI2: Flux IT | AJ2: com IT | AK2: Tx com IT | AL2: Flux N3D | AM2: dont Flux N3D UC | AN2: % flux N3D en UC | AO2: com N3D | AP2: Tx com N3D | AQ2: Flux N+ et NP | AR2: dont Flux N+ et NP UC | AS2: %Flux N+ et NP en UC | AT2: com N+ et NP | AU2: Tx com N+ et NP | AV2: Flux Autres Ecu Vie | AW2: dont Flux Autres Ecu Vie UC | AX2: % Flux Autres Ecu Vie UC | AY2: com Autres Ecu Vie | AZ2: Tx com Autres Ecu Vie | BA2: Flux total ECUVIE | BB2: dont total ECUVIE en UC | BC2: % total ECUVIE en UC | BD2: com total ECUVIE | BE2: TX com total ECUVIE | BF2: DVMA | BG2: zoom PNB Crédit CONSO PRO | BH2: zoom PNB Crédit IMMO PRO | BI2: PNB Crédit CONSO (yc revolving) | BJ2: PNB Crédit IMMO | BK2: PNB Crédit MLT | BL2: TCA IMMO BDD | BM2: TCI IMMO BDD | BN2: Id Ecureuil Vie | BO2: Arbitrage fonds € vers UC Volume | BP2: Arbitrage fonds € vers UC PNB | BQ2: FCP structurés (versements) | BR2: FCP structurés PNB | BS2: Booster IARD Auto | BT2: Booster IARD MRH | BU2: Comm apporteurs d'affaires BDD | BV2: Remises commerciales dont Hors MAD | BW2: Remises commerciales dont MAD | BX2: Remises commerciales dont PRO | BY2: Auto PRO Volume | BZ2: Auto PRO PNB | CA2: MRH PRO Volume | CB2: MRH PRO PNB | CC2: Contrats monétiques actif PRO | CD2: Contrats monétiques actif PRO PNB | CE2: Contrats Mobilité bancaire | CF2: Bonus Mobilité bancaire | CG2: Carte Senséa | CH2: PNB cartes Senséa | CI2: Bonus Bancarisation Crédit Immo | CJ2: Bonus Bancarisation PNB Crédit Immo | CK2: taux de pénétration DES PRET CONSO PRO | CL2: QUOTITE ASSUREE CONSO PRO | CM2: PNB CNP CONSO PRO | CN2: QUOTITE ASSUREE IMMO PRO | CO2: PNB CNP IMMO PRO | CP2: PNB CNP IMMO PRO | CQ2: FDD EQUIP MARCHE BDD | CR2: CAUTION IMMO PRO | CS2: FDD CB Marché PRO | CT2: FDD CONSO MARCHE PRO | CU2: FDD CONSO MARCHE BDD | CV2: FDD IMMO MARCHE PRO | CW2: FDD IMMO MARCHE BDD | CX2: taux de pénétration DES PRET IMMO | CY2: QUOTITE ASSUREE IMMO | CZ2: PNB CNP IMMO BDD | DA2: taux de pénétration DES PRET CONSO BDD | DB2: QUOTITE ASSUREE CONSO BDD | DC2: PNB CNP CONSO BDD | DD2: Taux de conso de l'enveloppe dérogatoire CNP IMMO | DE2: taux de pénétration DES PRET MLT agences | DF2: QUOTITE ASSUREE MLT agences | DG2: PNB CNP MLT agences | DH2: Volumes LA BDD | DI2: Tx marg LA BDD | DJ2: DVMA LA BDD | DK2: PNB LA BDD | DL2: Volumes LB BDD | DM2: Tx marg LB BDD | DN2: DVMA LB BDD | DO2: PNB LB BDD | DP2: Volumes LGF BDD | DQ2: Tx marg LGF BDD | DR2: DVMA LGF BDD | DS2: PNB LGF BDD | DT2: Volumes LGP BDD | DU2: Tx marg LGP BDD | DV2: DVMA LGP BDD | DW2: PNB LGP BDD | DX2: Volumes LEP BDD | DY2: Tx marg LEP BDD | DZ2: DVMA LEP BDD | EA2: PNB LEP BDD | EB2: Volumes LDD BDD | EC2: Tx marg LDD BDD | ED2: DVMA LDD BDD | EE2: PNB LDD BDD | EF2: Volumes LJ (yc 10-12) BDD | EG2: Tx marg LJ (yc 10-12) BDD | EH2: DVMA LJ (yc 10-12) BDD | EI2: PNB LJ (yc 10-12) BDD | EJ2: Volumes CEL BDD | EK2: Tx marg CEL BDD | EL2: DVMA CEL BDD | EM2: PNB CEL BDD | EN2: Volumes SLR BDD | EO2: Tx marg SLR BDD | EP2: DVMA SLR BDD | EQ2: PNB SLR BDD | ER2: Volumes DAT BDD | ES2: Tx marg DAT BDD | ET2: DVMA DAT BDD | EU2: PNB DAT BDD | EV2: Volumes PEL BDD | EW2: Tx marg PEL BDD | EX2: DVMA PEL BDD | EY2: PNB PEL BDD | EZ2: Volumes PEP BDD | FA2: Tx marg PEP BDD | FB2: DVMA PEP BDD | FC2: PNB PEP BDD | FD2: Volumes Ass Vie encours BDD | FE2: Tx marg Ass Vie encours BDD | FF2: DVMA Ass Vie encours BDD | FG2: PNB Ass Vie encours BDD | FH2: Volumes Ass Vie flux BDD | FI2: Tx marg Ass Vie flux BDD | FJ2: DVMA Ass Vie flux BDD | FK2: PNB Ass Vie flux BDD | FL2: Volumes OPCVM encours BDD | FM2: Tx marg OPCVM encours BDD | FN2: DVMA OPCVM encours BDD | FO2: PNBOPCVM encours BDD | FP2: Volumes OPCVM flux BDD | FQ2: Tx marg OPCVM flux BDD | FR2: DVMA OPCVM flux BDD | FS2: PNB OPCVM flux BDD | FT2: Volumes Emprunt BDD | FU2: Tx marg Emprunt BDD | FV2: DVMA Emprunt BDD | FW2: PNB Emprunt BDD | FX2: Volumes PS BDD | FY2: Tx marg PS BDD | FZ2: DVMA PS BDD | GA2: PNB PS BDD | GB2: Volumes Epargne Bilan BDD | GC2: PNB Epargne Bilan BDD | GD2: Volumes Epargne Financière BDD | GE2: PNB Epargne Financière BDD | GF2: Volumes CDD créditeurs BDD hors plafond | GG2: Tx marg CDD créditeurs BDD | GH2: DVMA CDD créditeurs BDD | GI2: PNB CDD créditeurs BDD | GJ2: Volumes CDD créditeurs PRO hors plafond | GK2: Options complémentaires BL > 2e | GL2: PNB option | GN2: Volumes Crédit Bail BDD | GO2: Tx marg Crédit Bail BDD | GP2: DVMA Crédit Bail BDD | GQ2: PNB Crédit Bail BDD | GR2: Volumes Ass Vie BP1818 encours | GS2: Tx marg Ass Vie BP1818 encours | GT2: DVMA Ass Vie BP1818 encours | GU2: PNB Ass Vie BP1818 encours | GV2: Volumes Ass Vie BP1818 flux | GW2: Tx marg Ass Vie BP1818 flux | GX2: DVMA Ass Vie BP1818 flux | GY2: PNB Ass Vie BP1818 flux | GZ2: Volumes OPCVM BP1818 encours | HA2: Tx marg OPCVM BP1818 encours | HB2: DVMA OPCVM BP1818 encours | HC2: PNB OPCVM BP1818 encours | HD2: Volumes OPCVM BP1818 flux | HE2: Tx marg OPCVM BP1818 flux | HF2: DVMA OPCVM BP1818 flux | HG2: PNB OPCVM BP1818 flux | HH2: Volumes Autres Val MOB | HI2: Tx marg Autres Val MOB | HJ2: DVMA Autres Val MOB | HK2: PNB Autres Val MOB | HL2: Volumes Remises | HM2: Volumes Facturé | HN2: PNB TOTAL (tous produits hors banca pro) | HO2: Volumes CDD créditeurs BDD plafond (+150% et -50%) | HP2: I selection Volumes (taux pour calcul PNB) | HR2: ETP Performance | HS2: PNB ADE Autres | HT2: Marge CONSO yc access. | HU2: Marge IMMO yc access. | HV2: Marge MLT yc access. | HW2: Auto Part | HX2: MRH Part | HY2: Santé Part | HZ2: GAV Part | IA2: PJ-GU Part | IB2: ESO Part | IC2: GF Part | ID2: Bouquet liberté Autres | IE2: Futéo / SOL 16-17 / Jeune / Autonomie | IF2: Satellis Essentiel / Essentiel + | IG2: Satellis Intégral | IH2: Carte Infinite | II2: Carte Platinum (yc izicarte) | IJ2: Carte visa premier (yc izicarte) | IK2: Carte visa classique (yc izicarte) | IL2: Autres Cartes | IM2: Auto | IN2: MRH | IO2: Santé | IP2: GAV | IQ2: PJ GU | IR2: ESO | IS2: GF | IT2: Bouquet liberté Autres | IU2: Futéo / SOL 16-17 / Jeune / Autonomie | IV2: Satellis Essentiel / Essentiel + | IW2: Satellis Intégral | IX2: Carte Infinite | IY2: Carte Platinum (yc izicarte) | IZ2: Carte visa premier (yc izicarte) | JA2: Carte visa classique (yc izicarte) | JB2: Autres Cartes | JC2: PNB BANCA PART | JD2: PNB PRO Crédit MLT | JE2: SCPI Volumes (taux pour calcul PNB) | JF2: Ventes nettes BANCA | JG2: DVMA | JH2: tarif | JI2: Assistance Vie | JJ2: Assistance Vie | JK2: Volumes DAT PRO | JL2: Tx marg DAT PRO | JM2: Volumes PS PRO | JN2: Volumes Ass Vie flux PRO | JO2: Volumes Ass Vie encours PRO | JP2: Volumes CE PRO | JQ2: Volumes Autre Epargne PRO | JR2: Volumes CDD créditeurs PRO plafond (+150% et -50%) | JS2: PNB DAT PRO | JT2: PNB PS PRO | JU2: PNB Ass Vie flux PRO | JV2: PNB Ass Vie encours PRO | JW2: PNB CE PRO | JX2: PNB Autre Epargne PRO | JY2: PNB CDD créditeurs PRO plafond (+150% et -50%) | JZ2: PNB PRO Collecte yc DAV | KA2: Ventes nettes Libre Convergence Labelis | KB2: Business Platinum | KC2: Auto entrepreneur | KD2: Business | KE2: Business Gold | KF2: PAP | KG2: PNB Libre Convergence | KH2: Business Platinum | KI2: Auto entrepreneur | KJ2: Business | KK2: Business Gold | KL2: PAP | KM2: PNB PRO Banca | KN2: com mouv | KO2: Ventes nettes PV agences | KP2: Ventes nettes PV pros | KQ2: Evol. PROS ACTIFS | KR2: DVMA IARD | KS2: Ventes nettes PRO | KT2: Volumes PEL PRO | KU2: PNB PEL PRO | KV2: CARTE dd ventes nettes | KW2: PNB CARTE débit dif bonus de 40€ x 5 ans par carte nette | KX2: CFF Volumes (taux de 1,00% pour calcul PNB) | KY2: Bouquet liberté HDG | KZ2: Bouquet liberté HDG | LA2: Prévoyance du locataire | LB2: Prévoyance du locataire | LC2: PNB TOTAL | LD2: PNB PRO | LE2: Forfaits Part PRO | LF2: PNB Forfaits Part PRO | LG2: Cartes Part PRO | LH2: PNB Cartes Part PRO | LI2: IARD Part PRO | LJ2: PNB IARD Part PRO | LK2: PNB TOTAL (Hors booster) | LL2: PNB TOTAL (Hors booster) / ETP | LM2: PNB TOTAL COLLECTE | LN2: PNB TOTAL CREDITS | LO2: PNB TOTAL AUTRES | LP2: PNB BANCA part du PRO | LQ2: PNB TOTAL / ETP | LR2: Evolution stock clients actifs BAD (1 connexion / mois sur 3 mois) | LS2: Nombre de SED finalisées (en brut) | LT2: Nombre de SAG finalisées (périmètre SAG hors OPC en brut) | LU2: Evolution stock de clients équipés E-documents | LV2: Evolution stock de clients avec Opt-in-mail et tél. | LW2: Evolution stock de clients équipés Sécurpass | LX2: Evolution stock clients actifs BAD (1 connexion / mois sur 3 mois) PNB | LY2: Nombre de SED finalisées (en brut) PNB | LZ2: Nombre de SAG finalisées (périmètre SAG hors OPC en brut) PNB | MA2: Evolution stock de clients équipés E-documents PNB | MB2: Evolution stock de clients avec Opt-in-mail et tél. PNB | MC2: Evolution stock de clients équipés Sécurpass PNB | MD2: PV Bernard L.
E3: 2019-05-31 | BO3: =objectifs!DY373 -> 0.25% | BP3: =objectifs!DZ373 -> 8.00 | BQ3: 2.80% | BR3: 1.00 | BS3: 40 € | BT3: =BS3 -> 40 € | BY3: 100 € | BZ3: 2.75 | CA3: 30 € | CB3: 3.96 | CC3: 100 € | CD3: 5.00 | CF3: 200 € | CG3: 43 € | CH3: 5.00 | CJ3: 1,000 € | CP3: =CZ3 -> 1.30 | CZ3: 1.30 | EX3: =objectifs!DV373 -> 8.50 | GK3: =objectifs!FJ3 -> 15 € | GL3: =objectifs!FK3 -> 5.00 | HP3: =objectifs!FU373 -> 4.00% | HW3: 43 € | HX3: 25 € | HY3: 65 € | HZ3: 15 € | IA3: 3 € | IB3: 14 € | IC3: 19 € | ID3: 87 € | IE3: 12 € | IF3: 125 € | IG3: 210 € | IH3: 315 € | II3: 200 € | IJ3: 130 € | IK3: 43 € | IL3: 12 € | IM3: 2.75 | IN3: 3.96 | IO3: 3.94 | IP3: 5.37 | IQ3: 6.19 | IR3: 7.00 | IS3: 6.00 | IT3: 5.00 | IU3: 5.00 | IV3: 5.00 | IW3: 5.00 | IX3: 5.00 | IY3: 5.00 | IZ3: 5.00 | JA3: 5.00 | JB3: 5.00 | JE3: =objectifs!FU373 -> 4.00% | JI3: 45 € | JJ3: 9.50 | JK3: 0.20% | JM3: 1.00% | JO3: 0.45% | JP3: =JQ3 -> 0.60% | JQ3: 0.60% | JR3: 1.00% | JS3: 9.00 | JT3: 5.00 | JV3: 8.00 | JW3: 5.37 | JX3: 5.37 | JY3: 5.37 | KA3: =objectifs!GX3 -> 288 € | KB3: =objectifs!GY3 -> 195 € | KC3: =objectifs!GZ3 -> 120 € | KD3: =objectifs!HA3 -> 47 € | KE3: =objectifs!HB3 -> 130 € | KF3: =objectifs!HC3 -> 18 € | KG3: =objectifs!HD3 -> 5.00 | KH3: =objectifs!HE3 -> 5.00 | KI3: =objectifs!HF3 -> 5.00 | KJ3: =objectifs!HG3 -> 5.00 | KK3: =objectifs!HH3 -> 5.00 | KL3: =objectifs!HI3 -> 5.00 | KT3: =EW374 -> 0.00% | KU3: =JS3 -> 9.00 | KW3: 40 € | KX3: 1.00% | KY3: 140 € | KZ3: 5.00 | LA3: 20 € | LB3: 4.50 | LE3: 137 € | LF3: 5.00 | LG3: 289 € | LH3: 5.00 | LI3: 20 € | LJ3: 5.00 | LR3: 5.00 | LS3: 1.00 | LT3: 1.00 | LU3: 5.00 | LV3: 3.00 | LW3: 5.00 | LX3: 15 € | LY3: 10 € | LZ3: 3 € | MA3: 10 € | MB3: 5 € | MC3: 1 €
A4: 105006 | B4: 200262 | C4: 6 | D4: STRASBOURG NEUDORF | E4: =$E$3 -> 2019-05-31 | F4: 82 | G4: 4.32% | H4: 1.57 | I4: 2019-05-31 | J4: 786 | K4: 3.34% | L4: 2.46 | M4: 4.16 | N4: 2,210 | O4: 0 | P4: -0.01% | Q4: 7.98 | R4: 12.23 | S4: -2 | T4: 8.03% | U4: -5.33 | V4: 676 | W4: -0.08% | X4: 7.90 | Y4: 50 | Z4: 1.17% | AA4: 2.38 | AB4: 6.5 | AC4: 10.6 | AD4: 0.4 | AE4: 534.3 | AF4: 14.7 | AG4: 3.8 | AH4: 201905 | AI4: 3.00 | AJ4: 0.07 | AK4: =IF(ISERROR(AJ4/AI4),0,AJ4/AI4) -> 2.40% | AL4: 178.79 | AM4: 28.74 | AN4: =IF(ISERROR(AM4/AL4),0,AM4/AL4) -> 16% | AO4: 2.12 | AP4: =IF(ISERROR(AO4/AL4),0,AO4/AL4) -> 1.19% | AQ4: 951.48 | AR4: 95.26 | AS4: =IF(ISERROR(AR4/AQ4),0,AR4/AQ4) -> 10.0% | AT4: 5.78 | AU4: =IF(ISERROR(AT4/AQ4),0,AT4/AQ4) -> 0.61% | AV4: 53.69 | AW4: 1.24 | AX4: =IF(ISERROR(AW4/AV4),0,AW4/AV4) -> 2.30% | AY4: 0.67 | AZ4: =IF(ISERROR(AY4/AV4),0,AY4/AV4) -> 1.25% | BA4: 1,186.96 | BB4: 125.24 | BC4: =IF(ISERROR(BB4/BA4),0,BB4/BA4) -> 10.6% | BD4: 8.65 | BE4: =IF(ISERROR(BD4/BA4),0,BD4/BA4) -> 0.73% | BG4: =(S4*T4*U4)+CT4+CM4 -> 1 | BH4: =(V4*W4*X4)+CP4+CR4+CV4 -> -0 | BI4: =(F4*G4*H4)+(J4*K4*L4)+CU4+DC4 -> 89 | BJ4: =(N4*P4*Q4)+AB4+AG4+CZ4+CJ4 -> 61 | BK4: =(Y4*Z4*AA4)+CS4+DG4+GQ4+AD4 -> 2 | BL4: 1.50% | BM4: -0.01% | BN4: 6 | BO4: 196 | BP4: =BO4*$BO$3*$BP$3 -> 4 | BQ4: 98 | BR4: =BQ4*$BQ$3*$BR$3 -> 3 | BS4: =HW4*$BS$3*$IT$3/1000 -> 2 | BT4: =HX4*$BT$3*$IT$3/1000 -> -2 | BU4: -4 | BX4: 0 | BY4: 0 | BZ4: =BY4*$BY$3*$BZ$3/1000 -> 0 | CA4: 0 | CB4: =CA4*$CA$3*$CB$3/1000 -> 0 | CC4: -2 | CD4: =CC4*$CC$3*$CD$3/1000 -> -1 | CE4: 9 | CF4: =+CE4*$CF$3/1000 -> 1.8 | CG4: 0 | CH4: =(CG4*$CG$3*$CH$3)/1000 -> 0 | CI4: 1 | CJ4: =CI4*$CJ$3/1000 -> 1 | CK4: 100.00% | CL4: 200.00% | CM4: 0 | CN4: 100.00% | CO4: 0 | CP4: 3 | CQ4: =AD4 -> 0.4 | CR4: 1 | CS4: 0.00 | CT4: 0 | CU4: 3 | CV4: 0 | CW4: =+AB4 -> 7 | CX4: 79.64% | CY4: 125.92% | CZ4: 52 | DA4: 96.09% | DB4: 136.36% | DC4: 17 | DE4: 100.00% | DF4: 100.00% | DG4: 0 | DH4: 36 | DI4: =DI$374 -> 0.70% | DJ4: 5.33 | DK4: =DH4*DI4*DJ4 -> 1 | DL4: -188 | DM4: =DM$374 -> 0.81% | DN4: 5.33 | DO4: =DL4*DM4*DN4 -> -8 | DP4: -39 | DQ4: =DQ$374 -> 0.91% | DR4: 5.33 | DS4: =DP4*DQ4*DR4 -> -2 | DT4: 128 | DU4: =DU$374 -> 0.40% | DV4: 2.16 | DW4: =DT4*DU4*DV4 -> 1 | DX4: -224 | DY4: =DY$374 -> 0.20% | DZ4: 5.37 | EA4: =DX4*DY4*DZ4 -> -2 | EB4: 156 | EC4: =EC$374 -> 0.20% | ED4: 5.37 | EE4: =EB4*EC4*ED4 -> 2 | EF4: -27 | EG4: =EG$374 -> 0.20% | EH4: 5.37 | EI4: =EF4*EG4*EH4 -> -0 | EJ4: 34 | EK4: =EK$374 -> 0.45% | EL4: 5.33 | EM4: =EJ4*EK4*EL4 -> 1 | EN4: 1 | EO4: =EO$374 -> 0.10% | EP4: 8.55 | EQ4: =EN4*EO4*EP4 -> 0 | ER4: 17 | ES4: =ES$374 -> 0.20% | ET4: 9.00 | EU4: =ER4*ES4*ET4 -> 0 | EV4: -319 | EW4: =EW374 -> 0.00% | EX4: 8.59 | EY4: =EV4*EW4*EX4 -> 0 | EZ4: -4 | FA4: =FA$374 -> -0.37% | FB4: 0.08 | FC4: =EZ4*FA4*FB4 -> 0 | FD4: 74 | FE4: =FE$374 -> 0.45% | FF4: 8.00 | FG4: =FD4*FE4*FF4 -> 3 | FH4: 1,695 | FI4: =BE4 -> 0.73% | FJ4: =FJ$374 -> 1.00 | FK4: =FH4*FI4*FJ4 -> 12 | FL4: -20 | FM4: =FM$374 -> 0.65% | FN4: 5.00 | FO4: =FL4*FM4*FN4 -> -1 | FP4: 10 | FQ4: =FQ$374 -> 0.40% | FR4: 1.00 | FS4: =FP4*FQ4*FR4 -> 0 | FT4: -476 | FU4: =FU$374 -> 0.20% | FV4: 8.00 | FW4: =FT4*FU4*FV4 -> -8 | FX4: 70 | FY4: =FY$374 -> 1.00% | FZ4: 5.00 | GA4: =FX4*FY4*FZ4 -> 3 | GB4: =DH4+DL4+DP4+DT4+DX4+EB4+EF4+EJ4+ER4+EV4+EZ4+FT4+FX4+EN4+JP4 -> -372 | GC4: =DK4+DO4+DS4+DW4+EA4+EE4+EI4+EM4+EU4+EY4+FC4+FW4+GA4+EQ4+JW4 -> 3 | GD4: =FD4+FL4+GR4+GZ4+HH4 -> 55 | GE4: =FG4+FK4+FO4+FS4+GU4+GY4+HC4+HG4+HK4+BP4+BR4 -> 21 | GF4: -12 | GG4: =GG$374 -> 1.00% | GH4: 5.37 | GI4: =GF4*GG4*GH4 -> -1 | GJ4: 176 | GK4: 0 | GL4: =GK4*$GK$3*$GL$3/1000 -> 0 | GN4: 0 | GO4: 0.00% | GP4: 0 | GQ4: =GN4*GO4*GP4 -> 0 | GR4: 0 | GS4: =GS$374 -> 0.45% | GT4: 8.00 | GU4: =GR4*GS4*GT4 -> 0 | GV4: 0 | GW4: =FI4 -> 0.73% | GX4: =GX$374 -> 1.00 | GY4: =GV4*GW4*GX4 -> 0 | GZ4: 0 | HA4: =HA$374 -> 0.65% | HB4: 5.00 | HC4: =GZ4*HA4*HB4 -> 0 | HD4: 0 | HE4: =FQ4 -> 0.40% | HF4: =HF$374 -> 1.00 | HG4: =HD4*HE4*HF4 -> 0 | HH4: 2 | HI4: =HI$374 -> 1.00% | HJ4: 5.00 | HK4: =HH4*HI4*HJ4 -> 0 | HL4: -12 | HM4: 286 | HO4: =IF(ISERROR(IF(VLOOKUP($C4,'Indicateurs Cumulés'!$C$3:$HN$560,186,FALSE)/(VLOOKUP($C4,objectifs!$C$3:$ZZ$559,158,FALSE))>=1.5,(VLOOKUP($C4,objectifs!$C$3:$ZZ$559,158,FALSE))*1.5,IF(VLOOKUP($C4,'Indicateurs Cumulés'!$C$3:$HN$560,186,FALSE)/(VLOOKUP($C4,objectifs!$C$3:$ZZ$559,158,FALSE))<=-0.5,(VLOOKUP($C4,objectifs!$C$3:$ZZ$559,158,FALSE))*-0.5,VLOOKUP($C4,'Indicateurs Cumulés'!$C$3:$HN$560,186,FALSE)))),VLOOKUP($C4,'Indicateurs Cumulés'!$C$3:$HN$560,186,FALSE),IF(VLOOKUP($C4,'Indicateurs Cumulés'!$C$3:$HN$560,186,FALSE)/(VLOOKUP($C4,objectifs!$C$3:$ZZ$559,158,FALSE))>=1.5,(VLOOKUP($C4,objectifs!$C$3:$ZZ$559,158,FALSE))*1.5,IF(VLOOKUP($C4,'Indicateurs Cumulés'!$C$3:$HN$560,186,FALSE)/(VLOOKUP($C4,objectifs!$C$3:$ZZ$559,158,FALSE))<=-0.5,(VLOOKUP($C4,objectifs!$C$3:$ZZ$559,158,FALSE))*-0.5,VLOOKUP($C4,'Indicateurs Cumulés'!$C$3:$HN$560,186,FALSE)))) -> -12 | HP4: 0 | HR4: 7.5 | HT4: =IF(ISERROR((J4*K4*L4+F4*G4*H4+CU4+DC4)/((F4*L4+J4*L4))),0,(J4*K4*L4+F4*G4*H4+CU4+DC4)/((F4*L4+J4*L4))) -> 4.19% | HU4: =IF(ISERROR((N4*P4*Q4+CW4+CZ4+AG4)/(N4*Q4)),0,(N4*P4*Q4+CW4+CZ4+AG4)/(N4*Q4)) -> 0.34% | HV4: =IF(ISERROR((Y4*Z4*AA4+GN4*GO4*GP4+CQ4)/((Y4*AA4+GN4*GP4))),0,(Y4*Z4*AA4+GN4*GO4*GP4+CQ4+DG4)/((Y4*AA4+GN4*GP4))) -> 1.59% | HW4: 12 | HX4: -8 | HY4: -1 | HZ4: 12 | IA4: 22 | IB4: 6 | IC4: 4 | ID4: 5 | IE4: -4 | IF4: -44 | IG4: -2 | IH4: 2 | II4: -1 | IJ4: 8 | IK4: -49 | IL4: -1 | IM4: =HW4*IM$3*HW$3/1000 -> 1 | IN4: =HX4*IN$3*HX$3/1000 -> -1 | IO4: -0 | IP4: 1 | IQ4: 0 | IR4: =IB4*IR$3*IB$3/1000 -> 1 | IS4: 0 | IT4: 2 | IU4: -0 | IV4: -27 | IW4: -2 | IX4: 3 | IY4: -1 | IZ4: 5 | JA4: -11 | JB4: -0 | JC4: =SUM(IM4:JB4)+BS4+BT4+GL4+JJ4+KW4+KZ4+LB4+CF4+CH4 -> -16 | JD4: =BG4+BH4+BK4 -> 3 | JE4: 0 | JF4: =SUM(HW4:IL4)+JI4+GK4+KY4+LA4 -> -30 | JG4: =IF(ISERROR((HW4*$IM$3+HX4*$IN$3+HY4*$IO$3+HZ4*$IP$3+IA4*$IQ$3+IB4*$IR$3+IC4*$IS$3+ID4*$IT$3+IE4*$IU$3+IF4*$IV$3+IG4*$IW$3+IH4*$IX$3+II4*$IY$3+IJ4*$IZ$3+IK4*$JA$3+IL4*$JB$3+JI4*$JJ$3+GK4*$GL$3+KY4*$KZ$3+LA4*$LB$3)/JF4),0,(HW4*$IM$3+HX4*$IN$3+HY4*$IO$3+HZ4*$IP$3+IA4*$IQ$3+IB4*$IR$3+IC4*$IS$3+ID4*$IT$3+IE4*$IU$3+IF4*$IV$3+IG4*$IW$3+IH4*$IX$3+II4*$IY$3+IJ4*$IZ$3+IK4*$JA$3+IL4*$JB$3+JI4*$JJ$3+GK4*$GL$3+KY4*$KZ$3+LA4*$LB$3)/JF4) -> 4.03 | JH4: =IF(ISERROR(JC4/(JF4*JG4)*1000),0,JC4/(JF4*JG4)*1000) -> 135.03 | JI4: 0 | JJ4: =JI4*JI$3*JJ$3/1000 -> 0 | JK4: 0 | JL4: =$ES$374 -> 0.20% | JM4: 0 | JO4: 10 | JP4: 463 | JQ4: 157 | JR4: =IF(ISERROR(IF(VLOOKUP($C4,'Indicateurs Cumulés'!$C$3:$HN$560,190,FALSE)/(VLOOKUP($C4,objectifs!$C$3:$ZZ$559,162,FALSE))>=1.5,(VLOOKUP($C4,objectifs!$C$3:$ZZ$559,162,FALSE))*1.5,IF(VLOOKUP($C4,'Indicateurs Cumulés'!$C$3:$HN$560,190,FALSE)/(VLOOKUP($C4,objectifs!$C$3:$ZZ$559,162,FALSE))<=-0.5,(VLOOKUP($C4,objectifs!$C$3:$ZZ$559,162,FALSE))*-0.5,VLOOKUP($C4,'Indicateurs Cumulés'!$C$3:$HN$560,190,FALSE)))),VLOOKUP($C4,'Indicateurs Cumulés'!$C$3:$HN$560,190,FALSE),IF(VLOOKUP($C4,'Indicateurs Cumulés'!$C$3:$HN$560,190,FALSE)/(VLOOKUP($C4,objectifs!$C$3:$ZZ$559,162,FALSE))>=1.5,(VLOOKUP($C4,objectifs!$C$3:$ZZ$559,162,FALSE))*1.5,IF(VLOOKUP($C4,'Indicateurs Cumulés'!$C$3:$HN$560,190,FALSE)/(VLOOKUP($C4,objectifs!$C$3:$ZZ$559,162,FALSE))<=-0.5,(VLOOKUP($C4,objectifs!$C$3:$ZZ$559,162,FALSE))*-0.5,VLOOKUP($C4,'Indicateurs Cumulés'!$C$3:$HN$560,190,FALSE)))) -> 164 | JS4: =JK4*$JK$3*$JS$3 -> 0 | JT4: =JM4*$JM$3*$JT$3 -> 0 | JV4: =JO4*$JO$3*$JV$3 -> 0 | JW4: =JP4*$JP$3*$JW$3 -> 15 | JX4: =JQ4*$JQ$3*$JX$3 -> 5 | JY4: =JR4*$JR$3*$JY$3 -> 9 | JZ4: =JS4+JT4+JU4+JV4+JW4+JX4+JY4+KU4 -> 29 | KA4: 3 | KB4: 0 | KC4: -1 | KD4: 2 | KE4: 0 | KF4: 0 | KG4: =KA4*KG$3*KA$3/1000 -> 4 | KH4: =KB4*KH$3*KB$3/1000 -> 0 | KI4: -1 | KJ4: 0 | KK4: 0 | KL4: 0 | KM4: =SUM(KG4:KL4)+KN4+BZ4+CB4+CD4 -> 6 | KN4: 3 | KR4: =IF(ISERROR((HW4*$IM$3+HX4*$IN$3+HY4*$IO$3+HZ4*$IP$3+IA4*$IQ$3+IB4*$IR$3+IC4*$IS$3)/(SUM(HW4:IC4))),$KR$374,(HW4*$IM$3+HX4*$IN$3+HY4*$IO$3+HZ4*$IP$3+IA4*$IQ$3+IB4*$IR$3+IC4*$IS$3)/(SUM(HW4:IC4))) -> 5.62 | KS4: =SUM(KA4:KF4) -> 4 | KT4: -7 | KU4: =KT4*$KT$3*$KU$3 -> 0 | KV4: 14 | KW4: =KV4*$KW$3*$IZ$3/1000 -> 3 | KX4: 0 | KY4: =IH4+II4+IJ4 -> 9 | KZ4: =KY4*$KY$3*$KZ$3/1000 -> 6 | LA4: 0 | LB4: =LA4*$LA$3*$LB$3/1000 -> 0 | LC4: =(F4*G4*H4+J4*K4*L4+N4*P4*Q4+Y4*Z4*AA4+AB4+AD4+AG4+CS4+CU4+CZ4+DC4+DG4+GQ4+BU4+CJ4)*1+(GC4+GE4+(HO4*GG4*GH4)*(MONTH(E4))/12)*1+(HL4+HP4*$HP$3+JE4*$JE$3+KX4*$KX$3)*1+(SUM(IM4:JB4)+JJ4+GL4+KW4+KZ4+LB4+SUM(KG4:KL4)+BS4+BT4+BZ4+CB4+CD4+CF4+KN4+LF4+LH4+LJ4+CH4)*1 -> 153 | LD4: =(S4*T4*U4+V4*W4*X4+Y4*Z4*AA4+AD4+CS4+CT4+CV4+CM4+CP4+CR4+DG4+GQ4)+(SUM(JS4:JY4)+KU4)+(SUM(KG4:KL4)+KN4+BZ4+CB4+CD4)+(LF4+LH4+LJ4)+BX4 -> 40 | LE4: 1 | LF4: =LE4*$LE$3*$LF$3/1000 -> 1 | LG4: 1 | LH4: =LG4*$LG$3*$LH$3/1000 -> 1 | LI4: -1 | LJ4: =LI4*$LI$3*$LJ$3/1000 -> -0 | LK4: =LC4-KW4-BS4-BT4-CF4-CJ4 -> 147 | LL4: =IF(HR4=0,0,LK4/HR4) -> 19.7 | LM4: =(GC4+GE4)+(HO4*GG4*GH4) -> 24 | LN4: =BJ4+BI4+BK4 -> 152 | LO4: =(HP4*$HP$3)+(KX4*$KX$3)+(JE4*$JE$3)+HL4 -> -12 | LP4: =LF4+LH4+LJ4 -> 2 | LQ4: =IF(HR4=0,0,LC4/HR4) -> 20.55 | LR4: 237 | LS4: 157 | LT4: 542 | LU4: 132 | LV4: 43 | LW4: 37 | LX4: =IF(LR4<0,0,LR4*$LR$3*$LX$3/1000) -> 17.8 | LY4: =IF(LS4<0,0,LS4*$LS$3*$LY$3/1000) -> 1.6 | LZ4: =IF(LT4<0,0,LT4*$LT$3*$LZ$3/1000) -> 1.6 | MA4: =IF(LU4<0,0,LU4*$LU$3*$MA$3/1000) -> 6.6 | MB4: =IF(LV4<0,0,LV4*$LV$3*$MB$3/1000) -> 0.6 | MC4: =IF(LW4<0,0,LW4*$LW$3*$MC$3/1000) -> 0.2 | MD4: =+LC4+SUM(LX4:MC4) -> 182
A5: 105101 | B5: 200262 | C5: 7 | D5: ILLKIRCH CENTRE | E5: =$E$3 -> 2019-05-31 | F5: 102 | G5: 4.32% | H5: 1.57 | I5: 2019-05-31 | J5: 1,488 | K5: 3.03% | L5: 2.65 | M5: 4.37 | N5: 5,350 | O5: 0 | P5: -0.11% | Q5: 5.70 | R5: 8.54 | S5: 221 | T5: 2.56% | U5: 2.33 | V5: 571 | W5: -0.22% | X5: 8.29 | Y5: 45 | Z5: 1.13% | AA5: 2.38 | AB5: 10.1 | AC5: 14.2 | AD5: 0.3 | AE5: 1,341.9 | AF5: 25.8 | AG5: 5.7 | AH5: 201905 | AI5: 20.00 | AJ5: 0.11 | AK5: =IF(ISERROR(AJ5/AI5),0,AJ5/AI5) -> 0.54% | AL5: 582.08 | AM5: 138.33 | AN5: 24% | AO5: 3.58 | AP5: 0.61% | AQ5: 1,518.79 | AR5: 272.45 | AS5: 17.9% | AT5: 4.29 | AU5: 0.28% | AV5: 70.68 | AW5: 9.07 | AX5: 12.84% | AY5: 1.42 | AZ5: 2.01% | BA5: 2,191.55 | BB5: 419.85 | BC5: 19.2% | BD5: 9.39 | BE5: 0.43% | BG5: 17 | BH5: =(V5*W5*X5)+CP5+CR5+CV5 -> -7 | BI5: 169 | BJ5: 73 | BK5: 2 | BL5: 1.38% | BM5: 0.00% | BN5: 7 | BO5: 192 | BP5: =BO5*$BO$3*$BP$3 -> 4 | BQ5: 347 | BR5: =BQ5*$BQ$3*$BR$3 -> 10 | BS5: =HW5*$BS$3*$IT$3/1000 -> 7 | BT5: =HX5*$BT$3*$IT$3/1000 -> 2 | BU5: -11 | BX5: 0 | BY5: 0 | BZ5: =BY5*$BY$3*$BZ$3/1000 -> 0 | CA5: 0 | CB5: =CA5*$CA$3*$CB$3/1000 -> 0 | CC5: 0 | CD5: =CC5*$CC$3*$CD$3/1000 -> 0 | CE5: 16 | CF5: =+CE5*$CF$3/1000 -> 3.2 | CG5: -4 | CH5: =(CG5*$CG$3*$CH$3)/1000 -> -1 | CI5: 6 | CJ5: =CI5*$CJ$3/1000 -> 6 | CK5: 81.86% | CL5: 120.80% | CM5: 3 | CN5: 0.00% | CO5: 3 | CP5: 1 | CQ5: 0.3 | CR5: 1 | CS5: 0.00 | CT5: 0 | CU5: 5 | CV5: 1 | CW5: =+AB5 -> 10 | CX5: 42.62% | CY5: 148.31% | CZ5: 85 | DA5: 94.89% | DB5: 156.97% | DC5: 38 | DE5: 100.00% | DF5: 100.00% | DG5: 0 | DH5: -372 | DI5: 0.70% | DJ5: 5.33 | DK5: =DH5*DI5*DJ5 -> -14 | DL5: 131 | DM5: 0.81% | DN5: 5.33 | DO5: =DL5*DM5*DN5 -> 6 | DP5: 6 | DQ5: 0.91% | DR5: 5.33 | DS5: =DP5*DQ5*DR5 -> 0 | DT5: 532 | DU5: 0.40% | DV5: 2.16 | DW5: =DT5*DU5*DV5 -> 5 | DX5: -265 | DY5: 0.20% | DZ5: 5.37 | EA5: =DX5*DY5*DZ5 -> -3 | EB5: -42 | EC5: 0.20% | ED5: 5.37 | EE5: =EB5*EC5*ED5 -> -0 | EF5: -33 | EG5: 0.20% | EH5: 5.37 | EI5: =EF5*EG5*EH5 -> -0 | EJ5: -61 | EK5: 0.45% | EL5: 5.33 | EM5: =EJ5*EK5*EL5 -> -1 | EN5: -29 | EO5: 0.10% | EP5: 6.30 | EQ5: =EN5*EO5*EP5 -> -0 | ER5: -154 | ES5: 0.20% | ET5: 9.00 | EU5: =ER5*ES5*ET5 -> -3 | EV5: -191 | EW5: =EW375 -> 0.00% | EX5: 7.52 | EY5: =EV5*EW5*EX5 -> 0 | EZ5: 0 | FA5: -0.37% | FB5: 0.08 | FC5: =EZ5*FA5*FB5 -> 0 | FD5: 1,147 | FE5: 0.45% | FF5: 8.00 | FG5: =FD5*FE5*FF5 -> 41 | FH5: 2,525 | FI5: 0.43% | FJ5: 1.00 | FK5: =FH5*FI5*FJ5 -> 11 | FL5: -153 | FM5: 0.65% | FN5: 5.00 | FO5: =FL5*FM5*FN5 -> -5 | FP5: 29 | FQ5: 0.40% | FR5: 1.00 | FS5: =FP5*FQ5*FR5 -> 0 | FT5: -466 | FU5: 0.20% | FV5: 8.00 | FW5: =FT5*FU5*FV5 -> -7 | FX5: 199 | FY5: 1.00% | FZ5: 5.00 | GA5: =FX5*FY5*FZ5 -> 10 | GB5: -646 | GC5: -6 | GD5: =FD5+FL5+GR5+GZ5+HH5 -> 1,532 | GE5: 82 | GF5: -741 | GG5: 1.00% | GH5: 5.37 | GI5: =GF5*GG5*GH5 -> -40 | GJ5: -237 | GK5: 0 | GL5: =GK5*$GK$3*$GL$3/1000 -> 0 | GN5: 0 | GO5: 0.00% | GP5: 0 | GQ5: =GN5*GO5*GP5 -> 0 | GR5: 600 | GS5: 0.45% | GT5: 8.00 | GU5: =GR5*GS5*GT5 -> 22 | GV5: 600 | GW5: =FI5 -> 0.43% | GX5: 1.00 | GY5: =GV5*GW5*GX5 -> 3 | GZ5: 0 | HA5: 0.65% | HB5: 5.00 | HC5: =GZ5*HA5*HB5 -> 0 | HD5: 0 | HE5: =FQ5 -> 0.40% | HF5: 1.00 | HG5: 0 | HH5: -62 | HI5: 1.00% | HJ5: 5.00 | HK5: -3 | HL5: -22 | HM5: 252 | HO5: =IF(ISERROR(IF(VLOOKUP($C5,'Indicateurs Cumulés'!$C$3:$HN$560,186,FALSE)/(VLOOKUP($C5,objectifs!$C$3:$ZZ$559,158,FALSE))>=1.5,(VLOOKUP($C5,objectifs!$C$3:$ZZ$559,158,FALSE))*1.5,IF(VLOOKUP($C5,'Indicateurs Cumulés'!$C$3:$HN$560,186,FALSE)/(VLOOKUP($C5,objectifs!$C$3:$ZZ$559,158,FALSE))<=-0.5,(VLOOKUP($C5,objectifs!$C$3:$ZZ$559,158,FALSE))*-0.5,VLOOKUP($C5,'Indicateurs Cumulés'!$C$3:$HN$560,186,FALSE)))),VLOOKUP($C5,'Indicateurs Cumulés'!$C$3:$HN$560,186,FALSE),IF(VLOOKUP($C5,'Indicateurs Cumulés'!$C$3:$HN$560,186,FALSE)/(VLOOKUP($C5,objectifs!$C$3:$ZZ$559,158,FALSE))>=1.5,(VLOOKUP($C5,objectifs!$C$3:$ZZ$559,158,FALSE))*1.5,IF(VLOOKUP($C5,'Indicateurs Cumulés'!$C$3:$HN$560,186,FALSE)/(VLOOKUP($C5,objectifs!$C$3:$ZZ$559,158,FALSE))<=-0.5,(VLOOKUP($C5,objectifs!$C$3:$ZZ$559,158,FALSE))*-0.5,VLOOKUP($C5,'Indicateurs Cumulés'!$C$3:$HN$560,186,FALSE)))) -> -362 | HP5: 0 | HR5: 7.1 | HT5: 4.01% | HU5: 0.22% | HV5: 1.54% | HW5: 36 | HX5: 12 | HY5: -5 | HZ5: 8 | IA5: -10 | IB5: 13 | IC5: 15 | ID5: -10 | IE5: 0 | IF5: -30 | IG5: -8 | IH5: 5 | II5: 1 | IJ5: 14 | IK5: -52 | IL5: -5 | IM5: =HW5*IM$3*HW$3/1000 -> 4 | IN5: =HX5*IN$3*HX$3/1000 -> 1 | IO5: =HY5*IO$3*HY$3/1000 -> -1 | IP5: =HZ5*IP$3*HZ$3/1000 -> 1 | IQ5: =IA5*IQ$3*IA$3/1000 -> -0 | IR5: =IB5*IR$3*IB$3/1000 -> 1 | IS5: =IC5*IS$3*IC$3/1000 -> 2 | IT5: =ID5*IT$3*ID$3/1000 -> -4 | IU5: =IE5*IU$3*IE$3/1000 -> 0 | IV5: =IF5*IV$3*IF$3/1000 -> -19 | IW5: =IG5*IW$3*IG$3/1000 -> -8 | IX5: =IH5*IX$3*IH$3/1000 -> 8 | IY5: =II5*IY$3*II$3/1000 -> 1 | IZ5: =IJ5*IZ$3*IJ$3/1000 -> 9 | JA5: =IK5*JA$3*IK$3/1000 -> -11 | JB5: =IL5*JB$3*IL$3/1000 -> -0 | JC5: 18 | JD5: 11 | JE5: 0 | JF5: =SUM(HW5:IL5)+JI5+GK5+KY5+LA5 -> 4 | JG5: =IF(ISERROR((HW5*$IM$3+HX5*$IN$3+HY5*$IO$3+HZ5*$IP$3+IA5*$IQ$3+IB5*$IR$3+IC5*$IS$3+ID5*$IT$3+IE5*$IU$3+IF5*$IV$3+IG5*$IW$3+IH5*$IX$3+II5*$IY$3+IJ5*$IZ$3+IK5*$JA$3+IL5*$JB$3+JI5*$JJ$3+GK5*$GL$3+KY5*$KZ$3+LA5*$LB$3)/JF5),0,(HW5*$IM$3+HX5*$IN$3+HY5*$IO$3+HZ5*$IP$3+IA5*$IQ$3+IB5*$IR$3+IC5*$IS$3+ID5*$IT$3+IE5*$IU$3+IF5*$IV$3+IG5*$IW$3+IH5*$IX$3+II5*$IY$3+IJ5*$IZ$3+IK5*$JA$3+IL5*$JB$3+JI5*$JJ$3+GK5*$GL$3+KY5*$KZ$3+LA5*$LB$3)/JF5) -> -9.03 | JH5: =IF(ISERROR(JC5/(JF5*JG5)*1000),0,JC5/(JF5*JG5)*1000) -> -490.83 | JI5: 0 | JJ5: =JI5*JI$3*JJ$3/1000 -> 0 | JK5: -16 | JL5: =$ES$374 -> 0.20% | JM5: 15 | JO5: 3 | JP5: 98 | JQ5: -1 | JR5: =IF(ISERROR(IF(VLOOKUP($C5,'Indicateurs Cumulés'!$C$3:$HN$560,190,FALSE)/(VLOOKUP($C5,objectifs!$C$3:$ZZ$559,162,FALSE))>=1.5,(VLOOKUP($C5,objectifs!$C$3:$ZZ$559,162,FALSE))*1.5,IF(VLOOKUP($C5,'Indicateurs Cumulés'!$C$3:$HN$560,190,FALSE)/(VLOOKUP($C5,objectifs!$C$3:$ZZ$559,162,FALSE))<=-0.5,(VLOOKUP($C5,objectifs!$C$3:$ZZ$559,162,FALSE))*-0.5,VLOOKUP($C5,'Indicateurs Cumulés'!$C$3:$HN$560,190,FALSE)))),VLOOKUP($C5,'Indicateurs Cumulés'!$C$3:$HN$560,190,FALSE),IF(VLOOKUP($C5,'Indicateurs Cumulés'!$C$3:$HN$560,190,FALSE)/(VLOOKUP($C5,objectifs!$C$3:$ZZ$559,162,FALSE))>=1.5,(VLOOKUP($C5,objectifs!$C$3:$ZZ$559,162,FALSE))*1.5,IF(VLOOKUP($C5,'Indicateurs Cumulés'!$C$3:$HN$560,190,FALSE)/(VLOOKUP($C5,objectifs!$C$3:$ZZ$559,162,FALSE))<=-0.5,(VLOOKUP($C5,objectifs!$C$3:$ZZ$559,162,FALSE))*-0.5,VLOOKUP($C5,'Indicateurs Cumulés'!$C$3:$HN$560,190,FALSE)))) -> -52 | JS5: =JK5*$JK$3*$JS$3 -> -0 | JT5: =JM5*$JM$3*$JT$3 -> 1 | JV5: =JO5*$JO$3*$JV$3 -> 0 | JW5: =JP5*$JP$3*$JW$3 -> 3 | JX5: =JQ5*$JQ$3*$JX$3 -> -0 | JY5: =JR5*$JR$3*$JY$3 -> -3 | JZ5: =JS5+JT5+JU5+JV5+JW5+JX5+JY5+KU5 -> 1 | KA5: 6 | KB5: 1 | KC5: 0 | KD5: 2 | KE5: 0 | KF5: 0 | KG5: =KA5*KG$3*KA$3/1000 -> 9 | KH5: =KB5*KH$3*KB$3/1000 -> 1 | KI5: =KC5*KI$3*KC$3/1000 -> 0 | KJ5: =KD5*KJ$3*KD$3/1000 -> 0 | KK5: =KE5*KK$3*KE$3/1000 -> 0 | KL5: =KF5*KL$3*KF$3/1000 -> 0 | KM5: =SUM(KG5:KL5)+KN5+BZ5+CB5+CD5 -> 14 | KN5: 4 | KR5: 4.19 | KS5: =SUM(KA5:KF5) -> 9 | KT5: -1 | KU5: =KT5*$KT$3*$KU$3 -> 0 | KV5: 46 | KW5: =KV5*$KW$3*$IZ$3/1000 -> 9 | KX5: 0 | KY5: =IH5+II5+IJ5 -> 20 | KZ5: =KY5*$KY$3*$KZ$3/1000 -> 14 | LA5: 0 | LB5: =LA5*$LA$3*$LB$3/1000 -> 0 | LC5: =(F5*G5*H5+J5*K5*L5+N5*P5*Q5+Y5*Z5*AA5+AB5+AD5+AG5+CS5+CU5+CZ5+DC5+DG5+GQ5+BU5+CJ5)*1+(GC5+GE5+(HO5*GG5*GH5)*(MONTH(E5))/12)*1+(HL5+HP5*$HP$3+JE5*$JE$3+KX5*$KX$3)*1+(SUM(IM5:JB5)+JJ5+GL5+KW5+KZ5+LB5+SUM(KG5:KL5)+BS5+BT5+BZ5+CB5+CD5+CF5+KN5+LF5+LH5+LJ5+CH5)*1 -> 315 | LD5: 31 | LE5: 1 | LF5: =LE5*$LE$3*$LF$3/1000 -> 1 | LG5: 3 | LH5: =LG5*$LG$3*$LH$3/1000 -> 4 | LI5: -4 | LJ5: =LI5*$LI$3*$LJ$3/1000 -> -0 | LK5: =LC5-KW5-BS5-BT5-CF5-CJ5 -> 287 | LL5: 40.5 | LM5: =(GC5+GE5)+(HO5*GG5*GH5) -> 57 | LN5: 243 | LO5: -22 | LP5: =LF5+LH5+LJ5 -> 5 | LQ5: 44.48 | LR5: 243 | LS5: 83 | LT5: 576 | LU5: 185 | LV5: 50 | LW5: 11 | LX5: =IF(LR5<0,0,LR5*$LR$3*$LX$3/1000) -> 18.2 | LY5: =IF(LS5<0,0,LS5*$LS$3*$LY$3/1000) -> 0.8 | LZ5: =IF(LT5<0,0,LT5*$LT$3*$LZ$3/1000) -> 1.7 | MA5: =IF(LU5<0,0,LU5*$LU$3*$MA$3/1000) -> 9.3 | MB5: =IF(LV5<0,0,LV5*$LV$3*$MB$3/1000) -> 0.8 | MC5: =IF(LW5<0,0,LW5*$LW$3*$MC$3/1000) -> 0.1 | MD5: =+LC5+SUM(LX5:MC5) -> 346
A6: 105101 | B6: 200262 | C6: 8 | D6: FEGERSHEIM | E6: 2019-05-31 | F6: 42 | G6: 4.32% | H6: 1.57 | I6: 2019-05-31 | J6: 678 | K6: 1.72% | L6: 2.89 | M6: 4.35 | N6: 1,608 | O6: 0 | P6: -0.14% | Q6: 6.50 | R6: 10.18 | S6: 147 | T6: 2.37% | U6: 2.48 | V6: 91 | W6: -0.36% | X6: 7.56 | Y6: 25 | Z6: 1.29% | AA6: 1.48 | AB6: 6.1 | AC6: 13.0 | AD6: 0.3 | AE6: 62.8 | AF6: 24.7 | AG6: 3.2 | AH6: 201905 | AI6: 0 | AJ6: 0 | AK6: 0.00% | AL6: 255.66 | AM6: 74.99 | AN6: 29% | AO6: 2.02 | AP6: 0.79% | AQ6: 367.70 | AR6: 115.51 | AS6: 31.4% | AT6: 0.45 | AU6: 0.12% | AV6: 108.30 | AW6: 27.41 | AX6: 25.31% | AY6: 0.84 | AZ6: 0.78% | BA6: 733.26 | BB6: 217.90 | BC6: 29.7% | BD6: 3.36 | BE6: 0.46% | BG6: 12 | BH6: -2 | BI6: 50 | BJ6: 45 | BK6: 7 | BL6: 1.52% | BM6: 0.00% | BN6: 8 | BO6: 57 | BP6: 1 | BQ6: 156 | BR6: 4 | BS6: -0 | BT6: 1 | BU6: 0 | BX6: 0 | BY6: 0 | BZ6: 0 | CA6: 1 | CB6: 0 | CC6: -7 | CD6: -4 | CE6: 2 | CF6: 0.4 | CG6: 2 | CH6: 0 | CI6: 0 | CJ6: 0 | CK6: 100.00% | CL6: 86.39% | CM6: 2 | CN6: 0.00% | CO6: 2 | CP6: 0 | CQ6: 0.3 | CR6: 0 | CS6: 1.65 | CT6: 1 | CU6: 3 | CV6: 0 | CW6: 6 | CX6: 94.37% | CY6: 162.75% | CZ6: 50 | DA6: 100.23% | DB6: 102.17% | DC6: 11 | DE6: 87.50% | DF6: 100.00% | DG6: 0 | DH6: 94 | DI6: 0.70% | DJ6: 5.33 | DK6: 4 | DL6: 348 | DM6: 0.81% | DN6: 5.33 | DO6: 15 | DP6: -54 | DQ6: 0.91% | DR6: 5.33 | DS6: -3 | DT6: 952 | DU6: 0.40% | DV6: 2.16 | DW6: 8 | DX6: -115 | DY6: 0.20% | DZ6: 5.37 | EA6: -1 | EB6: 99 | EC6: 0.20% | ED6: 5.37 | EE6: 1 | EF6: -31 | EG6: 0.20% | EH6: 5.37 | EI6: -0 | EJ6: -21 | EK6: 0.45% | EL6: 5.33 | EM6: -1 | EN6: 0 | EO6: 0.10% | EP6: 6.90 | EQ6: 0 | ER6: -136 | ES6: 0.20% | ET6: 9.00 | EU6: -2 | EV6: 203 | EW6: 0.00% | EX6: 8.59 | EY6: 0 | EZ6: -1 | FA6: -0.37% | FB6: 0.08 | FC6: 0 | FD6: 160 | FE6: 0.45% | FF6: 8.00 | FG6: 6 | FH6: 798 | FI6: 0.46% | FJ6: 1.00 | FK6: 4 | FL6: -15 | FM6: 0.65% | FN6: 5.00 | FO6: -1 | FP6: 4 | FQ6: 0.40% | FR6: 1.00 | FS6: 0 | FT6: -466 | FU6: 0.20% | FV6: 8.00 | FW6: -7 | FX6: 245 | FY6: 1.00% | FZ6: 5.00 | GA6: 12 | GB6: 1,281 | GC6: 31 | GD6: 173 | GE6: 16 | GF6: -240 | GG6: 1.00% | GH6: 5.37 | GI6: -13 | GJ6: 40 | GK6: 0 | GL6: 0 | GN6: 176 | GO6: 1.10% | GP6: 2.06 | GQ6: 4 | GR6: 36 | GS6: 0.45% | GT6: 8.00 | GU6: 1 | GV6: 100 | GW6: 0.46% | GX6: 1.00 | GY6: 0 | GZ6: 0 | HA6: 0.65% | HB6: 5.00 | HC6: 0 | HD6: 0 | HE6: 0.40% | HF6: 1.00 | HG6: 0 | HH6: -8 | HI6: 1.00% | HJ6: 5.00 | HK6: -0 | HL6: -9 | HM6: 126 | HO6: =IF(ISERROR(IF(VLOOKUP($C6,'Indicateurs Cumulés'!$C$3:$HN$560,186,FALSE)/(VLOOKUP($C6,objectifs!$C$3:$ZZ$559,158,FALSE))>=1.5,(VLOOKUP($C6,objectifs!$C$3:$ZZ$559,158,FALSE))*1.5,IF(VLOOKUP($C6,'Indicateurs Cumulés'!$C$3:$HN$560,186,FALSE)/(VLOOKUP($C6,objectifs!$C$3:$ZZ$559,158,FALSE))<=-0.5,(VLOOKUP($C6,objectifs!$C$3:$ZZ$559,158,FALSE))*-0.5,VLOOKUP($C6,'Indicateurs Cumulés'!$C$3:$HN$560,186,FALSE)))),VLOOKUP($C6,'Indicateurs Cumulés'!$C$3:$HN$560,186,FALSE),IF(VLOOKUP($C6,'Indicateurs Cumulés'!$C$3:$HN$560,186,FALSE)/(VLOOKUP($C6,objectifs!$C$3:$ZZ$559,158,FALSE))>=1.5,(VLOOKUP($C6,objectifs!$C$3:$ZZ$559,158,FALSE))*1.5,IF(VLOOKUP($C6,'Indicateurs Cumulés'!$C$3:$HN$560,186,FALSE)/(VLOOKUP($C6,objectifs!$C$3:$ZZ$559,158,FALSE))<=-0.5,(VLOOKUP($C6,objectifs!$C$3:$ZZ$559,158,FALSE))*-0.5,VLOOKUP($C6,'Indicateurs Cumulés'!$C$3:$HN$560,186,FALSE)))) -> -196 | HP6: 0 | HR6: 3.3 | HT6: 2.41% | HU6: 0.43% | HV6: 1.22% | HW6: -1 | HX6: 3 | HY6: 0 | HZ6: 5 | IA6: -5 | IB6: 0 | IC6: 19 | ID6: -50 | IE6: -1 | IF6: -3 | IG6: 0 | IH6: 1 | II6: -2 | IJ6: 60 | IK6: -60 | IL6: 0 | IM6: -0 | IN6: 0 | IO6: 0 | IP6: 0 | IQ6: -0 | IR6: 0 | IS6: 2 | IT6: -22 | IU6: -0 | IV6: -2 | IW6: 0 | IX6: 2 | IY6: -2 | IZ6: 39 | JA6: -13 | JB6: 0 | JC6: 51 | JD6: 17 | JE6: 0 | JF6: 26 | JG6: 5.52 | JH6: 353.27 | JI6: 0 | JJ6: 0 | JK6: -83 | JL6: 0.20% | JM6: 8 | JO6: 18 | JP6: 163 | JQ6: -55 | JR6: =IF(ISERROR(IF(VLOOKUP($C6,'Indicateurs Cumulés'!$C$3:$HN$560,190,FALSE)/(VLOOKUP($C6,objectifs!$C$3:$ZZ$559,162,FALSE))>=1.5,(VLOOKUP($C6,objectifs!$C$3:$ZZ$559,162,FALSE))*1.5,IF(VLOOKUP($C6,'Indicateurs Cumulés'!$C$3:$HN$560,190,FALSE)/(VLOOKUP($C6,objectifs!$C$3:$ZZ$559,162,FALSE))<=-0.5,(VLOOKUP($C6,objectifs!$C$3:$ZZ$559,162,FALSE))*-0.5,VLOOKUP($C6,'Indicateurs Cumulés'!$C$3:$HN$560,190,FALSE)))),VLOOKUP($C6,'Indicateurs Cumulés'!$C$3:$HN$560,190,FALSE),IF(VLOOKUP($C6,'Indicateurs Cumulés'!$C$3:$HN$560,190,FALSE)/(VLOOKUP($C6,objectifs!$C$3:$ZZ$559,162,FALSE))>=1.5,(VLOOKUP($C6,objectifs!$C$3:$ZZ$559,162,FALSE))*1.5,IF(VLOOKUP($C6,'Indicateurs Cumulés'!$C$3:$HN$560,190,FALSE)/(VLOOKUP($C6,objectifs!$C$3:$ZZ$559,162,FALSE))<=-0.5,(VLOOKUP($C6,objectifs!$C$3:$ZZ$559,162,FALSE))*-0.5,VLOOKUP($C6,'Indicateurs Cumulés'!$C$3:$HN$560,190,FALSE)))) -> 40 | JS6: -1 | JT6: 0 | JV6: 1 | JW6: 5 | JX6: -2 | JY6: 2 | JZ6: 5 | KA6: -1 | KB6: 0 | KC6: 0 | KD6: -1 | KE6: 0 | KF6: 0 | KG6: -1 | KH6: 0 | KI6: 0 | KJ6: -0 | KK6: 0 | KL6: 0 | KM6: -3 | KN6: 2 | KR6: 5.67 | KS6: -2 | KT6: -32 | KU6: 0 | KV6: 18 | KW6: 4 | KX6: 0 | KY6: 59 | KZ6: 41 | LA6: 1 | LB6: 0 | LC6: 187 | LD6: 23 | LE6: 3 | LF6: 2 | LG6: 2 | LH6: 3 | LI6: -5 | LJ6: -1 | LK6: 182 | LL6: 54.9 | LM6: 36 | LN6: 101 | LO6: -9 | LP6: 4 | LQ6: 56.19 | LR6: 136 | LS6: 4 | LT6: 336 | LU6: 52 | LV6: -25 | LW6: 0 | LX6: 10.2 | LY6: 0.0 | LZ6: 1.0 | MA6: 2.6 | MB6: 0.0 | MC6: 0.0 | MD6: 201
A7: 105006 | B7: 200262 | C7: 10 | D7: STRASBOURG MEINAU | E7: 2019-05-31 | F7: 61 | G7: 4.32% | H7: 1.57 | I7: 2019-05-31 | J7: 499 | K7: 3.36% | L7: 2.70 | M7: 4.48 | N7: 2,035 | O7: 0 | P7: -0.20% | Q7: 7.98 | R7: 12.38 | S7: 21 | T7: 2.21% | U7: 3.43 | V7: 108 | W7: -0.16% | X7: 6.10 | Y7: 0 | Z7: 0.00% | AA7: 0 | AB7: 6.4 | AC7: 3.8 | AD7: 0 | AE7: 54.8 | AF7: 8.0 | AG7: 3.4 | AH7: 201905 | AI7: 10.50 | AJ7: 0.25 | AK7: 2.40% | AL7: 78.46 | AM7: 8.71 | AN7: 11% | AO7: 1.38 | AP7: 1.76% | AQ7: 280.84 | AR7: 14.61 | AS7: 5.2% | AT7: 1.35 | AU7: 0.48% | AV7: 24.74 | AW7: 1.89 | AX7: 7.63% | AY7: 0.51 | AZ7: 2.05% | BA7: 394.55 | BB7: 25.21 | BC7: 6.4% | BD7: 3.49 | BE7: 0.88% | BG7: 2 | BH7: 2 | BI7: 63 | BJ7: 9 | BK7: 0 | BL7: 1.65% | BM7: 0.00% | BN7: 10 | BO7: 30 | BP7: 1 | BQ7: 51 | BR7: 1 | BS7: -0 | BT7: 1 | BU7: -2 | BX7: 0 | BY7: 0 | BZ7: 0 | CA7: 0 | CB7: 0 | CC7: 1 | CD7: 1 | CE7: 5 | CF7: 1.0 | CG7: -1 | CH7: -0 | CI7: 3 | CJ7: 3 | CK7: 0.00% | CL7: 0.00% | CM7: 0 | CN7: 100.00% | CO7: 0 | CP7: 2 | CQ7: 0 | CR7: 0 | CS7: 0.00 | CT7: 0 | CU7: 2 | CV7: 1 | CW7: 6 | CX7: 49.04% | CY7: 125.41% | CZ7: 29 | DA7: 87.56% | DB7: 151.84% | DC7: 12 | DE7: 0.00% | DF7: 0.00% | DG7: 0 | DH7: -83 | DI7: 0.70% | DJ7: 5.33 | DK7: -3 | DL7: 443 | DM7: 0.81% | DN7: 5.33 | DO7: 19 | DP7: -42 | DQ7: 0.91% | DR7: 5.33 | DS7: -2 | DT7: -115 | DU7: 0.40% | DV7: 2.16 | DW7: -1 | DX7: -109 | DY7: 0.20% | DZ7: 5.37 | EA7: -1 | EB7: 68 | EC7: 0.20% | ED7: 5.37 | EE7: 1 | EF7: -31 | EG7: 0.20% | EH7: 5.37 | EI7: -0 | EJ7: -12 | EK7: 0.45% | EL7: 5.33 | EM7: -0 | EN7: 1 | EO7: 0.10% | EP7: 8.02 | EQ7: 0 | ER7: 70 | ES7: 0.20% | ET7: 9.00 | EU7: 1 | EV7: -80 | EW7: 0.00% | EX7: 8.59 | EY7: 0 | EZ7: 0 | FA7: -0.37% | FB7: 0.08 | FC7: 0 | FD7: -711 | FE7: 0.45% | FF7: 8.00 | FG7: -26 | FH7: 627 | FI7: 0.88% | FJ7: 1.00 | FK7: 6 | FL7: -86 | FM7: 0.65% | FN7: 5.00 | FO7: -3 | FP7: 5 | FQ7: 0.40% | FR7: 1.00 | FS7: 0 | FT7: -247 | FU7: 0.20% | FV7: 8.00 | FW7: -4 | FX7: 40 | FY7: 1.00% | FZ7: 5.00 | GA7: 2 | GB7: -97 | GC7: 11 | GD7: -792 | GE7: -21 | GF7: -191 | GG7: 1.00% | GH7: 5.37 | GI7: -10 | GJ7: -11 | GK7: 0 | GL7: 0 | GN7: 0 | GO7: 0.00% | GP7: 0 | GQ7: 0 | GR7: -3 | GS7: 0.45% | GT7: 8.00 | GU7: -0 | GV7: 0 | GW7: 0.88% | GX7: 1.00 | GY7: 0 | GZ7: 0 | HA7: 0.65% | HB7: 5.00 | HC7: 0 | HD7: 0 | HE7: 0.40% | HF7: 1.00 | HG7: 0 | HH7: 7 | HI7: 1.00% | HJ7: 5.00 | HK7: 0 | HL7: -7 | HM7: 158 | HO7: =IF(ISERROR(IF(VLOOKUP($C7,'Indicateurs Cumulés'!$C$3:$HN$560,186,FALSE)/(VLOOKUP($C7,objectifs!$C$3:$ZZ$559,158,FALSE))>=1.5,(VLOOKUP($C7,objectifs!$C$3:$ZZ$559,158,FALSE))*1.5,IF(VLOOKUP($C7,'Indicateurs Cumulés'!$C$3:$HN$560,186,FALSE)/(VLOOKUP($C7,objectifs!$C$3:$ZZ$559,158,FALSE))<=-0.5,(VLOOKUP($C7,objectifs!$C$3:$ZZ$559,158,FALSE))*-0.5,VLOOKUP($C7,'Indicateurs Cumulés'!$C$3:$HN$560,186,FALSE)))),VLOOKUP($C7,'Indicateurs Cumulés'!$C$3:$HN$560,186,FALSE),IF(VLOOKUP($C7,'Indicateurs Cumulés'!$C$3:$HN$560,186,FALSE)/(VLOOKUP($C7,objectifs!$C$3:$ZZ$559,158,FALSE))>=1.5,(VLOOKUP($C7,objectifs!$C$3:$ZZ$559,158,FALSE))*1.5,IF(VLOOKUP($C7,'Indicateurs Cumulés'!$C$3:$HN$560,186,FALSE)/(VLOOKUP($C7,objectifs!$C$3:$ZZ$559,158,FALSE))<=-0.5,(VLOOKUP($C7,objectifs!$C$3:$ZZ$559,158,FALSE))*-0.5,VLOOKUP($C7,'Indicateurs Cumulés'!$C$3:$HN$560,186,FALSE)))) -> -172 | HP7: 0 | HR7: 3.6 | HT7: 4.16% | HU7: 0.04% | HV7: 0.00% | HW7: -2 | HX7: 3 | HY7: 1 | HZ7: 1 | IA7: 9 | IB7: 1 | IC7: 14 | ID7: -1 | IE7: 3 | IF7: -9 | IG7: -1 | IH7: 3 | II7: -1 | IJ7: 6 | IK7: -17 | IL7: -2 | IM7: -0 | IN7: 0 | IO7: 0 | IP7: 0 | IQ7: 0 | IR7: 0 | IS7: 2 | IT7: -0 | IU7: 0 | IV7: -6 | IW7: -1 | IX7: 5 | IY7: -1 | IZ7: 4 | JA7: -4 | JB7: -0 | JC7: 6 | JD7: 4 | JE7: 0 | JF7: 17 | JG7: 6.58 | JH7: 54.34 | JI7: 0 | JJ7: 0 | JK7: -0 | JL7: 0.20% | JM7: 0 | JO7: 0 | JP7: 0 | JQ7: -108 | JR7: =IF(ISERROR(IF(VLOOKUP($C7,'Indicateurs Cumulés'!$C$3:$HN$560,190,FALSE)/(VLOOKUP($C7,objectifs!$C$3:$ZZ$559,162,FALSE))>=1.5,(VLOOKUP($C7,objectifs!$C$3:$ZZ$559,162,FALSE))*1.5,IF(VLOOKUP($C7,'Indicateurs Cumulés'!$C$3:$HN$560,190,FALSE)/(VLOOKUP($C7,objectifs!$C$3:$ZZ$559,162,FALSE))<=-0.5,(VLOOKUP($C7,objectifs!$C$3:$ZZ$559,162,FALSE))*-0.5,VLOOKUP($C7,'Indicateurs Cumulés'!$C$3:$HN$560,190,FALSE)))),VLOOKUP($C7,'Indicateurs Cumulés'!$C$3:$HN$560,190,FALSE),IF(VLOOKUP($C7,'Indicateurs Cumulés'!$C$3:$HN$560,190,FALSE)/(VLOOKUP($C7,objectifs!$C$3:$ZZ$559,162,FALSE))>=1.5,(VLOOKUP($C7,objectifs!$C$3:$ZZ$559,162,FALSE))*1.5,IF(VLOOKUP($C7,'Indicateurs Cumulés'!$C$3:$HN$560,190,FALSE)/(VLOOKUP($C7,objectifs!$C$3:$ZZ$559,162,FALSE))<=-0.5,(VLOOKUP($C7,objectifs!$C$3:$ZZ$559,162,FALSE))*-0.5,VLOOKUP($C7,'Indicateurs Cumulés'!$C$3:$HN$560,190,FALSE)))) -> -11 | JS7: -0 | JT7: 0 | JV7: 0 | JW7: 0 | JX7: -3 | JY7: -1 | JZ7: -4 | KA7: -2 | KB7: 0 | KC7: 0 | KD7: -1 | KE7: 0 | KF7: 0 | KG7: -3 | KH7: 0 | KI7: 0 | KJ7: -0 | KK7: 0 | KL7: 0 | KM7: -2 | KN7: 1 | KR7: 6.01 | KS7: -3 | KT7: 27 | KU7: 0 | KV7: 1 | KW7: 0 | KX7: 0 | KY7: 8 | KZ7: 6 | LA7: 1 | LB7: 0 | LC7: 52 | LD7: -4 | LE7: 1 | LF7: 1 | LG7: -2 | LH7: -3 | LI7: 0 | LJ7: 0 | LK7: 48 | LL7: 13.2 | LM7: -19 | LN7: 72 | LO7: -7 | LP7: -2 | LQ7: 14.42 | LR7: 124 | LS7: 60 | LT7: 290 | LU7: 102 | LV7: -12 | LW7: 17 | LX7: 9.3 | LY7: 0.6 | LZ7: 0.9 | MA7: 5.1 | MB7: 0.0 | MC7: 0.1 | MD7: 68
A8: 105006 | B8: 200262 | C8: 12 | D8: STRASBOURG STOCKFELD | E8: 2019-05-31 | F8: 52 | G8: 4.32% | H8: 1.57 | I8: 2019-05-31 | J8: 208 | K8: 4.32% | L8: 2.19 | M8: 3.80 | N8: 210 | O8: 0 | P8: -0.08% | Q8: 8.61 | R8: 12.95 | S8: 0 | T8: 0.00% | U8: 0 | V8: 0 | W8: 0.00% | X8: 0 | Y8: 0 | Z8: 0.00% | AA8: 0 | AB8: 0.5 | AC8: 1.9 | AD8: 0 | AE8: 9.4 | AF8: 3.1 | AG8: 0.4 | AH8: 201905 | AI8: 0 | AJ8: 0 | AK8: 0.00% | AL8: 105.81 | AM8: 41.86 | AN8: 40% | AO8: 1.76 | AP8: 1.66% | AQ8: 117.61 | AR8: 1.98 | AS8: 1.7% | AT8: 0.07 | AU8: 0.06% | AV8: 31.00 | AW8: 0.94 | AX8: 3.04% | AY8: 0.33 | AZ8: 1.07% | BA8: 254.43 | BB8: 44.78 | BC8: 17.6% | BD8: 2.16 | BE8: 0.85% | BG8: 0 | BH8: 0 | BI8: 28 | BJ8: 8 | BK8: 0 | BL8: 1.83% | BN8: 12 | BO8: 36 | BP8: 1 | BQ8: 55 | BR8: 2 | BS8: 0 | BT8: -1 | BU8: -2 | BX8: 0 | BY8: 0 | BZ8: 0 | CA8: 0 | CB8: 0 | CC8: 0 | CD8: 0 | CE8: 1 | CF8: 0.2 | CG8: -3 | CH8: -1 | CI8: 1 | CJ8: 1 | CK8: 0.00% | CL8: 0.00% | CM8: 0 | CN8: 0.00% | CO8: 0 | CP8: 0 | CQ8: 0 | CR8: 0 | CS8: 0.00 | CT8: 0 | CU8: 1 | CV8: 0 | CW8: 0 | CX8: 100.00% | CY8: 197.62% | CZ8: 7 | DA8: 86.76% | DB8: 125.53% | DC8: 3 | DE8: 0.00% | DF8: 0.00% | DG8: 0 | DH8: 43 | DI8: 0.70% | DJ8: 5.33 | DK8: 2 | DL8: 46 | DM8: 0.81% | DN8: 5.33 | DO8: 2 | DP8: -2 | DQ8: 0.91% | DR8: 5.33 | DS8: -0 | DT8: -5 | DU8: 0.40% | DV8: 2.16 | DW8: -0 | DX8: -57 | DY8: 0.20% | DZ8: 5.37 | EA8: -1 | EB8: 16 | EC8: 0.20% | ED8: 5.37 | EE8: 0 | EF8: -11 | EG8: 0.20% | EH8: 5.37 | EI8: -0 | EJ8: 25 | EK8: 0.45% | EL8: 5.33 | EM8: 1 | EN8: 8 | EO8: 0.10% | EP8: 6.91 | EQ8: 0 | ER8: -6 | ES8: 0.20% | ET8: 9.00 | EU8: -0 | EV8: -208 | EW8: 0.00% | EX8: 8.50 | EY8: 0 | EZ8: 0 | FA8: -0.37% | FB8: 0.08 | FC8: 0 | FD8: -295 | FE8: 0.45% | FF8: 8.00 | FG8: -11 | FH8: 224 | FI8: 0.85% | FJ8: 1.00 | FK8: 2 | FL8: -32 | FM8: 0.65% | FN8: 5.00 | FO8: -1 | FP8: 2 | FQ8: 0.40% | FR8: 1.00 | FS8: 0 | FT8: -219 | FU8: 0.20% | FV8: 8.00 | FW8: -4 | FX8: 37 | FY8: 1.00% | FZ8: 5.00 | GA8: 2 | GB8: -363 | GC8: 1 | GD8: -326 | GE8: -7 | GF8: -129 | GG8: 1.00% | GH8: 5.37 | GI8: -7 | GJ8: 20 | GK8: 0 | GL8: 0 | GN8: 0 | GO8: 0.00% | GP8: 0 | GQ8: 0 | GR8: 0 | GS8: 0.45% | GT8: 8.00 | GU8: 0 | GV8: 0 | GW8: 0.85% | GX8: 1.00 | GY8: 0 | GZ8: 0 | HA8: 0.65% | HB8: 5.00 | HC8: 0 | HD8: 0 | HE8: 0.40% | HF8: 1.00 | HG8: 0 | HH8: 1 | HI8: 1.00% | HJ8: 5.00 | HK8: 0 | HL8: -4 | HM8: 136 | HO8: =IF(ISERROR(IF(VLOOKUP($C8,'Indicateurs Cumulés'!$C$3:$HN$560,186,FALSE)/(VLOOKUP($C8,objectifs!$C$3:$ZZ$559,158,FALSE))>=1.5,(VLOOKUP($C8,objectifs!$C$3:$ZZ$559,158,FALSE))*1.5,IF(VLOOKUP($C8,'Indicateurs Cumulés'!$C$3:$HN$560,186,FALSE)/(VLOOKUP($C8,objectifs!$C$3:$ZZ$559,158,FALSE))<=-0.5,(VLOOKUP($C8,objectifs!$C$3:$ZZ$559,158,FALSE))*-0.5,VLOOKUP($C8,'Indicateurs Cumulés'!$C$3:$HN$560,186,FALSE)))),VLOOKUP($C8,'Indicateurs Cumulés'!$C$3:$HN$560,186,FALSE),IF(VLOOKUP($C8,'Indicateurs Cumulés'!$C$3:$HN$560,186,FALSE)/(VLOOKUP($C8,objectifs!$C$3:$ZZ$559,158,FALSE))>=1.5,(VLOOKUP($C8,objectifs!$C$3:$ZZ$559,158,FALSE))*1.5,IF(VLOOKUP($C8,'Indicateurs Cumulés'!$C$3:$HN$560,186,FALSE)/(VLOOKUP($C8,objectifs!$C$3:$ZZ$559,158,FALSE))<=-0.5,(VLOOKUP($C8,objectifs!$C$3:$ZZ$559,158,FALSE))*-0.5,VLOOKUP($C8,'Indicateurs Cumulés'!$C$3:$HN$560,186,FALSE)))) -> -108 | HP8: 0 | HR8: 2.8 | HT8: 4.87% | HU8: 0.38% | HV8: 0.00% | HW8: 2 | HX8: -7 | HY8: -1 | HZ8: 4 | IA8: 0 | IB8: 4 | IC8: -3 | ID8: -1 | IE8: 5 | IF8: -8 | IG8: -1 | IH8: 0 | II8: -3 | IJ8: 1 | IK8: -15 | IL8: -2 | IM8: 0 | IN8: -1 | IO8: -0 | IP8: 0 | IQ8: 0 | IR8: 0 | IS8: -0 | IT8: -0 | IU8: 0 | IV8: -5 | IW8: -1 | IX8: 0 | IY8: -3 | IZ8: 1 | JA8: -3 | JB8: -0 | JC8: -17 | JD8: 0 | JE8: 0 | JF8: -28 | JG8: 4.61 | JH8: 129.54 | JI8: 0 | JJ8: 0 | JK8: 0 | JL8: 0.20% | JM8: -0 | JO8: 0 | JP8: -31 | JQ8: -36 | JR8: =IF(ISERROR(IF(VLOOKUP($C8,'Indicateurs Cumulés'!$C$3:$HN$560,190,FALSE)/(VLOOKUP($C8,objectifs!$C$3:$ZZ$559,162,FALSE))>=1.5,(VLOOKUP($C8,objectifs!$C$3:$ZZ$559,162,FALSE))*1.5,IF(VLOOKUP($C8,'Indicateurs Cumulés'!$C$3:$HN$560,190,FALSE)/(VLOOKUP($C8,objectifs!$C$3:$ZZ$559,162,FALSE))<=-0.5,(VLOOKUP($C8,objectifs!$C$3:$ZZ$559,162,FALSE))*-0.5,VLOOKUP($C8,'Indicateurs Cumulés'!$C$3:$HN$560,190,FALSE)))),VLOOKUP($C8,'Indicateurs Cumulés'!$C$3:$HN$560,190,FALSE),IF(VLOOKUP($C8,'Indicateurs Cumulés'!$C$3:$HN$560,190,FALSE)/(VLOOKUP($C8,objectifs!$C$3:$ZZ$559,162,FALSE))>=1.5,(VLOOKUP($C8,objectifs!$C$3:$ZZ$559,162,FALSE))*1.5,IF(VLOOKUP($C8,'Indicateurs Cumulés'!$C$3:$HN$560,190,FALSE)/(VLOOKUP($C8,objectifs!$C$3:$ZZ$559,162,FALSE))<=-0.5,(VLOOKUP($C8,objectifs!$C$3:$ZZ$559,162,FALSE))*-0.5,VLOOKUP($C8,'Indicateurs Cumulés'!$C$3:$HN$560,190,FALSE)))) -> 20 | JS8: 0 | JT8: -0 | JV8: 0 | JW8: -1 | JX8: -1 | JY8: 1 | JZ8: -1 | KA8: 0 | KB8: 0 | KC8: 0 | KD8: 0 | KE8: 0 | KF8: 0 | KG8: 0 | KH8: 0 | KI8: 0 | KJ8: 0 | KK8: 0 | KL8: 0 | KM8: 1 | KN8: 1 | KR8: -5.32 | KS8: 0 | KT8: -8 | KU8: 0 | KV8: -8 | KW8: -2 | KX8: 0 | KY8: -2 | KZ8: -1 | LA8: -1 | LB8: -0 | LC8: -3 | LD8: -8 | LE8: -2 | LF8: -1 | LG8: -4 | LH8: -6 | LI8: -2 | LJ8: -0 | LK8: -2 | LL8: -0.7 | LM8: -12 | LN8: 36 | LO8: -4 | LP8: -7 | LQ8: -1.18 | LR8: 98 | LS8: 27 | LT8: 282 | LU8: 40 | LV8: -13 | LW8: 9 | LX8: 7.4 | LY8: 0.3 | LZ8: 0.8 | MA8: 2.0 | MB8: 0.0 | MC8: 0.0 | MD8: 7
A9: 105101 | B9: 200262 | C9: 13 | D9: ILLKIRCH NORD | E9: 2019-05-31 | F9: 38 | G9: 4.32% | H9: 1.57 | I9: 2019-05-31 | J9: 382 | K9: 3.10% | L9: 2.25 | M9: 3.82 | N9: 2,891 | O9: 0 | P9: -0.10% | Q9: 7.30 | R9: 11.43 | S9: 0 | T9: 0.00% | U9: 0 | V9: 0 | W9: 0.00% | X9: 0 | Y9: 0 | Z9: 0.00% | AA9: 0 | AB9: 7.0 | AC9: 2.8 | AD9: 0 | AE9: 370.3 | AF9: 6.4 | AG9: 6.2 | AH9: 201905 | AI9: 4.60 | AJ9: 0 | AK9: 0.00% | AL9: 134.26 | AM9: 45.77 | AN9: 34% | AO9: 0.99 | AP9: 0.73% | AQ9: 234.56 | AR9: 44.79 | AS9: 19.1% | AT9: 0.60 | AU9: 0.26% | AV9: 37.81 | AW9: 2.40 | AX9: 6.35% | AY9: 0.66 | AZ9: 1.74% | BA9: 411.23 | BB9: 92.96 | BC9: 22.6% | BD9: 2.24 | BE9: 0.55% | BG9: 0 | BH9: 0 | BI9: 37 | BJ9: 45 | BK9: 0 | BL9: 1.49% | BM9: 0.00% | BN9: 13 | BO9: 19 | BP9: 0 | BQ9: 84 | BR9: 2 | BS9: 2 | BT9: 3 | BU9: -7 | BX9: 0 | BY9: 0 | BZ9: 0 | CA9: -2 | CB9: -0 | CC9: 0 | CD9: 0 | CE9: 7 | CF9: 1.4 | CG9: -3 | CH9: -1 | CI9: 6 | CJ9: 6 | CK9: 0.00% | CL9: 0.00% | CM9: 0 | CN9: 0.00% | CO9: 0 | CP9: 0 | CQ9: 0 | CR9: 0 | CS9: 0.00 | CT9: 0 | CU9: 2 | CV9: 0 | CW9: 7 | CX9: 34.72% | CY9: 167.32% | CZ9: 46 | DA9: 71.76% | DB9: 162.87% | DC9: 6 | DE9: 0.00% | DF9: 0.00% | DG9: 0 | DH9: 155 | DI9: 0.70% | DJ9: 5.33 | DK9: 6 | DL9: -82 | DM9: 0.81% | DN9: 5.33 | DO9: -4 | DP9: 5 | DQ9: 0.91% | DR9: 5.33 | DS9: 0 | DT9: 122 | DU9: 0.40% | DV9: 2.16 | DW9: 1 | DX9: -78 | DY9: 0.20% | DZ9: 5.37 | EA9: -1 | EB9: 36 | EC9: 0.20% | ED9: 5.37 | EE9: 0 | EF9: -8 | EG9: 0.20% | EH9: 5.37 | EI9: -0 | EJ9: -48 | EK9: 0.45% | EL9: 5.33 | EM9: -1 | EN9: -2 | EO9: 0.10% | EP9: 6.60 | EQ9: -0 | ER9: -1 | ES9: 0.20% | ET9: 9.00 | EU9: -0 | EV9: 20 | EW9: 0.00% | EX9: 8.59 | EY9: 0 | EZ9: 0 | FA9: -0.37% | FB9: 0.08 | FC9: 0 | FD9: -332 | FE9: 0.45% | FF9: 8.00 | FG9: -12 | FH9: 405 | FI9: 0.55% | FJ9: 1.00 | FK9: 2 | FL9: -13 | FM9: 0.65% | FN9: 5.00 | FO9: -0 | FP9: 5 | FQ9: 0.40% | FR9: 1.00 | FS9: 0 | FT9: -89 | FU9: 0.20% | FV9: 8.00 | FW9: -1 | FX9: 63 | FY9: 1.00% | FZ9: 5.00 | GA9: 3 | GB9: 124 | GC9: 5 | GD9: -229 | GE9: -2 | GF9: -342 | GG9: 1.00% | GH9: 5.37 | GI9: -18 | GJ9: -4 | GK9: 0 | GL9: 0 | GN9: 0 | GO9: 0.00% | GP9: 0 | GQ9: 0 | GR9: 98 | GS9: 0.45% | GT9: 8.00 | GU9: 4 | GV9: 100 | GW9: 0.55% | GX9: 1.00 | GY9: 1 | GZ9: 0 | HA9: 0.65% | HB9: 5.00 | HC9: 0 | HD9: 0 | HE9: 0.40% | HF9: 1.00 | HG9: 0 | HH9: 17 | HI9: 1.00% | HJ9: 5.00 | HK9: 1 | HL9: -5 | HM9: 77 | HO9: =IF(ISERROR(IF(VLOOKUP($C9,'Indicateurs Cumulés'!$C$3:$HN$560,186,FALSE)/(VLOOKUP($C9,objectifs!$C$3:$ZZ$559,158,FALSE))>=1.5,(VLOOKUP($C9,objectifs!$C$3:$ZZ$559,158,FALSE))*1.5,IF(VLOOKUP($C9,'Indicateurs Cumulés'!$C$3:$HN$560,186,FALSE)/(VLOOKUP($C9,objectifs!$C$3:$ZZ$559,158,FALSE))<=-0.5,(VLOOKUP($C9,objectifs!$C$3:$ZZ$559,158,FALSE))*-0.5,VLOOKUP($C9,'Indicateurs Cumulés'!$C$3:$HN$560,186,FALSE)))),VLOOKUP($C9,'Indicateurs Cumulés'!$C$3:$HN$560,186,FALSE),IF(VLOOKUP($C9,'Indicateurs Cumulés'!$C$3:$HN$560,186,FALSE)/(VLOOKUP($C9,objectifs!$C$3:$ZZ$559,158,FALSE))>=1.5,(VLOOKUP($C9,objectifs!$C$3:$ZZ$559,158,FALSE))*1.5,IF(VLOOKUP($C9,'Indicateurs Cumulés'!$C$3:$HN$560,186,FALSE)/(VLOOKUP($C9,objectifs!$C$3:$ZZ$559,158,FALSE))<=-0.5,(VLOOKUP($C9,objectifs!$C$3:$ZZ$559,158,FALSE))*-0.5,VLOOKUP($C9,'Indicateurs Cumulés'!$C$3:$HN$560,186,FALSE)))) -> -107 | HP9: 0 | HR9: 2.0 | HT9: 3.93% | HU9: 0.18% | HV9: 0.00% | HW9: 11 | HX9: 14 | HY9: 2 | HZ9: -2 | IA9: -7 | IB9: 0 | IC9: 1 | ID9: 0 | IE9: 0 | IF9: -3 | IG9: -3 | IH9: 3 | II9: -2 | IJ9: 5 | IK9: -8 | IL9: 0 | IM9: 1 | IN9: 1 | IO9: 1 | IP9: -0 | IQ9: -0 | IR9: 0 | IS9: 0 | IT9: 0 | IU9: 0 | IV9: -2 | IW9: -3 | IX9: 5 | IY9: -2 | IZ9: 3 | JA9: -2 | JB9: 0 | JC9: 13 | JD9: 0 | JE9: 0 | JF9: 17 | JG9: 2.09 | JH9: 365.86 | JI9: 0 | JJ9: 0 | JK9: -1 | JL9: 0.20% | JM9: 0 | JO9: 3 | JP9: 29 | JQ9: 18 | JR9: =IF(ISERROR(IF(VLOOKUP($C9,'Indicateurs Cumulés'!$C$3:$HN$560,190,FALSE)/(VLOOKUP($C9,objectifs!$C$3:$ZZ$559,162,FALSE))>=1.5,(VLOOKUP($C9,objectifs!$C$3:$ZZ$559,162,FALSE))*1.5,IF(VLOOKUP($C9,'Indicateurs Cumulés'!$C$3:$HN$560,190,FALSE)/(VLOOKUP($C9,objectifs!$C$3:$ZZ$559,162,FALSE))<=-0.5,(VLOOKUP($C9,objectifs!$C$3:$ZZ$559,162,FALSE))*-0.5,VLOOKUP($C9,'Indicateurs Cumulés'!$C$3:$HN$560,190,FALSE)))),VLOOKUP($C9,'Indicateurs Cumulés'!$C$3:$HN$560,190,FALSE),IF(VLOOKUP($C9,'Indicateurs Cumulés'!$C$3:$HN$560,190,FALSE)/(VLOOKUP($C9,objectifs!$C$3:$ZZ$559,162,FALSE))>=1.5,(VLOOKUP($C9,objectifs!$C$3:$ZZ$559,162,FALSE))*1.5,IF(VLOOKUP($C9,'Indicateurs Cumulés'!$C$3:$HN$560,190,FALSE)/(VLOOKUP($C9,objectifs!$C$3:$ZZ$559,162,FALSE))<=-0.5,(VLOOKUP($C9,objectifs!$C$3:$ZZ$559,162,FALSE))*-0.5,VLOOKUP($C9,'Indicateurs Cumulés'!$C$3:$HN$560,190,FALSE)))) -> -4 | JS9: -0 | JT9: 0 | JV9: 0 | JW9: 1 | JX9: 1 | JY9: -0 | JZ9: 1 | KA9: 2 | KB9: 0 | KC9: 1 | KD9: 1 | KE9: 0 | KF9: 0 | KG9: 3 | KH9: 0 | KI9: 1 | KJ9: 0 | KK9: 0 | KL9: 0 | KM9: 4 | KN9: 0 | KR9: 2.39 | KS9: 4 | KT9: 2 | KU9: 0 | KV9: 4 | KW9: 1 | KX9: 0 | KY9: 6 | KZ9: 4 | LA9: 0 | LB9: 0 | LC9: 84 | LD9: 4 | LE9: -1 | LF9: -1 | LG9: -1 | LH9: -1 | LI9: 6 | LJ9: 1 | LK9: 71 | LL9: 35.7 | LM9: -4 | LN9: 82 | LO9: -5 | LP9: -2 | LQ9: 42.36 | LR9: 72 | LS9: 65 | LT9: 164 | LU9: 59 | LV9: 112 | LW9: 5 | LX9: 5.4 | LY9: 0.7 | LZ9: 0.5 | MA9: 3.0 | MB9: 1.7 | MC9: 0.0 | MD9: 96
A10: 105101 | B10: 200262 | C10: 14 | D10: OSTWALD | E10: 2019-05-31 | F10: 38 | G10: 4.32% | H10: 1.57 | I10: 2019-05-31 | J10: 368 | K10: 3.28% | L10: 2.51 | M10: 4.23 | N10: 899 | O10: 0 | P10: 0.10% | Q10: 5.76 | R10: 8.76 | S10: 10 | T10: 2.18% | U10: 0.96 | V10: 0 | W10: 0.00% | X10: 0 | Y10: 483 | Z10: -0.16% | AA10: 4.38 | AB10: 3.3 | AC10: 2.5 | AD10: 0.5 | AE10: 20.2 | AF10: 5.7 | AG10: 1.4 | AH10: 201905 | AI10: 0 | AJ10: 0 | AK10: 0.00% | AL10: 104.15 | AM10: 32.32 | AN10: 31% | AO10: 0.75 | AP10: 0.72% | AQ10: 285.57 | AR10: 60.43 | AS10: 21.2% | AT10: 0.05 | AU10: 0.02% | AV10: 41.85 | AW10: 1.07 | AX10: 2.55% | AY10: 0.31 | AZ10: 0.73% | BA10: 431.57 | BB10: 93.81 | BC10: 21.7% | BD10: 1.11 | BE10: 0.26% | BG10: 0 | BH10: 0 | BI10: 40 | BJ10: 30 | BK10: -3 | BL10: 1.56% | BM10: 0.00% | BN10: 14 | BO10: 54 | BP10: 1 | BQ10: 59 | BR10: 2 | BS10: 2 | BT10: 2 | BU10: -3 | BX10: 0 | BY10: 0 | BZ10: 0 | CA10: 0 | CB10: 0 | CC10: -8 | CD10: -4 | CE10: 5 | CF10: 1.0 | CG10: -1 | CH10: -0 | CI10: 0 | CJ10: 0 | CK10: 100.00% | CL10: 100.00% | CM10: 0 | CN10: 0.00% | CO10: 0 | CP10: 0 | CQ10: 0.5 | CR10: 0 | CS10: 0.00 | CT10: 0 | CU10: 1 | CV10: 0 | CW10: 3 | CX10: 83.92% | CY10: 153.94% | CZ10: 20 | DA10: 89.81% | DB10: 121.13% | DC10: 6 | DE10: 0.00% | DF10: 0.00% | DG10: 0 | DH10: 219 | DI10: 0.70% | DJ10: 5.33 | DK10: 8 | DL10: 100 | DM10: 0.81% | DN10: 5.33 | DO10: 4 | DP10: -46 | DQ10: 0.91% | DR10: 5.33 | DS10: -2 | DT10: 138 | DU10: 0.40% | DV10: 2.16 | DW10: 1 | DX10: -107 | DY10: 0.20% | DZ10: 5.37 | EA10: -1 | EB10: 32 | EC10: 0.20% | ED10: 5.37 | EE10: 0 | EF10: -5 | EG10: 0.20% | EH10: 5.37 | EI10: -0 | EJ10: -5 | EK10: 0.45% | EL10: 5.33 | EM10: -0 | EN10: 2 | EO10: 0.10% | EP10: 7.19 | EQ10: 0 | ER10: 195 | ES10: 0.20% | ET10: 9.00 | EU10: 4 | EV10: -94 | EW10: 0.00% | EX10: 2.99 | EY10: 0 | EZ10: 0 | FA10: -0.37% | FB10: 0.08 | FC10: 0 | FD10: 343 | FE10: 0.45% | FF10: 8.00 | FG10: 12 | FH10: 431 | FI10: 0.26% | FJ10: 1.00 | FK10: 1 | FL10: -22 | FM10: 0.65% | FN10: 5.00 | FO10: -1 | FP10: 7 | FQ10: 0.40% | FR10: 1.00 | FS10: 0 | FT10: -112 | FU10: 0.20% | FV10: 8.00 | FW10: -2 | FX10: 39 | FY10: 1.00% | FZ10: 5.00 | GA10: 2 | GB10: 325 | GC10: 13 | GD10: 615 | GE10: 27 | GF10: -98 | GG10: 1.00% | GH10: 5.37 | GI10: -5 | GJ10: -203 | GK10: 0 | GL10: 0 | GN10: 0 | GO10: 0.00% | GP10: 0 | GQ10: 0 | GR10: 300 | GS10: 0.45% | GT10: 8.00 | GU10: 11 | GV10: 300 | GW10: 0.26% | GX10: 1.00 | GY10: 1 | GZ10: 0 | HA10: 0.65% | HB10: 5.00 | HC10: 0 | HD10: 0 | HE10: 0.40% | HF10: 1.00 | HG10: 0 | HH10: -6 | HI10: 1.00% | HJ10: 5.00 | HK10: -0 | HL10: -7 | HM10: 75 | HO10: =IF(ISERROR(IF(VLOOKUP($C10,'Indicateurs Cumulés'!$C$3:$HN$560,186,FALSE)/(VLOOKUP($C10,objectifs!$C$3:$ZZ$559,158,FALSE))>=1.5,(VLOOKUP($C10,objectifs!$C$3:$ZZ$559,158,FALSE))*1.5,IF(VLOOKUP($C10,'Indicateurs Cumulés'!$C$3:$HN$560,186,FALSE)/(VLOOKUP($C10,objectifs!$C$3:$ZZ$559,158,FALSE))<=-0.5,(VLOOKUP($C10,objectifs!$C$3:$ZZ$559,158,FALSE))*-0.5,VLOOKUP($C10,'Indicateurs Cumulés'!$C$3:$HN$560,186,FALSE)))),VLOOKUP($C10,'Indicateurs Cumulés'!$C$3:$HN$560,186,FALSE),IF(VLOOKUP($C10,'Indicateurs Cumulés'!$C$3:$HN$560,186,FALSE)/(VLOOKUP($C10,objectifs!$C$3:$ZZ$559,158,FALSE))>=1.5,(VLOOKUP($C10,objectifs!$C$3:$ZZ$559,158,FALSE))*1.5,IF(VLOOKUP($C10,'Indicateurs Cumulés'!$C$3:$HN$560,186,FALSE)/(VLOOKUP($C10,objectifs!$C$3:$ZZ$559,158,FALSE))<=-0.5,(VLOOKUP($C10,objectifs!$C$3:$ZZ$559,158,FALSE))*-0.5,VLOOKUP($C10,'Indicateurs Cumulés'!$C$3:$HN$560,186,FALSE)))) -> -98 | HP10: 0 | HR10: 2.0 | HT10: 3.95% | HU10: 0.57% | HV10: -0.14% | HW10: 9 | HX10: 8 | HY10: -1 | HZ10: 2 | IA10: -3 | IB10: 1 | IC10: 3 | ID10: 12 | IE10: -1 | IF10: -5 | IG10: -6 | IH10: 1 | II10: 2 | IJ10: -2 | IK10: -2 | IL10: 1 | IM10: 1 | IN10: 1 | IO10: -0 | IP10: 0 | IQ10: -0 | IR10: 0 | IS10: 0 | IT10: 5 | IU10: -0 | IV10: -3 | IW10: -6 | IX10: 2 | IY10: 2 | IZ10: -1 | JA10: -0 | JB10: 0 | JC10: 5 | JD10: -3 | JE10: 0 | JF10: 20 | JG10: 3.73 | JH10: 73.41 | JI10: 0 | JJ10: 0 | JK10: 0 | JL10: 0.20% | JM10: 0 | JO10: -0 | JP10: -31 | JQ10: -31 | JR10: =IF(ISERROR(IF(VLOOKUP($C10,'Indicateurs Cumulés'!$C$3:$HN$560,190,FALSE)/(VLOOKUP($C10,objectifs!$C$3:$ZZ$559,162,FALSE))>=1.5,(VLOOKUP($C10,objectifs!$C$3:$ZZ$559,162,FALSE))*1.5,IF(VLOOKUP($C10,'Indicateurs Cumulés'!$C$3:$HN$560,190,FALSE)/(VLOOKUP($C10,objectifs!$C$3:$ZZ$559,162,FALSE))<=-0.5,(VLOOKUP($C10,objectifs!$C$3:$ZZ$559,162,FALSE))*-0.5,VLOOKUP($C10,'Indicateurs Cumulés'!$C$3:$HN$560,190,FALSE)))),VLOOKUP($C10,'Indicateurs Cumulés'!$C$3:$HN$560,190,FALSE),IF(VLOOKUP($C10,'Indicateurs Cumulés'!$C$3:$HN$560,190,FALSE)/(VLOOKUP($C10,objectifs!$C$3:$ZZ$559,162,FALSE))>=1.5,(VLOOKUP($C10,objectifs!$C$3:$ZZ$559,162,FALSE))*1.5,IF(VLOOKUP($C10,'Indicateurs Cumulés'!$C$3:$HN$560,190,FALSE)/(VLOOKUP($C10,objectifs!$C$3:$ZZ$559,162,FALSE))<=-0.5,(VLOOKUP($C10,objectifs!$C$3:$ZZ$559,162,FALSE))*-0.5,VLOOKUP($C10,'Indicateurs Cumulés'!$C$3:$HN$560,190,FALSE)))) -> -17 | JS10: 0 | JT10: 0 | JV10: -0 | JW10: -1 | JX10: -1 | JY10: -1 | JZ10: -3 | KA10: 0 | KB10: 0 | KC10: 1 | KD10: -2 | KE10: 2 | KF10: 0 | KG10: 0 | KH10: 0 | KI10: 1 | KJ10: -0 | KK10: 1 | KL10: 0 | KM10: -2 | KN10: 1 | KR10: 3.67 | KS10: 1 | KT10: 10 | KU10: 0 | KV10: 4 | KW10: 1 | KX10: 0 | KY10: 1 | KZ10: 1 | LA10: 0 | LB10: 0 | LC10: 97 | LD10: -8 | LE10: -1 | LF10: -1 | LG10: 0 | LH10: 0 | LI10: 1 | LJ10: 0 | LK10: 92 | LL10: 46.5 | LM10: 35 | LN10: 67 | LO10: -7 | LP10: -1 | LQ10: 49.18 | LR10: 62 | LS10: 31 | LT10: 203 | LU10: 28 | LV10: 15 | LW10: 3 | LX10: 4.7 | LY10: 0.3 | LZ10: 0.6 | MA10: 1.4 | MB10: 0.2 | MC10: 0.0 | MD10: 104
A11: 105101 | B11: 200262 | C11: 15 | D11: LINGOLSHEIM | E11: 2019-05-31 | F11: 61 | G11: 4.32% | H11: 1.57 | I11: 2019-05-31 | J11: 639 | K11: 3.51% | L11: 2.35 | M11: 4.01 | N11: 865 | O11: 0 | P11: 0.02% | Q11: 6.11 | R11: 10.42 | S11: 15 | T11: 2.92% | U11: 1.49 | V11: 180 | W11: 0.03% | X11: 6.10 | Y11: 69 | Z11: 0.93% | AA11: 2.38 | AB11: 3.9 | AC11: 7.1 | AD11: 0.7 | AE11: 746.8 | AF11: 11.3 | AG11: 1.4 | AH11: 201905 | AI11: 0 | AJ11: 0 | AK11: 0.00% | AL11: 221.41 | AM11: 82.06 | AN11: 37% | AO11: 1.48 | AP11: 0.67% | AQ11: 770.77 | AR11: 98.29 | AS11: 12.8% | AT11: 0.99 | AU11: 0.13% | AV11: 56.80 | AW11: 0.77 | AX11: 1.36% | AY11: 1.19 | AZ11: 2.10% | BA11: 1,048.98 | BB11: 181.12 | BC11: 17.3% | BD11: 3.66 | BE11: 0.35% | BG11: 1 | BH11: 2 | BI11: 70 | BJ11: 23 | BK11: 2 | BL11: 1.25% | BM11: 0.00% | BN11: 15 | BO11: 104 | BP11: 2 | BQ11: 87 | BR11: 2 | BS11: 1 | BT11: 1 | BU11: -1 | BX11: 0 | BY11: 0 | BZ11: 0 | CA11: 0 | CB11: 0 | CC11: 2 | CD11: 1 | CE11: 5 | CF11: 1.0 | CG11: -5 | CH11: -1 | CI11: 1 | CJ11: 1 | CK11: 0.00% | CL11: 0.00% | CM11: 0 | CN11: 0.00% | CO11: 0 | CP11: 0 | CQ11: 0.7 | CR11: 0 | CS11: 0.00 | CT11: 0 | CU11: 2 | CV11: 1 | CW11: 4 | CX11: 64.88% | CY11: 148.35% | CZ11: 16 | DA11: 95.47% | DB11: 114.89% | DC11: 11 | DE11: 20.93% | DF11: 100.00% | DG11: 0 | DH11: 223 | DI11: 0.70% | DJ11: 5.33 | DK11: 8 | DL11: -70 | DM11: 0.81% | DN11: 5.33 | DO11: -3 | DP11: -17 | DQ11: 0.91% | DR11: 5.33 | DS11: -1 | DT11: 547 | DU11: 0.40% | DV11: 2.16 | DW11: 5 | DX11: -188 | DY11: 0.20% | DZ11: 5.37 | EA11: -2 | EB11: -23 | EC11: 0.20% | ED11: 5.37 | EE11: -0 | EF11: -27 | EG11: 0.20% | EH11: 5.37 | EI11: -0 | EJ11: -10 | EK11: 0.45% | EL11: 5.33 | EM11: -0 | EN11: -1 | EO11: 0.10% | EP11: 5.33 | EQ11: -0 | ER11: -32 | ES11: 0.20% | ET11: 9.00 | EU11: -1 | EV11: -117 | EW11: 0.00% | EX11: 8.50 | EY11: 0 | EZ11: 0 | FA11: -0.37% | FB11: 0.08 | FC11: 0 | FD11: 566 | FE11: 0.45% | FF11: 8.00 | FG11: 20 | FH11: 1,091 | FI11: 0.35% | FJ11: 1.00 | FK11: 4 | FL11: -5 | FM11: 0.65% | FN11: 5.00 | FO11: -0 | FP11: 39 | FQ11: 0.40% | FR11: 1.00 | FS11: 0 | FT11: -171 | FU11: 0.20% | FV11: 8.00 | FW11: -3 | FX11: 57 | FY11: 1.00% | FZ11: 5.00 | GA11: 3 | GB11: 55 | GC11: 2 | GD11: 651 | GE11: 33 | GF11: -258 | GG11: 1.00% | GH11: 5.37 | GI11: -14 | GJ11: -142 | GK11: 0 | GL11: 0 | GN11: 0 | GO11: 0.00% | GP11: 0 | GQ11: 0 | GR11: -6 | GS11: 0.45% | GT11: 8.00 | GU11: -0 | GV11: 0 | GW11: 0.35% | GX11: 1.00 | GY11: 0 | GZ11: 0 | HA11: 0.65% | HB11: 5.00 | HC11: 0 | HD11: 0 | HE11: 0.40% | HF11: 1.00 | HG11: 0 | HH11: 96 | HI11: 1.00% | HJ11: 5.00 | HK11: 5 | HL11: -6 | HM11: 143 | HO11: =IF(ISERROR(IF(VLOOKUP($C11,'Indicateurs Cumulés'!$C$3:$HN$560,186,FALSE)/(VLOOKUP($C11,objectifs!$C$3:$ZZ$559,158,FALSE))>=1.5,(VLOOKUP($C11,objectifs!$C$3:$ZZ$559,158,FALSE))*1.5,IF(VLOOKUP($C11,'Indicateurs Cumulés'!$C$3:$HN$560,186,FALSE)/(VLOOKUP($C11,objectifs!$C$3:$ZZ$559,158,FALSE))<=-0.5,(VLOOKUP($C11,objectifs!$C$3:$ZZ$559,158,FALSE))*-0.5,VLOOKUP($C11,'Indicateurs Cumulés'!$C$3:$HN$560,186,FALSE)))),VLOOKUP($C11,'Indicateurs Cumulés'!$C$3:$HN$560,186,FALSE),IF(VLOOKUP($C11,'Indicateurs Cumulés'!$C$3:$HN$560,186,FALSE)/(VLOOKUP($C11,objectifs!$C$3:$ZZ$559,158,FALSE))>=1.5,(VLOOKUP($C11,objectifs!$C$3:$ZZ$559,158,FALSE))*1.5,IF(VLOOKUP($C11,'Indicateurs Cumulés'!$C$3:$HN$560,186,FALSE)/(VLOOKUP($C11,objectifs!$C$3:$ZZ$559,158,FALSE))<=-0.5,(VLOOKUP($C11,objectifs!$C$3:$ZZ$559,158,FALSE))*-0.5,VLOOKUP($C11,'Indicateurs Cumulés'!$C$3:$HN$560,186,FALSE)))) -> -190 | HP11: 0 | HR11: 3.6 | HT11: 4.27% | HU11: 0.42% | HV11: 1.51% | HW11: 6 | HX11: 4 | HY11: 0 | HZ11: 3 | IA11: 1 | IB11: 4 | IC11: 13 | ID11: 3 | IE11: -2 | IF11: -10 | IG11: -1 | IH11: 2 | II11: 2 | IJ11: 3 | IK11: -20 | IL11: -2 | IM11: 1 | IN11: 0 | IO11: 0 | IP11: 0 | IQ11: 0 | IR11: 0 | IS11: 1 | IT11: 1 | IU11: -0 | IV11: -6 | IW11: -1 | IX11: 3 | IY11: 2 | IZ11: 2 | JA11: -4 | JB11: -0 | JC11: 12 | JD11: 5 | JE11: 0 | JF11: 14 | JG11: 5.37 | JH11: 156.34 | JI11: 0 | JJ11: 0 | JK11: -2 | JL11: 0.20% | JM11: 0 | JO11: 2 | JP11: -116 | JQ11: -77 | JR11: =IF(ISERROR(IF(VLOOKUP($C11,'Indicateurs Cumulés'!$C$3:$HN$560,190,FALSE)/(VLOOKUP($C11,objectifs!$C$3:$ZZ$559,162,FALSE))>=1.5,(VLOOKUP($C11,objectifs!$C$3:$ZZ$559,162,FALSE))*1.5,IF(VLOOKUP($C11,'Indicateurs Cumulés'!$C$3:$HN$560,190,FALSE)/(VLOOKUP($C11,objectifs!$C$3:$ZZ$559,162,FALSE))<=-0.5,(VLOOKUP($C11,objectifs!$C$3:$ZZ$559,162,FALSE))*-0.5,VLOOKUP($C11,'Indicateurs Cumulés'!$C$3:$HN$560,190,FALSE)))),VLOOKUP($C11,'Indicateurs Cumulés'!$C$3:$HN$560,190,FALSE),IF(VLOOKUP($C11,'Indicateurs Cumulés'!$C$3:$HN$560,190,FALSE)/(VLOOKUP($C11,objectifs!$C$3:$ZZ$559,162,FALSE))>=1.5,(VLOOKUP($C11,objectifs!$C$3:$ZZ$559,162,FALSE))*1.5,IF(VLOOKUP($C11,'Indicateurs Cumulés'!$C$3:$HN$560,190,FALSE)/(VLOOKUP($C11,objectifs!$C$3:$ZZ$559,162,FALSE))<=-0.5,(VLOOKUP($C11,objectifs!$C$3:$ZZ$559,162,FALSE))*-0.5,VLOOKUP($C11,'Indicateurs Cumulés'!$C$3:$HN$560,190,FALSE)))) -> -34 | JS11: -0 | JT11: 0 | JV11: 0 | JW11: -4 | JX11: -2 | JY11: -2 | JZ11: -8 | KA11: -1 | KB11: 0 | KC11: 0 | KD11: -1 | KE11: 1 | KF11: 0 | KG11: -1 | KH11: 0 | KI11: 0 | KJ11: -0 | KK11: 1 | KL11: 0 | KM11: 3 | KN11: 3 | KR11: 5.18 | KS11: -1 | KT11: 4 | KU11: 0 | KV11: 25 | KW11: 5 | KX11: 0 | KY11: 7 | KZ11: 5 | LA11: 1 | LB11: 0 | LC11: 129 | LD11: -5 | LE11: 0 | LF11: 0 | LG11: -3 | LH11: -4 | LI11: -3 | LJ11: -0 | LK11: 120 | LL11: 33.2 | LM11: 25 | LN11: 96 | LO11: -6 | LP11: -5 | LQ11: 35.63 | LR11: 126 | LS11: 91 | LT11: 366 | LU11: 120 | LV11: 36 | LW11: 16 | LX11: 9.5 | LY11: 0.9 | LZ11: 1.1 | MA11: 6.0 | MB11: 0.5 | MC11: 0.1 | MD11: 147
A12: 105006 | B12: 200262 | C12: 19 | D12: STRASBOURG ANVERS | E12: 2019-05-31 | F12: 54 | G12: 4.32% | H12: 1.57 | I12: 2019-05-31 | J12: 445 | K12: 3.29% | L12: 2.66 | M12: 4.46 | N12: 2,849 | O12: 0 | P12: -0.07% | Q12: 8.06 | R12: 12.43 | S12: 42 | T12: 2.69% | U12: 1.61 | V12: 901 | W12: -0.17% | X12: 7.94 | Y12: 2,475 | Z12: 1.72% | AA12: 6.53 | AB12: 8.3 | AC12: 11.2 | AD12: 6.6 | AE12: 101.8 | AF12: 4.5 | AG12: 5.3 | AH12: 201905 | AI12: 25.00 | AJ12: 0.60 | AK12: 2.40% | AL12: 249.80 | AM12: 39.03 | AN12: 16% | AO12: 2.46 | AP12: 0.99% | AQ12: 608.03 | AR12: 18.12 | AS12: 3.0% | AT12: 1.05 | AU12: 0.17% | AV12: 78.51 | AW12: 2.86 | AX12: 3.64% | AY12: 1.21 | AZ12: 1.54% | BA12: 961.34 | BB12: 60.01 | BC12: 6.2% | BD12: 5.32 | BE12: 0.55% | BG12: 3 | BH12: 8 | BI12: 51 | BJ12: 86 | BK12: 293 | BL12: 1.60% | BM12: 0.00% | BN12: 19 | BO12: 240 | BP12: 5 | BQ12: 131 | BR12: 4 | BS12: 0 | BT12: -1 | BU12: -8 | BX12: 0 | BY12: 1 | BZ12: 0 | CA12: -1 | CB12: -0 | CC12: -1 | CD12: -1 | CE12: 8 | CF12: 1.6 | CG12: 1 | CH12: 0 | CI12: 4 | CJ12: 4 | CK12: 100.00% | CL12: 209.52% | CM12: 1 | CN12: 130.22% | CO12: 1 | CP12: 16 | CQ12: 6.6 | CR12: 1 | CS12: 0.00 | CT12: 0 | CU12: 3 | CV12: 3 | CW12: 8 | CX12: 72.80% | CY12: 151.15% | CZ12: 84 | DA12: 26.96% | DB12: 277.17% | DC12: 5 | DE12: 26.84% | DF12: 100.00% | DG12: 7 | DH12: 230 | DI12: 0.70% | DJ12: 5.33 | DK12: 9 | DL12: 52 | DM12: 0.81% | DN12: 5.33 | DO12: 2 | DP12: -62 | DQ12: 0.91% | DR12: 5.33 | DS12: -3 | DT12: 2,174 | DU12: 0.40% | DV12: 2.16 | DW12: 19 | DX12: -134 | DY12: 0.20% | DZ12: 5.37 | EA12: -1 | EB12: -37 | EC12: 0.20% | ED12: 5.37 | EE12: -0 | EF12: -15 | EG12: 0.20% | EH12: 5.37 | EI12: -0 | EJ12: -8 | EK12: 0.45% | EL12: 5.33 | EM12: -0 | EN12: -20 | EO12: 0.10% | EP12: 8.97 | EQ12: -0 | ER12: -200 | ES12: 0.20% | ET12: 9.00 | EU12: -4 | EV12: -95 | EW12: 0.00% | EX12: 8.59 | EY12: 0 | EZ12: 0 | FA12: -0.37% | FB12: 0.08 | FC12: 0 | FD12: -594 | FE12: 0.45% | FF12: 8.00 | FG12: -21 | FH12: 955 | FI12: 0.55% | FJ12: 1.00 | FK12: 5 | FL12: -51 | FM12: 0.65% | FN12: 5.00 | FO12: -2 | FP12: 69 | FQ12: 0.40% | FR12: 1.00 | FS12: 0 | FT12: -459 | FU12: 0.20% | FV12: 8.00 | FW12: -7 | FX12: 269 | FY12: 1.00% | FZ12: 5.00 | GA12: 13 | GB12: 2,526 | GC12: 53 | GD12: -633 | GE12: -8 | GF12: -682 | GG12: 1.00% | GH12: 5.37 | GI12: -37 | GJ12: -659 | GK12: 0 | GL12: 0 | GN12: 0 | GO12: 0.00% | GP12: 0 | GQ12: 0 | GR12: -19 | GS12: 0.45% | GT12: 8.00 | GU12: -1 | GV12: 0 | GW12: 0.55% | GX12: 1.00 | GY12: 0 | GZ12: 0 | HA12: 0.65% | HB12: 5.00 | HC12: 0 | HD12: 0 | HE12: 0.40% | HF12: 1.00 | HG12: 0 | HH12: 31 | HI12: 1.00% | HJ12: 5.00 | HK12: 2 | HL12: -14 | HM12: 211 | HO12: =IF(ISERROR(IF(VLOOKUP($C12,'Indicateurs Cumulés'!$C$3:$HN$560,186,FALSE)/(VLOOKUP($C12,objectifs!$C$3:$ZZ$559,158,FALSE))>=1.5,(VLOOKUP($C12,objectifs!$C$3:$ZZ$559,158,FALSE))*1.5,IF(VLOOKUP($C12,'Indicateurs Cumulés'!$C$3:$HN$560,186,FALSE)/(VLOOKUP($C12,objectifs!$C$3:$ZZ$559,158,FALSE))<=-0.5,(VLOOKUP($C12,objectifs!$C$3:$ZZ$559,158,FALSE))*-0.5,VLOOKUP($C12,'Indicateurs Cumulés'!$C$3:$HN$560,186,FALSE)))),VLOOKUP($C12,'Indicateurs Cumulés'!$C$3:$HN$560,186,FALSE),IF(VLOOKUP($C12,'Indicateurs Cumulés'!$C$3:$HN$560,186,FALSE)/(VLOOKUP($C12,objectifs!$C$3:$ZZ$559,158,FALSE))>=1.5,(VLOOKUP($C12,objectifs!$C$3:$ZZ$559,158,FALSE))*1.5,IF(VLOOKUP($C12,'Indicateurs Cumulés'!$C$3:$HN$560,186,FALSE)/(VLOOKUP($C12,objectifs!$C$3:$ZZ$559,158,FALSE))<=-0.5,(VLOOKUP($C12,objectifs!$C$3:$ZZ$559,158,FALSE))*-0.5,VLOOKUP($C12,'Indicateurs Cumulés'!$C$3:$HN$560,186,FALSE)))) -> -307 | HP12: 0 | HR12: 3.9 | HT12: 3.84% | HU12: 0.36% | HV12: 1.81% | HW12: 2 | HX12: -3 | HY12: 2 | HZ12: 7 | IA12: 9 | IB12: 1 | IC12: 8 | ID12: 3 | IE12: -4 | IF12: -7 | IG12: -2 | IH12: 0 | II12: 5 | IJ12: 1 | IK12: -24 | IL12: 2 | IM12: 0 | IN12: -0 | IO12: 1 | IP12: 1 | IQ12: 0 | IR12: 0 | IS12: 1 | IT12: 1 | IU12: -0 | IV12: -4 | IW12: -2 | IX12: 0 | IY12: 5 | IZ12: 1 | JA12: -5 | JB12: 0 | JC12: 7 | JD12: 304 | JE12: 0 | JF12: 6 | JG12: 8.30 | JH12: 149.28 | JI12: 0 | JJ12: 0 | JK12: -32 | JL12: 0.20% | JM12: 1 | JO12: -0 | JP12: 830 | JQ12: 207 | JR12: =IF(ISERROR(IF(VLOOKUP($C12,'Indicateurs Cumulés'!$C$3:$HN$560,190,FALSE)/(VLOOKUP($C12,objectifs!$C$3:$ZZ$559,162,FALSE))>=1.5,(VLOOKUP($C12,objectifs!$C$3:$ZZ$559,162,FALSE))*1.5,IF(VLOOKUP($C12,'Indicateurs Cumulés'!$C$3:$HN$560,190,FALSE)/(VLOOKUP($C12,objectifs!$C$3:$ZZ$559,162,FALSE))<=-0.5,(VLOOKUP($C12,objectifs!$C$3:$ZZ$559,162,FALSE))*-0.5,VLOOKUP($C12,'Indicateurs Cumulés'!$C$3:$HN$560,190,FALSE)))),VLOOKUP($C12,'Indicateurs Cumulés'!$C$3:$HN$560,190,FALSE),IF(VLOOKUP($C12,'Indicateurs Cumulés'!$C$3:$HN$560,190,FALSE)/(VLOOKUP($C12,objectifs!$C$3:$ZZ$559,162,FALSE))>=1.5,(VLOOKUP($C12,objectifs!$C$3:$ZZ$559,162,FALSE))*1.5,IF(VLOOKUP($C12,'Indicateurs Cumulés'!$C$3:$HN$560,190,FALSE)/(VLOOKUP($C12,objectifs!$C$3:$ZZ$559,162,FALSE))<=-0.5,(VLOOKUP($C12,objectifs!$C$3:$ZZ$559,162,FALSE))*-0.5,VLOOKUP($C12,'Indicateurs Cumulés'!$C$3:$HN$560,190,FALSE)))) -> -47 | JS12: -1 | JT12: 0 | JV12: -0 | JW12: 27 | JX12: 7 | JY12: -3 | JZ12: 30 | KA12: 3 | KB12: 1 | KC12: -1 | KD12: 2 | KE12: -1 | KF12: 2 | KG12: 4 | KH12: 1 | KI12: -1 | KJ12: 0 | KK12: -1 | KL12: 0 | KM12: 10 | KN12: 5 | KR12: 5.76 | KS12: 6 | KT12: 24 | KU12: 0 | KV12: 21 | KW12: 4 | KX12: 0 | KY12: 6 | KZ12: 4 | LA12: 0 | LB12: 0 | LC12: 464 | LD12: 345 | LE12: 2 | LF12: 1 | LG12: 0 | LH12: 0 | LI12: -3 | LJ12: -0 | LK12: 454 | LL12: 115.5 | LM12: 29 | LN12: 430 | LO12: -14 | LP12: 1 | LQ12: 117.97 | LR12: 181 | LS12: 57 | LT12: 320 | LU12: 107 | LV12: 80 | LW12: 2 | LX12: 13.6 | LY12: 0.6 | LZ12: 1.0 | MA12: 5.4 | MB12: 1.2 | MC12: 0.0 | MD12: 486
A13: 105006 | B13: 200262 | C13: 20 | D13: STRASBOURG ROBERTSAU | E13: 2019-05-31 | F13: 51 | G13: 4.32% | H13: 1.57 | I13: 2019-05-31 | J13: 1,163 | K13: 2.99% | L13: 2.58 | M13: 4.26 | N13: 3,813 | O13: 0 | P13: -0.05% | Q13: 6.89 | R13: 10.78 | S13: -29 | T13: 2.85% | U13: 2.01 | V13: 776 | W13: 0.05% | X13: 8.85 | Y13: 128 | Z13: 0.79% | AA13: 2.19 | AB13: 9.5 | AC13: 12.0 | AD13: 0.5 | AE13: 124.6 | AF13: 16.0 | AG13: 6.8 | AH13: 201905 | AI13: 0 | AJ13: 0 | AK13: 0.00% | AL13: 139.04 | AM13: 32.28 | AN13: 23% | AO13: 1.79 | AP13: 1.28% | AQ13: 1,302.59 | AR13: 410.23 | AS13: 31.5% | AT13: 2.31 | AU13: 0.18% | AV13: 56.07 | AW13: 9.22 | AX13: 16.45% | AY13: 0.83 | AZ13: 1.47% | BA13: 1,497.69 | BB13: 451.73 | BC13: 30.2% | BD13: 4.92 | BE13: 0.33% | BG13: -2 | BH13: 24 | BI13: 120 | BJ13: 73 | BK13: 7 | BL13: 1.49% | BM13: 0.00% | BN13: 20 | BO13: 121 | BP13: 2 | BQ13: 86 | BR13: 2 | BS13: 1 | BT13: -2 | BU13: -1 | BX13: 0 | BY13: 0 | BZ13: 0 | CA13: 1 | CB13: 0 | CC13: 2 | CD13: 1 | CE13: 7 | CF13: 1.4 | CG13: -4 | CH13: -1 | CI13: 1 | CJ13: 1 | CK13: 100.00% | CL13: 100.00% | CM13: -0 | CN13: 159.12% | CO13: -0 | CP13: 18 | CQ13: 0.5 | CR13: 2 | CS13: 0.40 | CT13: 0 | CU13: 3 | CV13: 1 | CW13: 9 | CX13: 57.10% | CY13: 137.94% | CZ13: 68 | DA13: 90.40% | DB13: 134.38% | DC13: 23 | DE13: 100.00% | DF13: 100.00% | DG13: 0 | DH13: -109 | DI13: 0.70% | DJ13: 5.33 | DK13: -4 | DL13: -928 | DM13: 0.81% | DN13: 5.33 | DO13: -40 | DP13: 16 | DQ13: 0.91% | DR13: 5.33 | DS13: 1 | DT13: 196 | DU13: 0.40% | DV13: 2.16 | DW13: 2 | DX13: -198 | DY13: 0.20% | DZ13: 5.37 | EA13: -2 | EB13: -16 | EC13: 0.20% | ED13: 5.37 | EE13: -0 | EF13: -33 | EG13: 0.20% | EH13: 5.37 | EI13: -0 | EJ13: -37 | EK13: 0.45% | EL13: 5.33 | EM13: -1 | EN13: -7 | EO13: 0.10% | EP13: 9.12 | EQ13: -0 | ER13: -87 | ES13: 0.20% | ET13: 9.00 | EU13: -2 | EV13: -144 | EW13: 0.00% | EX13: 8.59 | EY13: 0 | EZ13: 0 | FA13: -0.37% | FB13: 0.08 | FC13: 0 | FD13: 412 | FE13: 0.45% | FF13: 8.00 | FG13: 15 | FH13: 1,445 | FI13: 0.33% | FJ13: 1.00 | FK13: 5 | FL13: -81 | FM13: 0.65% | FN13: 5.00 | FO13: -3 | FP13: 10 | FQ13: 0.40% | FR13: 1.00 | FS13: 0 | FT13: -397 | FU13: 0.20% | FV13: 8.00 | FW13: -6 | FX13: 154 | FY13: 1.00% | FZ13: 5.00 | GA13: 8 | GB13: -1,243 | GC13: -34 | GD13: 256 | GE13: 18 | GF13: -313 | GG13: 1.00% | GH13: 5.37 | GI13: -17 | GJ13: -271 | GK13: 0 | GL13: 0 | GN13: 293 | GO13: 0.86% | GP13: 1.48 | GQ13: 4 | GR13: 0 | GS13: 0.45% | GT13: 8.00 | GU13: 0 | GV13: 0 | GW13: 0.33% | GX13: 1.00 | GY13: 0 | GZ13: 0 | HA13: 0.65% | HB13: 5.00 | HC13: 0 | HD13: 0 | HE13: 0.40% | HF13: 1.00 | HG13: 0 | HH13: -75 | HI13: 1.00% | HJ13: 5.00 | HK13: -4 | HL13: -16 | HM13: 199 | HO13: =IF(ISERROR(IF(VLOOKUP($C13,'Indicateurs Cumulés'!$C$3:$HN$560,186,FALSE)/(VLOOKUP($C13,objectifs!$C$3:$ZZ$559,158,FALSE))>=1.5,(VLOOKUP($C13,objectifs!$C$3:$ZZ$559,158,FALSE))*1.5,IF(VLOOKUP($C13,'Indicateurs Cumulés'!$C$3:$HN$560,186,FALSE)/(VLOOKUP($C13,objectifs!$C$3:$ZZ$559,158,FALSE))<=-0.5,(VLOOKUP($C13,objectifs!$C$3:$ZZ$559,158,FALSE))*-0.5,VLOOKUP($C13,'Indicateurs Cumulés'!$C$3:$HN$560,186,FALSE)))),VLOOKUP($C13,'Indicateurs Cumulés'!$C$3:$HN$560,186,FALSE),IF(VLOOKUP($C13,'Indicateurs Cumulés'!$C$3:$HN$560,186,FALSE)/(VLOOKUP($C13,objectifs!$C$3:$ZZ$559,158,FALSE))>=1.5,(VLOOKUP($C13,objectifs!$C$3:$ZZ$559,158,FALSE))*1.5,IF(VLOOKUP($C13,'Indicateurs Cumulés'!$C$3:$HN$560,186,FALSE)/(VLOOKUP($C13,objectifs!$C$3:$ZZ$559,158,FALSE))<=-0.5,(VLOOKUP($C13,objectifs!$C$3:$ZZ$559,158,FALSE))*-0.5,VLOOKUP($C13,'Indicateurs Cumulés'!$C$3:$HN$560,186,FALSE)))) -> -313 | HP13: 0 | HR13: 6.1 | HT13: 3.83% | HU13: 0.28% | HV13: 0.93% | HW13: 7 | HX13: -12 | HY13: -4 | HZ13: -8 | IA13: 1 | IB13: 4 | IC13: 11 | ID13: -9 | IE13: 0 | IF13: -5 | IG13: -5 | IH13: 0 | II13: 2 | IJ13: 29 | IK13: -20 | IL13: -5 | IM13: 1 | IN13: -1 | IO13: -1 | IP13: -1 | IQ13: 0 | IR13: 0 | IS13: 1 | IT13: -4 | IU13: 0 | IV13: -3 | IW13: -5 | IX13: 0 | IY13: 2 | IZ13: 19 | JA13: -4 | JB13: -0 | JC13: 27 | JD13: 29 | JE13: 0 | JF13: 17 | JG13: 6.07 | JH13: 259.38 | JI13: 0 | JJ13: 0 | JK13: 0 | JL13: 0.20% | JM13: 6 | JO13: 202 | JP13: 347 | JQ13: 58 | JR13: =IF(ISERROR(IF(VLOOKUP($C13,'Indicateurs Cumulés'!$C$3:$HN$560,190,FALSE)/(VLOOKUP($C13,objectifs!$C$3:$ZZ$559,162,FALSE))>=1.5,(VLOOKUP($C13,objectifs!$C$3:$ZZ$559,162,FALSE))*1.5,IF(VLOOKUP($C13,'Indicateurs Cumulés'!$C$3:$HN$560,190,FALSE)/(VLOOKUP($C13,objectifs!$C$3:$ZZ$559,162,FALSE))<=-0.5,(VLOOKUP($C13,objectifs!$C$3:$ZZ$559,162,FALSE))*-0.5,VLOOKUP($C13,'Indicateurs Cumulés'!$C$3:$HN$560,190,FALSE)))),VLOOKUP($C13,'Indicateurs Cumulés'!$C$3:$HN$560,190,FALSE),IF(VLOOKUP($C13,'Indicateurs Cumulés'!$C$3:$HN$560,190,FALSE)/(VLOOKUP($C13,objectifs!$C$3:$ZZ$559,162,FALSE))>=1.5,(VLOOKUP($C13,objectifs!$C$3:$ZZ$559,162,FALSE))*1.5,IF(VLOOKUP($C13,'Indicateurs Cumulés'!$C$3:$HN$560,190,FALSE)/(VLOOKUP($C13,objectifs!$C$3:$ZZ$559,162,FALSE))<=-0.5,(VLOOKUP($C13,objectifs!$C$3:$ZZ$559,162,FALSE))*-0.5,VLOOKUP($C13,'Indicateurs Cumulés'!$C$3:$HN$560,190,FALSE)))) -> -49 | JS13: 0 | JT13: 0 | JV13: 7 | JW13: 11 | JX13: 2 | JY13: -3 | JZ13: 18 | KA13: -2 | KB13: 0 | KC13: -1 | KD13: 0 | KE13: 0 | KF13: 0 | KG13: -3 | KH13: 0 | KI13: -1 | KJ13: 0 | KK13: 0 | KL13: 0 | KM13: 1 | KN13: 3 | KR13: -13.20 | KS13: -3 | KT13: -43 | KU13: 0 | KV13: 10 | KW13: 2 | KX13: 0 | KY13: 31 | KZ13: 22 | LA13: 0 | LB13: 0 | LC13: 185 | LD13: 45 | LE13: -1 | LF13: -1 | LG13: -2 | LH13: -3 | LI13: 4 | LJ13: 0 | LK13: 181 | LL13: 29.8 | LM13: -33 | LN13: 200 | LO13: -16 | LP13: -3 | LQ13: 30.31 | LR13: 167 | LS13: 105 | LT13: 262 | LU13: 137 | LV13: 0 | LW13: 12 | LX13: 12.5 | LY13: 1.1 | LZ13: 0.8 | MA13: 6.9 | MB13: 0.0 | MC13: 0.1 | MD13: 206
A14: 105006 | B14: 200262 | C14: 23 | D14: STRASBOURG VOSGES | E14: 2019-05-31 | F14: 41 | G14: 4.32% | H14: 1.57 | I14: 2019-05-31 | J14: 427 | K14: 3.39% | L14: 2.11 | M14: 3.65 | N14: 486 | O14: 0 | P14: -0.11% | Q14: 7.70 | R14: 12.08 | S14: 7 | T14: 0.34% | U14: 5.87 | V14: 0 | W14: 0.00% | X14: 0 | Y14: 178 | Z14: 0.15% | AA14: 4.38 | AB14: 1.7 | AC14: 4.8 | AD14: 0.7 | AE14: 14.5 | AF14: 22.9 | AG14: 0.4 | AH14: 201905 | AI14: 3.00 | AJ14: 0.07 | AK14: 2.40% | AL14: 127.72 | AM14: 17.28 | AN14: 14% | AO14: 1.29 | AP14: 1.01% | AQ14: 278.70 | AR14: 60.87 | AS14: 21.8% | AT14: 0.04 | AU14: 0.01% | AV14: 30.84 | AW14: 1.22 | AX14: 3.95% | AY14: 0.50 | AZ14: 1.61% | BA14: 440.27 | BB14: 79.37 | BC14: 18.0% | BD14: 1.90 | BE14: 0.43% | BG14: 1 | BH14: 0 | BI14: 42 | BJ14: 22 | BK14: 3 | BL14: 1.69% | BM14: 0.00% | BN14: 23 | BO14: 37 | BP14: 1 | BQ14: 83 | BR14: 2 | BS14: -0 | BT14: 1 | BU14: -7 | BX14: 0 | BY14: 0 | BZ14: 0 | CA14: 0 | CB14: 0 | CC14: 0 | CD14: 0 | CE14: 4 | CF14: 0.8 | CG14: -2 | CH14: -0 | CI14: 1 | CJ14: 1 | CK14: 100.00% | CL14: 100.00% | CM14: 0 | CN14: 0.00% | CO14: 0 | CP14: 0 | CQ14: 0.7 | CR14: 0 | CS14: 0.00 | CT14: 0 | CU14: 2 | CV14: 0 | CW14: 2 | CX14: 100.00% | CY14: 157.88% | CZ14: 23 | DA14: 100.00% | DB14: 115.33% | DC14: 7 | DE14: 100.00% | DF14: 100.00% | DG14: 1 | DH14: 329 | DI14: 0.70% | DJ14: 5.33 | DK14: 12 | DL14: 280 | DM14: 0.81% | DN14: 5.33 | DO14: 12 | DP14: -15 | DQ14: 0.91% | DR14: 5.33 | DS14: -1 | DT14: 1,529 | DU14: 0.40% | DV14: 2.16 | DW14: 13 | DX14: -161 | DY14: 0.20% | DZ14: 5.37 | EA14: -2 | EB14: 114 | EC14: 0.20% | ED14: 5.37 | EE14: 1 | EF14: -28 | EG14: 0.20% | EH14: 5.37 | EI14: -0 | EJ14: 26 | EK14: 0.45% | EL14: 5.33 | EM14: 1 | EN14: -11 | EO14: 0.10% | EP14: 6.43 | EQ14: -0 | ER14: -247 | ES14: 0.20% | ET14: 9.00 | EU14: -4 | EV14: -80 | EW14: 0.00% | EX14: 8.59 | EY14: 0 | EZ14: 0 | FA14: -0.37% | FB14: 0.08 | FC14: 0 | FD14: -488 | FE14: 0.45% | FF14: 8.00 | FG14: -18 | FH14: 311 | FI14: 0.43% | FJ14: 1.00 | FK14: 1 | FL14: -134 | FM14: 0.65% | FN14: 5.00 | FO14: -4 | FP14: 3 | FQ14: 0.40% | FR14: 1.00 | FS14: 0 | FT14: -323 | FU14: 0.20% | FV14: 8.00 | FW14: -5 | FX14: 62 | FY14: 1.00% | FZ14: 5.00 | GA14: 3 | GB14: 1,523 | GC14: 32 | GD14: -201 | GE14: -1 | GF14: -621 | GG14: 1.00% | GH14: 5.37 | GI14: -33 | GJ14: -53 | GK14: 0 | GL14: 0 | GN14: 0 | GO14: 0.00% | GP14: 0 | GQ14: 0 | GR14: 500 | GS14: 0.45% | GT14: 8.00 | GU14: 18 | GV14: 500 | GW14: 0.43% | GX14: 1.00 | GY14: 2 | GZ14: 0 | HA14: 0.65% | HB14: 5.00 | HC14: 0 | HD14: 0 | HE14: 0.40% | HF14: 1.00 | HG14: 0 | HH14: -79 | HI14: 1.00% | HJ14: 5.00 | HK14: -4 | HL14: -8 | HM14: 134 | HO14: =IF(ISERROR(IF(VLOOKUP($C14,'Indicateurs Cumulés'!$C$3:$HN$560,186,FALSE)/(VLOOKUP($C14,objectifs!$C$3:$ZZ$559,158,FALSE))>=1.5,(VLOOKUP($C14,objectifs!$C$3:$ZZ$559,158,FALSE))*1.5,IF(VLOOKUP($C14,'Indicateurs Cumulés'!$C$3:$HN$560,186,FALSE)/(VLOOKUP($C14,objectifs!$C$3:$ZZ$559,158,FALSE))<=-0.5,(VLOOKUP($C14,objectifs!$C$3:$ZZ$559,158,FALSE))*-0.5,VLOOKUP($C14,'Indicateurs Cumulés'!$C$3:$HN$560,186,FALSE)))),VLOOKUP($C14,'Indicateurs Cumulés'!$C$3:$HN$560,186,FALSE),IF(VLOOKUP($C14,'Indicateurs Cumulés'!$C$3:$HN$560,186,FALSE)/(VLOOKUP($C14,objectifs!$C$3:$ZZ$559,158,FALSE))>=1.5,(VLOOKUP($C14,objectifs!$C$3:$ZZ$559,158,FALSE))*1.5,IF(VLOOKUP($C14,'Indicateurs Cumulés'!$C$3:$HN$560,186,FALSE)/(VLOOKUP($C14,objectifs!$C$3:$ZZ$559,158,FALSE))<=-0.5,(VLOOKUP($C14,objectifs!$C$3:$ZZ$559,158,FALSE))*-0.5,VLOOKUP($C14,'Indicateurs Cumulés'!$C$3:$HN$560,186,FALSE)))) -> -201 | HP14: 0 | HR14: 3.4 | HT14: 4.28% | HU14: 0.56% | HV14: 0.37% | HW14: -1 | HX14: 6 | HY14: 0 | HZ14: -4 | IA14: -10 | IB14: 0 | IC14: -9 | ID14: 7 | IE14: -1 | IF14: -2 | IG14: 0 | IH14: 0 | II14: -1 | IJ14: -17 | IK14: -7 | IL14: -1 | IM14: -0 | IN14: 1 | IO14: 0 | IP14: -0 | IQ14: -0 | IR14: 0 | IS14: -1 | IT14: 3 | IU14: -0 | IV14: -1 | IW14: 0 | IX14: 0 | IY14: -1 | IZ14: -11 | JA14: -2 | JB14: -0 | JC14: -27 | JD14: 4 | JE14: 0 | JF14: -58 | JG14: 5.45 | JH14: 83.90 | JI14: 0 | JJ14: 0 | JK14: -88 | JL14: 0.20% | JM14: 0 | JO14: 9 | JP14: 48 | JQ14: -73 | JR14: =IF(ISERROR(IF(VLOOKUP($C14,'Indicateurs Cumulés'!$C$3:$HN$560,190,FALSE)/(VLOOKUP($C14,objectifs!$C$3:$ZZ$559,162,FALSE))>=1.5,(VLOOKUP($C14,objectifs!$C$3:$ZZ$559,162,FALSE))*1.5,IF(VLOOKUP($C14,'Indicateurs Cumulés'!$C$3:$HN$560,190,FALSE)/(VLOOKUP($C14,objectifs!$C$3:$ZZ$559,162,FALSE))<=-0.5,(VLOOKUP($C14,objectifs!$C$3:$ZZ$559,162,FALSE))*-0.5,VLOOKUP($C14,'Indicateurs Cumulés'!$C$3:$HN$560,190,FALSE)))),VLOOKUP($C14,'Indicateurs Cumulés'!$C$3:$HN$560,190,FALSE),IF(VLOOKUP($C14,'Indicateurs Cumulés'!$C$3:$HN$560,190,FALSE)/(VLOOKUP($C14,objectifs!$C$3:$ZZ$559,162,FALSE))>=1.5,(VLOOKUP($C14,objectifs!$C$3:$ZZ$559,162,FALSE))*1.5,IF(VLOOKUP($C14,'Indicateurs Cumulés'!$C$3:$HN$560,190,FALSE)/(VLOOKUP($C14,objectifs!$C$3:$ZZ$559,162,FALSE))<=-0.5,(VLOOKUP($C14,objectifs!$C$3:$ZZ$559,162,FALSE))*-0.5,VLOOKUP($C14,'Indicateurs Cumulés'!$C$3:$HN$560,190,FALSE)))) -> -30 | JS14: -2 | JT14: 0 | JV14: 0 | JW14: 2 | JX14: -2 | JY14: -2 | JZ14: -4 | KA14: 3 | KB14: 0 | KC14: 0 | KD14: 4 | KE14: 0 | KF14: 0 | KG14: 4 | KH14: 0 | KI14: 0 | KJ14: 1 | KK14: 0 | KL14: 0 | KM14: 7 | KN14: 1 | KR14: 6.47 | KS14: 7 | KT14: 2 | KU14: 0 | KV14: -12 | KW14: -2 | KX14: 0 | KY14: -18 | KZ14: -13 | LA14: 0 | LB14: 0 | LC14: 53 | LD14: 1 | LE14: -1 | LF14: -1 | LG14: -3 | LH14: -4 | LI14: 0 | LJ14: 0 | LK14: 53 | LL14: 15.7 | LM14: 19 | LN14: 67 | LO14: -8 | LP14: -5 | LQ14: 15.80 | LR14: 97 | LS14: 54 | LT14: 193 | LU14: 65 | LV14: 11 | LW14: 2 | LX14: 7.3 | LY14: 0.5 | LZ14: 0.6 | MA14: 3.3 | MB14: 0.2 | MC14: 0.0 | MD14: 65
A15: 105006 | B15: 200262 | C15: 24 | D15: STRASBOURG AUSTERLITZ | E15: 2019-05-31 | F15: 48 | G15: 4.32% | H15: 1.57 | I15: 2019-05-31 | J15: 288 | K15: 4.08% | L15: 2.51 | M15: 4.20 | N15: 1,175 | O15: 0 | P15: -0.06% | Q15: 6.85 | R15: 11.05 | S15: 0 | T15: 0.00% | U15: 0 | V15: 113 | W15: 0.06% | X15: 4.38 | Y15: 0 | Z15: 0.00% | AA15: 0 | AB15: 2.6 | AC15: 4.4 | AD15: 0 | AE15: 22.6 | AF15: 5.3 | AG15: 1.0 | AH15: 201905 | AI15: 0 | AJ15: 0 | AK15: 0.00% | AL15: 106.75 | AM15: 30.82 | AN15: 29% | AO15: 1.40 | AP15: 1.31% | AQ15: 500.59 | AR15: 71.49 | AS15: 14.3% | AT15: 0.87 | AU15: 0.17% | AV15: 21.49 | AW15: 1.03 | AX15: 4.81% | AY15: 0.43 | AZ15: 1.98% | BA15: 628.83 | BB15: 103.34 | BC15: 16.4% | BD15: 2.69 | BE15: 0.43% | BG15: 0 | BH15: 1 | BI15: 41 | BJ15: 18 | BK15: 0 | BL15: 1.39% | BM15: 0.00% | BN15: 24 | BO15: 21 | BP15: 0 | BQ15: 84 | BR15: 2 | BS15: -0 | BT15: 1 | BU15: -1 | BX15: 0 | BY15: 0 | BZ15: 0 | CA15: 1 | CB15: 0 | CC15: 0 | CD15: 0 | CE15: 6 | CF15: 1.2 | CG15: -5 | CH15: -1 | CI15: 1 | CJ15: 1 | CK15: 0.00% | CL15: 0.00% | CM15: 0 | CN15: 0.00% | CO15: 0 | CP15: 0 | CQ15: 0 | CR15: 0 | CS15: 0.00 | CT15: 0 | CU15: 2 | CV15: 1 | CW15: 3 | CX15: 35.45% | CY15: 168.99% | CZ15: 18 | DA15: 98.79% | DB15: 130.83% | DC15: 6 | DE15: 0.00% | DF15: 0.00% | DG15: 0 | DH15: 43 | DI15: 0.70% | DJ15: 5.33 | DK15: 2 | DL15: 60 | DM15: 0.81% | DN15: 5.33 | DO15: 3 | DP15: 45 | DQ15: 0.91% | DR15: 5.33 | DS15: 2 | DT15: -12 | DU15: 0.40% | DV15: 2.16 | DW15: -0 | DX15: -113 | DY15: 0.20% | DZ15: 5.37 | EA15: -1 | EB15: 66 | EC15: 0.20% | ED15: 5.37 | EE15: 1 | EF15: -23 | EG15: 0.20% | EH15: 5.37 | EI15: -0 | EJ15: 34 | EK15: 0.45% | EL15: 5.33 | EM15: 1 | EN15: 2 | EO15: 0.10% | EP15: 9.37 | EQ15: 0 | ER15: -106 | ES15: 0.20% | ET15: 9.00 | EU15: -2 | EV15: -487 | EW15: 0.00% | EX15: 8.59 | EY15: 0 | EZ15: 0 | FA15: -0.37% | FB15: 0.08 | FC15: 0 | FD15: 48 | FE15: 0.45% | FF15: 8.00 | FG15: 2 | FH15: 652 | FI15: 0.43% | FJ15: 1.00 | FK15: 3 | FL15: 2 | FM15: 0.65% | FN15: 5.00 | FO15: 0 | FP15: 4 | FQ15: 0.40% | FR15: 1.00 | FS15: 0 | FT15: -101 | FU15: 0.20% | FV15: 8.00 | FW15: -2 | FX15: 62 | FY15: 1.00% | FZ15: 5.00 | GA15: 3 | GB15: -854 | GC15: -5 | GD15: 345 | GE15: 19 | GF15: 169 | GG15: 1.00% | GH15: 5.37 | GI15: 9 | GJ15: -104 | GK15: 0 | GL15: 0 | GN15: 0 | GO15: 0.00% | GP15: 0 | GQ15: 0 | GR15: 320 | GS15: 0.45% | GT15: 8.00 | GU15: 12 | GV15: 320 | GW15: 0.43% | GX15: 1.00 | GY15: 1 | GZ15: 0 | HA15: 0.65% | HB15: 5.00 | HC15: 0 | HD15: 0 | HE15: 0.40% | HF15: 1.00 | HG15: 0 | HH15: -26 | HI15: 1.00% | HJ15: 5.00 | HK15: -1 | HL15: -5 | HM15: 136 | HO15: =IF(ISERROR(IF(VLOOKUP($C15,'Indicateurs Cumulés'!$C$3:$HN$560,186,FALSE)/(VLOOKUP($C15,objectifs!$C$3:$ZZ$559,158,FALSE))>=1.5,(VLOOKUP($C15,objectifs!$C$3:$ZZ$559,158,FALSE))*1.5,IF(VLOOKUP($C15,'Indicateurs Cumulés'!$C$3:$HN$560,186,FALSE)/(VLOOKUP($C15,objectifs!$C$3:$ZZ$559,158,FALSE))<=-0.5,(VLOOKUP($C15,objectifs!$C$3:$ZZ$559,158,FALSE))*-0.5,VLOOKUP($C15,'Indicateurs Cumulés'!$C$3:$HN$560,186,FALSE)))),VLOOKUP($C15,'Indicateurs Cumulés'!$C$3:$HN$560,186,FALSE),IF(VLOOKUP($C15,'Indicateurs Cumulés'!$C$3:$HN$560,186,FALSE)/(VLOOKUP($C15,objectifs!$C$3:$ZZ$559,158,FALSE))>=1.5,(VLOOKUP($C15,objectifs!$C$3:$ZZ$559,158,FALSE))*1.5,IF(VLOOKUP($C15,'Indicateurs Cumulés'!$C$3:$HN$560,186,FALSE)/(VLOOKUP($C15,objectifs!$C$3:$ZZ$559,158,FALSE))<=-0.5,(VLOOKUP($C15,objectifs!$C$3:$ZZ$559,158,FALSE))*-0.5,VLOOKUP($C15,'Indicateurs Cumulés'!$C$3:$HN$560,186,FALSE)))) -> 169 | HP15: 0 | HR15: 2.7 | HT15: 4.82% | HU15: 0.21% | HV15: 0.00% | HW15: -1 | HX15: 5 | HY15: 1 | HZ15: 2 | IA15: 6 | IB15: 6 | IC15: 10 | ID15: 18 | IE15: 1 | IF15: -10 | IG15: -3 | IH15: -1 | II15: 4 | IJ15: -10 | IK15: -3 | IL15: 0 | IM15: -0 | IN15: 0 | IO15: 0 | IP15: 0 | IQ15: 0 | IR15: 1 | IS15: 1 | IT15: 8 | IU15: 0 | IV15: -6 | IW15: -3 | IX15: -2 | IY15: 4 | IZ15: -7 | JA15: -1 | JB15: 0 | JC15: -4 | JD15: 1 | JE15: 0 | JF15: 18 | JG15: 6.44 | JH15: -35.29 | JI15: 0 | JJ15: 0 | JK15: 0 | JL15: 0.20% | JM15: 3 | JO15: -31 | JP15: -324 | JQ15: -14 | JR15: =IF(ISERROR(IF(VLOOKUP($C15,'Indicateurs Cumulés'!$C$3:$HN$560,190,FALSE)/(VLOOKUP($C15,objectifs!$C$3:$ZZ$559,162,FALSE))>=1.5,(VLOOKUP($C15,objectifs!$C$3:$ZZ$559,162,FALSE))*1.5,IF(VLOOKUP($C15,'Indicateurs Cumulés'!$C$3:$HN$560,190,FALSE)/(VLOOKUP($C15,objectifs!$C$3:$ZZ$559,162,FALSE))<=-0.5,(VLOOKUP($C15,objectifs!$C$3:$ZZ$559,162,FALSE))*-0.5,VLOOKUP($C15,'Indicateurs Cumulés'!$C$3:$HN$560,190,FALSE)))),VLOOKUP($C15,'Indicateurs Cumulés'!$C$3:$HN$560,190,FALSE),IF(VLOOKUP($C15,'Indicateurs Cumulés'!$C$3:$HN$560,190,FALSE)/(VLOOKUP($C15,objectifs!$C$3:$ZZ$559,162,FALSE))>=1.5,(VLOOKUP($C15,objectifs!$C$3:$ZZ$559,162,FALSE))*1.5,IF(VLOOKUP($C15,'Indicateurs Cumulés'!$C$3:$HN$560,190,FALSE)/(VLOOKUP($C15,objectifs!$C$3:$ZZ$559,162,FALSE))<=-0.5,(VLOOKUP($C15,objectifs!$C$3:$ZZ$559,162,FALSE))*-0.5,VLOOKUP($C15,'Indicateurs Cumulés'!$C$3:$HN$560,190,FALSE)))) -> -29 | JS15: 0 | JT15: 0 | JV15: -1 | JW15: -10 | JX15: -0 | JY15: -2 | JZ15: -13 | KA15: -2 | KB15: 0 | KC15: 0 | KD15: -4 | KE15: 1 | KF15: 0 | KG15: -3 | KH15: 0 | KI15: 0 | KJ15: -1 | KK15: 1 | KL15: 0 | KM15: -2 | KN15: 1 | KR15: 5.89 | KS15: -5 | KT15: -63 | KU15: 0 | KV15: 17 | KW15: 3 | KX15: 0 | KY15: -7 | KZ15: -5 | LA15: 0 | LB15: 0 | LC15: 57 | LD15: -22 | LE15: -3 | LF15: -2 | LG15: -4 | LH15: -6 | LI15: -1 | LJ15: -0 | LK15: 51 | LL15: 18.8 | LM15: 24 | LN15: 59 | LO15: -5 | LP15: -8 | LQ15: 21.22 | LR15: 120 | LS15: 60 | LT15: 378 | LU15: 66 | LV15: 36 | LW15: 6 | LX15: 9.0 | LY15: 0.6 | LZ15: 1.1 | MA15: 3.3 | MB15: 0.5 | MC15: 0.0 | MD15: 72
A16: 105006 | B16: 200262 | C16: 25 | D16: STRASBOURG ESPLANADE | E16: 2019-05-31 | F16: 75 | G16: 4.32% | H16: 1.57 | I16: 2019-05-31 | J16: 322 | K16: 3.60% | L16: 2.18 | M16: 3.73 | N16: 1,300 | O16: 0 | P16: -0.09% | Q16: 6.60 | R16: 10.16 | S16: 1 | T16: 5.06% | U16: 1.63 | V16: 146 | W16: 0.01% | X16: 8.80 | Y16: 20 | Z16: 1.34% | AA16: 2.38 | AB16: 4.0 | AC16: 3.0 | AD16: 0.2 | AE16: 17.5 | AF16: 3.9 | AG16: 0.7 | AH16: 201905 | AI16: 0 | AJ16: 0 | AK16: 0.00% | AL16: 109.68 | AM16: 62.81 | AN16: 57% | AO16: 1.00 | AP16: 0.91% | AQ16: 477.67 | AR16: 127.96 | AS16: 26.8% | AT16: 0.89 | AU16: 0.19% | AV16: 16.86 | AW16: 1.40 | AX16: 8.31% | AY16: 0.31 | AZ16: 1.82% | BA16: 604.21 | BB16: 192.17 | BC16: 31.8% | BD16: 2.20 | BE16: 0.36% | BG16: 0 | BH16: 7 | BI16: 38 | BJ16: 9 | BK16: 1 | BL16: 1.56% | BM16: 0.00% | BN16: 25 | BO16: 173 | BP16: 3 | BQ16: 63 | BR16: 2 | BS16: -1 | BT16: -5 | BU16: 0 | BX16: 0 | BY16: 0 | BZ16: 0 | CA16: 0 | CB16: 0 | CC16: -4 | CD16: -2 | CE16: 0 | CF16: 0 | CG16: -8 | CH16: -2 | CI16: 0 | CJ16: 0 | CK16: 100.00% | CL16: 200.00% | CM16: 0 | CN16: 200.00% | CO16: 0 | CP16: 6 | CQ16: 0.2 | CR16: 0 | CS16: 0.00 | CT16: 0 | CU16: 2 | CV16: 0 | CW16: 4 | CX16: 37.61% | CY16: 129.62% | CZ16: 12 | DA16: 76.13% | DB16: 142.85% | DC16: 6 | DE16: 100.00% | DF16: 200.00% | DG16: 1 | DH16: -7 | DI16: 0.70% | DJ16: 5.33 | DK16: -0 | DL16: -47 | DM16: 0.81% | DN16: 5.33 | DO16: -2 | DP16: -9 | DQ16: 0.91% | DR16: 5.33 | DS16: -0 | DT16: 28 | DU16: 0.40% | DV16: 2.16 | DW16: 0 | DX16: -121 | DY16: 0.20% | DZ16: 5.37 | EA16: -1 | EB16: -102 | EC16: 0.20% | ED16: 5.37 | EE16: -1 | EF16: -18 | EG16: 0.20% | EH16: 5.37 | EI16: -0 | EJ16: 4 | EK16: 0.45% | EL16: 5.33 | EM16: 0 | EN16: -1 | EO16: 0.10% | EP16: 9.11 | EQ16: -0 | ER16: -18 | ES16: 0.20% | ET16: 9.00 | EU16: -0 | EV16: -78 | EW16: 0.00% | EX16: 8.59 | EY16: 0 | EZ16: 0 | FA16: -0.37% | FB16: 0.08 | FC16: 0 | FD16: 287 | FE16: 0.45% | FF16: 8.00 | FG16: 10 | FH16: 700 | FI16: 0.36% | FJ16: 1.00 | FK16: 3 | FL16: -79 | FM16: 0.65% | FN16: 5.00 | FO16: -3 | FP16: 4 | FQ16: 0.40% | FR16: 1.00 | FS16: 0 | FT16: -421 | FU16: 0.20% | FV16: 8.00 | FW16: -7 | FX16: 3 | FY16: 1.00% | FZ16: 5.00 | GA16: 0 | GB16: -818 | GC16: -13 | GD16: 525 | GE16: 27 | GF16: -39 | GG16: 1.00% | GH16: 5.37 | GI16: -2 | GJ16: -46 | GK16: 0 | GL16: 0 | GN16: 0 | GO16: 0.00% | GP16: 0 | GQ16: 0 | GR16: 388 | GS16: 0.45% | GT16: 8.00 | GU16: 14 | GV16: 391 | GW16: 0.36% | GX16: 1.00 | GY16: 1 | GZ16: 0 | HA16: 0.65% | HB16: 5.00 | HC16: 0 | HD16: 0 | HE16: 0.40% | HF16: 1.00 | HG16: 0 | HH16: -71 | HI16: 1.00% | HJ16: 5.00 | HK16: -4 | HL16: -9 | HM16: 195 | HO16: =IF(ISERROR(IF(VLOOKUP($C16,'Indicateurs Cumulés'!$C$3:$HN$560,186,FALSE)/(VLOOKUP($C16,objectifs!$C$3:$ZZ$559,158,FALSE))>=1.5,(VLOOKUP($C16,objectifs!$C$3:$ZZ$559,158,FALSE))*1.5,IF(VLOOKUP($C16,'Indicateurs Cumulés'!$C$3:$HN$560,186,FALSE)/(VLOOKUP($C16,objectifs!$C$3:$ZZ$559,158,FALSE))<=-0.5,(VLOOKUP($C16,objectifs!$C$3:$ZZ$559,158,FALSE))*-0.5,VLOOKUP($C16,'Indicateurs Cumulés'!$C$3:$HN$560,186,FALSE)))),VLOOKUP($C16,'Indicateurs Cumulés'!$C$3:$HN$560,186,FALSE),IF(VLOOKUP($C16,'Indicateurs Cumulés'!$C$3:$HN$560,186,FALSE)/(VLOOKUP($C16,objectifs!$C$3:$ZZ$559,158,FALSE))>=1.5,(VLOOKUP($C16,objectifs!$C$3:$ZZ$559,158,FALSE))*1.5,IF(VLOOKUP($C16,'Indicateurs Cumulés'!$C$3:$HN$560,186,FALSE)/(VLOOKUP($C16,objectifs!$C$3:$ZZ$559,158,FALSE))<=-0.5,(VLOOKUP($C16,objectifs!$C$3:$ZZ$559,158,FALSE))*-0.5,VLOOKUP($C16,'Indicateurs Cumulés'!$C$3:$HN$560,186,FALSE)))) -> -39 | HP16: 0 | HR16: 4.0 | HT16: 4.40% | HU16: 0.11% | HV16: 3.01% | HW16: -7 | HX16: -25 | HY16: 1 | HZ16: -6 | IA16: -4 | IB16: -2 | IC16: -12 | ID16: -7 | IE16: -1 | IF16: -5 | IG16: -2 | IH16: 1 | II16: 1 | IJ16: -1 | IK16: -4 | IL16: 2 | IM16: -1 | IN16: -2 | IO16: 0 | IP16: -0 | IQ16: -0 | IR16: -0 | IS16: -1 | IT16: -3 | IU16: -0 | IV16: -3 | IW16: -2 | IX16: 2 | IY16: 1 | IZ16: -1 | JA16: -1 | JB16: 0 | JC16: -20 | JD16: 9 | JE16: 0 | JF16: -70 | JG16: 4.75 | JH16: 60.03 | JI16: 0 | JJ16: 0 | JK16: -1 | JL16: 0.20% | JM16: 0 | JO16: -3 | JP16: -30 | JQ16: -13 | JR16: =IF(ISERROR(IF(VLOOKUP($C16,'Indicateurs Cumulés'!$C$3:$HN$560,190,FALSE)/(VLOOKUP($C16,objectifs!$C$3:$ZZ$559,162,FALSE))>=1.5,(VLOOKUP($C16,objectifs!$C$3:$ZZ$559,162,FALSE))*1.5,IF(VLOOKUP($C16,'Indicateurs Cumulés'!$C$3:$HN$560,190,FALSE)/(VLOOKUP($C16,objectifs!$C$3:$ZZ$559,162,FALSE))<=-0.5,(VLOOKUP($C16,objectifs!$C$3:$ZZ$559,162,FALSE))*-0.5,VLOOKUP($C16,'Indicateurs Cumulés'!$C$3:$HN$560,190,FALSE)))),VLOOKUP($C16,'Indicateurs Cumulés'!$C$3:$HN$560,190,FALSE),IF(VLOOKUP($C16,'Indicateurs Cumulés'!$C$3:$HN$560,190,FALSE)/(VLOOKUP($C16,objectifs!$C$3:$ZZ$559,162,FALSE))>=1.5,(VLOOKUP($C16,objectifs!$C$3:$ZZ$559,162,FALSE))*1.5,IF(VLOOKUP($C16,'Indicateurs Cumulés'!$C$3:$HN$560,190,FALSE)/(VLOOKUP($C16,objectifs!$C$3:$ZZ$559,162,FALSE))<=-0.5,(VLOOKUP($C16,objectifs!$C$3:$ZZ$559,162,FALSE))*-0.5,VLOOKUP($C16,'Indicateurs Cumulés'!$C$3:$HN$560,190,FALSE)))) -> -34 | JS16: -0 | JT16: 0 | JV16: -0 | JW16: -1 | JX16: -0 | JY16: -2 | JZ16: -3 | KA16: -3 | KB16: -2 | KC16: 1 | KD16: 1 | KE16: 0 | KF16: 0 | KG16: -4 | KH16: -2 | KI16: 1 | KJ16: 0 | KK16: 0 | KL16: 0 | KM16: -5 | KN16: 3 | KR16: 4.68 | KS16: -3 | KT16: -2 | KU16: 0 | KV16: -1 | KW16: -0 | KX16: 0 | KY16: 1 | KZ16: 1 | LA16: 0 | LB16: 0 | LC16: 14 | LD16: -14 | LE16: -4 | LF16: -3 | LG16: -8 | LH16: -12 | LI16: -1 | LJ16: -0 | LK16: 21 | LL16: 5.1 | LM16: 12 | LN16: 49 | LO16: -9 | LP16: -14 | LQ16: 3.49 | LR16: 152 | LS16: 31 | LT16: 298 | LU16: 70 | LV16: -1 | LW16: 5 | LX16: 11.4 | LY16: 0.3 | LZ16: 0.9 | MA16: 3.5 | MB16: 0.0 | MC16: 0.0 | MD16: 30
A17: 105006 | B17: 200262 | C17: 26 | D17: STRASBOURG DANUBE | E17: 2019-05-31 | F17: 30 | G17: 4.32% | H17: 1.57 | I17: 2019-05-31 | J17: 209 | K17: 2.91% | L17: 2.72 | M17: 4.54 | N17: 1,079 | O17: 0 | P17: -0.09% | Q17: 8.27 | R17: 12.49 | S17: 0 | T17: 0.00% | U17: 0 | V17: 222 | W17: -0.04% | X17: 7.56 | Y17: 0 | Z17: 0.00% | AA17: 0 | AB17: 2.8 | AC17: 3.5 | AD17: 0 | AE17: -187.2 | AF17: 3.8 | AG17: 1.5 | AH17: 201905 | AI17: 0 | AJ17: 0 | AK17: 0.00% | AL17: 58.86 | AM17: 16.40 | AN17: 28% | AO17: 0.56 | AP17: 0.95% | AQ17: 62.66 | AR17: 32.00 | AS17: 51.1% | AT17: 0.05 | AU17: 0.08% | AV17: 14.28 | AW17: 2.69 | AX17: 18.83% | AY17: 0.30 | AZ17: 2.12% | BA17: 135.80 | BB17: 51.09 | BC17: 37.6% | BD17: 0.91 | BE17: 0.67% | BG17: 0 | BH17: 10 | BI17: 26 | BJ17: -3 | BK17: 0 | BL17: 1.69% | BM17: 0.00% | BN17: 26 | BO17: 16 | BP17: 0 | BQ17: 9 | BR17: 0 | BS17: 1 | BT17: -1 | BU17: -2 | BX17: 0 | BY17: 0 | BZ17: 0 | CA17: 0 | CB17: 0 | CC17: 0 | CD17: 0 | CE17: 7 | CF17: 1.4 | CG17: -3 | CH17: -1 | CI17: 0 | CJ17: 0 | CK17: 0.00% | CL17: 0.00% | CM17: 0 | CN17: 200.00% | CO17: 0 | CP17: 11 | CQ17: 0 | CR17: 0 | CS17: 0.00 | CT17: 0 | CU17: 1 | CV17: 0 | CW17: 3 | CX17: 71.69% | CY17: 184.70% | CZ17: 0 | DA17: 92.35% | DB17: 200.12% | DC17: 6 | DE17: 0.00% | DF17: 0.00% | DG17: 0 | DH17: 232 | DI17: 0.70% | DJ17: 5.33 | DK17: 9 | DL17: 116 | DM17: 0.81% | DN17: 5.33 | DO17: 5 | DP17: -13 | DQ17: 0.91% | DR17: 5.33 | DS17: -1 | DT17: 98 | DU17: 0.40% | DV17: 2.16 | DW17: 1 | DX17: -30 | DY17: 0.20% | DZ17: 5.37 | EA17: -0 | EB17: 23 | EC17: 0.20% | ED17: 5.37 | EE17: 0 | EF17: -14 | EG17: 0.20% | EH17: 5.37 | EI17: -0 | EJ17: 49 | EK17: 0.45% | EL17: 5.33 | EM17: 1 | EN17: 3 | EO17: 0.10% | EP17: 7.77 | EQ17: 0 | ER17: -46 | ES17: 0.20% | ET17: 9.00 | EU17: -1 | EV17: 166 | EW17: 0.00% | EX17: 3.56 | EY17: 0 | EZ17: 0 | FA17: -0.37% | FB17: 0.08 | FC17: 0 | FD17: -81 | FE17: 0.45% | FF17: 8.00 | FG17: -3 | FH17: 89 | FI17: 0.67% | FJ17: 1.00 | FK17: 1 | FL17: -15 | FM17: 0.65% | FN17: 5.00 | FO17: -0 | FP17: 5 | FQ17: 0.40% | FR17: 1.00 | FS17: 0 | FT17: -66 | FU17: 0.20% | FV17: 8.00 | FW17: -1 | FX17: 33 | FY17: 1.00% | FZ17: 5.00 | GA17: 2 | GB17: 541 | GC17: 14 | GD17: -98 | GE17: -2 | GF17: -457 | GG17: 1.00% | GH17: 5.37 | GI17: -25 | GJ17: -25 | GK17: 0 | GL17: 0 | GN17: 0 | GO17: 0.00% | GP17: 0 | GQ17: 0 | GR17: 0 | GS17: 0.45% | GT17: 8.00 | GU17: 0 | GV17: 0 | GW17: 0.67% | GX17: 1.00 | GY17: 0 | GZ17: 0 | HA17: 0.65% | HB17: 5.00 | HC17: 0 | HD17: 0 | HE17: 0.40% | HF17: 1.00 | HG17: 0 | HH17: -3 | HI17: 1.00% | HJ17: 5.00 | HK17: -0 | HL17: -6 | HM17: 75 | HO17: =IF(ISERROR(IF(VLOOKUP($C17,'Indicateurs Cumulés'!$C$3:$HN$560,186,FALSE)/(VLOOKUP($C17,objectifs!$C$3:$ZZ$559,158,FALSE))>=1.5,(VLOOKUP($C17,objectifs!$C$3:$ZZ$559,158,FALSE))*1.5,IF(VLOOKUP($C17,'Indicateurs Cumulés'!$C$3:$HN$560,186,FALSE)/(VLOOKUP($C17,objectifs!$C$3:$ZZ$559,158,FALSE))<=-0.5,(VLOOKUP($C17,objectifs!$C$3:$ZZ$559,158,FALSE))*-0.5,VLOOKUP($C17,'Indicateurs Cumulés'!$C$3:$HN$560,186,FALSE)))),VLOOKUP($C17,'Indicateurs Cumulés'!$C$3:$HN$560,186,FALSE),IF(VLOOKUP($C17,'Indicateurs Cumulés'!$C$3:$HN$560,186,FALSE)/(VLOOKUP($C17,objectifs!$C$3:$ZZ$559,158,FALSE))>=1.5,(VLOOKUP($C17,objectifs!$C$3:$ZZ$559,158,FALSE))*1.5,IF(VLOOKUP($C17,'Indicateurs Cumulés'!$C$3:$HN$560,186,FALSE)/(VLOOKUP($C17,objectifs!$C$3:$ZZ$559,158,FALSE))<=-0.5,(VLOOKUP($C17,objectifs!$C$3:$ZZ$559,158,FALSE))*-0.5,VLOOKUP($C17,'Indicateurs Cumulés'!$C$3:$HN$560,186,FALSE)))) -> -100 | HP17: 0 | HR17: 1.3 | HT17: 3.99% | HU17: -0.04% | HV17: 0.00% | HW17: 6 | HX17: -4 | HY17: 1 | HZ17: -3 | IA17: -6 | IB17: 0 | IC17: 2 | ID17: -8 | IE17: -1 | IF17: -2 | IG17: 0 | IH17: 1 | II17: 0 | IJ17: 3 | IK17: -12 | IL17: 3 | IM17: 1 | IN17: -0 | IO17: 0 | IP17: -0 | IQ17: -0 | IR17: 0 | IS17: 0 | IT17: -3 | IU17: -0 | IV17: -1 | IW17: 0 | IX17: 2 | IY17: 0 | IZ17: 2 | JA17: -3 | JB17: 0 | JC17: 0 | JD17: 10 | JE17: 0 | JF17: -16 | JG17: 6.04 | JH17: -3.25 | JI17: 0 | JJ17: 0 | JK17: 0 | JL17: 0.20% | JM17: -0 | JO17: 0 | JP17: -10 | JQ17: -1 | JR17: =IF(ISERROR(IF(VLOOKUP($C17,'Indicateurs Cumulés'!$C$3:$HN$560,190,FALSE)/(VLOOKUP($C17,objectifs!$C$3:$ZZ$559,162,FALSE))>=1.5,(VLOOKUP($C17,objectifs!$C$3:$ZZ$559,162,FALSE))*1.5,IF(VLOOKUP($C17,'Indicateurs Cumulés'!$C$3:$HN$560,190,FALSE)/(VLOOKUP($C17,objectifs!$C$3:$ZZ$559,162,FALSE))<=-0.5,(VLOOKUP($C17,objectifs!$C$3:$ZZ$559,162,FALSE))*-0.5,VLOOKUP($C17,'Indicateurs Cumulés'!$C$3:$HN$560,190,FALSE)))),VLOOKUP($C17,'Indicateurs Cumulés'!$C$3:$HN$560,190,FALSE),IF(VLOOKUP($C17,'Indicateurs Cumulés'!$C$3:$HN$560,190,FALSE)/(VLOOKUP($C17,objectifs!$C$3:$ZZ$559,162,FALSE))>=1.5,(VLOOKUP($C17,objectifs!$C$3:$ZZ$559,162,FALSE))*1.5,IF(VLOOKUP($C17,'Indicateurs Cumulés'!$C$3:$HN$560,190,FALSE)/(VLOOKUP($C17,objectifs!$C$3:$ZZ$559,162,FALSE))<=-0.5,(VLOOKUP($C17,objectifs!$C$3:$ZZ$559,162,FALSE))*-0.5,VLOOKUP($C17,'Indicateurs Cumulés'!$C$3:$HN$560,190,FALSE)))) -> -21 | JS17: 0 | JT17: -0 | JV17: 0 | JW17: -0 | JX17: -0 | JY17: -1 | JZ17: -2 | KA17: 1 | KB17: 0 | KC17: -1 | KD17: 0 | KE17: 0 | KF17: 0 | KG17: 1 | KH17: 0 | KI17: -1 | KJ17: 0 | KK17: 0 | KL17: 0 | KM17: 1 | KN17: 0 | KR17: 9.16 | KS17: 0 | KT17: 0 | KU17: 0 | KV17: -2 | KW17: -0 | KX17: 0 | KY17: 4 | KZ17: 3 | LA17: 0 | LB17: 0 | LC17: 21 | LD17: 6 | LE17: -1 | LF17: -1 | LG17: -2 | LH17: -3 | LI17: -1 | LJ17: -0 | LK17: 20 | LL17: 15.0 | LM17: 7 | LN17: 23 | LO17: -6 | LP17: -4 | LQ17: 16.06 | LR17: 63 | LS17: 47 | LT17: 92 | LU17: 60 | LV17: -46 | LW17: 4 | LX17: 4.7 | LY17: 0.5 | LZ17: 0.3 | MA17: 3.0 | MB17: 0.0 | MC17: 0.0 | MD17: 30
A18: 105006 | B18: 200262 | C18: 27 | D18: SCHILTIGHEIM CENTRE | E18: 2019-05-31 | F18: 71 | G18: 4.32% | H18: 1.57 | I18: 2019-05-31 | J18: 885 | K18: 3.19% | L18: 2.34 | M18: 4.00 | N18: 2,036 | O18: 0 | P18: -0.01% | Q18: 8.90 | R18: 13.94 | S18: 194 | T18: 2.70% | U18: 2.51 | V18: 67 | W18: -0.12% | X18: 6.10 | Y18: 878 | Z18: 0.58% | AA18: 3.74 | AB18: 12.7 | AC18: 7.9 | AD18: 3.1 | AE18: 63.5 | AF18: 12.2 | AG18: 5.6 | AH18: 201905 | AI18: 20.00 | AJ18: 0.48 | AK18: 2.40% | AL18: 161.62 | AM18: 67.86 | AN18: 42% | AO18: 1.93 | AP18: 1.19% | AQ18: 951.81 | AR18: 105.63 | AS18: 11.1% | AT18: 1.55 | AU18: 0.16% | AV18: 51.50 | AW18: 1.67 | AX18: 3.24% | AY18: 0.58 | AZ18: 1.12% | BA18: 1,184.93 | BB18: 175.17 | BC18: 14.8% | BD18: 4.53 | BE18: 0.38% | BG18: 17 | BH18: 1 | BI18: 86 | BJ18: 66 | BK18: 25 | BL18: 1.56% | BM18: 0.00% | BN18: 27 | BO18: 50 | BP18: 1 | BQ18: 114 | BR18: 3 | BS18: -0 | BT18: -0 | BU18: -11 | BX18: 0 | BY18: 0 | BZ18: 0 | CA18: 2 | CB18: 0 | CC18: 3 | CD18: 2 | CE18: 18 | CF18: 3.6 | CG18: -1 | CH18: -0 | CI18: 3 | CJ18: 3 | CK18: 100.00% | CL18: 115.46% | CM18: 3 | CN18: 100.00% | CO18: 3 | CP18: 1 | CQ18: 3.1 | CR18: 0 | CS18: 0.00 | CT18: 0 | CU18: 2 | CV18: 0 | CW18: 13 | CX18: 37.52% | CY18: 193.75% | CZ18: 47 | DA18: 92.88% | DB18: 109.79% | DC18: 13 | DE18: 100.00% | DF18: 100.00% | DG18: 3 | DH18: 307 | DI18: 0.70% | DJ18: 5.33 | DK18: 11 | DL18: -165 | DM18: 0.81% | DN18: 5.33 | DO18: -7 | DP18: 1 | DQ18: 0.91% | DR18: 5.33 | DS18: 0 | DT18: 337 | DU18: 0.40% | DV18: 2.16 | DW18: 3 | DX18: -184 | DY18: 0.20% | DZ18: 5.37 | EA18: -2 | EB18: -46 | EC18: 0.20% | ED18: 5.37 | EE18: -0 | EF18: -23 | EG18: 0.20% | EH18: 5.37 | EI18: -0 | EJ18: -12 | EK18: 0.45% | EL18: 5.33 | EM18: -0 | EN18: -17 | EO18: 0.10% | EP18: 9.65 | EQ18: -0 | ER18: -15 | ES18: 0.20% | ET18: 9.00 | EU18: -0 | EV18: -344 | EW18: 0.00% | EX18: 8.59 | EY18: 0 | EZ18: 0 | FA18: -0.37% | FB18: 0.08 | FC18: 0 | FD18: 444 | FE18: 0.45% | FF18: 8.00 | FG18: 16 | FH18: 1,543 | FI18: 0.38% | FJ18: 1.00 | FK18: 6 | FL18: -21 | FM18: 0.65% | FN18: 5.00 | FO18: -1 | FP18: 2 | FQ18: 0.40% | FR18: 1.00 | FS18: 0 | FT18: -235 | FU18: 0.20% | FV18: 8.00 | FW18: -4 | FX18: 120 | FY18: 1.00% | FZ18: 5.00 | GA18: 6 | GB18: -16 | GC18: 15 | GD18: 463 | GE18: 27 | GF18: -46 | GG18: 1.00% | GH18: 5.37 | GI18: -2 | GJ18: 236 | GK18: 0 | GL18: 0 | GN18: 0 | GO18: 0.00% | GP18: 0 | GQ18: 0 | GR18: 0 | GS18: 0.45% | GT18: 8.00 | GU18: 0 | GV18: 0 | GW18: 0.38% | GX18: 1.00 | GY18: 0 | GZ18: 0 | HA18: 0.65% | HB18: 5.00 | HC18: 0 | HD18: 0 | HE18: 0.40% | HF18: 1.00 | HG18: 0 | HH18: 40 | HI18: 1.00% | HJ18: 5.00 | HK18: 2 | HL18: -12 | HM18: 216 | HO18: =IF(ISERROR(IF(VLOOKUP($C18,'Indicateurs Cumulés'!$C$3:$HN$560,186,FALSE)/(VLOOKUP($C18,objectifs!$C$3:$ZZ$559,158,FALSE))>=1.5,(VLOOKUP($C18,objectifs!$C$3:$ZZ$559,158,FALSE))*1.5,IF(VLOOKUP($C18,'Indicateurs Cumulés'!$C$3:$HN$560,186,FALSE)/(VLOOKUP($C18,objectifs!$C$3:$ZZ$559,158,FALSE))<=-0.5,(VLOOKUP($C18,objectifs!$C$3:$ZZ$559,158,FALSE))*-0.5,VLOOKUP($C18,'Indicateurs Cumulés'!$C$3:$HN$560,186,FALSE)))),VLOOKUP($C18,'Indicateurs Cumulés'!$C$3:$HN$560,186,FALSE),IF(VLOOKUP($C18,'Indicateurs Cumulés'!$C$3:$HN$560,186,FALSE)/(VLOOKUP($C18,objectifs!$C$3:$ZZ$559,158,FALSE))>=1.5,(VLOOKUP($C18,objectifs!$C$3:$ZZ$559,158,FALSE))*1.5,IF(VLOOKUP($C18,'Indicateurs Cumulés'!$C$3:$HN$560,186,FALSE)/(VLOOKUP($C18,objectifs!$C$3:$ZZ$559,158,FALSE))<=-0.5,(VLOOKUP($C18,objectifs!$C$3:$ZZ$559,158,FALSE))*-0.5,VLOOKUP($C18,'Indicateurs Cumulés'!$C$3:$HN$560,186,FALSE)))) -> -46 | HP18: 0 | HR18: 5.0 | HT18: 3.86% | HU18: 0.35% | HV18: 0.77% | HW18: -2 | HX18: -1 | HY18: -7 | HZ18: -12 | IA18: -15 | IB18: 6 | IC18: -6 | ID18: -18 | IE18: 0 | IF18: -4 | IG18: 0 | IH18: 0 | II18: -3 | IJ18: 18 | IK18: -19 | IL18: 0 | IM18: -0 | IN18: -0 | IO18: -2 | IP18: -1 | IQ18: -0 | IR18: 1 | IS18: -1 | IT18: -8 | IU18: 0 | IV18: -2 | IW18: 0 | IX18: 0 | IY18: -3 | IZ18: 12 | JA18: -4 | JB18: 0 | JC18: 5 | JD18: 44 | JE18: 0 | JF18: -48 | JG18: 5.07 | JH18: -21.41 | JI18: 0 | JJ18: 0 | JK18: 0 | JL18: 0.20% | JM18: 50 | JO18: 65 | JP18: 261 | JQ18: 8 | JR18: =IF(ISERROR(IF(VLOOKUP($C18,'Indicateurs Cumulés'!$C$3:$HN$560,190,FALSE)/(VLOOKUP($C18,objectifs!$C$3:$ZZ$559,162,FALSE))>=1.5,(VLOOKUP($C18,objectifs!$C$3:$ZZ$559,162,FALSE))*1.5,IF(VLOOKUP($C18,'Indicateurs Cumulés'!$C$3:$HN$560,190,FALSE)/(VLOOKUP($C18,objectifs!$C$3:$ZZ$559,162,FALSE))<=-0.5,(VLOOKUP($C18,objectifs!$C$3:$ZZ$559,162,FALSE))*-0.5,VLOOKUP($C18,'Indicateurs Cumulés'!$C$3:$HN$560,190,FALSE)))),VLOOKUP($C18,'Indicateurs Cumulés'!$C$3:$HN$560,190,FALSE),IF(VLOOKUP($C18,'Indicateurs Cumulés'!$C$3:$HN$560,190,FALSE)/(VLOOKUP($C18,objectifs!$C$3:$ZZ$559,162,FALSE))>=1.5,(VLOOKUP($C18,objectifs!$C$3:$ZZ$559,162,FALSE))*1.5,IF(VLOOKUP($C18,'Indicateurs Cumulés'!$C$3:$HN$560,190,FALSE)/(VLOOKUP($C18,objectifs!$C$3:$ZZ$559,162,FALSE))<=-0.5,(VLOOKUP($C18,objectifs!$C$3:$ZZ$559,162,FALSE))*-0.5,VLOOKUP($C18,'Indicateurs Cumulés'!$C$3:$HN$560,190,FALSE)))) -> 118 | JS18: 0 | JT18: 3 | JV18: 2 | JW18: 8 | JX18: 0 | JY18: 6 | JZ18: 20 | KA18: 5 | KB18: 0 | KC18: 3 | KD18: 1 | KE18: 2 | KF18: 1 | KG18: 7 | KH18: 0 | KI18: 2 | KJ18: 0 | KK18: 1 | KL18: 0 | KM18: 18 | KN18: 6 | KR18: 5.09 | KS18: 12 | KT18: 24 | KU18: 0 | KV18: 6 | KW18: 1 | KX18: 0 | KY18: 15 | KZ18: 10 | LA18: 0 | LB18: 0 | LC18: 235 | LD18: 98 | LE18: 8 | LF18: 5 | LG18: 7 | LH18: 10 | LI18: 6 | LJ18: 1 | LK18: 228 | LL18: 45.7 | LM18: 39 | LN18: 178 | LO18: -12 | LP18: 16 | LQ18: 47.19 | LR18: 162 | LS18: 70 | LT18: 347 | LU18: 133 | LV18: 61 | LW18: 22 | LX18: 12.2 | LY18: 0.7 | LZ18: 1.0 | MA18: 6.7 | MB18: 0.9 | MC18: 0.1 | MD18: 257
A19: 105006 | B19: 200262 | C19: 28 | D19: BISCHHEIM | E19: 2019-05-31 | F19: 85 | G19: 4.32% | H19: 1.57 | I19: 2019-05-31 | J19: 518 | K19: 3.62% | L19: 2.28 | M19: 3.92 | N19: 2,260 | O19: 0 | P19: 0.08% | Q19: 6.91 | R19: 10.37 | S19: 12 | T19: 1.97% | U19: 3.43 | V19: 0 | W19: 0.00% | X19: 0 | Y19: 140 | Z19: 0.82% | AA19: 3.29 | AB19: 6.6 | AC19: 4.5 | AD19: 0.7 | AE19: 467.4 | AF19: 11.3 | AG19: 3.6 | AH19: 201905 | AI19: 1.50 | AJ19: 0.04 | AK19: 2.40% | AL19: 188.78 | AM19: 62.51 | AN19: 33% | AO19: 2.17 | AP19: 1.15% | AQ19: 920.71 | AR19: 102.82 | AS19: 11.2% | AT19: 0.78 | AU19: 0.08% | AV19: 64.79 | AW19: 13.15 | AX19: 20.30% | AY19: 1.13 | AZ19: 1.74% | BA19: 1,175.78 | BB19: 178.48 | BC19: 15.2% | BD19: 4.11 | BE19: 0.35% | BG19: 1 | BH19: 0 | BI19: 62 | BJ19: 96 | BK19: 5 | BL19: 1.56% | BM19: 0.00% | BN19: 28 | BO19: 214 | BP19: 4 | BQ19: 71 | BR19: 2 | BS19: 3 | BT19: 3 | BU19: -3 | BX19: 0 | BY19: -1 | BZ19: -0 | CA19: -3 | CB19: -0 | CC19: 0 | CD19: 0 | CE19: 5 | CF19: 1.0 | CG19: 1 | CH19: 0 | CI19: 2 | CJ19: 2 | CK19: 100.00% | CL19: 200.00% | CM19: 0 | CN19: 0.00% | CO19: 0 | CP19: 0 | CQ19: 0.7 | CR19: 0 | CS19: 0.20 | CT19: 0 | CU19: 3 | CV19: 0 | CW19: 7 | CX19: 80.65% | CY19: 168.02% | CZ19: 71 | DA19: 99.12% | DB19: 137.31% | DC19: 11 | DE19: 100.00% | DF19: 100.00% | DG19: 0 | DH19: 21 | DI19: 0.70% | DJ19: 5.33 | DK19: 1 | DL19: -85 | DM19: 0.81% | DN19: 5.33 | DO19: -4 | DP19: -19 | DQ19: 0.91% | DR19: 5.33 | DS19: -1 | DT19: 97 | DU19: 0.40% | DV19: 2.16 | DW19: 1 | DX19: -196 | DY19: 0.20% | DZ19: 5.37 | EA19: -2 | EB19: 56 | EC19: 0.20% | ED19: 5.37 | EE19: 1 | EF19: -38 | EG19: 0.20% | EH19: 5.37 | EI19: -0 | EJ19: 9 | EK19: 0.45% | EL19: 5.33 | EM19: 0 | EN19: 3 | EO19: 0.10% | EP19: 5.97 | EQ19: 0 | ER19: -56 | ES19: 0.20% | ET19: 9.00 | EU19: -1 | EV19: 197 | EW19: 0.00% | EX19: 8.59 | EY19: 0 | EZ19: 0 | FA19: -0.37% | FB19: 0.08 | FC19: 0 | FD19: 483 | FE19: 0.45% | FF19: 8.00 | FG19: 17 | FH19: 1,379 | FI19: 0.35% | FJ19: 1.00 | FK19: 5 | FL19: -57 | FM19: 0.65% | FN19: 5.00 | FO19: -2 | FP19: 12 | FQ19: 0.40% | FR19: 1.00 | FS19: 0 | FT19: -332 | FU19: 0.20% | FV19: 8.00 | FW19: -5 | FX19: 84 | FY19: 1.00% | FZ19: 5.00 | GA19: 4 | GB19: -62 | GC19: -0 | GD19: 410 | GE19: 26 | GF19: 209 | GG19: 1.00% | GH19: 5.37 | GI19: 11 | GJ19: 64 | GK19: 0 | GL19: 0 | GN19: 18 | GO19: 1.95% | GP19: 1.93 | GQ19: 1 | GR19: 0 | GS19: 0.45% | GT19: 8.00 | GU19: 0 | GV19: 0 | GW19: 0.35% | GX19: 1.00 | GY19: 0 | GZ19: 0 | HA19: 0.65% | HB19: 5.00 | HC19: 0 | HD19: 0 | HE19: 0.40% | HF19: 1.00 | HG19: 0 | HH19: -16 | HI19: 1.00% | HJ19: 5.00 | HK19: -1 | HL19: -8 | HM19: 181 | HO19: =IF(ISERROR(IF(VLOOKUP($C19,'Indicateurs Cumulés'!$C$3:$HN$560,186,FALSE)/(VLOOKUP($C19,objectifs!$C$3:$ZZ$559,158,FALSE))>=1.5,(VLOOKUP($C19,objectifs!$C$3:$ZZ$559,158,FALSE))*1.5,IF(VLOOKUP($C19,'Indicateurs Cumulés'!$C$3:$HN$560,186,FALSE)/(VLOOKUP($C19,objectifs!$C$3:$ZZ$559,158,FALSE))<=-0.5,(VLOOKUP($C19,objectifs!$C$3:$ZZ$559,158,FALSE))*-0.5,VLOOKUP($C19,'Indicateurs Cumulés'!$C$3:$HN$560,186,FALSE)))),VLOOKUP($C19,'Indicateurs Cumulés'!$C$3:$HN$560,186,FALSE),IF(VLOOKUP($C19,'Indicateurs Cumulés'!$C$3:$HN$560,186,FALSE)/(VLOOKUP($C19,objectifs!$C$3:$ZZ$559,158,FALSE))>=1.5,(VLOOKUP($C19,objectifs!$C$3:$ZZ$559,158,FALSE))*1.5,IF(VLOOKUP($C19,'Indicateurs Cumulés'!$C$3:$HN$560,186,FALSE)/(VLOOKUP($C19,objectifs!$C$3:$ZZ$559,158,FALSE))<=-0.5,(VLOOKUP($C19,objectifs!$C$3:$ZZ$559,158,FALSE))*-0.5,VLOOKUP($C19,'Indicateurs Cumulés'!$C$3:$HN$560,186,FALSE)))) -> 209 | HP19: 0 | HR19: 3.7 | HT19: 4.49% | HU19: 0.60% | HV19: 1.05% | HW19: 16 | HX19: 14 | HY19: 1 | HZ19: 4 | IA19: -1 | IB19: 3 | IC19: 19 | ID19: -16 | IE19: -2 | IF19: -9 | IG19: -3 | IH19: 0 | II19: 1 | IJ19: 21 | IK19: -35 | IL19: 0 | IM19: 2 | IN19: 1 | IO19: 0 | IP19: 0 | IQ19: -0 | IR19: 0 | IS19: 2 | IT19: -7 | IU19: -0 | IV19: -6 | IW19: -3 | IX19: 0 | IY19: 1 | IZ19: 14 | JA19: -8 | JB19: 0 | JC19: 20 | JD19: 7 | JE19: 0 | JF19: 35 | JG19: 4.25 | JH19: 136.88 | JI19: 0 | JJ19: 0 | JK19: -44 | JL19: 0.20% | JM19: 35 | JO19: -0 | JP19: 198 | JQ19: -63 | JR19: =IF(ISERROR(IF(VLOOKUP($C19,'Indicateurs Cumulés'!$C$3:$HN$560,190,FALSE)/(VLOOKUP($C19,objectifs!$C$3:$ZZ$559,162,FALSE))>=1.5,(VLOOKUP($C19,objectifs!$C$3:$ZZ$559,162,FALSE))*1.5,IF(VLOOKUP($C19,'Indicateurs Cumulés'!$C$3:$HN$560,190,FALSE)/(VLOOKUP($C19,objectifs!$C$3:$ZZ$559,162,FALSE))<=-0.5,(VLOOKUP($C19,objectifs!$C$3:$ZZ$559,162,FALSE))*-0.5,VLOOKUP($C19,'Indicateurs Cumulés'!$C$3:$HN$560,190,FALSE)))),VLOOKUP($C19,'Indicateurs Cumulés'!$C$3:$HN$560,190,FALSE),IF(VLOOKUP($C19,'Indicateurs Cumulés'!$C$3:$HN$560,190,FALSE)/(VLOOKUP($C19,objectifs!$C$3:$ZZ$559,162,FALSE))>=1.5,(VLOOKUP($C19,objectifs!$C$3:$ZZ$559,162,FALSE))*1.5,IF(VLOOKUP($C19,'Indicateurs Cumulés'!$C$3:$HN$560,190,FALSE)/(VLOOKUP($C19,objectifs!$C$3:$ZZ$559,162,FALSE))<=-0.5,(VLOOKUP($C19,objectifs!$C$3:$ZZ$559,162,FALSE))*-0.5,VLOOKUP($C19,'Indicateurs Cumulés'!$C$3:$HN$560,190,FALSE)))) -> 64 | JS19: -1 | JT19: 2 | JV19: -0 | JW19: 6 | JX19: -2 | JY19: 3 | JZ19: 9 | KA19: 0 | KB19: 0 | KC19: -1 | KD19: 1 | KE19: -2 | KF19: 0 | KG19: 0 | KH19: 0 | KI19: -1 | KJ19: 0 | KK19: -1 | KL19: 0 | KM19: 0 | KN19: 2 | KR19: 4.53 | KS19: -2 | KT19: 1 | KU19: 0 | KV19: 1 | KW19: 0 | KX19: 0 | KY19: 22 | KZ19: 15 | LA19: 0 | LB19: 0 | LC19: 192 | LD19: 6 | LE19: -4 | LF19: -3 | LG19: -5 | LH19: -7 | LI19: 0 | LJ19: 0 | LK19: 183 | LL19: 49.8 | LM19: 37 | LN19: 163 | LO19: -8 | LP19: -10 | LQ19: 52.33 | LR19: 148 | LS19: 58 | LT19: 372 | LU19: 105 | LV19: 96 | LW19: 11 | LX19: 11.1 | LY19: 0.6 | LZ19: 1.1 | MA19: 5.3 | MB19: 1.4 | MC19: 0.1 | MD19: 211
A20: 105006 | B20: 200262 | C20: 29 | D20: SCHILTIGHEIM KLEBER | E20: 2019-05-31 | F20: 72 | G20: 4.32% | H20: 1.57 | I20: 2019-05-31 | J20: 610 | K20: 3.33% | L20: 2.22 | M20: 3.85 | N20: 1,110 | O20: 0 | P20: -0.02% | Q20: 8.01 | R20: 12.05 | S20: 22 | T20: 2.79% | U20: 2.08 | V20: 0 | W20: 0.00% | X20: 0 | Y20: 117 | Z20: 1.92% | AA20: 2.37 | AB20: 3.3 | AC20: 6.3 | AD20: 1.2 | AE20: 39.1 | AF20: 9.6 | AG20: 2.5 | AH20: 201905 | AI20: 32.00 | AJ20: 0.48 | AK20: 1.50% | AL20: 226.53 | AM20: 37.86 | AN20: 17% | AO20: 0.83 | AP20: 0.36% | AQ20: 588.66 | AR20: 98.29 | AS20: 16.7% | AT20: 0.79 | AU20: 0.13% | AV20: 15.43 | AW20: 2.45 | AX20: 15.87% | AY20: 0.30 | AZ20: 1.95% | BA20: 862.62 | BB20: 138.60 | BC20: 16.1% | BD20: 2.39 | BE20: 0.28% | BG20: 2 | BH20: 0 | BI20: 61 | BJ20: 31 | BK20: 7 | BL20: 1.58% | BM20: 0.00% | BN20: 29 | BO20: 129 | BP20: 3 | BQ20: 60 | BR20: 2 | BS20: 3 | BT20: 2 | BU20: 0 | BX20: 0 | BY20: 0 | BZ20: 0 | CA20: 1 | CB20: 0 | CC20: 0 | CD20: 0 | CE20: 8 | CF20: 1.6 | CG20: 22 | CH20: 5 | CI20: 1 | CJ20: 1 | CK20: 100.00% | CL20: 100.00% | CM20: 0 | CN20: 0.00% | CO20: 0 | CP20: 0 | CQ20: 1.2 | CR20: 0 | CS20: 0.00 | CT20: 0 | CU20: 0 | CV20: 0 | CW20: 3 | CX20: 84.12% | CY20: 192.03% | CZ20: 26 | DA20: 98.03% | DB20: 120.77% | DC20: 11 | DE20: 100.00% | DF20: 100.00% | DG20: 0 | DH20: 27 | DI20: 0.70% | DJ20: 5.33 | DK20: 1 | DL20: 183 | DM20: 0.81% | DN20: 5.33 | DO20: 8 | DP20: -26 | DQ20: 0.91% | DR20: 5.33 | DS20: -1 | DT20: 344 | DU20: 0.40% | DV20: 2.16 | DW20: 3 | DX20: -99 | DY20: 0.20% | DZ20: 5.37 | EA20: -1 | EB20: 9 | EC20: 0.20% | ED20: 5.37 | EE20: 0 | EF20: -15 | EG20: 0.20% | EH20: 5.37 | EI20: -0 | EJ20: 15 | EK20: 0.45% | EL20: 5.33 | EM20: 0 | EN20: -5 | EO20: 0.10% | EP20: 7.64 | EQ20: -0 | ER20: -3 | ES20: 0.20% | ET20: 9.00 | EU20: -0 | EV20: -165 | EW20: 0.00% | EX20: 8.50 | EY20: 0 | EZ20: 0 | FA20: -0.37% | FB20: 0.08 | FC20: 0 | FD20: 493 | FE20: 0.45% | FF20: 8.00 | FG20: 18 | FH20: 831 | FI20: 0.28% | FJ20: 1.00 | FK20: 2 | FL20: -22 | FM20: 0.65% | FN20: 5.00 | FO20: -1 | FP20: 4 | FQ20: 0.40% | FR20: 1.00 | FS20: 0 | FT20: -301 | FU20: 0.20% | FV20: 8.00 | FW20: -5 | FX20: 95 | FY20: 1.00% | FZ20: 5.00 | GA20: 5 | GB20: 266 | GC20: 16 | GD20: 571 | GE20: 27 | GF20: 25 | GG20: 1.00% | GH20: 5.37 | GI20: 1 | GJ20: 66 | GK20: 0 | GL20: 0 | GN20: 0 | GO20: 0.00% | GP20: 0 | GQ20: 0 | GR20: 100 | GS20: 0.45% | GT20: 8.00 | GU20: 4 | GV20: 100 | GW20: 0.28% | GX20: 1.00 | GY20: 0 | GZ20: 0 | HA20: 0.65% | HB20: 5.00 | HC20: 0 | HD20: 0 | HE20: 0.40% | HF20: 1.00 | HG20: 0 | HH20: -0 | HI20: 1.00% | HJ20: 5.00 | HK20: -0 | HL20: -6 | HM20: 120 | HO20: =IF(ISERROR(IF(VLOOKUP($C20,'Indicateurs Cumulés'!$C$3:$HN$560,186,FALSE)/(VLOOKUP($C20,objectifs!$C$3:$ZZ$559,158,FALSE))>=1.5,(VLOOKUP($C20,objectifs!$C$3:$ZZ$559,158,FALSE))*1.5,IF(VLOOKUP($C20,'Indicateurs Cumulés'!$C$3:$HN$560,186,FALSE)/(VLOOKUP($C20,objectifs!$C$3:$ZZ$559,158,FALSE))<=-0.5,(VLOOKUP($C20,objectifs!$C$3:$ZZ$559,158,FALSE))*-0.5,VLOOKUP($C20,'Indicateurs Cumulés'!$C$3:$HN$560,186,FALSE)))),VLOOKUP($C20,'Indicateurs Cumulés'!$C$3:$HN$560,186,FALSE),IF(VLOOKUP($C20,'Indicateurs Cumulés'!$C$3:$HN$560,186,FALSE)/(VLOOKUP($C20,objectifs!$C$3:$ZZ$559,158,FALSE))>=1.5,(VLOOKUP($C20,objectifs!$C$3:$ZZ$559,158,FALSE))*1.5,IF(VLOOKUP($C20,'Indicateurs Cumulés'!$C$3:$HN$560,186,FALSE)/(VLOOKUP($C20,objectifs!$C$3:$ZZ$559,158,FALSE))<=-0.5,(VLOOKUP($C20,objectifs!$C$3:$ZZ$559,158,FALSE))*-0.5,VLOOKUP($C20,'Indicateurs Cumulés'!$C$3:$HN$560,186,FALSE)))) -> 25 | HP20: 0 | HR20: 3.4 | HT20: 4.03% | HU20: 0.34% | HV20: 2.46% | HW20: 13 | HX20: 8 | HY20: 1 | HZ20: -4 | IA20: 3 | IB20: 5 | IC20: 17 | ID20: 15 | IE20: -2 | IF20: -5 | IG20: 0 | IH20: 0 | II20: 0 | IJ20: 17 | IK20: -13 | IL20: -3 | IM20: 2 | IN20: 1 | IO20: 0 | IP20: -0 | IQ20: 0 | IR20: 0 | IS20: 2 | IT20: 7 | IU20: -0 | IV20: -3 | IW20: 0 | IX20: 0 | IY20: 0 | IZ20: 11 | JA20: -3 | JB20: -0 | JC20: 43 | JD20: 8 | JE20: 0 | JF20: 70 | JG20: 4.86 | JH20: 125.19 | JI20: 0 | JJ20: 0 | JK20: 0 | JL20: 0.20% | JM20: 10 | JO20: 100 | JP20: 206 | JQ20: 17 | JR20: =IF(ISERROR(IF(VLOOKUP($C20,'Indicateurs Cumulés'!$C$3:$HN$560,190,FALSE)/(VLOOKUP($C20,objectifs!$C$3:$ZZ$559,162,FALSE))>=1.5,(VLOOKUP($C20,objectifs!$C$3:$ZZ$559,162,FALSE))*1.5,IF(VLOOKUP($C20,'Indicateurs Cumulés'!$C$3:$HN$560,190,FALSE)/(VLOOKUP($C20,objectifs!$C$3:$ZZ$559,162,FALSE))<=-0.5,(VLOOKUP($C20,objectifs!$C$3:$ZZ$559,162,FALSE))*-0.5,VLOOKUP($C20,'Indicateurs Cumulés'!$C$3:$HN$560,190,FALSE)))),VLOOKUP($C20,'Indicateurs Cumulés'!$C$3:$HN$560,190,FALSE),IF(VLOOKUP($C20,'Indicateurs Cumulés'!$C$3:$HN$560,190,FALSE)/(VLOOKUP($C20,objectifs!$C$3:$ZZ$559,162,FALSE))>=1.5,(VLOOKUP($C20,objectifs!$C$3:$ZZ$559,162,FALSE))*1.5,IF(VLOOKUP($C20,'Indicateurs Cumulés'!$C$3:$HN$560,190,FALSE)/(VLOOKUP($C20,objectifs!$C$3:$ZZ$559,162,FALSE))<=-0.5,(VLOOKUP($C20,objectifs!$C$3:$ZZ$559,162,FALSE))*-0.5,VLOOKUP($C20,'Indicateurs Cumulés'!$C$3:$HN$560,190,FALSE)))) -> 66 | JS20: 0 | JT20: 1 | JV20: 4 | JW20: 7 | JX20: 1 | JY20: 4 | JZ20: 15 | KA20: -1 | KB20: 1 | KC20: 0 | KD20: -1 | KE20: 1 | KF20: 1 | KG20: -1 | KH20: 1 | KI20: 0 | KJ20: -0 | KK20: 1 | KL20: 0 | KM20: 2 | KN20: 2 | KR20: 4.78 | KS20: 1 | KT20: 11 | KU20: 0 | KV20: 20 | KW20: 4 | KX20: 0 | KY20: 17 | KZ20: 12 | LA20: 1 | LB20: 0 | LC20: 177 | LD20: 21 | LE20: -2 | LF20: -1 | LG20: -2 | LH20: -3 | LI20: -1 | LJ20: -0 | LK20: 166 | LL20: 48.3 | LM20: 45 | LN20: 99 | LO20: -6 | LP20: -4 | LQ20: 51.39 | LR20: 100 | LS20: 96 | LT20: 327 | LU20: 74 | LV20: 58 | LW20: 14 | LX20: 7.5 | LY20: 1.0 | LZ20: 1.0 | MA20: 3.7 | MB20: 0.9 | MC20: 0.1 | MD20: 191
A21: 105060 | B21: 200262 | C21: 30 | D21: BRUMATH | E21: 2019-05-31 | F21: 80 | G21: 4.32% | H21: 1.57 | I21: 2019-05-31 | J21: 999 | K21: 3.18% | L21: 2.47 | M21: 4.19 | N21: 2,711 | O21: 0 | P21: -0.01% | Q21: 8.17 | R21: 12.57 | S21: 58 | T21: 2.43% | U21: 2.37 | V21: 518 | W21: 0.08% | X21: 7.42 | Y21: 896 | Z21: 0.40% | AA21: 4.95 | AB21: 11.9 | AC21: 10.1 | AD21: 2.5 | AE21: 468.2 | AF21: 17.0 | AG21: 5.6 | AH21: 201905 | AI21: 0 | AJ21: 0 | AK21: 0.00% | AL21: 320.24 | AM21: 44.35 | AN21: 14% | AO21: 3.46 | AP21: 1.08% | AQ21: 1,414.40 | AR21: 106.15 | AS21: 7.5% | AT21: 3.14 | AU21: 0.22% | AV21: 87.10 | AW21: 7.46 | AX21: 8.57% | AY21: 1.50 | AZ21: 1.72% | BA21: 1,821.74 | BB21: 157.96 | BC21: 8.7% | BD21: 8.10 | BE21: 0.44% | BG21: 4 | BH21: 18 | BI21: 108 | BJ21: 87 | BK21: 29 | BL21: 1.59% | BM21: 0.00% | BN21: 30 | BO21: 109 | BP21: 2 | BQ21: 170 | BR21: 5 | BS21: 3 | BT21: 2 | BU21: -13 | BX21: 0 | BY21: 1 | BZ21: 0 | CA21: 0 | CB21: 0 | CC21: -1 | CD21: -1 | CE21: 6 | CF21: 1.2 | CG21: 5 | CH21: 1 | CI21: 4 | CJ21: 4 | CK21: 100.00% | CL21: 100.00% | CM21: 0 | CN21: 151.51% | CO21: 0 | CP21: 11 | CQ21: 2.5 | CR21: 1 | CS21: 0.28 | CT21: 0 | CU21: 4 | CV21: 2 | CW21: 12 | CX21: 70.90% | CY21: 145.82% | CZ21: 68 | DA21: 97.55% | DB21: 127.76% | DC21: 21 | DE21: 100.00% | DF21: 119.59% | DG21: 7 | DH21: 336 | DI21: 0.70% | DJ21: 5.33 | DK21: 13 | DL21: 105 | DM21: 0.81% | DN21: 5.33 | DO21: 4 | DP21: -5 | DQ21: 0.91% | DR21: 5.33 | DS21: -0 | DT21: 342 | DU21: 0.40% | DV21: 2.16 | DW21: 3 | DX21: -160 | DY21: 0.20% | DZ21: 5.37 | EA21: -2 | EB21: 218 | EC21: 0.20% | ED21: 5.37 | EE21: 2 | EF21: -38 | EG21: 0.20% | EH21: 5.37 | EI21: -0 | EJ21: -80 | EK21: 0.45% | EL21: 5.33 | EM21: -2 | EN21: -32 | EO21: 0.10% | EP21: 8.45 | EQ21: -0 | ER21: -27 | ES21: 0.20% | ET21: 9.00 | EU21: -0 | EV21: -259 | EW21: 0.00% | EX21: 8.59 | EY21: 0 | EZ21: -5 | FA21: -0.37% | FB21: 0.08 | FC21: 0 | FD21: 179 | FE21: 0.45% | FF21: 8.00 | FG21: 6 | FH21: 1,643 | FI21: 0.44% | FJ21: 1.00 | FK21: 7 | FL21: -85 | FM21: 0.65% | FN21: 5.00 | FO21: -3 | FP21: 64 | FQ21: 0.40% | FR21: 1.00 | FS21: 0 | FT21: -292 | FU21: 0.20% | FV21: 8.00 | FW21: -5 | FX21: 227 | FY21: 1.00% | FZ21: 5.00 | GA21: 11 | GB21: 507 | GC21: 30 | GD21: 223 | GE21: 25 | GF21: -316 | GG21: 1.00% | GH21: 5.37 | GI21: -17 | GJ21: -197 | GK21: 0 | GL21: 0 | GN21: 98 | GO21: 0.84% | GP21: 2.37 | GQ21: 2 | GR21: 0 | GS21: 0.45% | GT21: 8.00 | GU21: 0 | GV21: 0 | GW21: 0.44% | GX21: 1.00 | GY21: 0 | GZ21: 0 | HA21: 0.65% | HB21: 5.00 | HC21: 0 | HD21: 0 | HE21: 0.40% | HF21: 1.00 | HG21: 0 | HH21: 129 | HI21: 1.00% | HJ21: 5.00 | HK21: 6 | HL21: -14 | HM21: 212 | HO21: =IF(ISERROR(IF(VLOOKUP($C21,'Indicateurs Cumulés'!$C$3:$HN$560,186,FALSE)/(VLOOKUP($C21,objectifs!$C$3:$ZZ$559,158,FALSE))>=1.5,(VLOOKUP($C21,objectifs!$C$3:$ZZ$559,158,FALSE))*1.5,IF(VLOOKUP($C21,'Indicateurs Cumulés'!$C$3:$HN$560,186,FALSE)/(VLOOKUP($C21,objectifs!$C$3:$ZZ$559,158,FALSE))<=-0.5,(VLOOKUP($C21,objectifs!$C$3:$ZZ$559,158,FALSE))*-0.5,VLOOKUP($C21,'Indicateurs Cumulés'!$C$3:$HN$560,186,FALSE)))),VLOOKUP($C21,'Indicateurs Cumulés'!$C$3:$HN$560,186,FALSE),IF(VLOOKUP($C21,'Indicateurs Cumulés'!$C$3:$HN$560,186,FALSE)/(VLOOKUP($C21,objectifs!$C$3:$ZZ$559,158,FALSE))>=1.5,(VLOOKUP($C21,objectifs!$C$3:$ZZ$559,158,FALSE))*1.5,IF(VLOOKUP($C21,'Indicateurs Cumulés'!$C$3:$HN$560,186,FALSE)/(VLOOKUP($C21,objectifs!$C$3:$ZZ$559,158,FALSE))<=-0.5,(VLOOKUP($C21,objectifs!$C$3:$ZZ$559,158,FALSE))*-0.5,VLOOKUP($C21,'Indicateurs Cumulés'!$C$3:$HN$560,186,FALSE)))) -> -316 | HP21: 0 | HR21: 7.2 | HT21: 4.06% | HU21: 0.38% | HV21: 0.62% | HW21: 17 | HX21: 12 | HY21: -2 | HZ21: 4 | IA21: 1 | IB21: 3 | IC21: 28 | ID21: -7 | IE21: -5 | IF21: -23 | IG21: -7 | IH21: 0 | II21: 0 | IJ21: 38 | IK21: -54 | IL21: 1 | IM21: 2 | IN21: 1 | IO21: -1 | IP21: 0 | IQ21: 0 | IR21: 0 | IS21: 3 | IT21: -3 | IU21: -0 | IV21: -14 | IW21: -7 | IX21: 0 | IY21: 0 | IZ21: 25 | JA21: -12 | JB21: 0 | JC21: 33 | JD21: 51 | JE21: 14 | JF21: 44 | JG21: 4.73 | JH21: 160.61 | JI21: 0 | JJ21: 0 | JK21: -11 | JL21: 0.20% | JM21: 6 | JO21: -6 | JP21: 178 | JQ21: -57 | JR21: =IF(ISERROR(IF(VLOOKUP($C21,'Indicateurs Cumulés'!$C$3:$HN$560,190,FALSE)/(VLOOKUP($C21,objectifs!$C$3:$ZZ$559,162,FALSE))>=1.5,(VLOOKUP($C21,objectifs!$C$3:$ZZ$559,162,FALSE))*1.5,IF(VLOOKUP($C21,'Indicateurs Cumulés'!$C$3:$HN$560,190,FALSE)/(VLOOKUP($C21,objectifs!$C$3:$ZZ$559,162,FALSE))<=-0.5,(VLOOKUP($C21,objectifs!$C$3:$ZZ$559,162,FALSE))*-0.5,VLOOKUP($C21,'Indicateurs Cumulés'!$C$3:$HN$560,190,FALSE)))),VLOOKUP($C21,'Indicateurs Cumulés'!$C$3:$HN$560,190,FALSE),IF(VLOOKUP($C21,'Indicateurs Cumulés'!$C$3:$HN$560,190,FALSE)/(VLOOKUP($C21,objectifs!$C$3:$ZZ$559,162,FALSE))>=1.5,(VLOOKUP($C21,objectifs!$C$3:$ZZ$559,162,FALSE))*1.5,IF(VLOOKUP($C21,'Indicateurs Cumulés'!$C$3:$HN$560,190,FALSE)/(VLOOKUP($C21,objectifs!$C$3:$ZZ$559,162,FALSE))<=-0.5,(VLOOKUP($C21,objectifs!$C$3:$ZZ$559,162,FALSE))*-0.5,VLOOKUP($C21,'Indicateurs Cumulés'!$C$3:$HN$560,190,FALSE)))) -> -49 | JS21: -0 | JT21: 0 | JV21: -0 | JW21: 6 | JX21: -2 | JY21: -3 | JZ21: 1 | KA21: 4 | KB21: 0 | KC21: -1 | KD21: 5 | KE21: -2 | KF21: 3 | KG21: 6 | KH21: 0 | KI21: -1 | KJ21: 1 | KK21: -1 | KL21: 0 | KM21: 12 | KN21: 7 | KR21: 4.81 | KS21: 9 | KT21: 3 | KU21: 0 | KV21: 21 | KW21: 4 | KX21: 0 | KY21: 38 | KZ21: 27 | LA21: 0 | LB21: 0 | LC21: 302 | LD21: 75 | LE21: 4 | LF21: 3 | LG21: 5 | LH21: 7 | LI21: 9 | LJ21: 1 | LK21: 287 | LL21: 40.1 | LM21: 37 | LN21: 225 | LO21: -14 | LP21: 11 | LQ21: 42.18 | LR21: 171 | LS21: 140 | LT21: 440 | LU21: 99 | LV21: 1 | LW21: 11 | LX21: 12.8 | LY21: 1.4 | LZ21: 1.3 | MA21: 5.0 | MB21: 0.0 | MC21: 0.1 | MD21: 323
A22: 105060 | B22: 200262 | C22: 31 | D22: TRUCHTERSHEIM | E22: 2019-05-31 | F22: 31 | G22: 4.32% | H22: 1.57 | I22: 2019-05-31 | J22: 466 | K22: 2.73% | L22: 2.25 | M22: 3.90 | N22: 2,783 | O22: 0 | P22: 0.00% | Q22: 7.86 | R22: 12.21 | S22: 40 | T22: 2.06% | U22: 1.85 | V22: 298 | W22: -0.04% | X22: 5.15 | Y22: -28 | Z22: 0.04% | AA22: 23.38 | AB22: 6.2 | AC22: 4.0 | AD22: 0.6 | AE22: 292.1 | AF22: 5.8 | AG22: 5.3 | AH22: 201905 | AI22: 0 | AJ22: 0 | AK22: 0.00% | AL22: 119.03 | AM22: 17.76 | AN22: 15% | AO22: 1.15 | AP22: 0.97% | AQ22: 274.92 | AR22: 30.20 | AS22: 11.0% | AT22: 0.21 | AU22: 0.08% | AV22: 15.86 | AW22: 2.50 | AX22: 15.75% | AY22: 0.37 | AZ22: 2.35% | BA22: 409.81 | BB22: 50.45 | BC22: 12.3% | BD22: 1.74 | BE22: 0.42% | BG22: 3 | BH22: 2 | BI22: 40 | BJ22: 59 | BK22: 0 | BL22: 1.56% | BM22: 0.00% | BN22: 31 | BO22: 58 | BP22: 1 | BQ22: 93 | BR22: 3 | BS22: 2 | BT22: 0 | BU22: -4 | BX22: 0 | BY22: 0 | BZ22: 0 | CA22: 1 | CB22: 0 | CC22: 0 | CD22: 0 | CE22: 8 | CF22: 1.6 | CG22: 4 | CH22: 1 | CI22: 2 | CJ22: 2 | CK22: 112.66% | CL22: 212.36% | CM22: 1 | CN22: 100.00% | CO22: 1 | CP22: 1 | CQ22: 0.6 | CR22: 0 | CS22: 0.00 | CT22: 0 | CU22: 1 | CV22: 1 | CW22: 6 | CX22: 37.16% | CY22: 123.88% | CZ22: 45 | DA22: 84.54% | DB22: 141.77% | DC22: 8 | DE22: 55.78% | DF22: 100.00% | DG22: 0 | DH22: 472 | DI22: 0.70% | DJ22: 5.33 | DK22: 18 | DL22: 718 | DM22: 0.81% | DN22: 5.33 | DO22: 31 | DP22: -28 | DQ22: 0.91% | DR22: 5.33 | DS22: -1 | DT22: 580 | DU22: 0.40% | DV22: 2.16 | DW22: 5 | DX22: -157 | DY22: 0.20% | DZ22: 5.37 | EA22: -2 | EB22: 205 | EC22: 0.20% | ED22: 5.37 | EE22: 2 | EF22: -31 | EG22: 0.20% | EH22: 5.37 | EI22: -0 | EJ22: -0 | EK22: 0.45% | EL22: 5.33 | EM22: -0 | EN22: -1 | EO22: 0.10% | EP22: 7.72 | EQ22: -0 | ER22: -97 | ES22: 0.20% | ET22: 9.00 | EU22: -2 | EV22: 238 | EW22: 0.00% | EX22: 8.50 | EY22: 0 | EZ22: 0 | FA22: -0.37% | FB22: 0.08 | FC22: 0 | FD22: -315 | FE22: 0.45% | FF22: 8.00 | FG22: -11 | FH22: 497 | FI22: 0.42% | FJ22: 1.00 | FK22: 2 | FL22: -1 | FM22: 0.65% | FN22: 5.00 | FO22: -0 | FP22: 5 | FQ22: 0.40% | FR22: 1.00 | FS22: 0 | FT22: -158 | FU22: 0.20% | FV22: 8.00 | FW22: -3 | FX22: 226 | FY22: 1.00% | FZ22: 5.00 | GA22: 11 | GB22: 2,261 | GC22: 69 | GD22: -244 | GE22: -2 | GF22: -381 | GG22: 1.00% | GH22: 5.37 | GI22: -20 | GJ22: -152 | GK22: 0 | GL22: 0 | GN22: 0 | GO22: 0.00% | GP22: 0 | GQ22: 0 | GR22: 0 | GS22: 0.45% | GT22: 8.00 | GU22: 0 | GV22: 0 | GW22: 0.42% | GX22: 1.00 | GY22: 0 | GZ22: 0 | HA22: 0.65% | HB22: 5.00 | HC22: 0 | HD22: 0 | HE22: 0.40% | HF22: 1.00 | HG22: 0 | HH22: 72 | HI22: 1.00% | HJ22: 5.00 | HK22: 4 | HL22: -8 | HM22: 119 | HO22: =IF(ISERROR(IF(VLOOKUP($C22,'Indicateurs Cumulés'!$C$3:$HN$560,186,FALSE)/(VLOOKUP($C22,objectifs!$C$3:$ZZ$559,158,FALSE))>=1.5,(VLOOKUP($C22,objectifs!$C$3:$ZZ$559,158,FALSE))*1.5,IF(VLOOKUP($C22,'Indicateurs Cumulés'!$C$3:$HN$560,186,FALSE)/(VLOOKUP($C22,objectifs!$C$3:$ZZ$559,158,FALSE))<=-0.5,(VLOOKUP($C22,objectifs!$C$3:$ZZ$559,158,FALSE))*-0.5,VLOOKUP($C22,'Indicateurs Cumulés'!$C$3:$HN$560,186,FALSE)))),VLOOKUP($C22,'Indicateurs Cumulés'!$C$3:$HN$560,186,FALSE),IF(VLOOKUP($C22,'Indicateurs Cumulés'!$C$3:$HN$560,186,FALSE)/(VLOOKUP($C22,objectifs!$C$3:$ZZ$559,158,FALSE))>=1.5,(VLOOKUP($C22,objectifs!$C$3:$ZZ$559,158,FALSE))*1.5,IF(VLOOKUP($C22,'Indicateurs Cumulés'!$C$3:$HN$560,186,FALSE)/(VLOOKUP($C22,objectifs!$C$3:$ZZ$559,158,FALSE))<=-0.5,(VLOOKUP($C22,objectifs!$C$3:$ZZ$559,158,FALSE))*-0.5,VLOOKUP($C22,'Indicateurs Cumulés'!$C$3:$HN$560,186,FALSE)))) -> -185 | HP22: 0 | HR22: 3.9 | HT22: 3.59% | HU22: 0.26% | HV22: -0.07% | HW22: 11 | HX22: 1 | HY22: 2 | HZ22: 1 | IA22: -1 | IB22: 3 | IC22: 12 | ID22: -4 | IE22: -5 | IF22: -4 | IG22: 0 | IH22: 1 | II22: -1 | IJ22: 23 | IK22: -24 | IL22: -2 | IM22: 1 | IN22: 0 | IO22: 1 | IP22: 0 | IQ22: -0 | IR22: 0 | IS22: 1 | IT22: -2 | IU22: -0 | IV22: -2 | IW22: 0 | IX22: 2 | IY22: -1 | IZ22: 15 | JA22: -5 | JB22: -0 | JC22: 31 | JD22: 6 | JE22: 0 | JF22: 36 | JG22: 4.70 | JH22: 184.60 | JI22: 0 | JJ22: 0 | JK22: -1 | JL22: 0.20% | JM22: 0 | JO22: 1 | JP22: 295 | JQ22: 0 | JR22: =IF(ISERROR(IF(VLOOKUP($C22,'Indicateurs Cumulés'!$C$3:$HN$560,190,FALSE)/(VLOOKUP($C22,objectifs!$C$3:$ZZ$559,162,FALSE))>=1.5,(VLOOKUP($C22,objectifs!$C$3:$ZZ$559,162,FALSE))*1.5,IF(VLOOKUP($C22,'Indicateurs Cumulés'!$C$3:$HN$560,190,FALSE)/(VLOOKUP($C22,objectifs!$C$3:$ZZ$559,162,FALSE))<=-0.5,(VLOOKUP($C22,objectifs!$C$3:$ZZ$559,162,FALSE))*-0.5,VLOOKUP($C22,'Indicateurs Cumulés'!$C$3:$HN$560,190,FALSE)))),VLOOKUP($C22,'Indicateurs Cumulés'!$C$3:$HN$560,190,FALSE),IF(VLOOKUP($C22,'Indicateurs Cumulés'!$C$3:$HN$560,190,FALSE)/(VLOOKUP($C22,objectifs!$C$3:$ZZ$559,162,FALSE))>=1.5,(VLOOKUP($C22,objectifs!$C$3:$ZZ$559,162,FALSE))*1.5,IF(VLOOKUP($C22,'Indicateurs Cumulés'!$C$3:$HN$560,190,FALSE)/(VLOOKUP($C22,objectifs!$C$3:$ZZ$559,162,FALSE))<=-0.5,(VLOOKUP($C22,objectifs!$C$3:$ZZ$559,162,FALSE))*-0.5,VLOOKUP($C22,'Indicateurs Cumulés'!$C$3:$HN$560,190,FALSE)))) -> -31 | JS22: -0 | JT22: 0 | JV22: 0 | JW22: 10 | JX22: 0 | JY22: -2 | JZ22: 8 | KA22: 2 | KB22: 0 | KC22: 0 | KD22: 1 | KE22: 1 | KF22: 0 | KG22: 3 | KH22: 0 | KI22: 0 | KJ22: 0 | KK22: 1 | KL22: 0 | KM22: 6 | KN22: 2 | KR22: 4.63 | KS22: 4 | KT22: 11 | KU22: 0 | KV22: 5 | KW22: 1 | KX22: 0 | KY22: 23 | KZ22: 16 | LA22: 0 | LB22: 0 | LC22: 201 | LD22: 33 | LE22: 6 | LF22: 4 | LG22: 6 | LH22: 9 | LI22: 1 | LJ22: 0 | LK22: 194 | LL22: 49.6 | LM22: 57 | LN22: 100 | LO22: -8 | LP22: 13 | LQ22: 51.34 | LR22: 130 | LS22: 50 | LT22: 257 | LU22: 88 | LV22: 26 | LW22: 4 | LX22: 9.8 | LY22: 0.5 | LZ22: 0.8 | MA22: 4.4 | MB22: 0.4 | MC22: 0.0 | MD22: 217
A23: 105006 | B23: 200262 | C23: 33 | D23: LA WANTZENAU | E23: 2019-05-31 | F23: 22 | G23: 4.32% | H23: 1.57 | I23: 2019-05-31 | J23: 431 | K23: 3.32% | L23: 2.20 | M23: 3.78 | N23: 1,821 | O23: 0 | P23: -0.07% | Q23: 6.44 | R23: 10.11 | S23: 35 | T23: 2.46% | U23: 2.40 | V23: 0 | W23: 0.00% | X23: 0 | Y23: 5 | Z23: 0.46% | AA23: 6.54 | AB23: 3.7 | AC23: 4.5 | AD23: 2.2 | AE23: 34.5 | AF23: 7.7 | AG23: 1.3 | AH23: 201905 | AI23: 0 | AJ23: 0 | AK23: 0.00% | AL23: 301.43 | AM23: 55.77 | AN23: 19% | AO23: 1.53 | AP23: 0.51% | AQ23: 710.74 | AR23: 5.31 | AS23: 0.7% | AT23: 0.76 | AU23: 0.11% | AV23: 30.25 | AW23: 6.58 | AX23: 21.76% | AY23: 0.47 | AZ23: 1.54% | BA23: 1,042.41 | BB23: 67.66 | BC23: 6.5% | BD23: 2.76 | BE23: 0.26% | BG23: 3 | BH23: 0 | BI23: 44 | BJ23: 23 | BK23: 4 | BL23: 1.46% | BM23: 0.00% | BN23: 33 | BO23: 17 | BP23: 0 | BQ23: 98 | BR23: 3 | BS23: 0 | BT23: 1 | BU23: -2 | BX23: 0 | BY23: 0 | BZ23: 0 | CA23: 0 | CB23: 0 | CC23: 3 | CD23: 2 | CE23: 8 | CF23: 1.6 | CG23: -3 | CH23: -1 | CI23: 3 | CJ23: 3 | CK23: 100.00% | CL23: 200.00% | CM23: 1 | CN23: 0.00% | CO23: 1 | CP23: 0 | CQ23: 2.2 | CR23: 0 | CS23: 0.00 | CT23: 0 | CU23: 2 | CV23: 0 | CW23: 4 | CX23: 78.50% | CY23: 77.49% | CZ23: 24 | DA23: 94.20% | DB23: 134.70% | DC23: 8 | DE23: 100.00% | DF23: 102.13% | DG23: 1 | DH23: 183 | DI23: 0.70% | DJ23: 5.33 | DK23: 7 | DL23: 23 | DM23: 0.81% | DN23: 5.33 | DO23: 1 | DP23: -74 | DQ23: 0.91% | DR23: 5.33 | DS23: -4 | DT23: 184 | DU23: 0.40% | DV23: 2.16 | DW23: 2 | DX23: -80 | DY23: 0.20% | DZ23: 5.37 | EA23: -1 | EB23: 95 | EC23: 0.20% | ED23: 5.37 | EE23: 1 | EF23: -30 | EG23: 0.20% | EH23: 5.37 | EI23: -0 | EJ23: 30 | EK23: 0.45% | EL23: 5.33 | EM23: 1 | EN23: -12 | EO23: 0.10% | EP23: 7.18 | EQ23: -0 | ER23: -186 | ES23: 0.20% | ET23: 9.00 | EU23: -3 | EV23: 186 | EW23: 0.00% | EX23: 8.59 | EY23: 0 | EZ23: 0 | FA23: -0.37% | FB23: 0.08 | FC23: 0 | FD23: 579 | FE23: 0.45% | FF23: 8.00 | FG23: 21 | FH23: 997 | FI23: 0.26% | FJ23: 1.00 | FK23: 3 | FL23: 11 | FM23: 0.65% | FN23: 5.00 | FO23: 0 | FP23: 19 | FQ23: 0.40% | FR23: 1.00 | FS23: 0 | FT23: -190 | FU23: 0.20% | FV23: 8.00 | FW23: -3 | FX23: 225 | FY23: 1.00% | FZ23: 5.00 | GA23: 11 | GB23: 373 | GC23: 12 | GD23: 556 | GE23: 25 | GF23: -1,027 | GG23: 1.00% | GH23: 5.37 | GI23: -55 | GJ23: -22 | GK23: 0 | GL23: 0 | GN23: 0 | GO23: 0.00% | GP23: 0 | GQ23: 0 | GR23: 0 | GS23: 0.45% | GT23: 8.00 | GU23: 0 | GV23: 0 | GW23: 0.26% | GX23: 1.00 | GY23: 0 | GZ23: 0 | HA23: 0.65% | HB23: 5.00 | HC23: 0 | HD23: 0 | HE23: 0.40% | HF23: 1.00 | HG23: 0 | HH23: -35 | HI23: 1.00% | HJ23: 5.00 | HK23: -2 | HL23: -4 | HM23: 83 | HO23: =IF(ISERROR(IF(VLOOKUP($C23,'Indicateurs Cumulés'!$C$3:$HN$560,186,FALSE)/(VLOOKUP($C23,objectifs!$C$3:$ZZ$559,158,FALSE))>=1.5,(VLOOKUP($C23,objectifs!$C$3:$ZZ$559,158,FALSE))*1.5,IF(VLOOKUP($C23,'Indicateurs Cumulés'!$C$3:$HN$560,186,FALSE)/(VLOOKUP($C23,objectifs!$C$3:$ZZ$559,158,FALSE))<=-0.5,(VLOOKUP($C23,objectifs!$C$3:$ZZ$559,158,FALSE))*-0.5,VLOOKUP($C23,'Indicateurs Cumulés'!$C$3:$HN$560,186,FALSE)))),VLOOKUP($C23,'Indicateurs Cumulés'!$C$3:$HN$560,186,FALSE),IF(VLOOKUP($C23,'Indicateurs Cumulés'!$C$3:$HN$560,186,FALSE)/(VLOOKUP($C23,objectifs!$C$3:$ZZ$559,158,FALSE))>=1.5,(VLOOKUP($C23,objectifs!$C$3:$ZZ$559,158,FALSE))*1.5,IF(VLOOKUP($C23,'Indicateurs Cumulés'!$C$3:$HN$560,186,FALSE)/(VLOOKUP($C23,objectifs!$C$3:$ZZ$559,158,FALSE))<=-0.5,(VLOOKUP($C23,objectifs!$C$3:$ZZ$559,158,FALSE))*-0.5,VLOOKUP($C23,'Indicateurs Cumulés'!$C$3:$HN$560,186,FALSE)))) -> -146 | HP23: 0 | HR23: 2.9 | HT23: 4.40% | HU23: 0.17% | HV23: 10.11% | HW23: 0 | HX23: 6 | HY23: -1 | HZ23: 3 | IA23: 11 | IB23: 1 | IC23: 14 | ID23: -17 | IE23: -3 | IF23: -2 | IG23: -3 | IH23: 1 | II23: -5 | IJ23: 26 | IK23: -28 | IL23: 0 | IM23: 0 | IN23: 1 | IO23: -0 | IP23: 0 | IQ23: 0 | IR23: 0 | IS23: 2 | IT23: -7 | IU23: -0 | IV23: -1 | IW23: -3 | IX23: 2 | IY23: -5 | IZ23: 17 | JA23: -6 | JB23: 0 | JC23: 15 | JD23: 7 | JE23: 0 | JF23: 25 | JG23: 6.00 | JH23: 100.65 | JI23: 0 | JJ23: 0 | JK23: 0 | JL23: 0.20% | JM23: 0 | JO23: 7 | JP23: 21 | JQ23: -2 | JR23: =IF(ISERROR(IF(VLOOKUP($C23,'Indicateurs Cumulés'!$C$3:$HN$560,190,FALSE)/(VLOOKUP($C23,objectifs!$C$3:$ZZ$559,162,FALSE))>=1.5,(VLOOKUP($C23,objectifs!$C$3:$ZZ$559,162,FALSE))*1.5,IF(VLOOKUP($C23,'Indicateurs Cumulés'!$C$3:$HN$560,190,FALSE)/(VLOOKUP($C23,objectifs!$C$3:$ZZ$559,162,FALSE))<=-0.5,(VLOOKUP($C23,objectifs!$C$3:$ZZ$559,162,FALSE))*-0.5,VLOOKUP($C23,'Indicateurs Cumulés'!$C$3:$HN$560,190,FALSE)))),VLOOKUP($C23,'Indicateurs Cumulés'!$C$3:$HN$560,190,FALSE),IF(VLOOKUP($C23,'Indicateurs Cumulés'!$C$3:$HN$560,190,FALSE)/(VLOOKUP($C23,objectifs!$C$3:$ZZ$559,162,FALSE))>=1.5,(VLOOKUP($C23,objectifs!$C$3:$ZZ$559,162,FALSE))*1.5,IF(VLOOKUP($C23,'Indicateurs Cumulés'!$C$3:$HN$560,190,FALSE)/(VLOOKUP($C23,objectifs!$C$3:$ZZ$559,162,FALSE))<=-0.5,(VLOOKUP($C23,objectifs!$C$3:$ZZ$559,162,FALSE))*-0.5,VLOOKUP($C23,'Indicateurs Cumulés'!$C$3:$HN$560,190,FALSE)))) -> -22 | JS23: 0 | JT23: 0 | JV23: 0 | JW23: 1 | JX23: -0 | JY23: -1 | JZ23: -0 | KA23: -1 | KB23: 0 | KC23: 0 | KD23: 0 | KE23: -1 | KF23: 0 | KG23: -1 | KH23: 0 | KI23: 0 | KJ23: 0 | KK23: -1 | KL23: 0 | KM23: 0 | KN23: 1 | KR23: 5.74 | KS23: -2 | KT23: 2 | KU23: 0 | KV23: -2 | KW23: -0 | KX23: 0 | KY23: 22 | KZ23: 15 | LA23: 0 | LB23: 0 | LC23: 118 | LD23: 11 | LE23: 2 | LF23: 1 | LG23: 2 | LH23: 3 | LI23: 1 | LJ23: 0 | LK23: 113 | LL23: 38.8 | LM23: 29 | LN23: 71 | LO23: -4 | LP23: 4 | LQ23: 40.65 | LR23: 92 | LS23: 30 | LT23: 268 | LU23: 73 | LV23: 16 | LW23: 5 | LX23: 6.9 | LY23: 0.3 | LZ23: 0.8 | MA23: 3.7 | MB23: 0.2 | MC23: 0.0 | MD23: 130
A24: 105006 | B24: 200262 | C24: 34 | D24: VENDENHEIM | E24: 2019-05-31 | F24: 21 | G24: 4.32% | H24: 1.57 | I24: 2019-05-31 | J24: 117 | K24: 4.73% | L24: 2.28 | M24: 3.93 | N24: 704 | O24: 0 | P24: -0.26% | Q24: 8.61 | R24: 12.83 | S24: 6 | T24: 4.35% | U24: 2.42 | V24: 0 | W24: 0.00% | X24: 0 | Y24: 29 | Z24: 1.43% | AA24: 1.77 | AB24: 2.9 | AC24: 1.6 | AD24: 0.4 | AE24: 16.1 | AF24: 3.4 | AG24: 2.1 | AH24: 201905 | AI24: 53.74 | AJ24: 0 | AK24: 0.00% | AL24: 96.79 | AM24: 20.17 | AN24: 21% | AO24: 0.72 | AP24: 0.74% | AQ24: 228.73 | AR24: 0 | AS24: 0.0% | AT24: 0.68 | AU24: 0.30% | AV24: 20.63 | AW24: 1.53 | AX24: 7.42% | AY24: 0.41 | AZ24: 1.98% | BA24: 403.88 | BB24: 21.70 | BC24: 5.4% | BD24: 1.90 | BE24: 0.47% | BG24: 1 | BH24: 0 | BI24: 17 | BJ24: -7 | BK24: 1 | BL24: 1.54% | BM24: 0.00% | BN24: 34 | BO24: 29 | BP24: 1 | BQ24: 35 | BR24: 1 | BS24: 1 | BT24: 0 | BU24: -2 | BX24: 0 | BY24: 0 | BZ24: 0 | CA24: 0 | CB24: 0 | CC24: 2 | CD24: 1 | CE24: 3 | CF24: 0.6 | CG24: -9 | CH24: -2 | CI24: 0 | CJ24: 0 | CK24: 100.00% | CL24: 200.00% | CM24: 0 | CN24: 0.00% | CO24: 0 | CP24: 0 | CQ24: 0.4 | CR24: 0 | CS24: 0.00 | CT24: 0 | CU24: 1 | CV24: 0 | CW24: 3 | CX24: 1.17% | CY24: 200.00% | CZ24: 4 | DA24: 98.98% | DB24: 146.90% | DC24: 3 | DE24: 100.00% | DF24: 100.00% | DG24: 0 | DH24: 181 | DI24: =DI$374 -> 0.70% | DJ24: 5.33 | DK24: 7 | DL24: 105 | DM24: =DM$374 -> 0.81% | DN24: 5.33 | DO24: 4 | DP24: -22 | DQ24: =DQ$374 -> 0.91% | DR24: 5.33 | DS24: -1 | DT24: 140 | DU24: =DU$374 -> 0.40% | DV24: 2.16 | DW24: 1 | DX24: -114 | DY24: =DY$374 -> 0.20% | DZ24: 5.37 | EA24: -1 | EB24: 16 | EC24: =EC$374 -> 0.20% | ED24: 5.37 | EE24: 0 | EF24: -27 | EG24: =EG$374 -> 0.20% | EH24: 5.37 | EI24: -0 | EJ24: 14 | EK24: =EK$374 -> 0.45% | EL24: 5.33 | EM24: 0 | EN24: -8 | EO24: 0.10% | EP24: 5.13 | EQ24: -0 | ER24: -20 | ES24: =ES$374 -> 0.20% | ET24: 9.00 | EU24: -0 | EV24: 419 | EW24: 0.00% | EX24: 8.59 | EY24: 0 | EZ24: 0 | FA24: =FA$374 -> -0.37% | FB24: 0.08 | FC24: 0 | FD24: -91 | FE24: =FE$374 -> 0.45% | FF24: 8.00 | FG24: -3 | FH24: 506 | FI24: 0.47% | FJ24: 1.00 | FK24: 2 | FL24: -138 | FM24: =FM$374 -> 0.65% | FN24: 5.00 | FO24: -4 | FP24: 4 | FQ24: =FQ$374 -> 0.40% | FR24: 1.00 | FS24: 0 | FT24: -148 | FU24: =FU$374 -> 0.20% | FV24: 8.00 | FW24: -2 | FX24: 232 | FY24: =FY$374 -> 1.00% | FZ24: 5.00 | GA24: 12 | GB24: 815 | GC24: 21 | GD24: -235 | GE24: -4 | GF24: -12 | GG24: =GG$374 -> 1.00% | GH24: 5.37 | GI24: -1 | GJ24: 10 | GK24: 0 | GL24: 0 | GN24: 0 | GO24: 0.00% | GP24: 0 | GQ24: 0 | GR24: 0 | GS24: =GS$374 -> 0.45% | GT24: 8.00 | GU24: 0 | GV24: 0 | GW24: 0.47% | GX24: 1.00 | GY24: 0 | GZ24: 0 | HA24: =HA$374 -> 0.65% | HB24: 5.00 | HC24: 0 | HD24: 0 | HE24: 0.40% | HF24: 1.00 | HG24: 0 | HH24: -7 | HI24: =HI$374 -> 1.00% | HJ24: 5.00 | HK24: -0 | HL24: -5 | HM24: 76 | HO24: =IF(ISERROR(IF(VLOOKUP($C24,'Indicateurs Cumulés'!$C$3:$HN$560,186,FALSE)/(VLOOKUP($C24,objectifs!$C$3:$ZZ$559,158,FALSE))>=1.5,(VLOOKUP($C24,objectifs!$C$3:$ZZ$559,158,FALSE))*1.5,IF(VLOOKUP($C24,'Indicateurs Cumulés'!$C$3:$HN$560,186,FALSE)/(VLOOKUP($C24,objectifs!$C$3:$ZZ$559,158,FALSE))<=-0.5,(VLOOKUP($C24,objectifs!$C$3:$ZZ$559,158,FALSE))*-0.5,VLOOKUP($C24,'Indicateurs Cumulés'!$C$3:$HN$560,186,FALSE)))),VLOOKUP($C24,'Indicateurs Cumulés'!$C$3:$HN$560,186,FALSE),IF(VLOOKUP($C24,'Indicateurs Cumulés'!$C$3:$HN$560,186,FALSE)/(VLOOKUP($C24,objectifs!$C$3:$ZZ$559,158,FALSE))>=1.5,(VLOOKUP($C24,objectifs!$C$3:$ZZ$559,158,FALSE))*1.5,IF(VLOOKUP($C24,'Indicateurs Cumulés'!$C$3:$HN$560,186,FALSE)/(VLOOKUP($C24,objectifs!$C$3:$ZZ$559,158,FALSE))<=-0.5,(VLOOKUP($C24,objectifs!$C$3:$ZZ$559,158,FALSE))*-0.5,VLOOKUP($C24,'Indicateurs Cumulés'!$C$3:$HN$560,186,FALSE)))) -> -12 | HP24: 0 | HR24: 1.9 | HT24: 5.54% | HU24: -0.12% | HV24: 2.27% | HW24: 5 | HX24: 2 | HY24: -2 | HZ24: -2 | IA24: -3 | IB24: 0 | IC24: 2 | ID24: -22 | IE24: -1 | IF24: -2 | IG24: -1 | IH24: 0 | II24: 0 | IJ24: 21 | IK24: -19 | IL24: -1 | IM24: 1 | IN24: 0 | IO24: -1 | IP24: -0 | IQ24: -0 | IR24: 0 | IS24: 0 | IT24: -10 | IU24: -0 | IV24: -1 | IW24: -1 | IX24: 0 | IY24: 0 | IZ24: 14 | JA24: -4 | JB24: -0 | JC24: 14 | JD24: 2 | JE24: 0 | JF24: -2 | JG24: 11.76 | JH24: -585.82 | JI24: 0 | JJ24: 0 | JK24: -2 | JL24: 0.20% | JM24: 13 | JO24: -2 | JP24: 47 | JQ24: 37 | JR24: =IF(ISERROR(IF(VLOOKUP($C24,'Indicateurs Cumulés'!$C$3:$HN$560,190,FALSE)/(VLOOKUP($C24,objectifs!$C$3:$ZZ$559,162,FALSE))>=1.5,(VLOOKUP($C24,objectifs!$C$3:$ZZ$559,162,FALSE))*1.5,IF(VLOOKUP($C24,'Indicateurs Cumulés'!$C$3:$HN$560,190,FALSE)/(VLOOKUP($C24,objectifs!$C$3:$ZZ$559,162,FALSE))<=-0.5,(VLOOKUP($C24,objectifs!$C$3:$ZZ$559,162,FALSE))*-0.5,VLOOKUP($C24,'Indicateurs Cumulés'!$C$3:$HN$560,190,FALSE)))),VLOOKUP($C24,'Indicateurs Cumulés'!$C$3:$HN$560,190,FALSE),IF(VLOOKUP($C24,'Indicateurs Cumulés'!$C$3:$HN$560,190,FALSE)/(VLOOKUP($C24,objectifs!$C$3:$ZZ$559,162,FALSE))>=1.5,(VLOOKUP($C24,objectifs!$C$3:$ZZ$559,162,FALSE))*1.5,IF(VLOOKUP($C24,'Indicateurs Cumulés'!$C$3:$HN$560,190,FALSE)/(VLOOKUP($C24,objectifs!$C$3:$ZZ$559,162,FALSE))<=-0.5,(VLOOKUP($C24,objectifs!$C$3:$ZZ$559,162,FALSE))*-0.5,VLOOKUP($C24,'Indicateurs Cumulés'!$C$3:$HN$560,190,FALSE)))) -> 10 | JS24: -0 | JT24: 1 | JV24: -0 | JW24: 2 | JX24: 1 | JY24: 1 | JZ24: 4 | KA24: 1 | KB24: 0 | KC24: 0 | KD24: 2 | KE24: -1 | KF24: 3 | KG24: 1 | KH24: 0 | KI24: 0 | KJ24: 0 | KK24: -1 | KL24: 0 | KM24: 5 | KN24: 2 | KR24: -1.76 | KS24: 5 | KT24: -24 | KU24: 0 | KV24: 6 | KW24: 1 | KX24: 0 | KY24: 21 | KZ24: 15 | LA24: 0 | LB24: 0 | LC24: 44 | LD24: 15 | LE24: 1 | LF24: 1 | LG24: 3 | LH24: 4 | LI24: -5 | LJ24: -1 | LK24: 40 | LL24: 21.0 | LM24: 16 | LN24: 12 | LO24: -5 | LP24: 5 | LQ24: 22.72 | LR24: 74 | LS24: 29 | LT24: 179 | LU24: 54 | LV24: 26 | LW24: 0 | LX24: 5.6 | LY24: 0.3 | LZ24: 0.5 | MA24: 2.7 | MB24: 0.4 | MC24: 0.0 | MD24: 53
A25: 105006 | B25: 200262 | C25: 37 | D25: MUNDOLSHEIM | E25: 2019-05-31 | F25: 32 | G25: 4.32% | H25: 1.57 | I25: 2019-05-31 | J25: 676 | K25: 3.23% | L25: 2.55 | M25: 4.33 | N25: 2,345 | O25: 0 | P25: 0.07% | Q25: 8.03 | R25: 12.07 | S25: 140 | T25: 3.71% | U25: 2.96 | V25: 0 | W25: 0.00% | X25: 0 | Y25: 250 | Z25: 0.45% | AA25: 4.61 | AB25: 12.6 | AC25: 10.6 | AD25: 0.8 | AE25: 61.9 | AF25: 9.8 | AG25: 5.2 | AH25: 201905 | AI25: 0 | AJ25: 0 | AK25: 0.00% | AL25: 140.71 | AM25: 55.48 | AN25: 39% | AO25: 0.55 | AP25: 0.39% | AQ25: 792.35 | AR25: 64.70 | AS25: 8.2% | AT25: 0.58 | AU25: 0.07% | AV25: 20.44 | AW25: 4.07 | AX25: 19.91% | AY25: 0.35 | AZ25: 1.70% | BA25: 953.51 | BB25: 124.25 | BC25: 13.0% | BD25: 1.48 | BE25: 0.16% | BG25: 19 | BH25: 0 | BI25: 77 | BJ25: 86 | BK25: 8 | BL25: 1.57% | BM25: 0.00% | BN25: 37 | BO25: 3 | BP25: 0 | BQ25: 103 | BR25: 3 | BS25: 0 | BT25: 3 | BU25: 0 | BX25: 0 | BY25: 0 | BZ25: 0 | CA25: 2 | CB25: 0 | CC25: -2 | CD25: -1 | CE25: 13 | CF25: 2.6 | CG25: -1 | CH25: -0 | CI25: 4 | CJ25: 4 | CK25: 100.00% | CL25: 125.00% | CM25: 2 | CN25: 0.00% | CO25: 2 | CP25: 0 | CQ25: 0.8 | CR25: 0 | CS25: 0.00 | CT25: 1 | CU25: 4 | CV25: 0 | CW25: 13 | CX25: 55.86% | CY25: 159.26% | CZ25: 51 | DA25: 97.78% | DB25: 139.23% | DC25: 15 | DE25: 100.00% | DF25: 100.00% | DG25: 2 | DH25: 373 | DI25: 0.70% | DJ25: 5.33 | DK25: 14 | DL25: 43 | DM25: 0.81% | DN25: 5.33 | DO25: 2 | DP25: -18 | DQ25: 0.91% | DR25: 5.33 | DS25: -1 | DT25: 396 | DU25: 0.40% | DV25: 2.16 | DW25: 3 | DX25: -137 | DY25: 0.20% | DZ25: 5.37 | EA25: -1 | EB25: 106 | EC25: 0.20% | ED25: 5.37 | EE25: 1 | EF25: -23 | EG25: 0.20% | EH25: 5.37 | EI25: -0 | EJ25: 30 | EK25: 0.45% | EL25: 5.33 | EM25: 1 | EN25: 1 | EO25: 0.10% | EP25: 8.82 | EQ25: 0 | ER25: -136 | ES25: 0.20% | ET25: 9.00 | EU25: -2 | EV25: -205 | EW25: 0.00% | EX25: 8.50 | EY25: 0 | EZ25: 0 | FA25: -0.37% | FB25: 0.08 | FC25: 0 | FD25: 544 | FE25: 0.45% | FF25: 8.00 | FG25: 20 | FH25: 832 | FI25: 0.16% | FJ25: 1.00 | FK25: 1 | FL25: -10 | FM25: 0.65% | FN25: 5.00 | FO25: -0 | FP25: 5 | FQ25: 0.40% | FR25: 1.00 | FS25: 0 | FT25: -227 | FU25: 0.20% | FV25: 8.00 | FW25: -4 | FX25: 174 | FY25: 1.00% | FZ25: 5.00 | GA25: 9 | GB25: 365 | GC25: 21 | GD25: 475 | GE25: 21 | GF25: 171 | GG25: 1.00% | GH25: 5.37 | GI25: 9 | GJ25: 31 | GK25: 0 | GL25: 0 | GN25: 0 | GO25: 0.00% | GP25: 0 | GQ25: 0 | GR25: 0 | GS25: 0.45% | GT25: 8.00 | GU25: 0 | GV25: 0 | GW25: 0.16% | GX25: 1.00 | GY25: 0 | GZ25: 0 | HA25: 0.65% | HB25: 5.00 | HC25: 0 | HD25: 0 | HE25: 0.40% | HF25: 1.00 | HG25: 0 | HH25: -59 | HI25: 1.00% | HJ25: 5.00 | HK25: -3 | HL25: -7 | HM25: 92 | HO25: =IF(ISERROR(IF(VLOOKUP($C25,'Indicateurs Cumulés'!$C$3:$HN$560,186,FALSE)/(VLOOKUP($C25,objectifs!$C$3:$ZZ$559,158,FALSE))>=1.5,(VLOOKUP($C25,objectifs!$C$3:$ZZ$559,158,FALSE))*1.5,IF(VLOOKUP($C25,'Indicateurs Cumulés'!$C$3:$HN$560,186,FALSE)/(VLOOKUP($C25,objectifs!$C$3:$ZZ$559,158,FALSE))<=-0.5,(VLOOKUP($C25,objectifs!$C$3:$ZZ$559,158,FALSE))*-0.5,VLOOKUP($C25,'Indicateurs Cumulés'!$C$3:$HN$560,186,FALSE)))),VLOOKUP($C25,'Indicateurs Cumulés'!$C$3:$HN$560,186,FALSE),IF(VLOOKUP($C25,'Indicateurs Cumulés'!$C$3:$HN$560,186,FALSE)/(VLOOKUP($C25,objectifs!$C$3:$ZZ$559,158,FALSE))>=1.5,(VLOOKUP($C25,objectifs!$C$3:$ZZ$559,158,FALSE))*1.5,IF(VLOOKUP($C25,'Indicateurs Cumulés'!$C$3:$HN$560,186,FALSE)/(VLOOKUP($C25,objectifs!$C$3:$ZZ$559,158,FALSE))<=-0.5,(VLOOKUP($C25,objectifs!$C$3:$ZZ$559,158,FALSE))*-0.5,VLOOKUP($C25,'Indicateurs Cumulés'!$C$3:$HN$560,186,FALSE)))) -> 171 | HP25: 0 | HR25: 2.8 | HT25: 4.24% | HU25: 0.43% | HV25: 0.69% | HW25: 2 | HX25: 16 | HY25: -3 | HZ25: 2 | IA25: 3 | IB25: 1 | IC25: 12 | ID25: 2 | IE25: -3 | IF25: -11 | IG25: 0 | IH25: 0 | II25: -1 | IJ25: 25 | IK25: -14 | IL25: -1 | IM25: 0 | IN25: 2 | IO25: -1 | IP25: 0 | IQ25: 0 | IR25: 0 | IS25: 1 | IT25: 1 | IU25: -0 | IV25: -7 | IW25: 0 | IX25: 0 | IY25: -1 | IZ25: 16 | JA25: -3 | JB25: -0 | JC25: 33 | JD25: 27 | JE25: 0 | JF25: 56 | JG25: 4.99 | JH25: 119.82 | JI25: 0 | JJ25: 0 | JK25: -0 | JL25: 0.20% | JM25: 0 | JO25: 0 | JP25: -11 | JQ25: 56 | JR25: =IF(ISERROR(IF(VLOOKUP($C25,'Indicateurs Cumulés'!$C$3:$HN$560,190,FALSE)/(VLOOKUP($C25,objectifs!$C$3:$ZZ$559,162,FALSE))>=1.5,(VLOOKUP($C25,objectifs!$C$3:$ZZ$559,162,FALSE))*1.5,IF(VLOOKUP($C25,'Indicateurs Cumulés'!$C$3:$HN$560,190,FALSE)/(VLOOKUP($C25,objectifs!$C$3:$ZZ$559,162,FALSE))<=-0.5,(VLOOKUP($C25,objectifs!$C$3:$ZZ$559,162,FALSE))*-0.5,VLOOKUP($C25,'Indicateurs Cumulés'!$C$3:$HN$560,190,FALSE)))),VLOOKUP($C25,'Indicateurs Cumulés'!$C$3:$HN$560,190,FALSE),IF(VLOOKUP($C25,'Indicateurs Cumulés'!$C$3:$HN$560,190,FALSE)/(VLOOKUP($C25,objectifs!$C$3:$ZZ$559,162,FALSE))>=1.5,(VLOOKUP($C25,objectifs!$C$3:$ZZ$559,162,FALSE))*1.5,IF(VLOOKUP($C25,'Indicateurs Cumulés'!$C$3:$HN$560,190,FALSE)/(VLOOKUP($C25,objectifs!$C$3:$ZZ$559,162,FALSE))<=-0.5,(VLOOKUP($C25,objectifs!$C$3:$ZZ$559,162,FALSE))*-0.5,VLOOKUP($C25,'Indicateurs Cumulés'!$C$3:$HN$560,190,FALSE)))) -> 31 | JS25: -0 | JT25: 0 | JV25: 0 | JW25: -0 | JX25: 2 | JY25: 2 | JZ25: 3 | KA25: 2 | KB25: 0 | KC25: 0 | KD25: 2 | KE25: 0 | KF25: 2 | KG25: 3 | KH25: 0 | KI25: 0 | KJ25: 0 | KK25: 0 | KL25: 0 | KM25: 4 | KN25: 1 | KR25: 5.01 | KS25: 6 | KT25: 3 | KU25: 0 | KV25: 9 | KW25: 2 | KX25: 0 | KY25: 24 | KZ25: 17 | LA25: 2 | LB25: 0 | LC25: 251 | LD25: 38 | LE25: 2 | LF25: 1 | LG25: 2 | LH25: 3 | LI25: 3 | LJ25: 0 | LK25: 239 | LL25: 83.8 | LM25: 50 | LN25: 171 | LO25: -7 | LP25: 5 | LQ25: 87.99 | LR25: 88 | LS25: 83 | LT25: 268 | LU25: 60 | LV25: 103 | LW25: 4 | LX25: 6.6 | LY25: 0.8 | LZ25: 0.8 | MA25: 3.0 | MB25: 1.5 | MC25: 0.0 | MD25: 263
A26: 105006 | B26: 200262 | C26: 38 | D26: OBERHAUSBERGEN | E26: 2019-05-31 | F26: 76 | G26: 4.32% | H26: 1.57 | I26: 2019-05-31 | J26: 904 | K26: 3.47% | L26: 2.38 | M26: 4.05 | N26: 2,782 | O26: 0 | P26: -0.05% | Q26: 7.36 | R26: 11.48 | S26: 45 | T26: 3.43% | U26: 2.26 | V26: 131 | W26: 0.06% | X26: 8.80 | Y26: 125 | Z26: 0.19% | AA26: 3.98 | AB26: 7.0 | AC26: 10.3 | AD26: 0.6 | AE26: 280.8 | AF26: 12.8 | AG26: 5.5 | AH26: 201905 | AI26: 16.00 | AJ26: 0.07 | AK26: 0.45% | AL26: 83.15 | AM26: 8.36 | AN26: 10% | AO26: 1.47 | AP26: 1.76% | AQ26: 843.83 | AR26: 54.25 | AS26: 6.4% | AT26: 2.27 | AU26: 0.27% | AV26: 24.07 | AW26: 0.75 | AX26: 3.12% | AY26: 0.51 | AZ26: 2.12% | BA26: 967.06 | BB26: 63.36 | BC26: 6.6% | BD26: 4.32 | BE26: 0.45% | BG26: 4 | BH26: 2 | BI26: 99 | BJ26: 62 | BK26: 2 | BL26: 1.55% | BM26: 0.00% | BN26: 38 | BO26: 184 | BP26: 4 | BQ26: 53 | BR26: 1 | BS26: 6 | BT26: 4 | BU26: -3 | BX26: 0 | BY26: 0 | BZ26: 0 | CA26: 0 | CB26: 0 | CC26: -2 | CD26: -1 | CE26: 8 | CF26: 1.6 | CG26: -8 | CH26: -2 | CI26: 4 | CJ26: 4 | CK26: 100.00% | CL26: 100.00% | CM26: 1 | CN26: 100.00% | CO26: 1 | CP26: 1 | CQ26: 0.6 | CR26: 0 | CS26: 0.00 | CT26: 0 | CU26: 2 | CV26: 1 | CW26: 7 | CX26: 69.72% | CY26: 139.99% | CZ26: 56 | DA26: 97.29% | DB26: 122.97% | DC26: 17 | DE26: 100.00% | DF26: 100.00% | DG26: 0 | DH26: 64 | DI26: 0.70% | DJ26: 5.33 | DK26: 2 | DL26: 239 | DM26: 0.81% | DN26: 5.33 | DO26: 10 | DP26: -17 | DQ26: 0.91% | DR26: 5.33 | DS26: -1 | DT26: 377 | DU26: 0.40% | DV26: 2.16 | DW26: 3 | DX26: -162 | DY26: 0.20% | DZ26: 5.37 | EA26: -2 | EB26: 4 | EC26: 0.20% | ED26: 5.37 | EE26: 0 | EF26: -21 | EG26: 0.20% | EH26: 5.37 | EI26: -0 | EJ26: -4 | EK26: 0.45% | EL26: 5.33 | EM26: -0 | EN26: 1 | EO26: 0.10% | EP26: 9.13 | EQ26: 0 | ER26: -18 | ES26: 0.20% | ET26: 9.00 | EU26: -0 | EV26: 72 | EW26: 0.00% | EX26: 8.59 | EY26: 0 | EZ26: 0 | FA26: -0.37% | FB26: 0.08 | FC26: 0 | FD26: 487 | FE26: 0.45% | FF26: 8.00 | FG26: 18 | FH26: 952 | FI26: 0.45% | FJ26: 1.00 | FK26: 4 | FL26: -23 | FM26: 0.65% | FN26: 5.00 | FO26: -1 | FP26: 7 | FQ26: 0.40% | FR26: 1.00 | FS26: 0 | FT26: -337 | FU26: 0.20% | FV26: 8.00 | FW26: -5 | FX26: 595 | FY26: 1.00% | FZ26: 5.00 | GA26: 30 | GB26: 854 | GC26: 39 | GD26: 377 | GE26: 22 | GF26: -392 | GG26: 1.00% | GH26: 5.37 | GI26: -21 | GJ26: -56 | GK26: 0 | GL26: 0 | GN26: 0 | GO26: 0.00% | GP26: 0 | GQ26: 0 | GR26: 0 | GS26: 0.45% | GT26: 8.00 | GU26: 0 | GV26: 0 | GW26: 0.45% | GX26: 1.00 | GY26: 0 | GZ26: 0 | HA26: 0.65% | HB26: 5.00 | HC26: 0 | HD26: 0 | HE26: 0.40% | HF26: 1.00 | HG26: 0 | HH26: -87 | HI26: 1.00% | HJ26: 5.00 | HK26: -4 | HL26: -15 | HM26: 151 | HO26: =IF(ISERROR(IF(VLOOKUP($C26,'Indicateurs Cumulés'!$C$3:$HN$560,186,FALSE)/(VLOOKUP($C26,objectifs!$C$3:$ZZ$559,158,FALSE))>=1.5,(VLOOKUP($C26,objectifs!$C$3:$ZZ$559,158,FALSE))*1.5,IF(VLOOKUP($C26,'Indicateurs Cumulés'!$C$3:$HN$560,186,FALSE)/(VLOOKUP($C26,objectifs!$C$3:$ZZ$559,158,FALSE))<=-0.5,(VLOOKUP($C26,objectifs!$C$3:$ZZ$559,158,FALSE))*-0.5,VLOOKUP($C26,'Indicateurs Cumulés'!$C$3:$HN$560,186,FALSE)))),VLOOKUP($C26,'Indicateurs Cumulés'!$C$3:$HN$560,186,FALSE),IF(VLOOKUP($C26,'Indicateurs Cumulés'!$C$3:$HN$560,186,FALSE)/(VLOOKUP($C26,objectifs!$C$3:$ZZ$559,158,FALSE))>=1.5,(VLOOKUP($C26,objectifs!$C$3:$ZZ$559,158,FALSE))*1.5,IF(VLOOKUP($C26,'Indicateurs Cumulés'!$C$3:$HN$560,186,FALSE)/(VLOOKUP($C26,objectifs!$C$3:$ZZ$559,158,FALSE))<=-0.5,(VLOOKUP($C26,objectifs!$C$3:$ZZ$559,158,FALSE))*-0.5,VLOOKUP($C26,'Indicateurs Cumulés'!$C$3:$HN$560,186,FALSE)))) -> -210 | HP26: 179 | HR26: 3.5 | HT26: 4.23% | HU26: 0.28% | HV26: 0.33% | HW26: 30 | HX26: 20 | HY26: 2 | HZ26: 3 | IA26: 3 | IB26: 1 | IC26: 10 | ID26: -24 | IE26: -2 | IF26: -2 | IG26: -2 | IH26: 0 | II26: 10 | IJ26: 25 | IK26: -29 | IL26: 0 | IM26: 4 | IN26: 2 | IO26: 1 | IP26: 0 | IQ26: 0 | IR26: 0 | IS26: 1 | IT26: -10 | IU26: -0 | IV26: -1 | IW26: -2 | IX26: 0 | IY26: 10 | IZ26: 16 | JA26: -6 | JB26: 0 | JC26: 53 | JD26: 8 | JE26: 0 | JF26: 80 | JG26: 4.08 | JH26: 163.66 | JI26: 0 | JJ26: 0 | JK26: 0 | JL26: 0.20% | JM26: 150 | JO26: 8 | JP26: 60 | JQ26: -41 | JR26: =IF(ISERROR(IF(VLOOKUP($C26,'Indicateurs Cumulés'!$C$3:$HN$560,190,FALSE)/(VLOOKUP($C26,objectifs!$C$3:$ZZ$559,162,FALSE))>=1.5,(VLOOKUP($C26,objectifs!$C$3:$ZZ$559,162,FALSE))*1.5,IF(VLOOKUP($C26,'Indicateurs Cumulés'!$C$3:$HN$560,190,FALSE)/(VLOOKUP($C26,objectifs!$C$3:$ZZ$559,162,FALSE))<=-0.5,(VLOOKUP($C26,objectifs!$C$3:$ZZ$559,162,FALSE))*-0.5,VLOOKUP($C26,'Indicateurs Cumulés'!$C$3:$HN$560,190,FALSE)))),VLOOKUP($C26,'Indicateurs Cumulés'!$C$3:$HN$560,190,FALSE),IF(VLOOKUP($C26,'Indicateurs Cumulés'!$C$3:$HN$560,190,FALSE)/(VLOOKUP($C26,objectifs!$C$3:$ZZ$559,162,FALSE))>=1.5,(VLOOKUP($C26,objectifs!$C$3:$ZZ$559,162,FALSE))*1.5,IF(VLOOKUP($C26,'Indicateurs Cumulés'!$C$3:$HN$560,190,FALSE)/(VLOOKUP($C26,objectifs!$C$3:$ZZ$559,162,FALSE))<=-0.5,(VLOOKUP($C26,objectifs!$C$3:$ZZ$559,162,FALSE))*-0.5,VLOOKUP($C26,'Indicateurs Cumulés'!$C$3:$HN$560,190,FALSE)))) -> -34 | JS26: 0 | JT26: 8 | JV26: 0 | JW26: 2 | JX26: -1 | JY26: -2 | JZ26: 7 | KA26: 1 | KB26: 0 | KC26: 0 | KD26: 2 | KE26: 1 | KF26: 0 | KG26: 1 | KH26: 0 | KI26: 0 | KJ26: 0 | KK26: 1 | KL26: 0 | KM26: 5 | KN26: 3 | KR26: 3.93 | KS26: 4 | KT26: 12 | KU26: 0 | KV26: 27 | KW26: 5 | KX26: 0 | KY26: 35 | KZ26: 24 | LA26: 0 | LB26: 0 | LC26: 260 | LD26: 14 | LE26: -3 | LF26: -2 | LG26: -3 | LH26: -4 | LI26: 7 | LJ26: 1 | LK26: 239 | LL26: 68.7 | LM26: 50 | LN26: 162 | LO26: -8 | LP26: -6 | LQ26: 74.68 | LR26: 111 | LS26: 69 | LT26: 361 | LU26: 74 | LV26: 67 | LW26: 6 | LX26: 8.3 | LY26: 0.7 | LZ26: 1.1 | MA26: 3.7 | MB26: 1.0 | MC26: 0.0 | MD26: 275
A27: 105006 | B27: 200262 | C27: 39 | D27: REICHSTETT | E27: 2019-05-31 | F27: 33 | G27: 4.32% | H27: 1.57 | I27: 2019-05-31 | J27: 509 | K27: 3.53% | L27: 2.77 | M27: 4.57 | N27: 329 | O27: 0 | P27: 0.13% | Q27: 8.47 | R27: 12.90 | S27: 20 | T27: 3.63% | U27: 3.43 | V27: 0 | W27: 0.00% | X27: 0 | Y27: 238 | Z27: 0.23% | AA27: 6.10 | AB27: 0.9 | AC27: 4.6 | AD27: 1.0 | AE27: 24.2 | AF27: 9.2 | AG27: 0.6 | AH27: 201905 | AI27: 26.00 | AJ27: 0.31 | AK27: 1.20% | AL27: 38.28 | AM27: 7.25 | AN27: 19% | AO27: 0.67 | AP27: 1.75% | AQ27: 87.87 | AR27: 16.60 | AS27: 18.9% | AT27: 0.13 | AU27: 0.14% | AV27: 14.67 | AW27: 1.37 | AX27: 9.35% | AY27: 0.24 | AZ27: 1.63% | BA27: 166.81 | BB27: 25.23 | BC27: 15.1% | BD27: 1.35 | BE27: 0.81% | BG27: 3 | BH27: 0 | BI27: 66 | BJ27: 25 | BK27: 9 | BL27: 1.59% | BM27: 0.00% | BN27: 39 | BO27: 4 | BP27: 0 | BQ27: 24 | BR27: 1 | BS27: 0 | BT27: 1 | BU27: -2 | BX27: 0 | BY27: 0 | BZ27: 0 | CA27: -1 | CB27: -0 | CC27: 1 | CD27: 1 | CE27: 3 | CF27: 0.6 | CG27: 7 | CH27: 1 | CI27: 0 | CJ27: 0 | CK27: 100.00% | CL27: 100.00% | CM27: 0 | CN27: 0.00% | CO27: 0 | CP27: 0 | CQ27: 1.0 | CR27: 0 | CS27: 0.00 | CT27: 0 | CU27: 3 | CV27: 0 | CW27: 1 | CX27: 100.00% | CY27: 173.11% | CZ27: 20 | DA27: 95.09% | DB27: 129.66% | DC27: 11 | DE27: 100.00% | DF27: 99.55% | DG27: 4 | DH27: -50 | DI27: 0.70% | DJ27: 5.33 | DK27: -2 | DL27: -133 | DM27: 0.81% | DN27: 5.33 | DO27: -6 | DP27: -25 | DQ27: 0.91% | DR27: 5.33 | DS27: -1 | DT27: -47 | DU27: 0.40% | DV27: 2.16 | DW27: -0 | DX27: -81 | DY27: 0.20% | DZ27: 5.37 | EA27: -1 | EB27: -16 | EC27: 0.20% | ED27: 5.37 | EE27: -0 | EF27: -10 | EG27: 0.20% | EH27: 5.37 | EI27: -0 | EJ27: -21 | EK27: 0.45% | EL27: 5.33 | EM27: -1 | EN27: 0 | EO27: 0.10% | EP27: 9.14 | EQ27: 0 | ER27: -2 | ES27: 0.20% | ET27: 9.00 | EU27: -0 | EV27: -15 | EW27: 0.00% | EX27: 8.59 | EY27: 0 | EZ27: 5 | FA27: -0.37% | FB27: 0.08 | FC27: -0 | FD27: -78 | FE27: 0.45% | FF27: 8.00 | FG27: -3 | FH27: 180 | FI27: 0.81% | FJ27: 1.00 | FK27: 1 | FL27: -9 | FM27: 0.65% | FN27: 5.00 | FO27: -0 | FP27: 2 | FQ27: 0.40% | FR27: 1.00 | FS27: 0 | FT27: -124 | FU27: 0.20% | FV27: 8.00 | FW27: -2 | FX27: 47 | FY27: 1.00% | FZ27: 5.00 | GA27: 2 | GB27: -443 | GC27: -10 | GD27: -60 | GE27: 0 | GF27: 126 | GG27: 1.00% | GH27: 5.37 | GI27: 7 | GJ27: -19 | GK27: 0 | GL27: 0 | GN27: 0 | GO27: 0.00% | GP27: 0 | GQ27: 0 | GR27: 0 | GS27: 0.45% | GT27: 8.00 | GU27: 0 | GV27: 0 | GW27: 0.81% | GX27: 1.00 | GY27: 0 | GZ27: 0 | HA27: 0.65% | HB27: 5.00 | HC27: 0 | HD27: 0 | HE27: 0.40% | HF27: 1.00 | HG27: 0 | HH27: 27 | HI27: 1.00% | HJ27: 5.00 | HK27: 1 | HL27: -6 | HM27: 78 | HO27: =IF(ISERROR(IF(VLOOKUP($C27,'Indicateurs Cumulés'!$C$3:$HN$560,186,FALSE)/(VLOOKUP($C27,objectifs!$C$3:$ZZ$559,158,FALSE))>=1.5,(VLOOKUP($C27,objectifs!$C$3:$ZZ$559,158,FALSE))*1.5,IF(VLOOKUP($C27,'Indicateurs Cumulés'!$C$3:$HN$560,186,FALSE)/(VLOOKUP($C27,objectifs!$C$3:$ZZ$559,158,FALSE))<=-0.5,(VLOOKUP($C27,objectifs!$C$3:$ZZ$559,158,FALSE))*-0.5,VLOOKUP($C27,'Indicateurs Cumulés'!$C$3:$HN$560,186,FALSE)))),VLOOKUP($C27,'Indicateurs Cumulés'!$C$3:$HN$560,186,FALSE),IF(VLOOKUP($C27,'Indicateurs Cumulés'!$C$3:$HN$560,186,FALSE)/(VLOOKUP($C27,objectifs!$C$3:$ZZ$559,158,FALSE))>=1.5,(VLOOKUP($C27,objectifs!$C$3:$ZZ$559,158,FALSE))*1.5,IF(VLOOKUP($C27,'Indicateurs Cumulés'!$C$3:$HN$560,186,FALSE)/(VLOOKUP($C27,objectifs!$C$3:$ZZ$559,158,FALSE))<=-0.5,(VLOOKUP($C27,objectifs!$C$3:$ZZ$559,158,FALSE))*-0.5,VLOOKUP($C27,'Indicateurs Cumulés'!$C$3:$HN$560,186,FALSE)))) -> 126 | HP27: 0 | HR27: 2.0 | HT27: 4.41% | HU27: 0.91% | HV27: 0.59% | HW27: 2 | HX27: 3 | HY27: 1 | HZ27: 3 | IA27: -5 | IB27: -1 | IC27: 5 | ID27: -9 | IE27: 0 | IF27: -1 | IG27: 0 | IH27: 0 | II27: -1 | IJ27: 13 | IK27: -42 | IL27: 0 | IM27: 0 | IN27: 0 | IO27: 0 | IP27: 0 | IQ27: -0 | IR27: -0 | IS27: 1 | IT27: -4 | IU27: 0 | IV27: -1 | IW27: 0 | IX27: 0 | IY27: -1 | IZ27: 8 | JA27: -9 | JB27: 0 | JC27: 7 | JD27: 12 | JE27: 0 | JF27: -20 | JG27: 5.53 | JH27: -62.83 | JI27: 0 | JJ27: 0 | JK27: 0 | JL27: 0.20% | JM27: 0 | JO27: 1 | JP27: 28 | JQ27: 17 | JR27: =IF(ISERROR(IF(VLOOKUP($C27,'Indicateurs Cumulés'!$C$3:$HN$560,190,FALSE)/(VLOOKUP($C27,objectifs!$C$3:$ZZ$559,162,FALSE))>=1.5,(VLOOKUP($C27,objectifs!$C$3:$ZZ$559,162,FALSE))*1.5,IF(VLOOKUP($C27,'Indicateurs Cumulés'!$C$3:$HN$560,190,FALSE)/(VLOOKUP($C27,objectifs!$C$3:$ZZ$559,162,FALSE))<=-0.5,(VLOOKUP($C27,objectifs!$C$3:$ZZ$559,162,FALSE))*-0.5,VLOOKUP($C27,'Indicateurs Cumulés'!$C$3:$HN$560,190,FALSE)))),VLOOKUP($C27,'Indicateurs Cumulés'!$C$3:$HN$560,190,FALSE),IF(VLOOKUP($C27,'Indicateurs Cumulés'!$C$3:$HN$560,190,FALSE)/(VLOOKUP($C27,objectifs!$C$3:$ZZ$559,162,FALSE))>=1.5,(VLOOKUP($C27,objectifs!$C$3:$ZZ$559,162,FALSE))*1.5,IF(VLOOKUP($C27,'Indicateurs Cumulés'!$C$3:$HN$560,190,FALSE)/(VLOOKUP($C27,objectifs!$C$3:$ZZ$559,162,FALSE))<=-0.5,(VLOOKUP($C27,objectifs!$C$3:$ZZ$559,162,FALSE))*-0.5,VLOOKUP($C27,'Indicateurs Cumulés'!$C$3:$HN$560,190,FALSE)))) -> -19 | JS27: 0 | JT27: 0 | JV27: 0 | JW27: 1 | JX27: 1 | JY27: -1 | JZ27: 0 | KA27: 0 | KB27: 0 | KC27: 0 | KD27: -4 | KE27: 0 | KF27: 0 | KG27: 0 | KH27: 0 | KI27: 0 | KJ27: -1 | KK27: 0 | KL27: 0 | KM27: 0 | KN27: 1 | KR27: 3.69 | KS27: -4 | KT27: 2 | KU27: 0 | KV27: 1 | KW27: 0 | KX27: 0 | KY27: 12 | KZ27: 8 | LA27: 0 | LB27: 0 | LC27: 94 | LD27: 14 | LE27: 0 | LF27: 0 | LG27: 1 | LH27: 1 | LI27: 0 | LJ27: 0 | LK27: 93 | LL27: 46.9 | LM27: -2 | LN27: 100 | LO27: -6 | LP27: 1 | LQ27: 47.80 | LR27: 58 | LS27: 41 | LT27: 47 | LU27: 34 | LV27: 0 | LW27: 5 | LX27: 4.4 | LY27: 0.4 | LZ27: 0.1 | MA27: 1.7 | MB27: 0.0 | MC27: 0.0 | MD27: 101
A28: 105006 | B28: 200262 | C28: 40 | D28: ECKBOLSHEIM | E28: 2019-05-31 | F28: 24 | G28: 4.32% | H28: 1.57 | I28: 2019-05-31 | J28: 380 | K28: 2.48% | L28: 3.39 | M28: 5.26 | N28: 1,028 | O28: 0 | P28: -0.01% | Q28: 5.39 | R28: 8.98 | S28: 163 | T28: 2.05% | U28: 4.34 | V28: 0 | W28: 0.00% | X28: 0 | Y28: 0 | Z28: 0.00% | AA28: 0 | AB28: 3.6 | AC28: 2.6 | AD28: 0 | AE28: 21.8 | AF28: 6.8 | AG28: 1.7 | AH28: 201905 | AI28: 0 | AJ28: 0 | AK28: 0.00% | AL28: 74.96 | AM28: 8.46 | AN28: 11% | AO28: 1.33 | AP28: 1.78% | AQ28: 566.73 | AR28: 34.51 | AS28: 6.1% | AT28: 0.09 | AU28: 0.02% | AV28: 34.18 | AW28: 0.33 | AX28: 0.98% | AY28: 0.83 | AZ28: 2.43% | BA28: 675.87 | BB28: 43.30 | BC28: 6.4% | BD28: 2.25 | BE28: 0.33% | BG28: 19 | BH28: 0 | BI28: 44 | BJ28: 21 | BK28: 1 | BL28: 1.23% | BM28: 0.00% | BN28: 40 | BO28: 96 | BP28: 2 | BQ28: 36 | BR28: 1 | BS28: 2 | BT28: 1 | BU28: -4 | BX28: 0 | BY28: 0 | BZ28: 0 | CA28: -1 | CB28: -0 | CC28: -2 | CD28: -1 | CE28: 3 | CF28: 0.6 | CG28: -5 | CH28: -1 | CI28: 1 | CJ28: 1 | CK28: 100.00% | CL28: 100.00% | CM28: 4 | CN28: 0.00% | CO28: 4 | CP28: 0 | CQ28: 0 | CR28: 0 | CS28: 0.31 | CT28: 1 | CU28: 2 | CV28: 0 | CW28: 4 | CX28: 43.25% | CY28: 124.27% | CZ28: 16 | DA28: 84.46% | DB28: 148.13% | DC28: 9 | DE28: 0.00% | DF28: 0.00% | DG28: 0 | DH28: -18 | DI28: 0.70% | DJ28: 5.33 | DK28: -1 | DL28: 30 | DM28: 0.81% | DN28: 5.33 | DO28: 1 | DP28: 29 | DQ28: 0.91% | DR28: 5.33 | DS28: 1 | DT28: 409 | DU28: 0.40% | DV28: 2.16 | DW28: 4 | DX28: -137 | DY28: 0.20% | DZ28: 5.37 | EA28: -1 | EB28: 90 | EC28: 0.20% | ED28: 5.37 | EE28: 1 | EF28: -22 | EG28: 0.20% | EH28: 5.37 | EI28: -0 | EJ28: 45 | EK28: 0.45% | EL28: 5.33 | EM28: 1 | EN28: -1 | EO28: 0.10% | EP28: 9.85 | EQ28: -0 | ER28: -147 | ES28: 0.20% | ET28: 9.00 | EU28: -3 | EV28: 60 | EW28: 0.00% | EX28: 8.59 | EY28: 0 | EZ28: 0 | FA28: -0.37% | FB28: 0.08 | FC28: 0 | FD28: 438 | FE28: 0.45% | FF28: 8.00 | FG28: 16 | FH28: 747 | FI28: 0.33% | FJ28: 1.00 | FK28: 2 | FL28: 5 | FM28: 0.65% | FN28: 5.00 | FO28: 0 | FP28: 5 | FQ28: 0.40% | FR28: 1.00 | FS28: 0 | FT28: -312 | FU28: 0.20% | FV28: 8.00 | FW28: -5 | FX28: 142 | FY28: 1.00% | FZ28: 5.00 | GA28: 7 | GB28: 161 | GC28: 5 | GD28: 609 | GE28: 28 | GF28: 87 | GG28: 1.00% | GH28: 5.37 | GI28: 5 | GJ28: 14 | GK28: 0 | GL28: 0 | GN28: 31 | GO28: 1.20% | GP28: 1.93 | GQ28: 1 | GR28: 150 | GS28: 0.45% | GT28: 8.00 | GU28: 5 | GV28: 150 | GW28: 0.33% | GX28: 1.00 | GY28: 0 | GZ28: 0 | HA28: 0.65% | HB28: 5.00 | HC28: 0 | HD28: 0 | HE28: 0.40% | HF28: 1.00 | HG28: 0 | HH28: 15 | HI28: 1.00% | HJ28: 5.00 | HK28: 1 | HL28: -6 | HM28: 86 | HO28: =IF(ISERROR(IF(VLOOKUP($C28,'Indicateurs Cumulés'!$C$3:$HN$560,186,FALSE)/(VLOOKUP($C28,objectifs!$C$3:$ZZ$559,158,FALSE))>=1.5,(VLOOKUP($C28,objectifs!$C$3:$ZZ$559,158,FALSE))*1.5,IF(VLOOKUP($C28,'Indicateurs Cumulés'!$C$3:$HN$560,186,FALSE)/(VLOOKUP($C28,objectifs!$C$3:$ZZ$559,158,FALSE))<=-0.5,(VLOOKUP($C28,objectifs!$C$3:$ZZ$559,158,FALSE))*-0.5,VLOOKUP($C28,'Indicateurs Cumulés'!$C$3:$HN$560,186,FALSE)))),VLOOKUP($C28,'Indicateurs Cumulés'!$C$3:$HN$560,186,FALSE),IF(VLOOKUP($C28,'Indicateurs Cumulés'!$C$3:$HN$560,186,FALSE)/(VLOOKUP($C28,objectifs!$C$3:$ZZ$559,158,FALSE))>=1.5,(VLOOKUP($C28,objectifs!$C$3:$ZZ$559,158,FALSE))*1.5,IF(VLOOKUP($C28,'Indicateurs Cumulés'!$C$3:$HN$560,186,FALSE)/(VLOOKUP($C28,objectifs!$C$3:$ZZ$559,158,FALSE))<=-0.5,(VLOOKUP($C28,objectifs!$C$3:$ZZ$559,158,FALSE))*-0.5,VLOOKUP($C28,'Indicateurs Cumulés'!$C$3:$HN$560,186,FALSE)))) -> 87 | HP28: 0 | HR28: 1.9 | HT28: 3.20% | HU28: 0.37% | HV28: 1.20% | HW28: 8 | HX28: 3 | HY28: 2 | HZ28: 1 | IA28: 7 | IB28: 1 | IC28: 6 | ID28: -13 | IE28: -4 | IF28: -6 | IG28: 0 | IH28: 0 | II28: 4 | IJ28: 0 | IK28: -27 | IL28: -1 | IM28: 1 | IN28: 0 | IO28: 1 | IP28: 0 | IQ28: 0 | IR28: 0 | IS28: 1 | IT28: -6 | IU28: -0 | IV28: -4 | IW28: 0 | IX28: 0 | IY28: 4 | IZ28: 0 | JA28: -6 | JB28: -0 | JC28: -3 | JD28: 20 | JE28: 0 | JF28: -15 | JG28: 5.44 | JH28: 41.89 | JI28: 0 | JJ28: 0 | JK28: 0 | JL28: 0.20% | JM28: 0 | JO28: -5 | JP28: -6 | JQ28: 21 | JR28: =IF(ISERROR(IF(VLOOKUP($C28,'Indicateurs Cumulés'!$C$3:$HN$560,190,FALSE)/(VLOOKUP($C28,objectifs!$C$3:$ZZ$559,162,FALSE))>=1.5,(VLOOKUP($C28,objectifs!$C$3:$ZZ$559,162,FALSE))*1.5,IF(VLOOKUP($C28,'Indicateurs Cumulés'!$C$3:$HN$560,190,FALSE)/(VLOOKUP($C28,objectifs!$C$3:$ZZ$559,162,FALSE))<=-0.5,(VLOOKUP($C28,objectifs!$C$3:$ZZ$559,162,FALSE))*-0.5,VLOOKUP($C28,'Indicateurs Cumulés'!$C$3:$HN$560,190,FALSE)))),VLOOKUP($C28,'Indicateurs Cumulés'!$C$3:$HN$560,190,FALSE),IF(VLOOKUP($C28,'Indicateurs Cumulés'!$C$3:$HN$560,190,FALSE)/(VLOOKUP($C28,objectifs!$C$3:$ZZ$559,162,FALSE))>=1.5,(VLOOKUP($C28,objectifs!$C$3:$ZZ$559,162,FALSE))*1.5,IF(VLOOKUP($C28,'Indicateurs Cumulés'!$C$3:$HN$560,190,FALSE)/(VLOOKUP($C28,objectifs!$C$3:$ZZ$559,162,FALSE))<=-0.5,(VLOOKUP($C28,objectifs!$C$3:$ZZ$559,162,FALSE))*-0.5,VLOOKUP($C28,'Indicateurs Cumulés'!$C$3:$HN$560,190,FALSE)))) -> 14 | JS28: 0 | JT28: 0 | JV28: -0 | JW28: -0 | JX28: 1 | JY28: 1 | JZ28: 1 | KA28: 1 | KB28: 0 | KC28: 0 | KD28: 1 | KE28: 0 | KF28: 0 | KG28: 1 | KH28: 0 | KI28: 0 | KJ28: 0 | KK28: 0 | KL28: 0 | KM28: 1 | KN28: 1 | KR28: 4.77 | KS28: 2 | KT28: 2 | KU28: 0 | KV28: 4 | KW28: 1 | KX28: 0 | KY28: 4 | KZ28: 3 | LA28: 0 | LB28: 0 | LC28: 90 | LD28: 22 | LE28: 0 | LF28: 0 | LG28: 0 | LH28: 0 | LI28: 0 | LJ28: 0 | LK28: 85 | LL28: 45.3 | LM28: 38 | LN28: 66 | LO28: -6 | LP28: 0 | LQ28: 47.73 | LR28: 81 | LS28: 31 | LT28: 218 | LU28: 59 | LV28: 23 | LW28: 19 | LX28: 6.1 | LY28: 0.3 | LZ28: 0.7 | MA28: 3.0 | MB28: 0.3 | MC28: 0.1 | MD28: 100
A29: 105060 | B29: 200262 | C29: 41 | D29: HOERDT | E29: 2019-05-31 | F29: 64 | G29: 4.32% | H29: 1.57 | I29: 2019-05-31 | J29: 312 | K29: 3.30% | L29: 2.60 | M29: 4.36 | N29: 2,150 | O29: 0 | P29: 0.00% | Q29: 6.71 | R29: 10.28 | S29: 4 | T29: 5.70% | U29: 1.20 | V29: 0 | W29: 0.00% | X29: 0 | Y29: 60 | Z29: 1.48% | AA29: 2.38 | AB29: 4.7 | AC29: 2.7 | AD29: 0.5 | AE29: 57.4 | AF29: 4.7 | AG29: 3.5 | AH29: 201905 | AI29: 23.00 | AJ29: 0.55 | AK29: 2.40% | AL29: 53.87 | AM29: 8.43 | AN29: 16% | AO29: 0.66 | AP29: 1.23% | AQ29: 447.89 | AR29: 10.25 | AS29: 2.3% | AT29: 0.20 | AU29: 0.04% | AV29: 15.34 | AW29: 0.44 | AX29: 2.87% | AY29: 0.27 | AZ29: 1.76% | BA29: 540.10 | BB29: 19.12 | BC29: 3.5% | BD29: 1.68 | BE29: 0.31% | BG29: 0 | BH29: 0 | BI29: 39 | BJ29: 71 | BK29: 3 | BL29: 1.57% | BM29: 0.00% | BN29: 41 | BO29: 23 | BP29: 0 | BQ29: 49 | BR29: 1 | BS29: 4 | BT29: 3 | BU29: -3 | BX29: 0 | BY29: 0 | BZ29: 0 | CA29: 1 | CB29: 0 | CC29: 4 | CD29: 2 | CE29: 6 | CF29: 1.2 | CG29: 2 | CH29: 0 | CI29: 0 | CJ29: 0 | CK29: 100.00% | CL29: 100.00% | CM29: 0 | CN29: 0.00% | CO29: 0 | CP29: 0 | CQ29: 0.5 | CR29: 0 | CS29: 0.00 | CT29: 0 | CU29: 1 | CV29: 0 | CW29: 5 | CX29: 60.51% | CY29: 196.79% | CZ29: 62 | DA29: 100.00% | DB29: 125.31% | DC29: 6 | DE29: 100.00% | DF29: 150.00% | DG29: 0 | DH29: 180 | DI29: 0.70% | DJ29: 5.33 | DK29: 7 | DL29: -199 | DM29: 0.81% | DN29: 5.33 | DO29: -9 | DP29: 4 | DQ29: 0.91% | DR29: 5.33 | DS29: 0 | DT29: 18 | DU29: 0.40% | DV29: 2.16 | DW29: 0 | DX29: -79 | DY29: 0.20% | DZ29: 5.37 | EA29: -1 | EB29: 80 | EC29: 0.20% | ED29: 5.37 | EE29: 1 | EF29: -10 | EG29: 0.20% | EH29: 5.37 | EI29: -0 | EJ29: -11 | EK29: 0.45% | EL29: 5.33 | EM29: -0 | EN29: -12 | EO29: 0.10% | EP29: 7.07 | EQ29: -0 | ER29: -51 | ES29: 0.20% | ET29: 9.00 | EU29: -1 | EV29: 134 | EW29: 0.00% | EX29: 8.59 | EY29: 0 | EZ29: 0 | FA29: -0.37% | FB29: 0.08 | FC29: 0 | FD29: 425 | FE29: 0.45% | FF29: 8.00 | FG29: 15 | FH29: 766 | FI29: 0.31% | FJ29: 1.00 | FK29: 2 | FL29: -3 | FM29: 0.65% | FN29: 5.00 | FO29: -0 | FP29: 3 | FQ29: 0.40% | FR29: 1.00 | FS29: 0 | FT29: -152 | FU29: 0.20% | FV29: 8.00 | FW29: -2 | FX29: 125 | FY29: 1.00% | FZ29: 5.00 | GA29: 6 | GB29: 53 | GC29: 2 | GD29: 442 | GE29: 20 | GF29: -37 | GG29: 1.00% | GH29: 5.37 | GI29: -2 | GJ29: 3 | GK29: 0 | GL29: 0 | GN29: 0 | GO29: 0.00% | GP29: 0 | GQ29: 0 | GR29: 0 | GS29: 0.45% | GT29: 8.00 | GU29: 0 | GV29: 0 | GW29: 0.31% | GX29: 1.00 | GY29: 0 | GZ29: 0 | HA29: 0.65% | HB29: 5.00 | HC29: 0 | HD29: 0 | HE29: 0.40% | HF29: 1.00 | HG29: 0 | HH29: 20 | HI29: 1.00% | HJ29: 5.00 | HK29: 1 | HL29: -6 | HM29: 87 | HO29: =IF(ISERROR(IF(VLOOKUP($C29,'Indicateurs Cumulés'!$C$3:$HN$560,186,FALSE)/(VLOOKUP($C29,objectifs!$C$3:$ZZ$559,158,FALSE))>=1.5,(VLOOKUP($C29,objectifs!$C$3:$ZZ$559,158,FALSE))*1.5,IF(VLOOKUP($C29,'Indicateurs Cumulés'!$C$3:$HN$560,186,FALSE)/(VLOOKUP($C29,objectifs!$C$3:$ZZ$559,158,FALSE))<=-0.5,(VLOOKUP($C29,objectifs!$C$3:$ZZ$559,158,FALSE))*-0.5,VLOOKUP($C29,'Indicateurs Cumulés'!$C$3:$HN$560,186,FALSE)))),VLOOKUP($C29,'Indicateurs Cumulés'!$C$3:$HN$560,186,FALSE),IF(VLOOKUP($C29,'Indicateurs Cumulés'!$C$3:$HN$560,186,FALSE)/(VLOOKUP($C29,objectifs!$C$3:$ZZ$559,158,FALSE))>=1.5,(VLOOKUP($C29,objectifs!$C$3:$ZZ$559,158,FALSE))*1.5,IF(VLOOKUP($C29,'Indicateurs Cumulés'!$C$3:$HN$560,186,FALSE)/(VLOOKUP($C29,objectifs!$C$3:$ZZ$559,158,FALSE))<=-0.5,(VLOOKUP($C29,objectifs!$C$3:$ZZ$559,158,FALSE))*-0.5,VLOOKUP($C29,'Indicateurs Cumulés'!$C$3:$HN$560,186,FALSE)))) -> -37 | HP29: 0 | HR29: 2.8 | HT29: 3.97% | HU29: 0.49% | HV29: 1.91% | HW29: 20 | HX29: 14 | HY29: 3 | HZ29: 5 | IA29: 8 | IB29: 1 | IC29: 3 | ID29: 1 | IE29: -2 | IF29: -3 | IG29: -6 | IH29: -1 | II29: 1 | IJ29: 11 | IK29: -10 | IL29: 4 | IM29: 2 | IN29: 1 | IO29: 1 | IP29: 0 | IQ29: 0 | IR29: 0 | IS29: 0 | IT29: 0 | IU29: -0 | IV29: -2 | IW29: -6 | IX29: -2 | IY29: 1 | IZ29: 7 | JA29: -2 | JB29: 0 | JC29: 19 | JD29: 3 | JE29: 0 | JF29: 60 | JG29: 4.23 | JH29: 73.49 | JI29: 0 | JJ29: 0 | JK29: -20 | JL29: 0.20% | JM29: 0 | JO29: 1 | JP29: 26 | JQ29: -42 | JR29: =IF(ISERROR(IF(VLOOKUP($C29,'Indicateurs Cumulés'!$C$3:$HN$560,190,FALSE)/(VLOOKUP($C29,objectifs!$C$3:$ZZ$559,162,FALSE))>=1.5,(VLOOKUP($C29,objectifs!$C$3:$ZZ$559,162,FALSE))*1.5,IF(VLOOKUP($C29,'Indicateurs Cumulés'!$C$3:$HN$560,190,FALSE)/(VLOOKUP($C29,objectifs!$C$3:$ZZ$559,162,FALSE))<=-0.5,(VLOOKUP($C29,objectifs!$C$3:$ZZ$559,162,FALSE))*-0.5,VLOOKUP($C29,'Indicateurs Cumulés'!$C$3:$HN$560,190,FALSE)))),VLOOKUP($C29,'Indicateurs Cumulés'!$C$3:$HN$560,190,FALSE),IF(VLOOKUP($C29,'Indicateurs Cumulés'!$C$3:$HN$560,190,FALSE)/(VLOOKUP($C29,objectifs!$C$3:$ZZ$559,162,FALSE))>=1.5,(VLOOKUP($C29,objectifs!$C$3:$ZZ$559,162,FALSE))*1.5,IF(VLOOKUP($C29,'Indicateurs Cumulés'!$C$3:$HN$560,190,FALSE)/(VLOOKUP($C29,objectifs!$C$3:$ZZ$559,162,FALSE))<=-0.5,(VLOOKUP($C29,objectifs!$C$3:$ZZ$559,162,FALSE))*-0.5,VLOOKUP($C29,'Indicateurs Cumulés'!$C$3:$HN$560,190,FALSE)))) -> 3 | JS29: -0 | JT29: 0 | JV29: 0 | JW29: 1 | JX29: -1 | JY29: 0 | JZ29: -1 | KA29: 1 | KB29: 0 | KC29: 1 | KD29: 4 | KE29: 0 | KF29: 0 | KG29: 1 | KH29: 0 | KI29: 1 | KJ29: 1 | KK29: 0 | KL29: 0 | KM29: 7 | KN29: 2 | KR29: 4.14 | KS29: 6 | KT29: 1 | KU29: 0 | KV29: 1 | KW29: 0 | KX29: 0 | KY29: 11 | KZ29: 8 | LA29: 0 | LB29: 0 | LC29: 152 | LD29: 11 | LE29: 1 | LF29: 1 | LG29: 1 | LH29: 1 | LI29: 2 | LJ29: 0 | LK29: 144 | LL29: 51.4 | LM29: 20 | LN29: 112 | LO29: -6 | LP29: 2 | LQ29: 54.28 | LR29: 89 | LS29: 48 | LT29: 194 | LU29: 69 | LV29: 10 | LW29: 6 | LX29: 6.7 | LY29: 0.5 | LZ29: 0.6 | MA29: 3.5 | MB29: 0.2 | MC29: 0.0 | MD29: 163
A30: 105006 | B30: 200262 | C30: 43 | D30: STRASBOURG HALLES (yc Mésange) | E30: 2019-05-31 | F30: 108 | G30: 4.32% | H30: 1.57 | I30: 2019-05-31 | J30: 2,126 | K30: 2.37% | L30: 1.85 | M30: 2.89 | N30: 6,059 | O30: 0 | P30: -0.07% | Q30: 6.89 | R30: 10.79 | S30: 321 | T30: 2.30% | U30: 2.30 | V30: 243 | W30: -0.10% | X30: 5.84 | Y30: 3,768 | Z30: 0.61% | AA30: 4.68 | AB30: 21.3 | AC30: 14.5 | AD30: 18.1 | AE30: 845.2 | AF30: 21.4 | AG30: 8.0 | AH30: 201905 | AI30: 0 | AJ30: 0 | AK30: 0.00% | AL30: 288.25 | AM30: 44.05 | AN30: 15% | AO30: 4.49 | AP30: 1.56% | AQ30: 1,165.85 | AR30: 170.53 | AS30: 14.6% | AT30: 2.47 | AU30: 0.21% | AV30: 46.13 | AW30: 3.76 | AX30: 8.15% | AY30: 0.90 | AZ30: 1.96% | BA30: 1,500.23 | BB30: 218.34 | BC30: 14.6% | BD30: 7.86 | BE30: 0.52% | BG30: 23 | BH30: -0 | BI30: 134 | BJ30: 121 | BK30: 152 | BL30: 0.00% | BM30: 0.00% | BN30: 43 | BO30: 57 | BP30: 1 | BQ30: 36 | BR30: 1 | BS30: 1 | BT30: -1 | BU30: -16 | BX30: 0 | BY30: 7 | BZ30: 2 | CA30: 5 | CB30: 1 | CC30: 6 | CD30: 3 | CE30: 20 | CF30: 4.0 | CG30: 28 | CH30: 6 | CI30: 6 | CJ30: 6 | CK30: 100.00% | CL30: 100.00% | CM30: 5 | CN30: 100.00% | CO30: 5 | CP30: 1 | CQ30: 18.1 | CR30: -0 | CS30: 0.47 | CT30: 1 | CU30: 7 | CV30: 1 | CW30: 21 | CX30: 74.87% | CY30: 124.16% | CZ30: 116 | DA30: 57.67% | DB30: 124.42% | DC30: 26 | DE30: 83.93% | DF30: 100.00% | DG30: 25 | DH30: -380 | DI30: 0.70% | DJ30: 5.33 | DK30: -14 | DL30: -168 | DM30: 0.81% | DN30: 5.33 | DO30: -7 | DP30: -21 | DQ30: 0.91% | DR30: 5.33 | DS30: -1 | DT30: 463 | DU30: 0.40% | DV30: 2.16 | DW30: 4 | DX30: -147 | DY30: 0.20% | DZ30: 5.37 | EA30: -2 | EB30: -5 | EC30: 0.20% | ED30: 5.37 | EE30: -0 | EF30: -30 | EG30: 0.20% | EH30: 5.37 | EI30: -0 | EJ30: 23 | EK30: 0.45% | EL30: 5.33 | EM30: 1 | EN30: 0 | EO30: 0.10% | EP30: 7.75 | EQ30: 0 | ER30: -512 | ES30: 0.20% | ET30: 9.00 | EU30: -9 | EV30: -416 | EW30: 0.00% | EX30: 8.59 | EY30: 0 | EZ30: 0 | FA30: -0.37% | FB30: 0.08 | FC30: 0 | FD30: -203 | FE30: 0.45% | FF30: 8.00 | FG30: -7 | FH30: 1,764 | FI30: 0.52% | FJ30: 1.00 | FK30: 9 | FL30: -76 | FM30: 0.65% | FN30: 5.00 | FO30: -2 | FP30: 149 | FQ30: 0.40% | FR30: 1.00 | FS30: 1 | FT30: -593 | FU30: 0.20% | FV30: 8.00 | FW30: -9 | FX30: 108 | FY30: 1.00% | FZ30: 5.00 | GA30: 5 | GB30: -1,059 | GC30: -13 | GD30: -3 | GE30: 15 | GF30: -8,907 | GG30: 1.00% | GH30: 5.37 | GI30: -478 | GJ30: -4 | GK30: 0 | GL30: 0 | GN30: 95 | GO30: 0.87% | GP30: 2.21 | GQ30: 2 | GR30: 289 | GS30: 0.45% | GT30: 8.00 | GU30: 10 | GV30: 325 | GW30: 0.52% | GX30: 1.00 | GY30: 2 | GZ30: -89 | HA30: 0.65% | HB30: 5.00 | HC30: -3 | HD30: 10 | HE30: 0.40% | HF30: 1.00 | HG30: 0 | HH30: 76 | HI30: 1.00% | HJ30: 5.00 | HK30: 4 | HL30: -24 | HM30: 416 | HO30: =IF(ISERROR(IF(VLOOKUP($C30,'Indicateurs Cumulés'!$C$3:$HN$560,186,FALSE)/(VLOOKUP($C30,objectifs!$C$3:$ZZ$559,158,FALSE))>=1.5,(VLOOKUP($C30,objectifs!$C$3:$ZZ$559,158,FALSE))*1.5,IF(VLOOKUP($C30,'Indicateurs Cumulés'!$C$3:$HN$560,186,FALSE)/(VLOOKUP($C30,objectifs!$C$3:$ZZ$559,158,FALSE))<=-0.5,(VLOOKUP($C30,objectifs!$C$3:$ZZ$559,158,FALSE))*-0.5,VLOOKUP($C30,'Indicateurs Cumulés'!$C$3:$HN$560,186,FALSE)))),VLOOKUP($C30,'Indicateurs Cumulés'!$C$3:$HN$560,186,FALSE),IF(VLOOKUP($C30,'Indicateurs Cumulés'!$C$3:$HN$560,186,FALSE)/(VLOOKUP($C30,objectifs!$C$3:$ZZ$559,158,FALSE))>=1.5,(VLOOKUP($C30,objectifs!$C$3:$ZZ$559,158,FALSE))*1.5,IF(VLOOKUP($C30,'Indicateurs Cumulés'!$C$3:$HN$560,186,FALSE)/(VLOOKUP($C30,objectifs!$C$3:$ZZ$559,158,FALSE))<=-0.5,(VLOOKUP($C30,objectifs!$C$3:$ZZ$559,158,FALSE))*-0.5,VLOOKUP($C30,'Indicateurs Cumulés'!$C$3:$HN$560,186,FALSE)))) -> -312 | HP30: 436 | HR30: 8.7 | HT30: 3.23% | HU30: 0.27% | HV30: 0.85% | HW30: 7 | HX30: -7 | HY30: -2 | HZ30: 22 | IA30: 20 | IB30: 0 | IC30: 21 | ID30: 10 | IE30: 50 | IF30: -8 | IG30: -5 | IH30: 1 | II30: 5 | IJ30: 23 | IK30: -5 | IL30: -2 | IM30: 1 | IN30: -1 | IO30: -1 | IP30: 2 | IQ30: 0 | IR30: 0 | IS30: 2 | IT30: 4 | IU30: 3 | IV30: -5 | IW30: -5 | IX30: 2 | IY30: 5 | IZ30: 15 | JA30: -1 | JB30: -0 | JC30: 55 | JD30: 175 | JE30: 0 | JF30: 158 | JG30: 5.30 | JH30: 65.43 | JI30: 0 | JJ30: 0 | JK30: -120 | JL30: 0.20% | JM30: 0 | JO30: 215 | JP30: 619 | JQ30: 81 | JR30: =IF(ISERROR(IF(VLOOKUP($C30,'Indicateurs Cumulés'!$C$3:$HN$560,190,FALSE)/(VLOOKUP($C30,objectifs!$C$3:$ZZ$559,162,FALSE))>=1.5,(VLOOKUP($C30,objectifs!$C$3:$ZZ$559,162,FALSE))*1.5,IF(VLOOKUP($C30,'Indicateurs Cumulés'!$C$3:$HN$560,190,FALSE)/(VLOOKUP($C30,objectifs!$C$3:$ZZ$559,162,FALSE))<=-0.5,(VLOOKUP($C30,objectifs!$C$3:$ZZ$559,162,FALSE))*-0.5,VLOOKUP($C30,'Indicateurs Cumulés'!$C$3:$HN$560,190,FALSE)))),VLOOKUP($C30,'Indicateurs Cumulés'!$C$3:$HN$560,190,FALSE),IF(VLOOKUP($C30,'Indicateurs Cumulés'!$C$3:$HN$560,190,FALSE)/(VLOOKUP($C30,objectifs!$C$3:$ZZ$559,162,FALSE))>=1.5,(VLOOKUP($C30,objectifs!$C$3:$ZZ$559,162,FALSE))*1.5,IF(VLOOKUP($C30,'Indicateurs Cumulés'!$C$3:$HN$560,190,FALSE)/(VLOOKUP($C30,objectifs!$C$3:$ZZ$559,162,FALSE))<=-0.5,(VLOOKUP($C30,objectifs!$C$3:$ZZ$559,162,FALSE))*-0.5,VLOOKUP($C30,'Indicateurs Cumulés'!$C$3:$HN$560,190,FALSE)))) -> -4 | JS30: -2 | JT30: 0 | JV30: 8 | JW30: 20 | JX30: 3 | JY30: -0 | JZ30: 28 | KA30: 31 | KB30: 1 | KC30: 0 | KD30: 16 | KE30: 2 | KF30: 6 | KG30: 45 | KH30: 1 | KI30: 0 | KJ30: 4 | KK30: 1 | KL30: 1 | KM30: 75 | KN30: 18 | KR30: 5.76 | KS30: 56 | KT30: -48 | KU30: 0 | KV30: 15 | KW30: 3 | KX30: 0 | KY30: 29 | KZ30: 20 | LA30: -1 | LB30: -0 | LC30: 517 | LD30: 286 | LE30: 2 | LF30: 1 | LG30: 5 | LH30: 7 | LI30: 2 | LJ30: 0 | LK30: 504 | LL30: 58.1 | LM30: -15 | LN30: 407 | LO30: -7 | LP30: 9 | LQ30: 59.58 | LR30: 251 | LS30: 112 | LT30: 356 | LU30: 214 | LV30: 52 | LW30: 35 | LX30: 18.8 | LY30: 1.1 | LZ30: 1.1 | MA30: 10.7 | MB30: 0.8 | MC30: 0.2 | MD30: 549
A31: 105006 | B31: 200262 | C31: 45 | D31: STRASBOURG FRANCS BOURGEOIS | E31: 2019-05-31 | F31: 75 | G31: 4.32% | H31: 1.57 | I31: 2019-05-31 | J31: 898 | K31: 3.37% | L31: 2.33 | M31: 3.96 | N31: 3,887 | O31: 0 | P31: -0.14% | Q31: 7.84 | R31: 12.22 | S31: 111 | T31: 3.07% | U31: 2.39 | V31: 903 | W31: -0.17% | X31: 7.66 | Y31: 543 | Z31: 0.55% | AA31: 4.24 | AB31: 12.5 | AC31: 18.1 | AD31: 2.2 | AE31: 231.6 | AF31: 17.9 | AG31: 6.9 | AH31: 201905 | AI31: 44.81 | AJ31: 0 | AK31: 0.00% | AL31: 285.26 | AM31: 84.36 | AN31: 30% | AO31: 4.20 | AP31: 1.47% | AQ31: 798.69 | AR31: 98.71 | AS31: 12.4% | AT31: 2.08 | AU31: 0.26% | AV31: 61.68 | AW31: 17.66 | AX31: 28.64% | AY31: 1.01 | AZ31: 1.63% | BA31: 1,190.44 | BB31: 200.73 | BC31: 16.9% | BD31: 7.29 | BE31: 0.61% | BG31: 11 | BH31: -1 | BI31: 103 | BJ31: 53 | BK31: 18 | BL31: 1.50% | BM31: 0.00% | BN31: 45 | BO31: 70 | BP31: 1 | BQ31: 94 | BR31: 3 | BS31: 2 | BT31: 2 | BU31: -3 | BX31: 0 | BY31: -1 | BZ31: -0 | CA31: 2 | CB31: 0 | CC31: 3 | CD31: 2 | CE31: 8 | CF31: 1.6 | CG31: 10 | CH31: 2 | CI31: 3 | CJ31: 3 | CK31: 86.49% | CL31: 150.00% | CM31: 3 | CN31: 100.00% | CO31: 3 | CP31: 7 | CQ31: 2.2 | CR31: 2 | CS31: 0.00 | CT31: 0 | CU31: 6 | CV31: 2 | CW31: 12 | CX31: 45.77% | CY31: 166.77% | CZ31: 72 | DA31: 95.07% | DB31: 154.39% | DC31: 21 | DE31: 100.00% | DF31: 100.00% | DG31: 3 | DH31: 274 | DI31: 0.70% | DJ31: 5.33 | DK31: 10 | DL31: 381 | DM31: 0.81% | DN31: 5.33 | DO31: 16 | DP31: 14 | DQ31: 0.91% | DR31: 5.33 | DS31: 1 | DT31: 200 | DU31: 0.40% | DV31: 2.16 | DW31: 2 | DX31: -190 | DY31: 0.20% | DZ31: 5.37 | EA31: -2 | EB31: 9 | EC31: 0.20% | ED31: 5.37 | EE31: 0 | EF31: -45 | EG31: 0.20% | EH31: 5.37 | EI31: -0 | EJ31: 23 | EK31: 0.45% | EL31: 5.33 | EM31: 1 | EN31: -3 | EO31: 0.10% | EP31: 9.29 | EQ31: -0 | ER31: -601 | ES31: 0.20% | ET31: 9.00 | EU31: -11 | EV31: -362 | EW31: 0.00% | EX31: 8.59 | EY31: 0 | EZ31: -6 | FA31: -0.37% | FB31: 0.08 | FC31: 0 | FD31: 291 | FE31: 0.45% | FF31: 8.00 | FG31: 10 | FH31: 1,263 | FI31: 0.61% | FJ31: 1.00 | FK31: 8 | FL31: -15 | FM31: 0.65% | FN31: 5.00 | FO31: -1 | FP31: 13 | FQ31: 0.40% | FR31: 1.00 | FS31: 0 | FT31: -285 | FU31: 0.20% | FV31: 8.00 | FW31: -5 | FX31: 281 | FY31: 1.00% | FZ31: 5.00 | GA31: 14 | GB31: -393 | GC31: 23 | GD31: 445 | GE31: 30 | GF31: -661 | GG31: 1.00% | GH31: 5.37 | GI31: -36 | GJ31: -580 | GK31: 0 | GL31: 0 | GN31: 0 | GO31: 0.00% | GP31: 0 | GQ31: 0 | GR31: -10 | GS31: 0.45% | GT31: 8.00 | GU31: -0 | GV31: 0 | GW31: 0.61% | GX31: 1.00 | GY31: 0 | GZ31: 0 | HA31: 0.65% | HB31: 5.00 | HC31: 0 | HD31: 0 | HE31: 0.40% | HF31: 1.00 | HG31: 0 | HH31: 180 | HI31: 1.00% | HJ31: 5.00 | HK31: 9 | HL31: -17 | HM31: 314 | HO31: =IF(ISERROR(IF(VLOOKUP($C31,'Indicateurs Cumulés'!$C$3:$HN$560,186,FALSE)/(VLOOKUP($C31,objectifs!$C$3:$ZZ$559,158,FALSE))>=1.5,(VLOOKUP($C31,objectifs!$C$3:$ZZ$559,158,FALSE))*1.5,IF(VLOOKUP($C31,'Indicateurs Cumulés'!$C$3:$HN$560,186,FALSE)/(VLOOKUP($C31,objectifs!$C$3:$ZZ$559,158,FALSE))<=-0.5,(VLOOKUP($C31,objectifs!$C$3:$ZZ$559,158,FALSE))*-0.5,VLOOKUP($C31,'Indicateurs Cumulés'!$C$3:$HN$560,186,FALSE)))),VLOOKUP($C31,'Indicateurs Cumulés'!$C$3:$HN$560,186,FALSE),IF(VLOOKUP($C31,'Indicateurs Cumulés'!$C$3:$HN$560,186,FALSE)/(VLOOKUP($C31,objectifs!$C$3:$ZZ$559,158,FALSE))>=1.5,(VLOOKUP($C31,objectifs!$C$3:$ZZ$559,158,FALSE))*1.5,IF(VLOOKUP($C31,'Indicateurs Cumulés'!$C$3:$HN$560,186,FALSE)/(VLOOKUP($C31,objectifs!$C$3:$ZZ$559,158,FALSE))<=-0.5,(VLOOKUP($C31,objectifs!$C$3:$ZZ$559,158,FALSE))*-0.5,VLOOKUP($C31,'Indicateurs Cumulés'!$C$3:$HN$560,186,FALSE)))) -> -317 | HP31: 327 | HR31: 6.7 | HT31: 4.52% | HU31: 0.16% | HV31: 0.76% | HW31: 12 | HX31: 10 | HY31: 1 | HZ31: 16 | IA31: 8 | IB31: 7 | IC31: 12 | ID31: 13 | IE31: 8 | IF31: -11 | IG31: -4 | IH31: -1 | II31: -3 | IJ31: 14 | IK31: -19 | IL31: -1 | IM31: 1 | IN31: 1 | IO31: 0 | IP31: 1 | IQ31: 0 | IR31: 1 | IS31: 1 | IT31: 6 | IU31: 0 | IV31: -7 | IW31: -4 | IX31: -2 | IY31: -3 | IZ31: 9 | JA31: -4 | JB31: -0 | JC31: 18 | JD31: 28 | JE31: 0 | JF31: 73 | JG31: 5.03 | JH31: 50.22 | JI31: 0 | JJ31: 0 | JK31: -500 | JL31: 0.20% | JM31: 3 | JO31: 40 | JP31: -82 | JQ31: 127 | JR31: =IF(ISERROR(IF(VLOOKUP($C31,'Indicateurs Cumulés'!$C$3:$HN$560,190,FALSE)/(VLOOKUP($C31,objectifs!$C$3:$ZZ$559,162,FALSE))>=1.5,(VLOOKUP($C31,objectifs!$C$3:$ZZ$559,162,FALSE))*1.5,IF(VLOOKUP($C31,'Indicateurs Cumulés'!$C$3:$HN$560,190,FALSE)/(VLOOKUP($C31,objectifs!$C$3:$ZZ$559,162,FALSE))<=-0.5,(VLOOKUP($C31,objectifs!$C$3:$ZZ$559,162,FALSE))*-0.5,VLOOKUP($C31,'Indicateurs Cumulés'!$C$3:$HN$560,190,FALSE)))),VLOOKUP($C31,'Indicateurs Cumulés'!$C$3:$HN$560,190,FALSE),IF(VLOOKUP($C31,'Indicateurs Cumulés'!$C$3:$HN$560,190,FALSE)/(VLOOKUP($C31,objectifs!$C$3:$ZZ$559,162,FALSE))>=1.5,(VLOOKUP($C31,objectifs!$C$3:$ZZ$559,162,FALSE))*1.5,IF(VLOOKUP($C31,'Indicateurs Cumulés'!$C$3:$HN$560,190,FALSE)/(VLOOKUP($C31,objectifs!$C$3:$ZZ$559,162,FALSE))<=-0.5,(VLOOKUP($C31,objectifs!$C$3:$ZZ$559,162,FALSE))*-0.5,VLOOKUP($C31,'Indicateurs Cumulés'!$C$3:$HN$560,190,FALSE)))) -> -55 | JS31: -9 | JT31: 0 | JV31: 1 | JW31: -3 | JX31: 4 | JY31: -3 | JZ31: -9 | KA31: 6 | KB31: 0 | KC31: 0 | KD31: 0 | KE31: 2 | KF31: 0 | KG31: 9 | KH31: 0 | KI31: 0 | KJ31: 0 | KK31: 1 | KL31: 0 | KM31: 22 | KN31: 11 | KR31: 5.05 | KS31: 8 | KT31: -95 | KU31: 0 | KV31: 8 | KW31: 2 | KX31: 0 | KY31: 10 | KZ31: 7 | LA31: 1 | LB31: 0 | LC31: 257 | LD31: 46 | LE31: 2 | LF31: 1 | LG31: 2 | LH31: 3 | LI31: 3 | LJ31: 0 | LK31: 246 | LL31: 36.7 | LM31: 37 | LN31: 173 | LO31: -4 | LP31: 5 | LQ31: 38.25 | LR31: 219 | LS31: 113 | LT31: 372 | LU31: 151 | LV31: -49 | LW31: 10 | LX31: 16.4 | LY31: 1.1 | LZ31: 1.1 | MA31: 7.6 | MB31: 0.0 | MC31: 0.1 | MD31: 283
